Workbook

Sheet Baca dulu
A1: aph | B1: AKTIVASI DAN SETUP AWAL
A2: Cara mem-fungsikan tombol-tombol perintah (Office 2016 ke atas):
B3: Langkah:
B4: a. | C4: Tutup dulu file aplikasi ini
B5: b. | C5: Klik kanan nama file lalu pilih properties
B6: c. | C6: Kemudian di bagian kanan bawah beri check list pada unblock Security, lalu klik apply dan OK
A8: Cara mem-fungsikan tombol-tombol perintah (Office 2013):
B9: Langkah:
B10: a. | C10: Buka program Excell
B11: b. | C11: Klik Menu File (sebelah kiri atas) dan klik “options”
B12: c. | C12: Selanjutnya pada sub menu “trust center” pilih dan klik “trust center setting”, kemudian klik sub menu “macro setting” dan pilih “enable all macro (not recomended, potentially dangerous code can run)” serta pilih “trust access to the VBA project object model”
B13: d. | C13: Apabila masih belum jalan juga, lihat apakah ada peringatan "Security Warning" diatas baris rumus
C14: Jika ada, maka klik "options" dan pilih "enable" lalu tekan Enter
A16: Cara mem-fungsikan tombol-tombol perintah (Office 2010):
B17: Langkah:
B18: a. | C18: Buka program Excell
B19: b. | C19: Klik Menu File (sebelah kiri atas) dan klik “options”
B20: c. | C20: Selanjutnya pada sub menu “trust center” pilih dan klik “trust center setting”, kemudian klik sub menu “macro setting” dan pilih “enable all macro (not recomended, potentially dangerous code can run)” serta pilih “trust access to the VBA project object model”
B21: d. | C21: Apabila masih belum jalan juga, lihat apakah ada peringatan "Security Warning" diatas baris rumus
C22: Jika ada, maka klik "options" dan pilih "enable" lalu tekan Enter
A24: Cara mem-fungsikan tombol-tombol perintah (Office 2007):
B25: Langkah:
B26: a. | C26: Buka program Excell
B27: b. | C27: Klik “office button” (lingkaran sebelah kiri atas) dan klik “Excel options”
B28: c. | C28: Selanjutnya pada sub menu “trust center” pilih dan klik “trust center setting”, kemudian klik sub menu “macro setting” dan pilih “enable all macro (not recomended, potentially dangerous code can run)” serta pilih “trust access to the VBA project object model”
B29: d. | C29: Apabila masih belum jalan juga, lihat apakah ada peringatan "Security Warning" diatas baris rumus
C30: Jika ada, maka klik "options" dan pilih "enable" lalu tekan Enter
A33: Cara melakukan Setup Awal Aplikasi dan menjalankan Aplikasi:
A34: A. | B34: Langkah Setup Awal:
B35: 1. | C35: Buka Sheet Home
C36: a. | D36: Pada sheet home lakukan kustomisasi identitas Badan Usaha Milik Desa./BUM Desa bersama
C37: b. | D37: Kemudian Isikan Identitas Petugas Akuntansi dan Pejabat Penandatangan Laporan Keuangan.
B38: 2. | C38: Buka Sheet COA
C39: a. | D39: Sesuaikan Kode dan Nama Akun dengan Kode dan Nama Akun yang terdapat pada Pedoman Akuntansi Keuangan Badan Usaha Milik Desa masing-masing. Jika sudah ada datanya dalam format Excel, copy paste special value kan data tersebut dalam kolom Kode dan Nama Akun dan Saldo Normal
C40: b. | D40: Lakukan penginputan data Anggaran BUMDes di kolom Anggaran (jika ada)
C41: c. | D41: Penambahan baris data pada kolom ini akan mempengaruhi sheet Neraca Saldo, sehingga data yang dibaca dari sheet COA di Sheet Neraca Saldo harus di-melarkan juga.
A42: B. | B42: Langkah Penginputan Transaksi:
B43: 1. | C43: Buka Sheet Jurnal
C44: a. | D44: Analisis setiap transaksi dan lakukan peng-input-an transaksi dengan menuliskan kata kunci di baris jurnal kolom kode dan nama akun dan mengklik dropdown untuk memilih akun yang sesuai. Selanjutnya input jumlah penambahan dan pengurangan atau pendebitan dan pengkreditan. Lengkapi dengan TANGGAL, no bukti dan keterangan transaksi. Untuk transaksi yang sama, isikan setiap baris data tanggal, no bukti dan keterangan transaksi, sehingga masing masing baris akun memiliki atribut yang lengkap.
D46: Penjurnalan menggunakan mekanisme double entry yaitu minimal satu akun di debit dan satu akun di kredit dengan mengacu persamaan dasar akuntansi.
D48: Pemahaman Persamaan Dasar Akuntansi (dasar melakukan penjurnalan)
D49: ASET | G49: = | H49: UTANG | I49: + | J49: MODAL
D50: sisi kiri | H50: sisi kanan
D53: ASET | G53: = | H53: UTANG | I53: + | J53: MODAL
D54: Aset | H54: Utang | I54: + | J54: Modal Awal | K54: + | L54: Pendapatan | M54: - | N54: Beban
D55: Aset | E55: + | F55: Beban | H55: Utang | I55: + | J55: Modal Awal | K55: + | L55: Pendapatan | O55: <-- saldo normal
D56: sisi kiri | H56: sisi kanan
D58: Contoh kejadian
D59: No | E59: Kejadian | H59: sisi kiri | I59: sisi kanan
D60: 1 | E60: aset bertambah | H60: ü
D61: 2 | E61: Beban bertambah | H61: ü
D62: 3 | E62: utang bertambah | I62: ü
D63: 4 | E63: Modal bertambah | I63: ü
D64: 5 | E64: Pendapatan bertambah | I64: ü
D65: *) apabila kejadiannya sebaliknya (berkurang), maka sisi yang dituliskan angkanya adalah SEBALIKNYA
E67: Penjelasan
E68: a. Jika terjadi penambahan aset, maka dituliskan angkanya di sisi/kolom kiri
E69: b. Jika terjadi penambahan utang/modal, maka dituliskan angkanya di sisi/kolom kanan
E70: c. Jika terjadi pengurangan aset, maka dituliskan angkanya di sisi/kolom kanan
E71: d. Jika terjadi pengurangan utang karena pembayaran, maka dituliskan angkanya di sisi/kolom kiri
C73: b. | D73: Untuk penginputan Komponen Laporan Arus Kas dan Sub Komponennya, diisikan pada baris akun Kas baik tunai maupun bank. Dengan cara kklik dropdown kemudian pilih arus kas yang sesuai, kemudian enter dan diklik lagi di tempat yang sama untuk memilih riinciannya.
C74: c. | D74: Untuk penginputan Komponen Buku Pembantu dan Sub Komponennya, diisikan pada baris akun Piutang atau Utang. Dengan cara kklik dropdown kemudian pilih komponen yang sesuai, kemudian enter dan diklik lagi di tempat yang sama untuk memilih riinciannya.
C75: d. | D75: Dalam mengisikan/menginput transaksi tahun berjalan di sheet Jurnal, TIDAK DIPERKENANKAN meng-insert atau men-delete row atau kolom. Sebenarnya ini boleh dilakukan tapi sheet Buku Besar harus disesuaikan juga dengan memastikan jumlah baris yang dibaca Sheet Buku Besar harus SAMA PERSIS dengan jumlah baris data di sheet Jurnal.
B76: 2. | C76: Jangan khawatir, jika ada kesalahan atau error atau tidak terbaca, maka hal itu adalah sistemik dan Insya Allah sangat mudah untuk dibetulkan (lihat formula/function-nya dan tinggal diperbaiki)
A78: Catatan:
A79: 1 | B79: Aplikasi ini dapat digunakan baik oleh BUM Desa maupun BUM Desa bersama yang memiliki berbagai kegiatan usaha jasa, dagang dan manufaktur sekaligus.
A80: 2 | B80: Aplikasi ini sangat mudah digunakan dan disesuaikan dengan kondisi dan kegiatan usaha BUM Desa/BUM Desa bersama
A81: 3 | B81: Format Laporan disusun menurut sistematika Daftar Akun.
A82: 4 | B82: Untuk Daftar Akun (COA) dapat disesuaikan dengan menambah akun (level 4) yang dibutuhkan jika belum tersedia.
A83: 5 | B83: Untuk kepentingan melindungi sheet laporan passwordnya adalah: andy, dan untuk COA passwordnya : admin
A84: 6 | B84: Apabila terdapat kesulitan dalam menjalankan atau mengembangkan aplikasi ini, Insya Allah dapat menghubungi:
C85: Andy P Hamzah, SST., M.Si., Ak, CA, CGAA
C86: Dosen PKN STAN
C87: WA : 0812.3000.3690
C88: email : andyphamzah.ak@gmail.com
A90: 7 | B90: Aplikasi ini bersifat Freware, dapat digunakan secara gratis dan tidak untuk dikomersilkan

Sheet Home
C1: Sebaik baik manusia adalah yang paling bermanfaat bagi manusia lainnya
B2: Identitas BUMDesa | I2: Version 3.7
B3: Nama Kabupaten | C3: KARANGANYAR | D3: (isikan nama kabupaten) | I3: 2023-03-25
B4: ID BUM Desa | D4: (isikan ID BUM Desa) | G4: Direktur BUMDesa
B5: Nama Desa | C5: KEMUNING | D5: (isikan nama Desa) | G5: Nama | H5: RIDHO
B6: Nama BUMDesa | C6: MADUSUKO MAKMUR | D6: (isikan nama BUMDesa) | G6: NIK
B7: Alamat | C7: JL LAWU KEMUNING NGARGOYOSO KARANGANYAR | D7: (isikan alamat BUMDesa)
B8: KP/Unit Usaha | C8: SIMPAN PINJAM | D8: (isikan nama Unit Usaha BUMDesa) | G8: Petugas Akuntansi
B9: Awal Tahun Buku | C9: 2023-01-01 | D9: (contoh: 01/01/2023) | G9: Nama | H9: AYU AMBOROWATI
B10: Akhir Tahun Buku | C10: 2023-12-31 | D10: (contoh: 31/12/2023) | G10: NIK
A12: Aplikasi
B13: Pencatatan dan Pelaporan Akuntansi Keuangan (PPAK)
B14: Badan Usaha Milik Desa
A15: aph
A16: Aplikasi bersifat Freeware (Gratis) dan Tidak Untuk Dikomersilkan | H16: RINGKASAN INFORMASI EKSEKUTIF
H22: andyphamzah.ak@gmail.com

Sheet COA
A1: aph | B1: Kd | C1: Kode dan Nama Akun | D1: Saldo Normal | E1: Anggaran | F1: Realisasi | G1: % | I1: Level 3 | J1: Daftar Kemungkinan Akun yang Dicari | L1: Cari | M1: Rumus
A2: =ROW()-1 -> 1 | B2: =IF(ISNUMBER(SEARCH($L$2,C2)),MAX(B$1:$B1)+1,0) -> 1 | C2: 1.1.01.01 Kas Tunai | D2: Debit | E2: 0 | F2: =SUMIF('neraca saldo'!C:C,COA!C2,'neraca saldo'!H:H) -> 3000000 | G2: =IF(E2=0,"",F2/E2) ->  | I2: =LEFT(C2,7) -> 1.1.01. | J2: =IFERROR(VLOOKUP(ROWS($J$2:J2),$B$2:$C$203,2,0),"") -> 1.1.01.01 Kas Tunai | L2: =CELL("contents") -> 0 | M2: =OFFSET(COA!$J$2,,,COUNTIF(COA!$J$2:$J$203,"?*")) -> 1.1.01.01 Kas Tunai
A3: =ROW()-1 -> 2 | B3: =IF(ISNUMBER(SEARCH($L$2,C3)),MAX(B$1:$B2)+1,0) -> 2 | C3: 1.1.01.02 Kas di Bank BSI | D3: Debit | E3: 0 | F3: =SUMIF('neraca saldo'!C:C,COA!C3,'neraca saldo'!H:H) -> 0 | G3: =IF(E3=0,"",F3/E3) ->  | I3: =LEFT(C3,7) -> 1.1.01. | J3: =IFERROR(VLOOKUP(ROWS($J$2:J3),$B$2:$C$203,2,0),"") -> 1.1.01.02 Kas di Bank BSI
A4: 3 | B4: =IF(ISNUMBER(SEARCH($L$2,C4)),MAX(B$1:$B3)+1,0) -> 3 | C4: 1.1.01.03 Kas di Bank BKK | D4: Debit | E4: 0 | F4: =SUMIF('neraca saldo'!C:C,COA!C4,'neraca saldo'!H:H) -> 0 | I4: 1.1.01. | J4: =IFERROR(VLOOKUP(ROWS($J$2:J4),$B$2:$C$203,2,0),"") -> 1.1.01.03 Kas di Bank BKK
A5: 4 | B5: =IF(ISNUMBER(SEARCH($L$2,C5)),MAX(B$1:$B4)+1,0) -> 4 | C5: 1.1.01.04 Kas di Bank BRI | D5: Debit | E5: 0 | F5: =SUMIF('neraca saldo'!C:C,COA!C5,'neraca saldo'!H:H) -> 0 | I5: 1.1.01. | J5: =IFERROR(VLOOKUP(ROWS($J$2:J5),$B$2:$C$203,2,0),"") -> 1.1.01.04 Kas di Bank BRI
A6: 5 | B6: =IF(ISNUMBER(SEARCH($L$2,C6)),MAX(B$1:$B5)+1,0) -> 5 | C6: 1.1.01.05 Kas di Bank BPD | D6: Debit | E6: 0 | F6: =SUMIF('neraca saldo'!C:C,COA!C6,'neraca saldo'!H:H) -> 0 | G6: =IF(E6=0,"",F6/E6) ->  | I6: =LEFT(C6,7) -> 1.1.01. | J6: =IFERROR(VLOOKUP(ROWS($J$2:J6),$B$2:$C$203,2,0),"") -> 1.1.01.05 Kas di Bank BPD
A7: =ROW()-1 -> 6 | B7: =IF(ISNUMBER(SEARCH($L$2,C7)),MAX(B$1:$B5)+1,0) -> 5 | C7: 1.1.01.98 Titipan Tabungan Peminjam | D7: Debit | E7: 0 | F7: =SUMIF('neraca saldo'!C:C,COA!C7,'neraca saldo'!H:H) -> 0 | I7: 1.1.01. | J7: =IFERROR(VLOOKUP(ROWS($J$2:J7),$B$2:$C$203,2,0),"") -> 1.1.01.99 Tambahan Modal Shu
A8: =ROW()-1 -> 7 | B8: =IF(ISNUMBER(SEARCH($L$2,C8)),MAX(B$1:$B6)+1,0) -> 6 | C8: 1.1.01.99 Tambahan Modal Shu | D8: Debit | E8: 0 | F8: =SUMIF('neraca saldo'!C:C,COA!C8,'neraca saldo'!H:H) -> 0 | G8: =IF(E8=0,"",F8/E8) -> 
A9: =ROW()-1 -> 8 | B9: =IF(ISNUMBER(SEARCH($L$2,C9)),MAX(B$1:$B7)+1,0) -> 6 | C9: 1.1.01.100 Operasional Pengelola | D9: Debit | E9: 0 | F9: =SUMIF('neraca saldo'!C:C,COA!C9,'neraca saldo'!H:H) -> 0 | G9: =IF(E9=0,"",F9/E9) -> 
A10: 9 | B10: =IF(ISNUMBER(SEARCH($L$2,C10)),MAX(B$1:$B8)+1,0) -> 7 | C10: 1.1.01.101 Peningkatan Sdm | D10: Debit | E10: 0 | F10: =SUMIF('neraca saldo'!C:C,COA!C10,'neraca saldo'!H:H) -> 0
A11: 10 | B11: =IF(ISNUMBER(SEARCH($L$2,C11)),MAX(B$1:$B9)+1,0) -> 7 | C11: 1.1.01.102 Modal awal tahun 2022 | D11: Debit | E11: 0 | F11: =SUMIF('neraca saldo'!C:C,COA!C11,'neraca saldo'!H:H) -> 0 | G11: =IF(E11=0,"",F11/E11) -> 
A12: 11 | B12: =IF(ISNUMBER(SEARCH($L$2,C12)),MAX(B$1:$B7)+1,0) -> 6 | C12: 1.1.02.01 Deposito <= 3 bulan | D12: Debit | E12: 0 | F12: =SUMIF('neraca saldo'!C:C,COA!C12,'neraca saldo'!H:H) -> 0 | I12: 1.1.02. | J12: =IFERROR(VLOOKUP(ROWS($J$2:J12),$B$2:$C$203,2,0),"") -> 1.1.03.02 Piutang kepada Pegawai
A13: 12 | B13: =IF(ISNUMBER(SEARCH($L$2,C13)),MAX(B$1:$B12)+1,0) -> 8 | C13: 1.1.02.99 Setara Kas Lainnya | D13: Debit | E13: 0 | F13: =SUMIF('neraca saldo'!C:C,COA!C13,'neraca saldo'!H:H) -> 0 | I13: 1.1.02. | J13: =IFERROR(VLOOKUP(ROWS($J$2:J13),$B$2:$C$203,2,0),"") -> 1.1.04.01 Penyisihan Piutang Usaha Tak Tertagih
A14: 13 | B14: =IF(ISNUMBER(SEARCH($L$2,C14)),MAX(B$1:$B13)+1,0) -> 9 | C14: 1.1.03.01 Piutang Usaha | D14: Debit | E14: 0 | F14: =SUMIF('neraca saldo'!C:C,COA!C14,'neraca saldo'!H:H) -> 0 | I14: 1.1.03. | J14: =IFERROR(VLOOKUP(ROWS($J$2:J14),$B$2:$C$203,2,0),"") -> 1.1.04.02 Penyisihan Piutang kepada Pegawai Tak Tertagih
A15: 14 | B15: =IF(ISNUMBER(SEARCH($L$2,C15)),MAX(B$1:$B14)+1,0) -> 10 | C15: 1.1.03.02 Piutang Pinjaman | D15: Debit | E15: 0 | F15: =SUMIF('neraca saldo'!C:C,COA!C15,'neraca saldo'!H:H) -> 0 | I15: 1.1.03. | J15: =IFERROR(VLOOKUP(ROWS($J$2:J15),$B$2:$C$203,2,0),"") -> 1.1.04.99 Penyisihan Piutang Lainnya Tak Tertagih
A16: 15 | B16: =IF(ISNUMBER(SEARCH($L$2,C16)),MAX(B$1:$B15)+1,0) -> 11 | C16: 1.1.03.02 Piutang kepada Pegawai | D16: Debit | E16: 0 | F16: =SUMIF('neraca saldo'!C:C,COA!C16,'neraca saldo'!H:H) -> 0 | G16: =IF(E16=0,"",F16/E16) -> 
A17: 16 | B17: =IF(ISNUMBER(SEARCH($L$2,C17)),MAX(B$1:$B15)+1,0) -> 11 | C17: 1.1.03.99 Piutang Lainnya | D17: Debit | E17: 0 | F17: =SUMIF('neraca saldo'!C:C,COA!C17,'neraca saldo'!H:H) -> 0 | I17: 1.1.03. | J17: =IFERROR(VLOOKUP(ROWS($J$2:J17),$B$2:$C$203,2,0),"") -> 1.1.05.02 Persediaan Bahan Baku
A18: 17 | B18: =IF(ISNUMBER(SEARCH($L$2,C18)),MAX(B$1:$B17)+1,0) -> 12 | C18: 1.1.04.01 Penyisihan Piutang Usaha Tak Tertagih | D18: Kredit | E18: 0 | F18: =SUMIF('neraca saldo'!C:C,COA!C18,'neraca saldo'!H:H) -> 0 | I18: 1.1.04. | J18: =IFERROR(VLOOKUP(ROWS($J$2:J18),$B$2:$C$203,2,0),"") -> 1.1.05.03 Persediaan Barang Dalam Proses
A19: 18 | B19: =IF(ISNUMBER(SEARCH($L$2,C19)),MAX(B$1:$B18)+1,0) -> 13 | C19: 1.1.04.02 Penyisihan Piutang kepada Pegawai Tak Tertagih | D19: Kredit | E19: 0 | F19: =SUMIF('neraca saldo'!C:C,COA!C19,'neraca saldo'!H:H) -> 0 | I19: 1.1.04. | J19: =IFERROR(VLOOKUP(ROWS($J$2:J19),$B$2:$C$203,2,0),"") -> 1.1.05.04 Persediaan Barang Jadi
A20: 19 | B20: =IF(ISNUMBER(SEARCH($L$2,C20)),MAX(B$1:$B19)+1,0) -> 14 | C20: 1.1.04.99 Penyisihan Piutang Lainnya Tak Tertagih | D20: Kredit | E20: 0 | F20: =SUMIF('neraca saldo'!C:C,COA!C20,'neraca saldo'!H:H) -> 0 | I20: 1.1.04. | J20: =IFERROR(VLOOKUP(ROWS($J$2:J20),$B$2:$C$203,2,0),"") -> 1.1.06.01 Alat Tulis Kantor (ATK)
A21: 20 | B21: =IF(ISNUMBER(SEARCH($L$2,C21)),MAX(B$1:$B20)+1,0) -> 15 | C21: 1.1.05.01 Persediaan Barang Dagangan | D21: Debit | E21: 0 | F21: =SUMIF('neraca saldo'!C:C,COA!C21,'neraca saldo'!H:H) -> 0 | I21: 1.1.05. | J21: =IFERROR(VLOOKUP(ROWS($J$2:J21),$B$2:$C$203,2,0),"") -> 1.1.07.01 Sewa Dibayar Dimuka
A22: 21 | B22: =IF(ISNUMBER(SEARCH($L$2,C22)),MAX(B$1:$B21)+1,0) -> 16 | C22: 1.1.05.02 Persediaan Bahan Baku | D22: Debit | E22: 0 | F22: =SUMIF('neraca saldo'!C:C,COA!C22,'neraca saldo'!H:H) -> 0 | I22: 1.1.05. | J22: =IFERROR(VLOOKUP(ROWS($J$2:J22),$B$2:$C$203,2,0),"") -> 1.1.07.02 Asuransi Dibayar Dimuka
A23: 22 | B23: =IF(ISNUMBER(SEARCH($L$2,C23)),MAX(B$1:$B22)+1,0) -> 17 | C23: 1.1.05.03 Persediaan Barang Dalam Proses | D23: Debit | E23: 0 | F23: =SUMIF('neraca saldo'!C:C,COA!C23,'neraca saldo'!H:H) -> 0 | I23: 1.1.05. | J23: =IFERROR(VLOOKUP(ROWS($J$2:J23),$B$2:$C$203,2,0),"") -> 1.1.07.03 PPh 25
A24: 23 | B24: =IF(ISNUMBER(SEARCH($L$2,C24)),MAX(B$1:$B23)+1,0) -> 18 | C24: 1.1.05.04 Persediaan Barang Jadi | D24: Debit | E24: 0 | F24: =SUMIF('neraca saldo'!C:C,COA!C24,'neraca saldo'!H:H) -> 0 | I24: 1.1.05. | J24: =IFERROR(VLOOKUP(ROWS($J$2:J24),$B$2:$C$203,2,0),"") -> 1.1.07.04 PPN Masukan
A25: 24 | B25: =IF(ISNUMBER(SEARCH($L$2,C25)),MAX(B$1:$B24)+1,0) -> 19 | C25: 1.1.06.01 Alat Tulis Kantor (ATK) | D25: Debit | E25: 0 | F25: =SUMIF('neraca saldo'!C:C,COA!C25,'neraca saldo'!H:H) -> 0 | I25: 1.1.06. | J25: =IFERROR(VLOOKUP(ROWS($J$2:J25),$B$2:$C$203,2,0),"") -> 1.1.99.01 RK Unit Wisata
A26: 25 | B26: =IF(ISNUMBER(SEARCH($L$2,C26)),MAX(B$1:$B25)+1,0) -> 20 | C26: 1.1.07.01 Sewa Dibayar Dimuka | D26: Debit | E26: 0 | F26: =SUMIF('neraca saldo'!C:C,COA!C26,'neraca saldo'!H:H) -> 0 | I26: 1.1.07. | J26: =IFERROR(VLOOKUP(ROWS($J$2:J26),$B$2:$C$203,2,0),"") -> 1.1.99.02 RK Unit Restoran
A27: 26 | B27: =IF(ISNUMBER(SEARCH($L$2,C27)),MAX(B$1:$B26)+1,0) -> 21 | C27: 1.1.07.02 Asuransi Dibayar Dimuka | D27: Debit | E27: 0 | F27: =SUMIF('neraca saldo'!C:C,COA!C27,'neraca saldo'!H:H) -> 0 | I27: 1.1.07. | J27: =IFERROR(VLOOKUP(ROWS($J$2:J27),$B$2:$C$203,2,0),"") -> 1.1.99.03 RK Unit Minimart Desa
A28: 27 | B28: =IF(ISNUMBER(SEARCH($L$2,C28)),MAX(B$1:$B27)+1,0) -> 22 | C28: 1.1.07.03 PPh 25 | D28: Debit | E28: 0 | F28: =SUMIF('neraca saldo'!C:C,COA!C28,'neraca saldo'!H:H) -> 0 | I28: 1.1.07. | J28: =IFERROR(VLOOKUP(ROWS($J$2:J28),$B$2:$C$203,2,0),"") -> 1.1.99.04 RK Unit Gedung Serbaguna
A29: 28 | B29: =IF(ISNUMBER(SEARCH($L$2,C29)),MAX(B$1:$B28)+1,0) -> 23 | C29: 1.1.07.04 PPN Masukan | D29: Debit | E29: 0 | F29: =SUMIF('neraca saldo'!C:C,COA!C29,'neraca saldo'!H:H) -> 0 | I29: 1.1.07. | J29: =IFERROR(VLOOKUP(ROWS($J$2:J29),$B$2:$C$203,2,0),"") -> 1.1.99.05 RK Unit Simpan Pinjam
A30: 29 | B30: =IF(ISNUMBER(SEARCH($L$2,C30)),MAX(B$1:$B29)+1,0) -> 0 | C30: 1.1.98.99 Aset Lancar Lainnya | D30: Debit | E30: 0 | F30: =SUMIF('neraca saldo'!C:C,COA!C30,'neraca saldo'!H:H) -> 0 | I30: 1.1.98. | J30: =IFERROR(VLOOKUP(ROWS($J$2:J30),$B$2:$C$203,2,0),"") -> 1.1.99.06 RK Unit Pengelolaan Air Bersih
A31: 30 | B31: =IF(ISNUMBER(SEARCH($L$2,C31)),MAX(B$1:$B30)+1,0) -> 24 | C31: 1.1.99.01 RK Unit Wisata | D31: Debit | E31: 0 | F31: =SUMIF('neraca saldo'!C:C,COA!C31,'neraca saldo'!H:H) -> 0 | I31: 1.1.99. | J31: =IFERROR(VLOOKUP(ROWS($J$2:J31),$B$2:$C$203,2,0),"") -> 1.1.99.07 RK Unit Pengelolaan Sampah
A32: 31 | B32: =IF(ISNUMBER(SEARCH($L$2,C32)),MAX(B$1:$B31)+1,0) -> 25 | C32: 1.1.99.02 RK Unit Restoran | D32: Debit | E32: 0 | F32: =SUMIF('neraca saldo'!C:C,COA!C32,'neraca saldo'!H:H) -> 0 | I32: 1.1.99. | J32: =IFERROR(VLOOKUP(ROWS($J$2:J32),$B$2:$C$203,2,0),"") -> 1.2.01.01 Deposito > 3 bulan
A33: 32 | B33: =IF(ISNUMBER(SEARCH($L$2,C33)),MAX(B$1:$B32)+1,0) -> 26 | C33: 1.1.99.03 RK Unit Minimart Desa | D33: Debit | E33: 0 | F33: =SUMIF('neraca saldo'!C:C,COA!C33,'neraca saldo'!H:H) -> 0 | I33: 1.1.99. | J33: =IFERROR(VLOOKUP(ROWS($J$2:J33),$B$2:$C$203,2,0),"") -> 1.2.01.99 Investasi Lainnya
A34: 33 | B34: =IF(ISNUMBER(SEARCH($L$2,C34)),MAX(B$1:$B33)+1,0) -> 27 | C34: 1.1.99.04 RK Unit Gedung Serbaguna | D34: Debit | E34: 0 | F34: =SUMIF('neraca saldo'!C:C,COA!C34,'neraca saldo'!H:H) -> 0 | I34: 1.1.99. | J34: =IFERROR(VLOOKUP(ROWS($J$2:J34),$B$2:$C$203,2,0),"") -> 1.3.01.01 Tanah
A35: 34 | B35: =IF(ISNUMBER(SEARCH($L$2,C35)),MAX(B$1:$B34)+1,0) -> 28 | C35: 1.1.99.05 RK Unit Simpan Pinjam | D35: Debit | E35: 0 | F35: =SUMIF('neraca saldo'!C:C,COA!C35,'neraca saldo'!H:H) -> 0 | I35: 1.1.99. | J35: =IFERROR(VLOOKUP(ROWS($J$2:J35),$B$2:$C$203,2,0),"") -> 1.3.02.01 Kendaraan
A36: 35 | B36: =IF(ISNUMBER(SEARCH($L$2,C36)),MAX(B$1:$B35)+1,0) -> 29 | C36: 1.1.99.06 RK Unit Pengelolaan Air Bersih | D36: Debit | E36: 0 | F36: =SUMIF('neraca saldo'!C:C,COA!C36,'neraca saldo'!H:H) -> 0 | I36: 1.1.99. | J36: =IFERROR(VLOOKUP(ROWS($J$2:J36),$B$2:$C$203,2,0),"") -> 1.3.03.01 Peralatan dan Mesin
A37: 36 | B37: =IF(ISNUMBER(SEARCH($L$2,C37)),MAX(B$1:$B36)+1,0) -> 30 | C37: 1.1.99.07 RK Unit Pengelolaan Sampah | D37: Debit | E37: 0 | F37: =SUMIF('neraca saldo'!C:C,COA!C37,'neraca saldo'!H:H) -> 0 | I37: 1.1.99. | J37: =IFERROR(VLOOKUP(ROWS($J$2:J37),$B$2:$C$203,2,0),"") -> 1.3.04.01 Meubelair
A38: 37 | B38: =IF(ISNUMBER(SEARCH($L$2,C38)),MAX(B$1:$B37)+1,0) -> 31 | C38: 1.2.01.01 Deposito > 3 bulan | D38: Debit | E38: 0 | F38: =SUMIF('neraca saldo'!C:C,COA!C38,'neraca saldo'!H:H) -> 0 | G38: =IF(E38=0,"",F38/E38) ->  | I38: =LEFT(C38,7) -> 1.2.01. | J38: =IFERROR(VLOOKUP(ROWS($J$2:J38),$B$2:$C$203,2,0),"") -> 1.3.05.01 Gedung dan Bangunan
A39: 38 | B39: =IF(ISNUMBER(SEARCH($L$2,C39)),MAX(B$1:$B38)+1,0) -> 32 | C39: 1.2.01.99 Investasi Lainnya | D39: Debit | E39: 0 | F39: =SUMIF('neraca saldo'!C:C,COA!C39,'neraca saldo'!H:H) -> 0 | I39: 1.2.01. | J39: =IFERROR(VLOOKUP(ROWS($J$2:J39),$B$2:$C$203,2,0),"") -> 1.3.06.01 Konstruksi Dalam Pengerjaan
A40: 39 | B40: =IF(ISNUMBER(SEARCH($L$2,C40)),MAX(B$1:$B39)+1,0) -> 33 | C40: 1.3.01.01 Tanah | D40: Debit | E40: 0 | F40: =SUMIF('neraca saldo'!C:C,COA!C40,'neraca saldo'!H:H) -> 0 | I40: 1.3.01. | J40: =IFERROR(VLOOKUP(ROWS($J$2:J40),$B$2:$C$203,2,0),"") -> 1.3.07.01 Akumulasi Penyusutan Kendaraan
A41: 40 | B41: =IF(ISNUMBER(SEARCH($L$2,C41)),MAX(B$1:$B40)+1,0) -> 34 | C41: 1.3.02.01 Kendaraan | D41: Debit | E41: 0 | F41: =SUMIF('neraca saldo'!C:C,COA!C41,'neraca saldo'!H:H) -> 0 | I41: 1.3.02. | J41: =IFERROR(VLOOKUP(ROWS($J$2:J41),$B$2:$C$203,2,0),"") -> 1.3.07.02 Akumulasi Penyusutan Peralatan dan Mesin
A42: 41 | B42: =IF(ISNUMBER(SEARCH($L$2,C42)),MAX(B$1:$B41)+1,0) -> 35 | C42: 1.3.03.01 Peralatan dan Mesin | D42: Debit | E42: 0 | F42: =SUMIF('neraca saldo'!C:C,COA!C42,'neraca saldo'!H:H) -> 0 | I42: 1.3.03. | J42: =IFERROR(VLOOKUP(ROWS($J$2:J42),$B$2:$C$203,2,0),"") -> 1.3.07.03 Akumulasi Penyusutan Meubelair
A43: 42 | B43: =IF(ISNUMBER(SEARCH($L$2,C43)),MAX(B$1:$B42)+1,0) -> 36 | C43: 1.3.04.01 Meubelair | D43: Debit | E43: 0 | F43: =SUMIF('neraca saldo'!C:C,COA!C43,'neraca saldo'!H:H) -> 0 | I43: 1.3.04. | J43: =IFERROR(VLOOKUP(ROWS($J$2:J43),$B$2:$C$203,2,0),"") -> 1.3.07.04 Akumulasi Penyusutan Gedung dan Bangunan
A44: 43 | B44: =IF(ISNUMBER(SEARCH($L$2,C44)),MAX(B$1:$B43)+1,0) -> 37 | C44: 1.3.05.01 Gedung dan Bangunan | D44: Debit | E44: 0 | F44: =SUMIF('neraca saldo'!C:C,COA!C44,'neraca saldo'!H:H) -> 0 | I44: 1.3.05. | J44: =IFERROR(VLOOKUP(ROWS($J$2:J44),$B$2:$C$203,2,0),"") -> 1.4.01.01 Software
A45: 44 | B45: =IF(ISNUMBER(SEARCH($L$2,C45)),MAX(B$1:$B44)+1,0) -> 38 | C45: 1.3.06.01 Konstruksi Dalam Pengerjaan | D45: Debit | E45: 0 | F45: =SUMIF('neraca saldo'!C:C,COA!C45,'neraca saldo'!H:H) -> 0 | I45: 1.3.06. | J45: =IFERROR(VLOOKUP(ROWS($J$2:J45),$B$2:$C$203,2,0),"") -> 1.4.01.02 Patent
A46: 45 | B46: =IF(ISNUMBER(SEARCH($L$2,C46)),MAX(B$1:$B45)+1,0) -> 39 | C46: 1.3.07.01 Akumulasi Penyusutan Kendaraan | D46: Kredit | E46: 0 | F46: =SUMIF('neraca saldo'!C:C,COA!C46,'neraca saldo'!H:H) -> 0 | I46: 1.3.07. | J46: =IFERROR(VLOOKUP(ROWS($J$2:J46),$B$2:$C$203,2,0),"") -> 1.4.01.03 Trademark
A47: 46 | B47: =IF(ISNUMBER(SEARCH($L$2,C47)),MAX(B$1:$B46)+1,0) -> 40 | C47: 1.3.07.02 Akumulasi Penyusutan Peralatan dan Mesin | D47: Kredit | E47: 0 | F47: =SUMIF('neraca saldo'!C:C,COA!C47,'neraca saldo'!H:H) -> 0 | I47: 1.3.07. | J47: =IFERROR(VLOOKUP(ROWS($J$2:J47),$B$2:$C$203,2,0),"") -> 1.4.02.01 Amortisasi Aset takberwujud
A48: 47 | B48: =IF(ISNUMBER(SEARCH($L$2,C48)),MAX(B$1:$B47)+1,0) -> 41 | C48: 1.3.07.03 Akumulasi Penyusutan Meubelair | D48: Kredit | E48: 0 | F48: =SUMIF('neraca saldo'!C:C,COA!C48,'neraca saldo'!H:H) -> 0 | I48: 1.3.07. | J48: =IFERROR(VLOOKUP(ROWS($J$2:J48),$B$2:$C$203,2,0),"") -> 1.9.01.01 Aset Lain-lain
A49: 48 | B49: =IF(ISNUMBER(SEARCH($L$2,C49)),MAX(B$1:$B48)+1,0) -> 42 | C49: 1.3.07.04 Akumulasi Penyusutan Gedung dan Bangunan | D49: Kredit | E49: 0 | F49: =SUMIF('neraca saldo'!C:C,COA!C49,'neraca saldo'!H:H) -> 0 | I49: 1.3.07. | J49: =IFERROR(VLOOKUP(ROWS($J$2:J49),$B$2:$C$203,2,0),"") -> 1.9.01.02 Akumulasi Penyusutan Aset Lain-lain
A50: 49 | B50: =IF(ISNUMBER(SEARCH($L$2,C50)),MAX(B$1:$B49)+1,0) -> 0 | C50: 1.3.99.99 Aset Tetap Lainnya | D50: Debit | E50: 0 | F50: =SUMIF('neraca saldo'!C:C,COA!C50,'neraca saldo'!H:H) -> 0 | I50: 1.3.99. | J50: =IFERROR(VLOOKUP(ROWS($J$2:J50),$B$2:$C$203,2,0),"") -> 2.1.01.01 Utang Usaha
A51: 50 | B51: =IF(ISNUMBER(SEARCH($L$2,C51)),MAX(B$1:$B50)+1,0) -> 43 | C51: 1.4.01.01 Software | D51: Debit | E51: 0 | F51: =SUMIF('neraca saldo'!C:C,COA!C51,'neraca saldo'!H:H) -> 0 | I51: 1.4.01. | J51: =IFERROR(VLOOKUP(ROWS($J$2:J51),$B$2:$C$203,2,0),"") -> 2.1.02.01 PPN Keluaran
A52: 51 | B52: =IF(ISNUMBER(SEARCH($L$2,C52)),MAX(B$1:$B51)+1,0) -> 44 | C52: 1.4.01.02 Patent | D52: Debit | E52: 0 | F52: =SUMIF('neraca saldo'!C:C,COA!C52,'neraca saldo'!H:H) -> 0 | I52: 1.4.01. | J52: =IFERROR(VLOOKUP(ROWS($J$2:J52),$B$2:$C$203,2,0),"") -> 2.1.02.02 PPh 21
A53: 52 | B53: =IF(ISNUMBER(SEARCH($L$2,C53)),MAX(B$1:$B52)+1,0) -> 45 | C53: 1.4.01.03 Trademark | D53: Debit | E53: 0 | F53: =SUMIF('neraca saldo'!C:C,COA!C53,'neraca saldo'!H:H) -> 0 | I53: 1.4.01. | J53: =IFERROR(VLOOKUP(ROWS($J$2:J53),$B$2:$C$203,2,0),"") -> 2.1.02.03 PPh 23
A54: 53 | B54: =IF(ISNUMBER(SEARCH($L$2,C54)),MAX(B$1:$B53)+1,0) -> 46 | C54: 1.4.02.01 Amortisasi Aset takberwujud | D54: Kredit | E54: 0 | F54: =SUMIF('neraca saldo'!C:C,COA!C54,'neraca saldo'!H:H) -> 0 | I54: 1.4.02. | J54: =IFERROR(VLOOKUP(ROWS($J$2:J54),$B$2:$C$203,2,0),"") -> 2.1.02.04 PPh 29
A55: 54 | B55: =IF(ISNUMBER(SEARCH($L$2,C55)),MAX(B$1:$B54)+1,0) -> 47 | C55: 1.9.01.01 Aset Lain-lain | D55: Debit | E55: 0 | F55: =SUMIF('neraca saldo'!C:C,COA!C55,'neraca saldo'!H:H) -> 0 | I55: 1.9.01. | J55: =IFERROR(VLOOKUP(ROWS($J$2:J55),$B$2:$C$203,2,0),"") -> 2.1.03.01 Utang Gaji dan Tunjangan
A56: 55 | B56: =IF(ISNUMBER(SEARCH($L$2,C56)),MAX(B$1:$B55)+1,0) -> 48 | C56: 1.9.01.02 Akumulasi Penyusutan Aset Lain-lain | D56: Kredit | E56: 0 | F56: =SUMIF('neraca saldo'!C:C,COA!C56,'neraca saldo'!H:H) -> 0 | I56: 1.9.01. | J56: =IFERROR(VLOOKUP(ROWS($J$2:J56),$B$2:$C$203,2,0),"") -> 2.1.03.02 Utang Gaji/Upah Karyawan
A57: 56 | B57: =IF(ISNUMBER(SEARCH($L$2,C57)),MAX(B$1:$B56)+1,0) -> 49 | C57: 2.1.01.01 Utang Usaha | D57: Kredit | E57: 0 | F57: =SUMIF('neraca saldo'!C:C,COA!C57,'neraca saldo'!H:H) -> 0 | I57: 2.1.01. | J57: =IFERROR(VLOOKUP(ROWS($J$2:J57),$B$2:$C$203,2,0),"") -> 2.1.04.01 Utang Listrik
A58: 57 | B58: =IF(ISNUMBER(SEARCH($L$2,C58)),MAX(B$1:$B57)+1,0) -> 50 | C58: 2.1.02.01 PPN Keluaran | D58: Kredit | E58: 0 | F58: =SUMIF('neraca saldo'!C:C,COA!C58,'neraca saldo'!H:H) -> 0 | I58: 2.1.02. | J58: =IFERROR(VLOOKUP(ROWS($J$2:J58),$B$2:$C$203,2,0),"") -> 2.1.04.02 Utang Telepon/Internet
A59: 58 | B59: =IF(ISNUMBER(SEARCH($L$2,C59)),MAX(B$1:$B58)+1,0) -> 51 | C59: 2.1.02.02 PPh 21 | D59: Kredit | E59: 0 | F59: =SUMIF('neraca saldo'!C:C,COA!C59,'neraca saldo'!H:H) -> 0 | I59: 2.1.02. | J59: =IFERROR(VLOOKUP(ROWS($J$2:J59),$B$2:$C$203,2,0),"") -> 2.1.04.93 Utang Utilitas Lainnya
A60: 59 | B60: =IF(ISNUMBER(SEARCH($L$2,C60)),MAX(B$1:$B59)+1,0) -> 52 | C60: 2.1.02.03 PPh 23 | D60: Kredit | E60: 0 | F60: =SUMIF('neraca saldo'!C:C,COA!C60,'neraca saldo'!H:H) -> 0 | I60: 2.1.02. | J60: =IFERROR(VLOOKUP(ROWS($J$2:J60),$B$2:$C$203,2,0),"") -> 2.1.05.01 Utang kepada Pihak Ketiga Jk. Pendek
A61: 60 | B61: =IF(ISNUMBER(SEARCH($L$2,C61)),MAX(B$1:$B60)+1,0) -> 53 | C61: 2.1.02.04 PPh 29 | D61: Kredit | E61: 0 | F61: =SUMIF('neraca saldo'!C:C,COA!C61,'neraca saldo'!H:H) -> 0 | I61: 2.1.02. | J61: =IFERROR(VLOOKUP(ROWS($J$2:J61),$B$2:$C$203,2,0),"") -> 2.1.05.99 Utang kepada Pihak Ketiga Jk. Pendek Lainnya
A62: 61 | B62: =IF(ISNUMBER(SEARCH($L$2,C62)),MAX(B$1:$B61)+1,0) -> 54 | C62: 2.1.03.01 Utang Gaji dan Tunjangan | D62: Kredit | E62: 0 | F62: =SUMIF('neraca saldo'!C:C,COA!C62,'neraca saldo'!H:H) -> 0 | I62: 2.1.03. | J62: =IFERROR(VLOOKUP(ROWS($J$2:J62),$B$2:$C$203,2,0),"") -> 2.1.09.99 Utang Jangka Pendek Lainnya
A63: 62 | B63: =IF(ISNUMBER(SEARCH($L$2,C63)),MAX(B$1:$B62)+1,0) -> 55 | C63: 2.1.03.02 Utang Gaji/Upah Karyawan | D63: Kredit | E63: 0 | F63: =SUMIF('neraca saldo'!C:C,COA!C63,'neraca saldo'!H:H) -> 0 | I63: 2.1.03. | J63: =IFERROR(VLOOKUP(ROWS($J$2:J63),$B$2:$C$203,2,0),"") -> 2.2.01.01 Utang Ke Bank
A64: 63 | B64: =IF(ISNUMBER(SEARCH($L$2,C64)),MAX(B$1:$B63)+1,0) -> 56 | C64: 2.1.04.01 Utang Listrik | D64: Kredit | E64: 0 | F64: =SUMIF('neraca saldo'!C:C,COA!C64,'neraca saldo'!H:H) -> 0 | I64: 2.1.04. | J64: =IFERROR(VLOOKUP(ROWS($J$2:J64),$B$2:$C$203,2,0),"") -> 2.2.02.01 Utang kepada Pihak Ketiga Jk. Panjang
A65: 64 | B65: =IF(ISNUMBER(SEARCH($L$2,C65)),MAX(B$1:$B64)+1,0) -> 57 | C65: 2.1.04.02 Utang Telepon/Internet | D65: Kredit | E65: 0 | F65: =SUMIF('neraca saldo'!C:C,COA!C65,'neraca saldo'!H:H) -> 0 | I65: 2.1.04. | J65: =IFERROR(VLOOKUP(ROWS($J$2:J65),$B$2:$C$203,2,0),"") -> 3.1.01.01 Penyertaan Modal Desa
A66: 65 | B66: =IF(ISNUMBER(SEARCH($L$2,C66)),MAX(B$1:$B65)+1,0) -> 58 | C66: 2.1.04.93 Utang Utilitas Lainnya | D66: Kredit | E66: 0 | F66: =SUMIF('neraca saldo'!C:C,COA!C66,'neraca saldo'!H:H) -> 0 | I66: 2.1.04. | J66: =IFERROR(VLOOKUP(ROWS($J$2:J66),$B$2:$C$203,2,0),"") -> 3.1.01.02 Penyertaan Modal Desa A
A67: 66 | B67: =IF(ISNUMBER(SEARCH($L$2,C67)),MAX(B$1:$B66)+1,0) -> 59 | C67: 2.1.05.01 Utang kepada Pihak Ketiga Jk. Pendek | D67: Kredit | E67: 0 | F67: =SUMIF('neraca saldo'!C:C,COA!C67,'neraca saldo'!H:H) -> 0 | I67: 2.1.05. | J67: =IFERROR(VLOOKUP(ROWS($J$2:J67),$B$2:$C$203,2,0),"") -> 3.1.01.03 Penyertaan Modal Desa B
A68: 67 | B68: =IF(ISNUMBER(SEARCH($L$2,C68)),MAX(B$1:$B67)+1,0) -> 60 | C68: 2.1.05.99 Utang kepada Pihak Ketiga Jk. Pendek Lainnya | D68: Kredit | E68: 0 | F68: =SUMIF('neraca saldo'!C:C,COA!C68,'neraca saldo'!H:H) -> 0 | I68: 2.1.05. | J68: =IFERROR(VLOOKUP(ROWS($J$2:J68),$B$2:$C$203,2,0),"") -> 3.1.01.04 Penyertaan Modal Desa C
A69: 68 | B69: =IF(ISNUMBER(SEARCH($L$2,C69)),MAX(B$1:$B68)+1,0) -> 61 | C69: 2.1.09.99 Utang Jangka Pendek Lainnya | D69: Kredit | E69: 0 | F69: =SUMIF('neraca saldo'!C:C,COA!C69,'neraca saldo'!H:H) -> 0 | I69: 2.1.09. | J69: =IFERROR(VLOOKUP(ROWS($J$2:J69),$B$2:$C$203,2,0),"") -> 3.1.02.01 Penyertaan Modal Masyarakat
A70: 69 | B70: =IF(ISNUMBER(SEARCH($L$2,C70)),MAX(B$1:$B69)+1,0) -> 62 | C70: 2.2.01.01 Utang Ke Bank | D70: Kredit | E70: 0 | F70: =SUMIF('neraca saldo'!C:C,COA!C70,'neraca saldo'!H:H) -> 0 | I70: 2.2.01. | J70: =IFERROR(VLOOKUP(ROWS($J$2:J70),$B$2:$C$203,2,0),"") -> 3.1.02.02 Penyertaan Modal Masyarakat Desa A
A71: 70 | B71: =IF(ISNUMBER(SEARCH($L$2,C71)),MAX(B$1:$B70)+1,0) -> 63 | C71: 2.2.02.01 Utang kepada Pihak Ketiga Jk. Panjang | D71: Kredit | E71: 0 | F71: =SUMIF('neraca saldo'!C:C,COA!C71,'neraca saldo'!H:H) -> 0 | I71: =LEFT(C71,7) -> 2.2.02. | J71: =IFERROR(VLOOKUP(ROWS($J$2:J71),$B$2:$C$203,2,0),"") -> 3.1.02.03 Penyertaan Modal Masyarakat Desa B
A72: 71 | B72: =IF(ISNUMBER(SEARCH($L$2,C72)),MAX(B$1:$B71)+1,0) -> 0 | C72: 2.2.99.99 Utang Jangka Panjang Lainnya | D72: Kredit | E72: 0 | F72: =SUMIF('neraca saldo'!C:C,COA!C72,'neraca saldo'!H:H) -> 0 | I72: 2.2.99. | J72: =IFERROR(VLOOKUP(ROWS($J$2:J72),$B$2:$C$203,2,0),"") -> 3.1.02.04 Penyertaan Modal Masyarakat Desa C
A73: 72 | B73: =IF(ISNUMBER(SEARCH($L$2,C73)),MAX(B$1:$B72)+1,0) -> 64 | C73: 3.1.01.01 Penyertaan Modal Desa | D73: Kredit | E73: 0 | F73: =SUMIF('neraca saldo'!C:C,COA!C73,'neraca saldo'!H:H) -> 3000000 | I73: 3.1.01. | J73: =IFERROR(VLOOKUP(ROWS($J$2:J73),$B$2:$C$203,2,0),"") -> 3.2.01.01 Bagi Hasil Penyertaan Modal Desa
A74: =ROW()-1 -> 73 | B74: =IF(ISNUMBER(SEARCH($L$2,C74)),MAX(B$1:$B73)+1,0) -> 65 | C74: 3.1.01.02 Penyertaan Modal Desa A | D74: Kredit | E74: 0 | F74: =SUMIF('neraca saldo'!C:C,COA!C74,'neraca saldo'!H:H) -> 0 | G74: =IF(E74=0,"",F74/E74) ->  | I74: 3.1.01. | J74: =IFERROR(VLOOKUP(ROWS($J$2:J74),$B$2:$C$203,2,0),"") -> 3.2.01.02 Bagi Hasil Penyertaan Modal Desa A
A75: 74 | B75: =IF(ISNUMBER(SEARCH($L$2,C75)),MAX(B$1:$B74)+1,0) -> 66 | C75: 3.1.01.03 Penyertaan Modal Desa B | D75: Kredit | E75: 0 | F75: =SUMIF('neraca saldo'!C:C,COA!C75,'neraca saldo'!H:H) -> 0 | I75: 3.1.01. | J75: =IFERROR(VLOOKUP(ROWS($J$2:J75),$B$2:$C$203,2,0),"") -> 3.2.01.03 Bagi Hasil Penyertaan Modal Desa B
A76: 75 | B76: =IF(ISNUMBER(SEARCH($L$2,C76)),MAX(B$1:$B75)+1,0) -> 67 | C76: 3.1.01.04 Penyertaan Modal Desa C | D76: Kredit | E76: 0 | F76: =SUMIF('neraca saldo'!C:C,COA!C76,'neraca saldo'!H:H) -> 0 | I76: 3.1.01. | J76: =IFERROR(VLOOKUP(ROWS($J$2:J76),$B$2:$C$203,2,0),"") -> 3.2.01.04 Bagi Hasil Penyertaan Modal Desa C
A77: 76 | B77: =IF(ISNUMBER(SEARCH($L$2,C77)),MAX(B$1:$B76)+1,0) -> 68 | C77: 3.1.02.01 Penyertaan Modal Masyarakat | D77: Kredit | E77: 0 | F77: =SUMIF('neraca saldo'!C:C,COA!C77,'neraca saldo'!H:H) -> 0 | I77: 3.1.02. | J77: =IFERROR(VLOOKUP(ROWS($J$2:J77),$B$2:$C$203,2,0),"") -> 3.2.02.01 Bagi Hasil Penyertaan Modal Masyarakat
A78: 77 | B78: =IF(ISNUMBER(SEARCH($L$2,C78)),MAX(B$1:$B77)+1,0) -> 69 | C78: 3.1.02.02 Penyertaan Modal Masyarakat Desa A | D78: Kredit | E78: 0 | F78: =SUMIF('neraca saldo'!C:C,COA!C78,'neraca saldo'!H:H) -> 0 | I78: 3.1.02. | J78: =IFERROR(VLOOKUP(ROWS($J$2:J78),$B$2:$C$203,2,0),"") -> 3.2.02.02 Bagi Hasil Penyertaan Modal Masyarakat Desa A
A79: 78 | B79: =IF(ISNUMBER(SEARCH($L$2,C79)),MAX(B$1:$B78)+1,0) -> 70 | C79: 3.1.02.03 Penyertaan Modal Masyarakat Desa B | D79: Kredit | E79: 0 | F79: =SUMIF('neraca saldo'!C:C,COA!C79,'neraca saldo'!H:H) -> 0 | I79: 3.1.02. | J79: =IFERROR(VLOOKUP(ROWS($J$2:J79),$B$2:$C$203,2,0),"") -> 3.2.02.03 Bagi Hasil Penyertaan Modal Masyarakat Desa B
A80: 79 | B80: =IF(ISNUMBER(SEARCH($L$2,C80)),MAX(B$1:$B79)+1,0) -> 71 | C80: 3.1.02.04 Penyertaan Modal Masyarakat Desa C | D80: Kredit | E80: 0 | F80: =SUMIF('neraca saldo'!C:C,COA!C80,'neraca saldo'!H:H) -> 0 | I80: 3.1.02. | J80: =IFERROR(VLOOKUP(ROWS($J$2:J80),$B$2:$C$203,2,0),"") -> 3.2.02.04 Bagi Hasil Penyertaan Modal Masyarakat Desa C
A81: 80 | B81: =IF(ISNUMBER(SEARCH($L$2,C81)),MAX(B$1:$B80)+1,0) -> 72 | C81: 3.2.01.01 Bagi Hasil Penyertaan Modal Desa | D81: Debit | E81: 0 | F81: =SUMIF('neraca saldo'!C:C,COA!C81,'neraca saldo'!H:H) -> 0 | I81: 3.2.01. | J81: =IFERROR(VLOOKUP(ROWS($J$2:J81),$B$2:$C$203,2,0),"") -> 3.3.01.01 Saldo Laba Tidak Dicadangkan
A82: 81 | B82: =IF(ISNUMBER(SEARCH($L$2,C82)),MAX(B$1:$B81)+1,0) -> 73 | C82: 3.2.01.02 Bagi Hasil Penyertaan Modal Desa A | D82: Debit | E82: 0 | F82: =SUMIF('neraca saldo'!C:C,COA!C82,'neraca saldo'!H:H) -> 0 | I82: 3.2.01. | J82: =IFERROR(VLOOKUP(ROWS($J$2:J82),$B$2:$C$203,2,0),"") -> 3.3.02.01 Saldo Laba Dicadangkan untuk Pembelian Aset Tetap
A83: 82 | B83: =IF(ISNUMBER(SEARCH($L$2,C83)),MAX(B$1:$B82)+1,0) -> 74 | C83: 3.2.01.03 Bagi Hasil Penyertaan Modal Desa B | D83: Debit | E83: 0 | F83: =SUMIF('neraca saldo'!C:C,COA!C83,'neraca saldo'!H:H) -> 0 | I83: 3.2.01. | J83: =IFERROR(VLOOKUP(ROWS($J$2:J83),$B$2:$C$203,2,0),"") -> 3.3.01.02 Saldo Laba Dicadangkan untuk Pembayaran Utang Jangka Panjang
A84: 83 | B84: =IF(ISNUMBER(SEARCH($L$2,C84)),MAX(B$1:$B83)+1,0) -> 75 | C84: 3.2.01.04 Bagi Hasil Penyertaan Modal Desa C | D84: Debit | E84: 0 | F84: =SUMIF('neraca saldo'!C:C,COA!C84,'neraca saldo'!H:H) -> 0 | I84: 3.2.01. | J84: =IFERROR(VLOOKUP(ROWS($J$2:J84),$B$2:$C$203,2,0),"") -> 3.4.01.01 Modal Donasi/Sumbangan
A85: 84 | B85: =IF(ISNUMBER(SEARCH($L$2,C85)),MAX(B$1:$B84)+1,0) -> 76 | C85: 3.2.02.01 Bagi Hasil Penyertaan Modal Masyarakat | D85: Debit | E85: 0 | F85: =SUMIF('neraca saldo'!C:C,COA!C85,'neraca saldo'!H:H) -> 0 | I85: 3.2.02. | J85: =IFERROR(VLOOKUP(ROWS($J$2:J85),$B$2:$C$203,2,0),"") -> 3.8.01.01 RK Pusat
A86: 85 | B86: =IF(ISNUMBER(SEARCH($L$2,C86)),MAX(B$1:$B85)+1,0) -> 77 | C86: 3.2.02.02 Bagi Hasil Penyertaan Modal Masyarakat Desa A | D86: Debit | E86: 0 | F86: =SUMIF('neraca saldo'!C:C,COA!C86,'neraca saldo'!H:H) -> 0 | I86: 3.2.02. | J86: =IFERROR(VLOOKUP(ROWS($J$2:J86),$B$2:$C$203,2,0),"") -> 3.9.01.01 Ikhtisar Laba Rugi
A87: 86 | B87: =IF(ISNUMBER(SEARCH($L$2,C87)),MAX(B$1:$B86)+1,0) -> 78 | C87: 3.2.02.03 Bagi Hasil Penyertaan Modal Masyarakat Desa B | D87: Debit | E87: 0 | F87: =SUMIF('neraca saldo'!C:C,COA!C87,'neraca saldo'!H:H) -> 0 | I87: 3.2.02. | J87: =IFERROR(VLOOKUP(ROWS($J$2:J87),$B$2:$C$203,2,0),"") -> 4.1.01.01 Pendapatan Tiket
A88: 87 | B88: =IF(ISNUMBER(SEARCH($L$2,C88)),MAX(B$1:$B87)+1,0) -> 79 | C88: 3.2.02.04 Bagi Hasil Penyertaan Modal Masyarakat Desa C | D88: Debit | E88: 0 | F88: =SUMIF('neraca saldo'!C:C,COA!C88,'neraca saldo'!H:H) -> 0 | I88: 3.2.02. | J88: =IFERROR(VLOOKUP(ROWS($J$2:J88),$B$2:$C$203,2,0),"") -> 4.1.01.02 Pendapatan Wahana
A89: 88 | B89: =IF(ISNUMBER(SEARCH($L$2,C89)),MAX(B$1:$B88)+1,0) -> 80 | C89: 3.3.01.01 Saldo Laba Tidak Dicadangkan | D89: Kredit | E89: 0 | F89: =SUMIF('neraca saldo'!C:C,COA!C89,'neraca saldo'!H:H) -> 0 | I89: 3.3.01. | J89: =IFERROR(VLOOKUP(ROWS($J$2:J89),$B$2:$C$203,2,0),"") -> 4.1.01.03 Pendapatan Paket Wisata
A90: 89 | B90: =IF(ISNUMBER(SEARCH($L$2,C90)),MAX(B$1:$B89)+1,0) -> 81 | C90: 3.3.02.01 Saldo Laba Dicadangkan untuk Pembelian Aset Tetap | D90: Kredit | E90: 0 | F90: =SUMIF('neraca saldo'!C:C,COA!C90,'neraca saldo'!H:H) -> 0 | I90: 3.3.02. | J90: =IFERROR(VLOOKUP(ROWS($J$2:J90),$B$2:$C$203,2,0),"") -> 4.1.02.01 Pendapatan Pengelolaan Air Bersih
A91: 90 | B91: =IF(ISNUMBER(SEARCH($L$2,C91)),MAX(B$1:$B90)+1,0) -> 82 | C91: 3.3.01.02 Saldo Laba Dicadangkan untuk Pembayaran Utang Jangka Panjang | D91: Kredit | E91: 0 | F91: =SUMIF('neraca saldo'!C:C,COA!C91,'neraca saldo'!H:H) -> 0 | I91: 3.3.01. | J91: =IFERROR(VLOOKUP(ROWS($J$2:J91),$B$2:$C$203,2,0),"") -> 4.1.03.01 Pendapatan Pengelolaan Sampah
A92: 91 | B92: =IF(ISNUMBER(SEARCH($L$2,C92)),MAX(B$1:$B91)+1,0) -> 83 | C92: 3.4.01.01 Modal Donasi/Sumbangan | D92: Kredit | E92: 0 | F92: =SUMIF('neraca saldo'!C:C,COA!C92,'neraca saldo'!H:H) -> 0 | I92: 3.4.01. | J92: =IFERROR(VLOOKUP(ROWS($J$2:J92),$B$2:$C$203,2,0),"") -> 4.1.04.01 Pendapatan Sewa Tempat Outbound
A93: 92 | B93: =IF(ISNUMBER(SEARCH($L$2,C93)),MAX(B$1:$B92)+1,0) -> 84 | C93: 3.8.01.01 RK Pusat | D93: Kredit | E93: 0 | F93: =SUMIF('neraca saldo'!C:C,COA!C93,'neraca saldo'!H:H) -> 0 | I93: 3.8.01. | J93: =IFERROR(VLOOKUP(ROWS($J$2:J93),$B$2:$C$203,2,0),"") -> 4.1.04.02 Pendapatan Sewa Tempat untuk Toko/Kios
A94: 93 | B94: =IF(ISNUMBER(SEARCH($L$2,C94)),MAX(B$1:$B93)+1,0) -> 85 | C94: 3.9.01.01 Ikhtisar Laba Rugi | D94: Kredit | E94: 0 | F94: =SUMIF('neraca saldo'!C:C,COA!C94,'neraca saldo'!H:H) -> 0 | I94: 3.9.01. | J94: =IFERROR(VLOOKUP(ROWS($J$2:J94),$B$2:$C$203,2,0),"") -> 4.1.04.03 Pendapatan Sewa Gedung
A95: 94 | B95: =IF(ISNUMBER(SEARCH($L$2,C95)),MAX(B$1:$B94)+1,0) -> 86 | C95: 4.1.01.01 Pendapatan Tiket | D95: Kredit | E95: 0 | F95: =SUMIF('neraca saldo'!C:C,COA!C95,'neraca saldo'!H:H) -> 0 | I95: 4.1.01. | J95: =IFERROR(VLOOKUP(ROWS($J$2:J95),$B$2:$C$203,2,0),"") -> 4.1.04.04 Pendapatan Sewa Mobil
A96: 95 | B96: =IF(ISNUMBER(SEARCH($L$2,C96)),MAX(B$1:$B95)+1,0) -> 87 | C96: 4.1.01.02 Pendapatan Wahana | D96: Kredit | E96: 0 | F96: =SUMIF('neraca saldo'!C:C,COA!C96,'neraca saldo'!H:H) -> 0 | I96: 4.1.01. | J96: =IFERROR(VLOOKUP(ROWS($J$2:J96),$B$2:$C$203,2,0),"") -> 4.1.04.05 Pendapatan Sewa Peralatan Gedung
A97: 96 | B97: =IF(ISNUMBER(SEARCH($L$2,C97)),MAX(B$1:$B96)+1,0) -> 88 | C97: 4.1.01.03 Pendapatan Paket Wisata | D97: Kredit | E97: 0 | F97: =SUMIF('neraca saldo'!C:C,COA!C97,'neraca saldo'!H:H) -> 0 | I97: 4.1.01. | J97: =IFERROR(VLOOKUP(ROWS($J$2:J97),$B$2:$C$203,2,0),"") -> 4.1.04.99 Pendapatan Sewa Lainnya
A98: 97 | B98: =IF(ISNUMBER(SEARCH($L$2,C98)),MAX(B$1:$B97)+1,0) -> 89 | C98: 4.1.02.01 Pendapatan Pengelolaan Air Bersih | D98: Kredit | E98: 0 | F98: =SUMIF('neraca saldo'!C:C,COA!C98,'neraca saldo'!H:H) -> 0 | I98: 4.1.02. | J98: =IFERROR(VLOOKUP(ROWS($J$2:J98),$B$2:$C$203,2,0),"") -> 4.1.05.01 Pendapatan Jasa Pembayaran Listrik
A99: 98 | B99: =IF(ISNUMBER(SEARCH($L$2,C99)),MAX(B$1:$B98)+1,0) -> 90 | C99: 4.1.03.01 Pendapatan Pengelolaan Sampah | D99: Kredit | E99: 0 | F99: =SUMIF('neraca saldo'!C:C,COA!C99,'neraca saldo'!H:H) -> 0 | I99: 4.1.03. | J99: =IFERROR(VLOOKUP(ROWS($J$2:J99),$B$2:$C$203,2,0),"") -> 4.1.05.99 Pendapatan Jasa Pelayanan lainnya
A100: 99 | B100: =IF(ISNUMBER(SEARCH($L$2,C100)),MAX(B$1:$B99)+1,0) -> 91 | C100: 4.1.04.01 Pendapatan Sewa Tempat Outbound | D100: Kredit | E100: 0 | F100: =SUMIF('neraca saldo'!C:C,COA!C100,'neraca saldo'!H:H) -> 0 | I100: 4.1.04. | J100: =IFERROR(VLOOKUP(ROWS($J$2:J100),$B$2:$C$203,2,0),"") -> 4.1.06.01 Pendapatan Transportasi
A101: 100 | B101: =IF(ISNUMBER(SEARCH($L$2,C101)),MAX(B$1:$B100)+1,0) -> 92 | C101: 4.1.04.02 Pendapatan Sewa Tempat untuk Toko/Kios | D101: Kredit | E101: 0 | F101: =SUMIF('neraca saldo'!C:C,COA!C101,'neraca saldo'!H:H) -> 0 | I101: 4.1.04. | J101: =IFERROR(VLOOKUP(ROWS($J$2:J101),$B$2:$C$203,2,0),"") -> 4.1.07.01 Pendapatan Parkir Mobil
A102: 101 | B102: =IF(ISNUMBER(SEARCH($L$2,C102)),MAX(B$1:$B101)+1,0) -> 93 | C102: 4.1.04.03 Pendapatan Sewa Gedung | D102: Kredit | E102: 0 | F102: =SUMIF('neraca saldo'!C:C,COA!C102,'neraca saldo'!H:H) -> 0 | I102: =LEFT(C102,7) -> 4.1.04. | J102: =IFERROR(VLOOKUP(ROWS($J$2:J102),$B$2:$C$203,2,0),"") -> 4.1.07.02 Pendapatan Parkir Motor
A103: 102 | B103: =IF(ISNUMBER(SEARCH($L$2,C103)),MAX(B$1:$B102)+1,0) -> 94 | C103: 4.1.04.04 Pendapatan Sewa Mobil | D103: Kredit | E103: 0 | F103: =SUMIF('neraca saldo'!C:C,COA!C103,'neraca saldo'!H:H) -> 0 | I103: 4.1.04. | J103: =IFERROR(VLOOKUP(ROWS($J$2:J103),$B$2:$C$203,2,0),"") -> 4.1.08.01 Pendapatan Simpan Pinjam
A104: 103 | B104: =IF(ISNUMBER(SEARCH($L$2,C104)),MAX(B$1:$B103)+1,0) -> 95 | C104: 4.1.04.05 Pendapatan Sewa Peralatan Gedung | D104: Kredit | E104: 0 | F104: =SUMIF('neraca saldo'!C:C,COA!C104,'neraca saldo'!H:H) -> 0 | I104: 4.1.04. | J104: =IFERROR(VLOOKUP(ROWS($J$2:J104),$B$2:$C$203,2,0),"") -> 4.1.09.01 Pendapatan Pelatihan
A105: 104 | B105: =IF(ISNUMBER(SEARCH($L$2,C105)),MAX(B$1:$B104)+1,0) -> 96 | C105: 4.1.04.99 Pendapatan Sewa Lainnya | D105: Kredit | E105: 0 | F105: =SUMIF('neraca saldo'!C:C,COA!C105,'neraca saldo'!H:H) -> 0 | I105: 4.1.04. | J105: =IFERROR(VLOOKUP(ROWS($J$2:J105),$B$2:$C$203,2,0),"") -> 4.1.10.01 Pendapatan Homestay
A106: 105 | B106: =IF(ISNUMBER(SEARCH($L$2,C106)),MAX(B$1:$B105)+1,0) -> 97 | C106: 4.1.05.01 Pendapatan Jasa Pembayaran Listrik | D106: Kredit | E106: 0 | F106: =SUMIF('neraca saldo'!C:C,COA!C106,'neraca saldo'!H:H) -> 0 | I106: 4.1.05. | J106: =IFERROR(VLOOKUP(ROWS($J$2:J106),$B$2:$C$203,2,0),"") -> 4.1.11.01 Pendapata Komisi
A107: 106 | B107: =IF(ISNUMBER(SEARCH($L$2,C107)),MAX(B$1:$B106)+1,0) -> 98 | C107: 4.1.05.99 Pendapatan Jasa Pelayanan lainnya | D107: Kredit | E107: 0 | F107: =SUMIF('neraca saldo'!C:C,COA!C107,'neraca saldo'!H:H) -> 0 | I107: 4.1.05. | J107: =IFERROR(VLOOKUP(ROWS($J$2:J107),$B$2:$C$203,2,0),"") -> 4.2.01.01 Pendapatan Penjualan Makanan/Minuman
A108: 107 | B108: =IF(ISNUMBER(SEARCH($L$2,C108)),MAX(B$1:$B107)+1,0) -> 99 | C108: 4.1.06.01 Pendapatan Transportasi | D108: Kredit | E108: 0 | F108: =SUMIF('neraca saldo'!C:C,COA!C108,'neraca saldo'!H:H) -> 0 | I108: 4.1.06. | J108: =IFERROR(VLOOKUP(ROWS($J$2:J108),$B$2:$C$203,2,0),"") -> 4.2.01.02 Pendapatan Penjualan Pakaian/Kaos/Jaket
A109: 108 | B109: =IF(ISNUMBER(SEARCH($L$2,C109)),MAX(B$1:$B108)+1,0) -> 100 | C109: 4.1.07.01 Pendapatan Parkir Mobil | D109: Kredit | E109: 0 | F109: =SUMIF('neraca saldo'!C:C,COA!C109,'neraca saldo'!H:H) -> 0 | I109: 4.1.07. | J109: =IFERROR(VLOOKUP(ROWS($J$2:J109),$B$2:$C$203,2,0),"") -> 4.2.01.03 Pendapatan Penjualan Hasil Kerajinan/Suvenir
A110: 109 | B110: =IF(ISNUMBER(SEARCH($L$2,C110)),MAX(B$1:$B109)+1,0) -> 101 | C110: 4.1.07.02 Pendapatan Parkir Motor | D110: Kredit | E110: 0 | F110: =SUMIF('neraca saldo'!C:C,COA!C110,'neraca saldo'!H:H) -> 0 | I110: 4.1.07. | J110: =IFERROR(VLOOKUP(ROWS($J$2:J110),$B$2:$C$203,2,0),"") -> 4.2.01.04 Pendapatan Penjualan Buku
A111: 110 | B111: =IF(ISNUMBER(SEARCH($L$2,C111)),MAX(B$1:$B110)+1,0) -> 102 | C111: 4.1.08.01 Pendapatan Simpan Pinjam | D111: Kredit | E111: 0 | F111: =SUMIF('neraca saldo'!C:C,COA!C111,'neraca saldo'!H:H) -> 0 | I111: 4.1.08. | J111: =IFERROR(VLOOKUP(ROWS($J$2:J111),$B$2:$C$203,2,0),"") -> 4.2.01.05 Pendapatan Penjualan Biji Kopi
A112: 111 | B112: =IF(ISNUMBER(SEARCH($L$2,C112)),MAX(B$1:$B111)+1,0) -> 103 | C112: 4.1.09.01 Pendapatan Pelatihan | D112: Kredit | E112: 0 | F112: =SUMIF('neraca saldo'!C:C,COA!C112,'neraca saldo'!H:H) -> 0 | I112: 4.1.09. | J112: =IFERROR(VLOOKUP(ROWS($J$2:J112),$B$2:$C$203,2,0),"") -> 4.2.01.06 Pendapatan Penjualan Bensin
A113: 112 | B113: =IF(ISNUMBER(SEARCH($L$2,C113)),MAX(B$1:$B112)+1,0) -> 104 | C113: 4.1.10.01 Pendapatan Homestay | D113: Kredit | E113: 0 | F113: =SUMIF('neraca saldo'!C:C,COA!C113,'neraca saldo'!H:H) -> 0 | I113: 4.1.10. | J113: =IFERROR(VLOOKUP(ROWS($J$2:J113),$B$2:$C$203,2,0),"") -> 4.2.01.98 Pendapatan Penjualan Barang Dagangan
A114: 113 | B114: =IF(ISNUMBER(SEARCH($L$2,C114)),MAX(B$1:$B113)+1,0) -> 105 | C114: 4.1.11.01 Pendapata Komisi | D114: Kredit | E114: 0 | F114: =SUMIF('neraca saldo'!C:C,COA!C114,'neraca saldo'!H:H) -> 0 | I114: 4.1.11. | J114: =IFERROR(VLOOKUP(ROWS($J$2:J114),$B$2:$C$203,2,0),"") -> 4.3.01.01 Pendapatan Katering
A115: 114 | B115: =IF(ISNUMBER(SEARCH($L$2,C115)),MAX(B$1:$B114)+1,0) -> 106 | C115: 4.2.01.01 Pendapatan Penjualan Makanan/Minuman | D115: Kredit | E115: 0 | F115: =SUMIF('neraca saldo'!C:C,COA!C115,'neraca saldo'!H:H) -> 0 | I115: 4.2.01. | J115: =IFERROR(VLOOKUP(ROWS($J$2:J115),$B$2:$C$203,2,0),"") -> 4.3.01.02 Pendapatan Restoran
A116: 115 | B116: =IF(ISNUMBER(SEARCH($L$2,C116)),MAX(B$1:$B115)+1,0) -> 107 | C116: 4.2.01.02 Pendapatan Penjualan Pakaian/Kaos/Jaket | D116: Kredit | E116: 0 | F116: =SUMIF('neraca saldo'!C:C,COA!C116,'neraca saldo'!H:H) -> 0 | I116: 4.2.01. | J116: =IFERROR(VLOOKUP(ROWS($J$2:J116),$B$2:$C$203,2,0),"") -> 4.3.01.03 Pendapatan Kopi
A117: 116 | B117: =IF(ISNUMBER(SEARCH($L$2,C117)),MAX(B$1:$B116)+1,0) -> 108 | C117: 4.2.01.03 Pendapatan Penjualan Hasil Kerajinan/Suvenir | D117: Kredit | E117: 0 | F117: =SUMIF('neraca saldo'!C:C,COA!C117,'neraca saldo'!H:H) -> 0 | I117: 4.2.01. | J117: =IFERROR(VLOOKUP(ROWS($J$2:J117),$B$2:$C$203,2,0),"") -> 4.2.01.98 Pendapatan Penjualan Barang Jadi
A118: 117 | B118: =IF(ISNUMBER(SEARCH($L$2,C118)),MAX(B$1:$B117)+1,0) -> 109 | C118: 4.2.01.04 Pendapatan Penjualan Buku | D118: Kredit | E118: 0 | F118: =SUMIF('neraca saldo'!C:C,COA!C118,'neraca saldo'!H:H) -> 0 | G118: =IF(E118=0,"",F118/E118) ->  | I118: =LEFT(C118,7) -> 4.2.01. | J118: =IFERROR(VLOOKUP(ROWS($J$2:J118),$B$2:$C$203,2,0),"") -> 5.1.01.01 Harga Pokok Penjualan Barang Dagangan
A119: 118 | B119: =IF(ISNUMBER(SEARCH($L$2,C119)),MAX(B$1:$B118)+1,0) -> 110 | C119: 4.2.01.05 Pendapatan Penjualan Biji Kopi | D119: Kredit | E119: 0 | F119: =SUMIF('neraca saldo'!C:C,COA!C119,'neraca saldo'!H:H) -> 0 | I119: 4.2.01. | J119: =IFERROR(VLOOKUP(ROWS($J$2:J119),$B$2:$C$203,2,0),"") -> 5.2.01.01 Harga Pokok Penjualan Barang Jadi
A120: 119 | B120: =IF(ISNUMBER(SEARCH($L$2,C120)),MAX(B$1:$B119)+1,0) -> 111 | C120: 4.2.01.06 Pendapatan Penjualan Bensin | D120: Kredit | E120: 0 | F120: =SUMIF('neraca saldo'!C:C,COA!C120,'neraca saldo'!H:H) -> 0 | I120: 4.2.01. | J120: =IFERROR(VLOOKUP(ROWS($J$2:J120),$B$2:$C$203,2,0),"") -> 5.3.01.01 Harga Pokok Produksi
A121: 120 | B121: =IF(ISNUMBER(SEARCH($L$2,C121)),MAX(B$1:$B120)+1,0) -> 112 | C121: 4.2.01.98 Pendapatan Penjualan Barang Dagangan | D121: Kredit | E121: 0 | F121: =SUMIF('neraca saldo'!C:C,COA!C121,'neraca saldo'!H:H) -> 0 | G121: =IF(E121=0,"",F121/E121) ->  | I121: =LEFT(C121,7) -> 4.2.01. | J121: =IFERROR(VLOOKUP(ROWS($J$2:J121),$B$2:$C$203,2,0),"") -> 6.1.01.01 Beban Gaji dan Tunjangan Bag. Adum
A122: 121 | B122: =IF(ISNUMBER(SEARCH($L$2,C122)),MAX(B$1:$B120)+1,0) -> 112 | C122: 4.2.01.99 Diskon Penjualan Barang Dagangan | D122: Debit | E122: 0 | F122: =SUMIF('neraca saldo'!C:C,COA!C122,'neraca saldo'!H:H) -> 0 | G122: =IF(E122=0,"",F122/E122) ->  | I122: =LEFT(C122,7) -> 4.2.01. | J122: =IFERROR(VLOOKUP(ROWS($J$2:J122),$B$2:$C$203,2,0),"") -> 6.1.01.02 Beban Honor Lembur Bag. Adum
A123: 122 | B123: =IF(ISNUMBER(SEARCH($L$2,C123)),MAX(B$1:$B122)+1,0) -> 113 | C123: 4.3.01.01 Pendapatan Katering | D123: Kredit | E123: 0 | F123: =SUMIF('neraca saldo'!C:C,COA!C123,'neraca saldo'!H:H) -> 0 | G123: =IF(E123=0,"",F123/E123) ->  | I123: =LEFT(C123,7) -> 4.3.01. | J123: =IFERROR(VLOOKUP(ROWS($J$2:J123),$B$2:$C$203,2,0),"") -> 6.1.01.03 Beban Honor Narasumber
A124: 123 | B124: =IF(ISNUMBER(SEARCH($L$2,C124)),MAX(B$1:$B123)+1,0) -> 114 | C124: 4.3.01.02 Pendapatan Restoran | D124: Kredit | E124: 0 | F124: =SUMIF('neraca saldo'!C:C,COA!C124,'neraca saldo'!H:H) -> 0 | I124: 4.3.01. | J124: =IFERROR(VLOOKUP(ROWS($J$2:J124),$B$2:$C$203,2,0),"") -> 6.1.01.04 Beban Insentif (Bonus) Bag. Adum
A125: 124 | B125: =IF(ISNUMBER(SEARCH($L$2,C125)),MAX(B$1:$B124)+1,0) -> 115 | C125: 4.3.01.03 Pendapatan Kopi | D125: Kredit | E125: 0 | F125: =SUMIF('neraca saldo'!C:C,COA!C125,'neraca saldo'!H:H) -> 0 | I125: 4.3.01. | J125: =IFERROR(VLOOKUP(ROWS($J$2:J125),$B$2:$C$203,2,0),"") -> 6.1.01.05 Beban Komisi Bag. Adum
A126: 125 | B126: =IF(ISNUMBER(SEARCH($L$2,C126)),MAX(B$1:$B125)+1,0) -> 116 | C126: 4.2.01.98 Pendapatan Penjualan Barang Jadi | D126: Kredit | E126: 0 | F126: =SUMIF('neraca saldo'!C:C,COA!C126,'neraca saldo'!H:H) -> 0 | G126: =IF(E126=0,"",F126/E126) ->  | I126: =LEFT(C126,7) -> 4.2.01. | J126: =IFERROR(VLOOKUP(ROWS($J$2:J126),$B$2:$C$203,2,0),"") -> 6.1.01.06 Beban Seragam Pegawai Bag. Adum
A127: 126 | B127: =IF(ISNUMBER(SEARCH($L$2,C127)),MAX(B$1:$B125)+1,0) -> 116 | C127: 4.3.01.99 Diskon Penjualan Barang Jadi | D127: Debit | E127: 0 | F127: =SUMIF('neraca saldo'!C:C,COA!C127,'neraca saldo'!H:H) -> 0 | I127: 4.3.01. | J127: =IFERROR(VLOOKUP(ROWS($J$2:J127),$B$2:$C$203,2,0),"") -> 6.1.01.07 Beban Penguatan SDM
A128: 127 | B128: =IF(ISNUMBER(SEARCH($L$2,C128)),MAX(B$1:$B127)+1,0) -> 117 | C128: 5.1.01.01 Harga Pokok Penjualan Barang Dagangan | D128: Debit | E128: 0 | F128: =SUMIF('neraca saldo'!C:C,COA!C128,'neraca saldo'!H:H) -> 0 | I128: 5.1.01. | J128: =IFERROR(VLOOKUP(ROWS($J$2:J128),$B$2:$C$203,2,0),"") -> 6.1.01.99 Beban Pegawai Bag. Adum Lainnya
A129: 128 | B129: =IF(ISNUMBER(SEARCH($L$2,C129)),MAX(B$1:$B128)+1,0) -> 118 | C129: 5.2.01.01 Harga Pokok Penjualan Barang Jadi | D129: Debit | E129: 0 | F129: =SUMIF('neraca saldo'!C:C,COA!C129,'neraca saldo'!H:H) -> 0 | I129: =LEFT(C129,7) -> 5.2.01. | J129: =IFERROR(VLOOKUP(ROWS($J$2:J129),$B$2:$C$203,2,0),"") -> 6.1.02.01 Beban Alat Tulis Kantor (ATK)
A130: 129 | B130: =IF(ISNUMBER(SEARCH($L$2,C130)),MAX(B$1:$B129)+1,0) -> 119 | C130: 5.3.01.01 Harga Pokok Produksi | D130: Debit | E130: 0 | F130: =SUMIF('neraca saldo'!C:C,COA!C130,'neraca saldo'!H:H) -> 0 | I130: =LEFT(C130,7) -> 5.3.01. | J130: =IFERROR(VLOOKUP(ROWS($J$2:J130),$B$2:$C$203,2,0),"") -> 6.1.02.02 Beban Foto Copy
A131: 130 | B131: =IF(ISNUMBER(SEARCH($L$2,C131)),MAX(B$1:$B130)+1,0) -> 120 | C131: 6.1.01.01 Beban Gaji dan Tunjangan Bag. Adum | D131: Debit | E131: 0 | F131: =SUMIF('neraca saldo'!C:C,COA!C131,'neraca saldo'!H:H) -> 0 | I131: 6.1.01. | J131: =IFERROR(VLOOKUP(ROWS($J$2:J131),$B$2:$C$203,2,0),"") -> 6.1.02.03 Beban Konsumsi Rapat
A132: 131 | B132: =IF(ISNUMBER(SEARCH($L$2,C132)),MAX(B$1:$B131)+1,0) -> 121 | C132: 6.1.01.02 Beban Honor Lembur Bag. Adum | D132: Debit | E132: 0 | F132: =SUMIF('neraca saldo'!C:C,COA!C132,'neraca saldo'!H:H) -> 0 | I132: 6.1.01. | J132: =IFERROR(VLOOKUP(ROWS($J$2:J132),$B$2:$C$203,2,0),"") -> 6.1.02.04 Beban Cetak dan Dekorasi
A133: 132 | B133: =IF(ISNUMBER(SEARCH($L$2,C133)),MAX(B$1:$B132)+1,0) -> 122 | C133: 6.1.01.03 Beban Honor Narasumber | D133: Debit | E133: 0 | F133: =SUMIF('neraca saldo'!C:C,COA!C133,'neraca saldo'!H:H) -> 0 | I133: 6.1.01. | J133: =IFERROR(VLOOKUP(ROWS($J$2:J133),$B$2:$C$203,2,0),"") -> 6.1.02.99 Beban Perlengkapan Lainnya
A134: 133 | B134: =IF(ISNUMBER(SEARCH($L$2,C134)),MAX(B$1:$B133)+1,0) -> 123 | C134: 6.1.01.04 Beban Insentif (Bonus) Bag. Adum | D134: Debit | E134: 0 | F134: =SUMIF('neraca saldo'!C:C,COA!C134,'neraca saldo'!H:H) -> 0 | I134: 6.1.01. | J134: =IFERROR(VLOOKUP(ROWS($J$2:J134),$B$2:$C$203,2,0),"") -> 6.1.03.01 Beban Pemeliharaan dan Perbaikan
A135: 134 | B135: =IF(ISNUMBER(SEARCH($L$2,C135)),MAX(B$1:$B134)+1,0) -> 124 | C135: 6.1.01.05 Beban Komisi Bag. Adum | D135: Debit | E135: 0 | F135: =SUMIF('neraca saldo'!C:C,COA!C135,'neraca saldo'!H:H) -> 0 | I135: 6.1.01. | J135: =IFERROR(VLOOKUP(ROWS($J$2:J135),$B$2:$C$203,2,0),"") -> 6.1.04.01 Beban Listrik
A136: 135 | B136: =IF(ISNUMBER(SEARCH($L$2,C136)),MAX(B$1:$B135)+1,0) -> 125 | C136: 6.1.01.06 Beban Seragam Pegawai Bag. Adum | D136: Debit | E136: 0 | F136: =SUMIF('neraca saldo'!C:C,COA!C136,'neraca saldo'!H:H) -> 0 | I136: 6.1.01. | J136: =IFERROR(VLOOKUP(ROWS($J$2:J136),$B$2:$C$203,2,0),"") -> 6.1.04.02 Beban Telepon/Internet
A137: 136 | B137: =IF(ISNUMBER(SEARCH($L$2,C137)),MAX(B$1:$B136)+1,0) -> 126 | C137: 6.1.01.07 Beban Penguatan SDM | D137: Debit | E137: 0 | F137: =SUMIF('neraca saldo'!C:C,COA!C137,'neraca saldo'!H:H) -> 0 | I137: 6.1.01. | J137: =IFERROR(VLOOKUP(ROWS($J$2:J137),$B$2:$C$203,2,0),"") -> 6.1.04.99 Beban Utilitas Lainnya
A138: 137 | B138: =IF(ISNUMBER(SEARCH($L$2,C138)),MAX(B$1:$B137)+1,0) -> 127 | C138: 6.1.01.99 Beban Pegawai Bag. Adum Lainnya | D138: Debit | E138: 0 | F138: =SUMIF('neraca saldo'!C:C,COA!C138,'neraca saldo'!H:H) -> 0 | I138: 6.1.01. | J138: =IFERROR(VLOOKUP(ROWS($J$2:J138),$B$2:$C$203,2,0),"") -> 6.1.05.01 Beban Sewa
A139: 138 | B139: =IF(ISNUMBER(SEARCH($L$2,C139)),MAX(B$1:$B138)+1,0) -> 128 | C139: 6.1.02.01 Beban Alat Tulis Kantor (ATK) | D139: Debit | E139: 0 | F139: =SUMIF('neraca saldo'!C:C,COA!C139,'neraca saldo'!H:H) -> 0 | I139: 6.1.02. | J139: =IFERROR(VLOOKUP(ROWS($J$2:J139),$B$2:$C$203,2,0),"") -> 6.1.05.02 Beban Asuransi
A140: 139 | B140: =IF(ISNUMBER(SEARCH($L$2,C140)),MAX(B$1:$B139)+1,0) -> 129 | C140: 6.1.02.02 Beban Foto Copy | D140: Debit | E140: 0 | F140: =SUMIF('neraca saldo'!C:C,COA!C140,'neraca saldo'!H:H) -> 0 | I140: 6.1.02. | J140: =IFERROR(VLOOKUP(ROWS($J$2:J140),$B$2:$C$203,2,0),"") -> 6.1.06.01 Beban Kebersihan
A141: 140 | B141: =IF(ISNUMBER(SEARCH($L$2,C141)),MAX(B$1:$B140)+1,0) -> 130 | C141: 6.1.02.03 Beban Konsumsi Rapat | D141: Debit | E141: 0 | F141: =SUMIF('neraca saldo'!C:C,COA!C141,'neraca saldo'!H:H) -> 0 | I141: 6.1.02. | J141: =IFERROR(VLOOKUP(ROWS($J$2:J141),$B$2:$C$203,2,0),"") -> 6.1.06.02 Beban Keamanan
A142: 141 | B142: =IF(ISNUMBER(SEARCH($L$2,C142)),MAX(B$1:$B141)+1,0) -> 131 | C142: 6.1.02.04 Beban Cetak dan Dekorasi | D142: Debit | E142: 0 | F142: =SUMIF('neraca saldo'!C:C,COA!C142,'neraca saldo'!H:H) -> 0 | I142: 6.1.02. | J142: =IFERROR(VLOOKUP(ROWS($J$2:J142),$B$2:$C$203,2,0),"") -> 6.1.07.01 Beban Penyisihan Piutang Tak Tertagih
A143: 142 | B143: =IF(ISNUMBER(SEARCH($L$2,C143)),MAX(B$1:$B142)+1,0) -> 132 | C143: 6.1.02.99 Beban Perlengkapan Lainnya | D143: Debit | E143: 0 | F143: =SUMIF('neraca saldo'!C:C,COA!C143,'neraca saldo'!H:H) -> 0 | I143: =LEFT(C143,7) -> 6.1.02. | J143: =IFERROR(VLOOKUP(ROWS($J$2:J143),$B$2:$C$203,2,0),"") -> 6.1.07.02 Beban Penyusutan Kendaraan
A144: 143 | B144: =IF(ISNUMBER(SEARCH($L$2,C144)),MAX(B$1:$B143)+1,0) -> 133 | C144: 6.1.03.01 Beban Pemeliharaan dan Perbaikan | D144: Debit | E144: 0 | F144: =SUMIF('neraca saldo'!C:C,COA!C144,'neraca saldo'!H:H) -> 0 | I144: 6.1.03. | J144: =IFERROR(VLOOKUP(ROWS($J$2:J144),$B$2:$C$203,2,0),"") -> 6.1.07.03 Beban Penyusutan Peralatan dan Mesin
A145: =ROW()-1 -> 144 | B145: =IF(ISNUMBER(SEARCH($L$2,C145)),MAX(B$1:$B144)+1,0) -> 134 | C145: 6.1.04.01 Beban Listrik | D145: Debit | E145: 0 | F145: =SUMIF('neraca saldo'!C:C,COA!C145,'neraca saldo'!H:H) -> 0 | G145: =IF(E145=0,"",F145/E145) ->  | I145: 6.1.04. | J145: =IFERROR(VLOOKUP(ROWS($J$2:J145),$B$2:$C$203,2,0),"") -> 6.1.07.04 Beban Penyusutan Meubelair
A146: 145 | B146: =IF(ISNUMBER(SEARCH($L$2,C146)),MAX(B$1:$B145)+1,0) -> 135 | C146: 6.1.04.02 Beban Telepon/Internet | D146: Debit | E146: 0 | F146: =SUMIF('neraca saldo'!C:C,COA!C146,'neraca saldo'!H:H) -> 0 | I146: 6.1.04. | J146: =IFERROR(VLOOKUP(ROWS($J$2:J146),$B$2:$C$203,2,0),"") -> 6.1.07.05 Beban Penyusutan Gedung dan Bangunan
A147: 146 | B147: =IF(ISNUMBER(SEARCH($L$2,C147)),MAX(B$1:$B146)+1,0) -> 136 | C147: 6.1.04.99 Beban Utilitas Lainnya | D147: Debit | E147: 0 | F147: =SUMIF('neraca saldo'!C:C,COA!C147,'neraca saldo'!H:H) -> 0 | I147: 6.1.04. | J147: =IFERROR(VLOOKUP(ROWS($J$2:J147),$B$2:$C$203,2,0),"") -> 6.1.07.06 Beban Amortisasi Aset takberwujud
A148: 147 | B148: =IF(ISNUMBER(SEARCH($L$2,C148)),MAX(B$1:$B147)+1,0) -> 137 | C148: 6.1.05.01 Beban Sewa | D148: Debit | E148: 0 | F148: =SUMIF('neraca saldo'!C:C,COA!C148,'neraca saldo'!H:H) -> 0 | I148: 6.1.05. | J148: =IFERROR(VLOOKUP(ROWS($J$2:J148),$B$2:$C$203,2,0),"") -> 6.1.99.01 Beban Parkir
A149: 148 | B149: =IF(ISNUMBER(SEARCH($L$2,C149)),MAX(B$1:$B148)+1,0) -> 138 | C149: 6.1.05.02 Beban Asuransi | D149: Debit | E149: 0 | F149: =SUMIF('neraca saldo'!C:C,COA!C149,'neraca saldo'!H:H) -> 0 | I149: 6.1.05. | J149: =IFERROR(VLOOKUP(ROWS($J$2:J149),$B$2:$C$203,2,0),"") -> 6.1.99.02 Beban Audit
A150: 149 | B150: =IF(ISNUMBER(SEARCH($L$2,C150)),MAX(B$1:$B149)+1,0) -> 139 | C150: 6.1.06.01 Beban Kebersihan | D150: Debit | E150: 0 | F150: =SUMIF('neraca saldo'!C:C,COA!C150,'neraca saldo'!H:H) -> 0 | I150: 6.1.06. | J150: =IFERROR(VLOOKUP(ROWS($J$2:J150),$B$2:$C$203,2,0),"") -> 6.1.99.03 Beban Perjalanan Dinas
A151: 150 | B151: =IF(ISNUMBER(SEARCH($L$2,C151)),MAX(B$1:$B150)+1,0) -> 140 | C151: 6.1.06.02 Beban Keamanan | D151: Debit | E151: 0 | F151: =SUMIF('neraca saldo'!C:C,COA!C151,'neraca saldo'!H:H) -> 0 | I151: 6.1.06. | J151: =IFERROR(VLOOKUP(ROWS($J$2:J151),$B$2:$C$203,2,0),"") -> 6.1.99.04 Beban Transportasi
A152: 151 | B152: =IF(ISNUMBER(SEARCH($L$2,C152)),MAX(B$1:$B151)+1,0) -> 141 | C152: 6.1.07.01 Beban Penyisihan Piutang Tak Tertagih | D152: Debit | E152: 0 | F152: =SUMIF('neraca saldo'!C:C,COA!C152,'neraca saldo'!H:H) -> 0 | I152: 6.1.07. | J152: =IFERROR(VLOOKUP(ROWS($J$2:J152),$B$2:$C$203,2,0),"") -> 6.1.99.05 Beban Jamuan Tamu
A153: 152 | B153: =IF(ISNUMBER(SEARCH($L$2,C153)),MAX(B$1:$B152)+1,0) -> 142 | C153: 6.1.07.02 Beban Penyusutan Kendaraan | D153: Debit | E153: 0 | F153: =SUMIF('neraca saldo'!C:C,COA!C153,'neraca saldo'!H:H) -> 0 | I153: 6.1.07. | J153: =IFERROR(VLOOKUP(ROWS($J$2:J153),$B$2:$C$203,2,0),"") -> 6.2.01.01 Beban Gaji/Upah Bag. Operasional
A154: 153 | B154: =IF(ISNUMBER(SEARCH($L$2,C154)),MAX(B$1:$B153)+1,0) -> 143 | C154: 6.1.07.03 Beban Penyusutan Peralatan dan Mesin | D154: Debit | E154: 0 | F154: =SUMIF('neraca saldo'!C:C,COA!C154,'neraca saldo'!H:H) -> 0 | I154: 6.1.07. | J154: =IFERROR(VLOOKUP(ROWS($J$2:J154),$B$2:$C$203,2,0),"") -> 6.2.01.02 Beban Uang Makan Bag. Operasional
A155: 154 | B155: =IF(ISNUMBER(SEARCH($L$2,C155)),MAX(B$1:$B154)+1,0) -> 144 | C155: 6.1.07.04 Beban Penyusutan Meubelair | D155: Debit | E155: 0 | F155: =SUMIF('neraca saldo'!C:C,COA!C155,'neraca saldo'!H:H) -> 0 | I155: 6.1.07. | J155: =IFERROR(VLOOKUP(ROWS($J$2:J155),$B$2:$C$203,2,0),"") -> 6.2.02.01 Beban Pemeliharaan Wahana
A156: 155 | B156: =IF(ISNUMBER(SEARCH($L$2,C156)),MAX(B$1:$B155)+1,0) -> 145 | C156: 6.1.07.05 Beban Penyusutan Gedung dan Bangunan | D156: Debit | E156: 0 | F156: =SUMIF('neraca saldo'!C:C,COA!C156,'neraca saldo'!H:H) -> 0 | I156: 6.1.07. | J156: =IFERROR(VLOOKUP(ROWS($J$2:J156),$B$2:$C$203,2,0),"") -> 6.2.02.02 Beban Perbaikan dan Renovasi
A157: 156 | B157: =IF(ISNUMBER(SEARCH($L$2,C157)),MAX(B$1:$B156)+1,0) -> 146 | C157: 6.1.07.06 Beban Amortisasi Aset takberwujud | D157: Debit | E157: 0 | F157: =SUMIF('neraca saldo'!C:C,COA!C157,'neraca saldo'!H:H) -> 0 | I157: 6.1.07. | J157: =IFERROR(VLOOKUP(ROWS($J$2:J157),$B$2:$C$203,2,0),"") -> 6.2.03.01 Beban Tim SAR
A158: 157 | B158: =IF(ISNUMBER(SEARCH($L$2,C158)),MAX(B$1:$B157)+1,0) -> 147 | C158: 6.1.99.01 Beban Parkir | D158: Debit | E158: 0 | F158: =SUMIF('neraca saldo'!C:C,COA!C158,'neraca saldo'!H:H) -> 0 | I158: 6.1.99. | J158: =IFERROR(VLOOKUP(ROWS($J$2:J158),$B$2:$C$203,2,0),"") -> 6.2.03.02 Beban P3K
A159: 158 | B159: =IF(ISNUMBER(SEARCH($L$2,C159)),MAX(B$1:$B158)+1,0) -> 148 | C159: 6.1.99.02 Beban Audit | D159: Debit | E159: 0 | F159: =SUMIF('neraca saldo'!C:C,COA!C159,'neraca saldo'!H:H) -> 0 | I159: 6.1.99. | J159: =IFERROR(VLOOKUP(ROWS($J$2:J159),$B$2:$C$203,2,0),"") -> 6.2.99.01 Beban Komunikasi
A160: 159 | B160: =IF(ISNUMBER(SEARCH($L$2,C160)),MAX(B$1:$B159)+1,0) -> 149 | C160: 6.1.99.03 Beban Perjalanan Dinas | D160: Debit | E160: 0 | F160: =SUMIF('neraca saldo'!C:C,COA!C160,'neraca saldo'!H:H) -> 0 | I160: 6.1.99. | J160: =IFERROR(VLOOKUP(ROWS($J$2:J160),$B$2:$C$203,2,0),"") -> 6.2.99.02 Beban Sewa Lokasi
A161: 160 | B161: =IF(ISNUMBER(SEARCH($L$2,C161)),MAX(B$1:$B160)+1,0) -> 150 | C161: 6.1.99.04 Beban Transportasi | D161: Debit | E161: 0 | F161: =SUMIF('neraca saldo'!C:C,COA!C161,'neraca saldo'!H:H) -> 0 | I161: 6.1.99. | J161: =IFERROR(VLOOKUP(ROWS($J$2:J161),$B$2:$C$203,2,0),"") -> 6.2.99.03 Beban Pakan Ikan
A162: 161 | B162: =IF(ISNUMBER(SEARCH($L$2,C162)),MAX(B$1:$B161)+1,0) -> 151 | C162: 6.1.99.05 Beban Jamuan Tamu | D162: Debit | E162: 0 | F162: =SUMIF('neraca saldo'!C:C,COA!C162,'neraca saldo'!H:H) -> 0 | I162: 6.1.99. | J162: =IFERROR(VLOOKUP(ROWS($J$2:J162),$B$2:$C$203,2,0),"") -> 6.3.01.01 Beban Gaji/Upah Bag. Pemasaran
A163: 162 | B163: =IF(ISNUMBER(SEARCH($L$2,C163)),MAX(B$1:$B162)+1,0) -> 0 | C163: 6.1.99.99 Beban Administrasi dan Umum Lainnya | D163: Debit | E163: 0 | F163: =SUMIF('neraca saldo'!C:C,COA!C163,'neraca saldo'!H:H) -> 0 | I163: 6.1.99. | J163: =IFERROR(VLOOKUP(ROWS($J$2:J163),$B$2:$C$203,2,0),"") -> 6.3.01.02 Beban Insentif (Bonus) Bag. Pemasaran
A164: 163 | B164: =IF(ISNUMBER(SEARCH($L$2,C164)),MAX(B$1:$B163)+1,0) -> 152 | C164: 6.2.01.01 Beban Gaji/Upah Bag. Operasional | D164: Debit | E164: 0 | F164: =SUMIF('neraca saldo'!C:C,COA!C164,'neraca saldo'!H:H) -> 0 | I164: 6.2.01. | J164: =IFERROR(VLOOKUP(ROWS($J$2:J164),$B$2:$C$203,2,0),"") -> 6.3.01.03 Beban Seragam Pegawai Bag. Pemasaran
A165: 164 | B165: =IF(ISNUMBER(SEARCH($L$2,C165)),MAX(B$1:$B164)+1,0) -> 153 | C165: 6.2.01.02 Beban Uang Makan Bag. Operasional | D165: Debit | E165: 0 | F165: =SUMIF('neraca saldo'!C:C,COA!C165,'neraca saldo'!H:H) -> 0 | I165: 6.2.01. | J165: =IFERROR(VLOOKUP(ROWS($J$2:J165),$B$2:$C$203,2,0),"") -> 6.3.02.01 Beban Iklan
A166: 165 | B166: =IF(ISNUMBER(SEARCH($L$2,C166)),MAX(B$1:$B165)+1,0) -> 154 | C166: 6.2.02.01 Beban Pemeliharaan Wahana | D166: Debit | E166: 0 | F166: =SUMIF('neraca saldo'!C:C,COA!C166,'neraca saldo'!H:H) -> 0 | I166: 6.2.02. | J166: =IFERROR(VLOOKUP(ROWS($J$2:J166),$B$2:$C$203,2,0),"") -> 6.3.02.02 Beban Promosi wartawan
A167: 166 | B167: =IF(ISNUMBER(SEARCH($L$2,C167)),MAX(B$1:$B166)+1,0) -> 155 | C167: 6.2.02.02 Beban Perbaikan dan Renovasi | D167: Debit | E167: 0 | F167: =SUMIF('neraca saldo'!C:C,COA!C167,'neraca saldo'!H:H) -> 0 | I167: 6.2.02. | J167: =IFERROR(VLOOKUP(ROWS($J$2:J167),$B$2:$C$203,2,0),"") -> 6.3.02.03 Beban Dana Sosial
A168: 167 | B168: =IF(ISNUMBER(SEARCH($L$2,C168)),MAX(B$1:$B167)+1,0) -> 156 | C168: 6.2.03.01 Beban Tim SAR | D168: Debit | E168: 0 | F168: =SUMIF('neraca saldo'!C:C,COA!C168,'neraca saldo'!H:H) -> 0 | I168: 6.2.03. | J168: =IFERROR(VLOOKUP(ROWS($J$2:J168),$B$2:$C$203,2,0),"") -> 7.1.01.01 Pendapatan Bunga Bank
A169: 168 | B169: =IF(ISNUMBER(SEARCH($L$2,C169)),MAX(B$1:$B168)+1,0) -> 157 | C169: 6.2.03.02 Beban P3K | D169: Debit | E169: 0 | F169: =SUMIF('neraca saldo'!C:C,COA!C169,'neraca saldo'!H:H) -> 0 | I169: 6.2.03. | J169: =IFERROR(VLOOKUP(ROWS($J$2:J169),$B$2:$C$203,2,0),"") -> 7.1.01.02 Pendapatan Fee Agen BNI 46
A170: 169 | B170: =IF(ISNUMBER(SEARCH($L$2,C170)),MAX(B$1:$B169)+1,0) -> 158 | C170: 6.2.99.01 Beban Komunikasi | D170: Debit | E170: 0 | F170: =SUMIF('neraca saldo'!C:C,COA!C170,'neraca saldo'!H:H) -> 0 | I170: 6.2.99. | J170: =IFERROR(VLOOKUP(ROWS($J$2:J170),$B$2:$C$203,2,0),"") -> 7.1.02.01 Pendapatan Dividen
A171: 170 | B171: =IF(ISNUMBER(SEARCH($L$2,C171)),MAX(B$1:$B170)+1,0) -> 159 | C171: 6.2.99.02 Beban Sewa Lokasi | D171: Debit | E171: 0 | F171: =SUMIF('neraca saldo'!C:C,COA!C171,'neraca saldo'!H:H) -> 0 | I171: 6.2.99. | J171: =IFERROR(VLOOKUP(ROWS($J$2:J171),$B$2:$C$203,2,0),"") -> 7.1.03.01 Pendapatan Denda
A172: 171 | B172: =IF(ISNUMBER(SEARCH($L$2,C172)),MAX(B$1:$B171)+1,0) -> 160 | C172: 6.2.99.03 Beban Pakan Ikan | D172: Debit | E172: 0 | F172: =SUMIF('neraca saldo'!C:C,COA!C172,'neraca saldo'!H:H) -> 0 | I172: 6.2.99. | J172: =IFERROR(VLOOKUP(ROWS($J$2:J172),$B$2:$C$203,2,0),"") -> 7.1.04.01 Pendapatan Iklan
A173: 172 | B173: =IF(ISNUMBER(SEARCH($L$2,C173)),MAX(B$1:$B172)+1,0) -> 0 | C173: 6.2.99.99 Beban Operasional Lainnya | D173: Debit | E173: 0 | F173: =SUMIF('neraca saldo'!C:C,COA!C173,'neraca saldo'!H:H) -> 0 | I173: 6.2.99. | J173: =IFERROR(VLOOKUP(ROWS($J$2:J173),$B$2:$C$203,2,0),"") -> 7.1.05.01 Keuntungan Penjualan Aset Tetap
A174: 173 | B174: =IF(ISNUMBER(SEARCH($L$2,C174)),MAX(B$1:$B173)+1,0) -> 161 | C174: 6.3.01.01 Beban Gaji/Upah Bag. Pemasaran | D174: Debit | E174: 0 | F174: =SUMIF('neraca saldo'!C:C,COA!C174,'neraca saldo'!H:H) -> 0 | I174: 6.3.01. | J174: =IFERROR(VLOOKUP(ROWS($J$2:J174),$B$2:$C$203,2,0),"") -> 7.2.01.01 Beban Administrasi Bank
A175: 174 | B175: =IF(ISNUMBER(SEARCH($L$2,C175)),MAX(B$1:$B174)+1,0) -> 162 | C175: 6.3.01.02 Beban Insentif (Bonus) Bag. Pemasaran | D175: Debit | E175: 0 | F175: =SUMIF('neraca saldo'!C:C,COA!C175,'neraca saldo'!H:H) -> 0 | G175: =IF(E175=0,"",F175/E175) ->  | I175: =LEFT(C175,7) -> 6.3.01. | J175: =IFERROR(VLOOKUP(ROWS($J$2:J175),$B$2:$C$203,2,0),"") -> 7.2.02.01 Beban Bunga
A176: 175 | B176: =IF(ISNUMBER(SEARCH($L$2,C176)),MAX(B$1:$B175)+1,0) -> 163 | C176: 6.3.01.03 Beban Seragam Pegawai Bag. Pemasaran | D176: Debit | E176: 0 | F176: =SUMIF('neraca saldo'!C:C,COA!C176,'neraca saldo'!H:H) -> 0 | I176: 6.3.01. | J176: =IFERROR(VLOOKUP(ROWS($J$2:J176),$B$2:$C$203,2,0),"") -> 7.2.03.01 Beban Denda
A177: 176 | B177: =IF(ISNUMBER(SEARCH($L$2,C177)),MAX(B$1:$B176)+1,0) -> 164 | C177: 6.3.02.01 Beban Iklan | D177: Debit | E177: 0 | F177: =SUMIF('neraca saldo'!C:C,COA!C177,'neraca saldo'!H:H) -> 0 | I177: 6.3.02. | J177: =IFERROR(VLOOKUP(ROWS($J$2:J177),$B$2:$C$203,2,0),"") -> 7.2.04.01 Kerugian Penjualan Aset Tetap
A178: 177 | B178: =IF(ISNUMBER(SEARCH($L$2,C178)),MAX(B$1:$B177)+1,0) -> 165 | C178: 6.3.02.02 Beban Promosi wartawan | D178: Debit | E178: 0 | F178: =SUMIF('neraca saldo'!C:C,COA!C178,'neraca saldo'!H:H) -> 0 | I178: 6.3.02. | J178: =IFERROR(VLOOKUP(ROWS($J$2:J178),$B$2:$C$203,2,0),"") -> 7.3.01.01 Beban Pajak Air Permukaan
A179: 178 | B179: =IF(ISNUMBER(SEARCH($L$2,C179)),MAX(B$1:$B178)+1,0) -> 166 | C179: 6.3.02.03 Beban Dana Sosial | D179: Debit | E179: 0 | F179: =SUMIF('neraca saldo'!C:C,COA!C179,'neraca saldo'!H:H) -> 0 | I179: 6.3.02. | J179: =IFERROR(VLOOKUP(ROWS($J$2:J179),$B$2:$C$203,2,0),"") -> 7.3.01.02 Beban Pajak Bunga Bank
A180: 179 | B180: =IF(ISNUMBER(SEARCH($L$2,C180)),MAX(B$1:$B179)+1,0) -> 0 | C180: 6.3.99.99 Beban Pemasaran Lainnya | D180: Debit | E180: 0 | F180: =SUMIF('neraca saldo'!C:C,COA!C180,'neraca saldo'!H:H) -> 0 | I180: 6.3.99. | J180: =IFERROR(VLOOKUP(ROWS($J$2:J180),$B$2:$C$203,2,0),"") -> 7.3.01.03 Beban Pajak Daerah
A181: 180 | B181: =IF(ISNUMBER(SEARCH($L$2,C181)),MAX(B$1:$B180)+1,0) -> 167 | C181: 7.1.01.01 Pendapatan Bunga Bank | D181: Kredit | E181: 0 | F181: =SUMIF('neraca saldo'!C:C,COA!C181,'neraca saldo'!H:H) -> 0 | I181: 7.1.01. | J181: =IFERROR(VLOOKUP(ROWS($J$2:J181),$B$2:$C$203,2,0),"") -> 7.3.01.04 Beban Pajak Hiburan
A182: 181 | B182: =IF(ISNUMBER(SEARCH($L$2,C182)),MAX(B$1:$B181)+1,0) -> 168 | C182: 7.1.01.02 Pendapatan Fee Agen BNI 46 | D182: Kredit | E182: 0 | F182: =SUMIF('neraca saldo'!C:C,COA!C182,'neraca saldo'!H:H) -> 0 | I182: 7.1.01. | J182: =IFERROR(VLOOKUP(ROWS($J$2:J182),$B$2:$C$203,2,0),"") -> 7.3.01.05 Beban Pajak Reklame
A183: 182 | B183: =IF(ISNUMBER(SEARCH($L$2,C183)),MAX(B$1:$B182)+1,0) -> 169 | C183: 7.1.02.01 Pendapatan Dividen | D183: Kredit | E183: 0 | F183: =SUMIF('neraca saldo'!C:C,COA!C183,'neraca saldo'!H:H) -> 0 | I183: 7.1.02. | J183: =IFERROR(VLOOKUP(ROWS($J$2:J183),$B$2:$C$203,2,0),"") -> 7.3.01.06 Beban PPh 21
A184: 183 | B184: =IF(ISNUMBER(SEARCH($L$2,C184)),MAX(B$1:$B183)+1,0) -> 170 | C184: 7.1.03.01 Pendapatan Denda | D184: Kredit | E184: 0 | F184: =SUMIF('neraca saldo'!C:C,COA!C184,'neraca saldo'!H:H) -> 0 | I184: 7.1.03. | J184: =IFERROR(VLOOKUP(ROWS($J$2:J184),$B$2:$C$203,2,0),"") -> 7.3.01.07 Beban PPh 23
A185: 184 | B185: =IF(ISNUMBER(SEARCH($L$2,C185)),MAX(B$1:$B184)+1,0) -> 171 | C185: 7.1.04.01 Pendapatan Iklan | D185: Kredit | E185: 0 | F185: =SUMIF('neraca saldo'!C:C,COA!C185,'neraca saldo'!H:H) -> 0 | I185: 7.1.04. | J185: =IFERROR(VLOOKUP(ROWS($J$2:J185),$B$2:$C$203,2,0),"") -> 7.3.01.08 Beban PPh 25
A186: 185 | B186: =IF(ISNUMBER(SEARCH($L$2,C186)),MAX(B$1:$B185)+1,0) -> 172 | C186: 7.1.05.01 Keuntungan Penjualan Aset Tetap | D186: Kredit | E186: 0 | F186: =SUMIF('neraca saldo'!C:C,COA!C186,'neraca saldo'!H:H) -> 0 | I186: 7.1.05. | J186: =IFERROR(VLOOKUP(ROWS($J$2:J186),$B$2:$C$203,2,0),"") -> 7.3.01.09 Beban PPh 29
A187: 186 | B187: =IF(ISNUMBER(SEARCH($L$2,C187)),MAX(B$1:$B186)+1,0) -> 0 | C187: 7.1.99.99 Pendapatan Lain-lain lainnya | D187: Kredit | E187: 0 | F187: =SUMIF('neraca saldo'!C:C,COA!C187,'neraca saldo'!H:H) -> 0 | I187: 7.1.99. | J187: =IFERROR(VLOOKUP(ROWS($J$2:J187),$B$2:$C$203,2,0),"") -> 7.3.01.10 Beban PPh Final
A188: 187 | B188: =IF(ISNUMBER(SEARCH($L$2,C188)),MAX(B$1:$B187)+1,0) -> 173 | C188: 7.2.01.01 Beban Administrasi Bank | D188: Debit | E188: 0 | F188: =SUMIF('neraca saldo'!C:C,COA!C188,'neraca saldo'!H:H) -> 0 | I188: 7.2.01. | J188: =IFERROR(VLOOKUP(ROWS($J$2:J188),$B$2:$C$203,2,0),"") -> 7.3.01.99 Beban Pajak Lainnya
A189: 188 | B189: =IF(ISNUMBER(SEARCH($L$2,C189)),MAX(B$1:$B188)+1,0) -> 174 | C189: 7.2.02.01 Beban Bunga | D189: Debit | E189: 0 | F189: =SUMIF('neraca saldo'!C:C,COA!C189,'neraca saldo'!H:H) -> 0 | I189: 7.2.02. | J189: =IFERROR(VLOOKUP(ROWS($J$2:J189),$B$2:$C$203,2,0),"") -> 
A190: 189 | B190: =IF(ISNUMBER(SEARCH($L$2,C190)),MAX(B$1:$B189)+1,0) -> 175 | C190: 7.2.03.01 Beban Denda | D190: Debit | E190: 0 | F190: =SUMIF('neraca saldo'!C:C,COA!C190,'neraca saldo'!H:H) -> 0 | I190: 7.2.03. | J190: =IFERROR(VLOOKUP(ROWS($J$2:J190),$B$2:$C$203,2,0),"") -> 
A191: 190 | B191: =IF(ISNUMBER(SEARCH($L$2,C191)),MAX(B$1:$B190)+1,0) -> 176 | C191: 7.2.04.01 Kerugian Penjualan Aset Tetap | D191: Debit | E191: 0 | F191: =SUMIF('neraca saldo'!C:C,COA!C191,'neraca saldo'!H:H) -> 0 | I191: 7.2.04. | J191: =IFERROR(VLOOKUP(ROWS($J$2:J191),$B$2:$C$203,2,0),"") -> 
A192: 191 | B192: =IF(ISNUMBER(SEARCH($L$2,C192)),MAX(B$1:$B191)+1,0) -> 0 | C192: 7.2.99.99 Beban Lain-lain lainnya | D192: Debit | E192: 0 | F192: =SUMIF('neraca saldo'!C:C,COA!C192,'neraca saldo'!H:H) -> 0 | G192: =IF(E192=0,"",F192/E192) ->  | I192: =LEFT(C192,7) -> 7.2.99. | J192: =IFERROR(VLOOKUP(ROWS($J$2:J192),$B$2:$C$203,2,0),"") -> 
A193: 192 | B193: =IF(ISNUMBER(SEARCH($L$2,C193)),MAX(B$1:$B192)+1,0) -> 177 | C193: 7.3.01.01 Beban Pajak Air Permukaan | D193: Debit | E193: 0 | F193: =SUMIF('neraca saldo'!C:C,COA!C193,'neraca saldo'!H:H) -> 0 | I193: 7.3.01. | J193: =IFERROR(VLOOKUP(ROWS($J$2:J193),$B$2:$C$203,2,0),"") -> 
A194: 193 | B194: =IF(ISNUMBER(SEARCH($L$2,C194)),MAX(B$1:$B193)+1,0) -> 178 | C194: 7.3.01.02 Beban Pajak Bunga Bank | D194: Debit | E194: 0 | F194: =SUMIF('neraca saldo'!C:C,COA!C194,'neraca saldo'!H:H) -> 0 | I194: 7.3.01. | J194: =IFERROR(VLOOKUP(ROWS($J$2:J194),$B$2:$C$203,2,0),"") -> 
A195: 194 | B195: =IF(ISNUMBER(SEARCH($L$2,C195)),MAX(B$1:$B194)+1,0) -> 179 | C195: 7.3.01.03 Beban Pajak Daerah | D195: Debit | E195: 0 | F195: =SUMIF('neraca saldo'!C:C,COA!C195,'neraca saldo'!H:H) -> 0 | I195: 7.3.01. | J195: =IFERROR(VLOOKUP(ROWS($J$2:J195),$B$2:$C$203,2,0),"") -> 
A196: 195 | B196: =IF(ISNUMBER(SEARCH($L$2,C196)),MAX(B$1:$B195)+1,0) -> 180 | C196: 7.3.01.04 Beban Pajak Hiburan | D196: Debit | E196: 0 | F196: =SUMIF('neraca saldo'!C:C,COA!C196,'neraca saldo'!H:H) -> 0 | I196: 7.3.01. | J196: =IFERROR(VLOOKUP(ROWS($J$2:J196),$B$2:$C$203,2,0),"") -> 
A197: 196 | B197: =IF(ISNUMBER(SEARCH($L$2,C197)),MAX(B$1:$B196)+1,0) -> 181 | C197: 7.3.01.05 Beban Pajak Reklame | D197: Debit | E197: 0 | F197: =SUMIF('neraca saldo'!C:C,COA!C197,'neraca saldo'!H:H) -> 0 | I197: 7.3.01. | J197: =IFERROR(VLOOKUP(ROWS($J$2:J197),$B$2:$C$203,2,0),"") -> 
A198: 197 | B198: =IF(ISNUMBER(SEARCH($L$2,C198)),MAX(B$1:$B197)+1,0) -> 182 | C198: 7.3.01.06 Beban PPh 21 | D198: Debit | E198: 0 | F198: =SUMIF('neraca saldo'!C:C,COA!C198,'neraca saldo'!H:H) -> 0 | I198: 7.3.01. | J198: =IFERROR(VLOOKUP(ROWS($J$2:J198),$B$2:$C$203,2,0),"") -> 
A199: 198 | B199: =IF(ISNUMBER(SEARCH($L$2,C199)),MAX(B$1:$B198)+1,0) -> 183 | C199: 7.3.01.07 Beban PPh 23 | D199: Debit | E199: 0 | F199: =SUMIF('neraca saldo'!C:C,COA!C199,'neraca saldo'!H:H) -> 0 | I199: 7.3.01. | J199: =IFERROR(VLOOKUP(ROWS($J$2:J199),$B$2:$C$203,2,0),"") -> 
A200: 199 | B200: =IF(ISNUMBER(SEARCH($L$2,C200)),MAX(B$1:$B199)+1,0) -> 184 | C200: 7.3.01.08 Beban PPh 25 | D200: Debit | E200: 0 | F200: =SUMIF('neraca saldo'!C:C,COA!C200,'neraca saldo'!H:H) -> 0 | I200: 7.3.01. | J200: =IFERROR(VLOOKUP(ROWS($J$2:J200),$B$2:$C$203,2,0),"") -> 
... 3 more rows

Sheet Reff (hidden)
A1: Buku Pembantu Piutang/Utang
B2: Piutang_Usaha | C2: Piutang_kepada_Pegawai | D2: Piutang_Lainnya | E2: Utang_Usaha | F2: Persediaan
A4: Komponen Laporan Arus Kas
B5: Kas_Masuk_Operasi | C5: Kas_Keluar_Operasi | D5: Kas_Masuk_Investasi | E5: Kas_Keluar_Investasi | F5: Kas_Masuk_Pendanaan | G5: Kas_Keluar_Pendanaan
B6: Penerimaan kas dari penjualan jasa
B7: Penerimaan kas dari penjualan barang dagangan
B8: Penerimaan kas dari penjualan barang jadi
B9: penerimaan kas dari bunga dan deviden
B10: penerimaan kas dari bunga bank
B13: Kas_Keluar_Operasi
B14: Pengeluaran kas untuk pembayaran ke pemasok barang
B15: Pengeluaran kas untuk pembayaran gaji/upah pegawai/karyawan
B16: Pengeluaran kas untku pembayaran pajak
B17: Pengeluaran kas untuk pembayaran bunga
B18: Pengeluaran kas untuk pembayaran beban-beban yang lain
B21: Kas_Masuk_Investasi
B22: Penerimaan Kas dari Penjualan Aset Tetap
B23: Penerimaan Kas dari Penjualan Investasi
B26: Kas_Keluar_Investasi
B27: Pengeluaran Kas untuk Pembelian Aset Tetap
B28: Pengeluaran Kas untuk Pembelian Investasi
B31: Kas_Masuk_Pendanaan
B32: Penerimaan kas dari penyertaan modal desa
B33: Penerimaan kas dari penyertaan modal masyarakat
B34: Penerimaan kas dari Donasi/Sumbangan
B35: Penerimaan kas dari utang jangka panjang
B38: Kas_Keluar_Pendanaan
B39: Pembayaran bagi hasil penyertaan modal desa
B40: Pembayaran bagi hasil penyertaan modal masyarakat
B41: Pembayaran pokok utang jangka panjang
A46: No | B46: Bulan | C46: Akhir Bulan
A47: 1 | B47: Januari | C47: 31 Januari
A48: 2 | B48: Februari | C48: 28 Februari
A49: 3 | B49: Maret | C49: 31 Maret
A50: 4 | B50: April | C50: 30 April
A51: 5 | B51: Mei | C51: 31 Mei
A52: 6 | B52: Juni | C52: 30 Juni
A53: 7 | B53: Juli | C53: 31 Juli
A54: 8 | B54: Agustus | C54: 31 Agustus
A55: 9 | B55: September | C55: 30 September
A56: 10 | B56: Oktober | C56: 31 Oktober
A57: 11 | B57: November | C57: 30 November
A58: 12 | B58: Desember | C58: 31 Desember

Sheet Ref Sehat (hidden)
A1: TINGKAT KESEHATAN KEUANGAN BUMDESA | E1: ROE | F1: Skor | H1: ROI | I1: Skor | K1: Cash Rasio | L1: Skor | N1: Current Rasio | O1: Skor | Q1: CP | R1: Skor | T1: PP | U1: Skor | W1: TATO | X1: Skor | Z1: TMSTA | AA1: Skor
E2: 0 | F2: 3 | H2: 0 | I2: 3 | K2: 0 | L2: 0 | N2: 0 | O2: 0 | Q2: 0 | R2: 7 | T2: 0 | U2: 7 | W2: 0 | X2: 2 | Z2: 0 | AA2: 5.5
B3: RENTANG NILAI | C3: KATEGORI | E3: 0.01 | F3: 6 | H3: 0.01 | I3: 4 | K3: 0.05 | L3: 1 | N3: 0.9 | O3: 1 | Q3: 60 | R3: 6 | T3: 60 | U3: 6 | W3: 0.2 | X3: 3 | Z3: 0.1 | AA3: 8.5
B4: 1 | C4: TIDAK SEHAT | E4: 0.025 | F4: 8 | H4: 0.03 | I4: 6 | K4: 0.1 | L4: 3 | N4: 0.95 | O4: 3 | Q4: 90 | R4: 5.5 | T4: 90 | U4: 5.5 | W4: 0.4 | X4: 3.5 | Z4: 0.2 | AA4: 10
B5: 30 | C5: KURANG SEHAT | E5: 0.04 | F5: 10 | H5: 0.05 | I5: 7 | K5: 0.15 | L5: 4 | N5: 1 | O5: 4 | Q5: 120 | R5: 5 | T5: 120 | U5: 5 | W5: 0.6 | X5: 4 | Z5: 0.3 | AA5: 14
B6: 65 | C6: SEHAT | E6: 0.053 | F6: 12 | H6: 0.07 | I6: 9 | K6: 0.25 | L6: 6 | N6: 1.1 | O6: 6 | Q6: 150 | R6: 4 | T6: 150 | U6: 4 | W6: 0.75 | X6: 5 | Z6: 0.4 | AA6: 13
E7: 0.066 | F7: 14 | H7: 0.09 | I7: 11 | K7: 0.35 | L7: 7 | N7: 1.25 | O7: 7 | Q7: 180 | R7: 4 | T7: 180 | U7: 4 | W7: 0.9 | X7: 5.5 | Z7: 0.5 | AA7: 12
E8: 0.079 | F8: 17 | H8: 0.105 | I8: 13 | Q8: 210 | R8: 3.5 | T8: 210 | U8: 3.5 | W8: 1.05 | X8: 5 | Z8: 0.6 | AA8: 11
E9: 0.09 | F9: 20 | H9: 0.12 | I9: 15 | Q9: 240 | R9: 1.5 | T9: 240 | U9: 1.5 | W9: 1.2 | X9: 7 | Z9: 0.7 | AA9: 10.5
E10: 0.11 | F10: 23 | H10: 0.13 | I10: 17 | Q10: 270 | R10: 1 | T10: 270 | U10: 1 | Z10: 0.8 | AA10: 10
E11: 0.13 | F11: 26 | H11: 0.15 | I11: 19 | Q11: 300 | R11: 0 | T11: 300 | U11: 0 | Z11: 0.9 | AA11: 9
E12: 0.15 | F12: 29 | H12: 0.18 | I12: 21
F14: 29 | I14: 21 | L14: 7 | O14: 7 | R14: 7 | U14: 7 | X14: 7 | AA14: 15 | AB14: =SUM(E14:AA14) -> 100
E16: <0% | F16: 0 | H16: <0% | I16: 1 | K16: >35% | L16: 7 | N16: >125% | O16: 7 | Z16: <0% | AA16: 0
E17: >15% | F17: 29 | H17: >18% | I17: 21
A21: KOMPONEN | B21: BOBOT | C21: Formula | E21: ROE | F21: Skor | H21: ROI | I21: Skor | K21: Cash Rasio | L21: Skor | N21: Current Rasio | O21: Skor | Q21: CP | R21: Skor | T21: PP | U21: Skor | W21: TATO | X21: Skor | Z21: TMSTA | AA21: Skor
A22: Imbalan kepada pemilik (ROE) | B22: =29/100 -> 0.29 | C22: Laba setelah pajak : modal pemilik X 100% | E22: <0% | F22: 0 | H22: <=0% | I22: 1 | K22: 0 | L22: 0 | N22: 0 | O22: 0 | Q22: 0 | R22: 5 | T22: 0 | U22: 5 | W22: 0 | X22: 1.5 | Z22: 0 | AA22: 4 | AB22: =AA22/70*100 -> 5.714285714
A23: Imbalan Investasi (ROI) | B23: =22/100 -> 0.22 | C23: (EBIT + Penyusutan)/Capital employed X 100% | E23: 0 | F23: 2 | H23: 0 | I23: 2 | K23: 0.05 | L23: 1 | N23: 0.9 | O23: 1 | Q23: 60 | R23: 5 | T23: 60 | U23: 4.5 | W23: 0.2 | X23: 2 | Z23: 0.1 | AA23: 6 | AB23: =AA23/70*100 -> 8.571428571
A24: Rasio Kas | B24: =7/100 -> 0.07 | C24: (Kas+ Bank+Surat berharga jk pendek):Utang lancar x 100% | E24: 0.01 | F24: 4 | H24: 0.01 | I24: 3 | K24: 0.1 | L24: 2 | N24: 0.95 | O24: 2 | Q24: 90 | R24: 4.5 | T24: 90 | U24: 4 | W24: 0.4 | X24: 2.5 | Z24: 0.2 | AA24: 7.25 | AB24: 10.35714286
A25: Rasio Lancar | B25: =7/100 -> 0.07 | C25: Aset lancar:utang lancarX100% | E25: 0.025 | F25: 5.5 | H25: 0.03 | I25: 4 | K25: 0.15 | L25: 3 | N25: 1 | O25: 3 | Q25: 120 | R25: 4 | T25: 120 | U25: 3.5 | W25: 0.6 | X25: 3 | Z25: 0.3 | AA25: 10 | AB25: 14.28571429
A26: Collection Period | B26: 0.07 | C26: Total Piutang usaha : total pendapatan usaha X 365 | E26: 0.04 | F26: 7 | H26: 0.05 | I26: 5 | K26: 0.25 | L26: 4 | N26: 1.1 | O26: 4 | Q26: 150 | R26: 3.5 | T26: 150 | U26: 3 | W26: 0.75 | X26: 3.5 | Z26: 0.4 | AA26: 9 | AB26: 12.85714286
A27: Perputaran Persediaan | B27: 0.07 | C27: Total Persediaan : total pendapatan usaha X 365 | E27: 0.053 | F27: 8.5 | H27: 0.07 | I27: 6 | K27: 0.35 | L27: 5 | N27: 1.25 | O27: 5 | Q27: 180 | R27: 3 | T27: 180 | U27: 2.4 | W27: 0.9 | X27: 4 | Z27: 0.5 | AA27: 8.5 | AB27: 12.14285714
A28: Perputaran Total Aset | B28: 0.07 | C28: Total aset : capital empoled x 100% | E28: 0.066 | F28: 10 | H28: 0.09 | I28: 7.5 | K28: >35% | L28: 5 | N28: >125% | O28: 5 | Q28: 210 | R28: 2.4 | T28: 210 | U28: 1.8 | W28: 1.05 | X28: 4.5 | Z28: 0.6 | AA28: 8 | AB28: 11.42857143
A29: Rasio Modal Pemilik thd Total Aktiva | B29: =14/100 -> 0.14 | C29: total modal pemilik : total aset x 100% | E29: 0.079 | F29: 12 | H29: 0.105 | I29: 9 | Q29: 240 | R29: 1.8 | T29: 240 | U29: 1.2 | W29: 1.2 | X29: 5 | Z29: 0.7 | AA29: 7.5 | AB29: 10.71428571
E30: 0.09 | F30: 14 | H30: 0.12 | I30: 10.5 | Q30: 270 | R30: 1.2 | T30: 270 | U30: 0.6 | W30: >120% | X30: 5 | Z30: 0.8 | AA30: 7 | AB30: 10
E31: 0.11 | F31: 16 | H31: 0.13 | I31: 12 | Q31: 300 | R31: 0.6 | T31: 300 | U31: 0 | Z31: 0.9 | AA31: 6.5 | AB31: 9.285714286
E32: 0.13 | F32: 18 | H32: 0.15 | I32: 13.5 | Q32: >300 | R32: 0
E33: 0.15 | F33: 20 | H33: 0.18 | I33: 15
E34: >15% | F34: 20 | H34: >18% | I34: 15 | L34: tidak punya utang lancar?
L35: tak terhingga? | N35: tak terhingga? | Q35: tak terhingga?
F36: 20 | I36: 15 | L36: 5 | O36: 5 | R36: 5 | U36: 5 | X36: 5 | AA36: 10 | AB36: =SUM(E36:AA36) -> 70
E38: ROE | F38: SKOR | H38: ROE | I38: SKOR | K38: ROE | L38: SKOR | N38: ROE | O38: SKOR | Q38: ROE | R38: SKOR | T38: ROE | U38: SKOR | W38: ROE | X38: SKOR | Z38: ROE | AA38: SKOR
E39: 0.17 | F39: =VLOOKUP(E39,$E$22:$F$32,2,1) -> 18 | H39: 0.1 | I39: =VLOOKUP(H39,H22:I34,2,1) -> 7.5 | K39: 0.1 | L39: =VLOOKUP(K39,K22:L33,2,1) -> 2 | N39: 0.1 | O39: =VLOOKUP(N39,N22:O33,2,1) -> 0 | Q39: 300 | R39: =VLOOKUP(Q39,Q22:R33,2,1) -> 0.6 | T39: 400 | U39: =VLOOKUP(T39,T22:U33,2,1) -> 0 | W39: 0.05 | X39: =VLOOKUP(W39,W22:X30,2,1) -> 1.5 | Z39: 0.05 | AA39: =VLOOKUP(Z39,Z22:AA31,2,1) -> 4

Sheet Jurnal
D1: =IF(D2=0,"Balance","Tidak Balance, Cek Jurnal") -> Balance | E1: =CELL("contents") -> 0
D2: =SUM(F:F)-SUM(G:G) -> 0
B3: =IF(Home!C6="","",Home!C6) -> MADUSUKO MAKMUR
B4: =IF(Home!C8="","",Home!C8) -> SIMPAN PINJAM
B6: BUKU JURNAL
B8: Tanggal | C8: Nomor Bukti | D8: Kode dan Nama Akun | E8: Post Ref | F8: SISI KIRI (Debit) | G8: SISI KANAN (Kredit) | H8: Keterangan Transaksi | I8: Komponen Laporan Arus Kas | J8: Buku Pembantu | K8: Jumlah Unit (khusus BP Persediaan) | L8: Bulan | M8: Level 4 | N8: Level 3 | O8: Jumlah | P8: Reff Arus Kas | Q8: Reff Buku Pembantu | S8: Catatan: kolom dengan huruf berwarna merah adalah rumus, kalau ada yang terhapus tinggal dicopy pastekan saja dari baris atasnya
L9: =IF(B9="","",MONTH(B9)) ->  | M9: =LEFT(D9,9) ->  | N9: =LEFT(D9,6) ->  | O9: =IFERROR(IF(VLOOKUP(D9,saldonormal,2,0)="Debit",F9-G9,G9-F9),0) -> 0 | P9: =IF(SUMPRODUCT((I9=aruskas)*1)>0,I9,"aruskas") -> aruskas | Q9: =IF(SUMPRODUCT((J9=bukupembantu)*1)>0,J9,"bukupembantu") -> bukupembantu
B10: 01/01/2023 | C10: 01/01/ATK/2023 | D10: 1.1.01.01 Kas Tunai | F10: 3000000 | H10: Penyertaan Modal | I10: Penerimaan kas dari penjualan barang dagangan | L10: =IF(B10="","",MONTH(B10)) -> 1 | M10: =LEFT(D10,9) -> 1.1.01.01 | N10: =LEFT(D10,6) -> 1.1.01 | O10: 3000000 | P10: aruskas | Q10: bukupembantu
B11: 01/01/2023 | C11: 01/01/ATK/2023 | D11: 3.1.01.01 Penyertaan Modal Desa | G11: 3000000 | H11: Penyertaan Modal | L11: =IF(B11="","",MONTH(B11)) -> 1 | M11: 3.1.01.01 | N11: 3.1.01 | O11: =IFERROR(IF(VLOOKUP(D11,saldonormal,2,0)="Debit",F11-G11,G11-F11),0) -> 3000000 | P11: aruskas | Q11: bukupembantu
L12: =IF(B12="","",MONTH(B12)) ->  | N12: =LEFT(D12,6) ->  | O12: =IFERROR(IF(VLOOKUP(D12,saldonormal,2,0)="Debit",F12-G12,G12-F12),0) -> 0 | P12: aruskas | Q12: bukupembantu
O13: 0 | P13: aruskas | Q13: bukupembantu
O14: 0 | P14: aruskas | Q14: bukupembantu
O15: 0 | P15: aruskas | Q15: bukupembantu
O16: 0 | P16: aruskas | Q16: bukupembantu
O17: 0 | P17: aruskas | Q17: bukupembantu
O18: 0 | P18: aruskas | Q18: bukupembantu
O19: 0 | P19: aruskas | Q19: bukupembantu
O20: 0 | P20: aruskas | Q20: bukupembantu
O21: 0 | P21: aruskas | Q21: bukupembantu
O22: 0 | P22: aruskas | Q22: bukupembantu
O23: 0 | P23: aruskas | Q23: bukupembantu
O24: 0 | P24: aruskas | Q24: bukupembantu
O25: 0 | P25: aruskas | Q25: bukupembantu
O26: 0 | P26: aruskas | Q26: bukupembantu
O27: 0 | P27: aruskas | Q27: bukupembantu
O28: 0 | P28: aruskas | Q28: bukupembantu
O29: 0 | P29: aruskas | Q29: bukupembantu
O30: 0 | P30: aruskas | Q30: bukupembantu
O31: 0 | P31: aruskas | Q31: bukupembantu
O32: 0 | P32: aruskas | Q32: bukupembantu
O33: 0 | P33: aruskas | Q33: bukupembantu
O34: 0 | P34: aruskas | Q34: bukupembantu
O35: 0 | P35: aruskas | Q35: bukupembantu
O36: 0 | P36: aruskas | Q36: bukupembantu
O37: 0 | P37: aruskas | Q37: bukupembantu
O38: 0 | P38: aruskas | Q38: bukupembantu
O39: 0 | P39: aruskas | Q39: bukupembantu
O40: 0 | P40: aruskas | Q40: bukupembantu
O41: 0 | P41: aruskas | Q41: bukupembantu
O42: 0 | P42: aruskas | Q42: bukupembantu
O43: 0 | P43: aruskas | Q43: bukupembantu
O44: 0 | P44: aruskas | Q44: bukupembantu
O45: 0 | P45: aruskas | Q45: bukupembantu
O46: 0 | P46: aruskas | Q46: bukupembantu
O47: 0 | P47: aruskas | Q47: bukupembantu
O48: 0 | P48: aruskas | Q48: bukupembantu
O49: 0 | P49: aruskas | Q49: bukupembantu
O50: 0 | P50: aruskas | Q50: bukupembantu
O51: 0 | P51: aruskas | Q51: bukupembantu
O52: 0 | P52: aruskas | Q52: bukupembantu
O53: 0 | P53: aruskas | Q53: bukupembantu
O54: 0 | P54: aruskas | Q54: bukupembantu
O55: 0 | P55: aruskas | Q55: bukupembantu
O56: 0 | P56: aruskas | Q56: bukupembantu
O57: 0 | P57: aruskas | Q57: bukupembantu
O58: 0 | P58: aruskas | Q58: bukupembantu
O59: 0 | P59: aruskas | Q59: bukupembantu
O60: 0 | P60: aruskas | Q60: bukupembantu
O61: 0 | P61: aruskas | Q61: bukupembantu
O62: 0 | P62: aruskas | Q62: bukupembantu
O63: 0 | P63: aruskas | Q63: bukupembantu
O64: 0 | P64: aruskas | Q64: bukupembantu
O65: 0 | P65: aruskas | Q65: bukupembantu
O66: 0 | P66: aruskas | Q66: bukupembantu
O67: 0 | P67: aruskas | Q67: bukupembantu
O68: 0 | P68: aruskas | Q68: bukupembantu
O69: 0 | P69: aruskas | Q69: bukupembantu
O70: 0 | P70: aruskas | Q70: bukupembantu
O71: 0 | P71: aruskas | Q71: bukupembantu
O72: 0 | P72: =IF(SUMPRODUCT((I72=aruskas)*1)>0,I72,"aruskas") -> aruskas | Q72: =IF(SUMPRODUCT((J72=bukupembantu)*1)>0,J72,"bukupembantu") -> bukupembantu
M73: =LEFT(D73,9) ->  | O73: 0 | P73: aruskas | Q73: bukupembantu
O74: 0 | P74: aruskas | Q74: bukupembantu
O75: 0 | P75: aruskas | Q75: bukupembantu
L76: =IF(B76="","",MONTH(B76)) ->  | N76: =LEFT(D76,6) ->  | O76: =IFERROR(IF(VLOOKUP(D76,saldonormal,2,0)="Debit",F76-G76,G76-F76),0) -> 0 | P76: aruskas | Q76: bukupembantu
O77: 0 | P77: aruskas | Q77: bukupembantu
O78: 0 | P78: aruskas | Q78: bukupembantu
O79: 0 | P79: aruskas | Q79: bukupembantu
O80: 0 | P80: aruskas | Q80: bukupembantu
O81: 0 | P81: aruskas | Q81: bukupembantu
O82: 0 | P82: aruskas | Q82: bukupembantu
L83: =IF(B83="","",MONTH(B83)) ->  | O83: 0 | P83: aruskas | Q83: bukupembantu
O84: 0 | P84: aruskas | Q84: bukupembantu
O85: 0 | P85: aruskas | Q85: bukupembantu
O86: 0 | P86: aruskas | Q86: bukupembantu
O87: 0 | P87: aruskas | Q87: bukupembantu
O88: 0 | P88: aruskas | Q88: bukupembantu
O89: 0 | P89: aruskas | Q89: bukupembantu
O90: 0 | P90: aruskas | Q90: bukupembantu
O91: 0 | P91: aruskas | Q91: bukupembantu
O92: 0 | P92: aruskas | Q92: bukupembantu
O93: 0 | P93: aruskas | Q93: bukupembantu
O94: 0 | P94: aruskas | Q94: bukupembantu
O95: 0 | P95: aruskas | Q95: bukupembantu
O96: 0 | P96: aruskas | Q96: bukupembantu
O97: 0 | P97: aruskas | Q97: bukupembantu
O98: 0 | P98: aruskas | Q98: bukupembantu
O99: 0 | P99: aruskas | Q99: bukupembantu
O100: 0 | P100: aruskas | Q100: bukupembantu
O101: 0 | P101: aruskas | Q101: bukupembantu
O102: 0 | P102: aruskas | Q102: bukupembantu
O103: 0 | P103: aruskas | Q103: bukupembantu
O104: 0 | P104: aruskas | Q104: bukupembantu
O105: 0 | P105: aruskas | Q105: bukupembantu
O106: 0 | P106: aruskas | Q106: bukupembantu
O107: 0 | P107: aruskas | Q107: bukupembantu
O108: 0 | P108: aruskas | Q108: bukupembantu
O109: 0 | P109: aruskas | Q109: bukupembantu
O110: 0 | P110: aruskas | Q110: bukupembantu
O111: 0 | P111: aruskas | Q111: bukupembantu
O112: 0 | P112: aruskas | Q112: bukupembantu
O113: 0 | P113: aruskas | Q113: bukupembantu
O114: 0 | P114: aruskas | Q114: bukupembantu
O115: 0 | P115: aruskas | Q115: bukupembantu
O116: 0 | P116: aruskas | Q116: bukupembantu
O117: 0 | P117: aruskas | Q117: bukupembantu
O118: 0 | P118: aruskas | Q118: bukupembantu
O119: 0 | P119: aruskas | Q119: bukupembantu
O120: 0 | P120: aruskas | Q120: bukupembantu
O121: 0 | P121: aruskas | Q121: bukupembantu
O122: 0 | P122: aruskas | Q122: bukupembantu
O123: 0 | P123: aruskas | Q123: bukupembantu
O124: 0 | P124: aruskas | Q124: bukupembantu
O125: 0 | P125: aruskas | Q125: bukupembantu
O126: 0 | P126: aruskas | Q126: bukupembantu
O127: 0 | P127: aruskas | Q127: bukupembantu
O128: 0 | P128: aruskas | Q128: bukupembantu
O129: 0 | P129: aruskas | Q129: bukupembantu
O130: 0 | P130: aruskas | Q130: bukupembantu
O131: 0 | P131: aruskas | Q131: bukupembantu
O132: 0 | P132: aruskas | Q132: bukupembantu
O133: 0 | P133: aruskas | Q133: bukupembantu
O134: 0 | P134: aruskas | Q134: bukupembantu
O135: 0 | P135: aruskas | Q135: bukupembantu
O136: 0 | P136: =IF(SUMPRODUCT((I136=aruskas)*1)>0,I136,"aruskas") -> aruskas | Q136: =IF(SUMPRODUCT((J136=bukupembantu)*1)>0,J136,"bukupembantu") -> bukupembantu
M137: =LEFT(D137,9) ->  | O137: 0 | P137: aruskas | Q137: bukupembantu
O138: 0 | P138: aruskas | Q138: bukupembantu
O139: 0 | P139: aruskas | Q139: bukupembantu
L140: =IF(B140="","",MONTH(B140)) ->  | N140: =LEFT(D140,6) ->  | O140: =IFERROR(IF(VLOOKUP(D140,saldonormal,2,0)="Debit",F140-G140,G140-F140),0) -> 0 | P140: aruskas | Q140: bukupembantu
O141: 0 | P141: aruskas | Q141: bukupembantu
O142: 0 | P142: aruskas | Q142: bukupembantu
O143: 0 | P143: aruskas | Q143: bukupembantu
O144: 0 | P144: aruskas | Q144: bukupembantu
O145: 0 | P145: aruskas | Q145: bukupembantu
O146: 0 | P146: aruskas | Q146: bukupembantu
O147: 0 | P147: aruskas | Q147: bukupembantu
O148: 0 | P148: aruskas | Q148: bukupembantu
O149: 0 | P149: aruskas | Q149: bukupembantu
O150: 0 | P150: aruskas | Q150: bukupembantu
O151: 0 | P151: aruskas | Q151: bukupembantu
O152: 0 | P152: aruskas | Q152: bukupembantu
O153: 0 | P153: aruskas | Q153: bukupembantu
O154: 0 | P154: aruskas | Q154: bukupembantu
O155: 0 | P155: aruskas | Q155: bukupembantu
O156: 0 | P156: aruskas | Q156: bukupembantu
O157: 0 | P157: aruskas | Q157: bukupembantu
O158: 0 | P158: aruskas | Q158: bukupembantu
O159: 0 | P159: aruskas | Q159: bukupembantu
O160: 0 | P160: aruskas | Q160: bukupembantu
O161: 0 | P161: aruskas | Q161: bukupembantu
O162: 0 | P162: aruskas | Q162: bukupembantu
O163: 0 | P163: aruskas | Q163: bukupembantu
O164: 0 | P164: aruskas | Q164: bukupembantu
O165: 0 | P165: aruskas | Q165: bukupembantu
O166: 0 | P166: aruskas | Q166: bukupembantu
O167: 0 | P167: aruskas | Q167: bukupembantu
O168: 0 | P168: aruskas | Q168: bukupembantu
O169: 0 | P169: aruskas | Q169: bukupembantu
O170: 0 | P170: aruskas | Q170: bukupembantu
O171: 0 | P171: aruskas | Q171: bukupembantu
O172: 0 | P172: aruskas | Q172: bukupembantu
O173: 0 | P173: aruskas | Q173: bukupembantu
O174: 0 | P174: aruskas | Q174: bukupembantu
O175: 0 | P175: aruskas | Q175: bukupembantu
O176: 0 | P176: aruskas | Q176: bukupembantu
O177: 0 | P177: aruskas | Q177: bukupembantu
O178: 0 | P178: aruskas | Q178: bukupembantu
O179: 0 | P179: aruskas | Q179: bukupembantu
O180: 0 | P180: aruskas | Q180: bukupembantu
O181: 0 | P181: aruskas | Q181: bukupembantu
O182: 0 | P182: aruskas | Q182: bukupembantu
O183: 0 | P183: aruskas | Q183: bukupembantu
O184: 0 | P184: aruskas | Q184: bukupembantu
O185: 0 | P185: aruskas | Q185: bukupembantu
O186: 0 | P186: aruskas | Q186: bukupembantu
O187: 0 | P187: aruskas | Q187: bukupembantu
O188: 0 | P188: aruskas | Q188: bukupembantu
O189: 0 | P189: aruskas | Q189: bukupembantu
O190: 0 | P190: aruskas | Q190: bukupembantu
O191: 0 | P191: aruskas | Q191: bukupembantu
O192: 0 | P192: aruskas | Q192: bukupembantu
O193: 0 | P193: aruskas | Q193: bukupembantu
O194: 0 | P194: aruskas | Q194: bukupembantu
O195: 0 | P195: aruskas | Q195: bukupembantu
O196: 0 | P196: aruskas | Q196: bukupembantu
O197: 0 | P197: aruskas | Q197: bukupembantu
O198: 0 | P198: aruskas | Q198: bukupembantu
O199: 0 | P199: aruskas | Q199: bukupembantu
O200: 0 | P200: =IF(SUMPRODUCT((I200=aruskas)*1)>0,I200,"aruskas") -> aruskas | Q200: =IF(SUMPRODUCT((J200=bukupembantu)*1)>0,J200,"bukupembantu") -> bukupembantu
M201: =LEFT(D201,9) ->  | O201: 0 | P201: aruskas | Q201: bukupembantu
O202: 0 | P202: aruskas | Q202: bukupembantu
... 4298 more rows

Sheet Kunci Jurnal (hidden)
A1: Tanggal | B1: Nomor Bukti | C1: Kode dan Nama Akun | D1: Post Ref | E1: SISI KIRI (Debit) | F1: SISI KANAN (Kredit) | G1: Keterangan Transaksi | H1: Komponen Laporan Arus Kas | I1: Buku Pembantu | J1: Jumlah Unit (khusus BP Persediaan)
A2: 2023-01-01 | B2: 001/01/UWA/2023 | C2: 1.1.01.01 Kas Tunai | E2: 20000000 | G2: Saldo Awal
A3: 2023-01-01 | B3: 001/01/UWA/2023 | C3: 1.1.01.02 Kas di Bank BSI | E3: 70000000 | G3: Saldo Awal
A4: 2023-01-01 | B4: 001/01/UWA/2023 | C4: 1.1.06.01 Alat Tulis Kantor (ATK) | E4: 5000000 | G4: Saldo Awal
A5: 2023-01-01 | B5: 001/01/UWA/2023 | C5: 1.3.03.01 Peralatan dan Mesin | E5: 25000000 | G5: Saldo Awal
A6: 2023-01-01 | B6: 001/01/UWA/2023 | C6: 1.3.07.02 Akumulasi Penyusutan Peralatan dan Mesin | F6: 1800000 | G6: Saldo Awal
A7: 2023-01-01 | B7: 001/01/UWA/2023 | C7: 3.1.01.01 Penyertaan Modal Desa | F7: 78200000 | G7: Saldo Awal
A8: 2023-01-01 | B8: 001/01/UWA/2023 | C8: 3.1.02.01 Penyertaan Modal Masyarakat | F8: 30000000 | G8: Saldo Awal
A9: 2023-01-01 | B9: 001/01/UWA/2023 | C9: 3.3.01.01 Saldo Laba Tidak Dicadangkan | F9: 10000000 | G9: Saldo Awal
A11: 2023-01-02 | B11: 001/01/UWA/2023 | C11: 1.1.01.01 Kas Tunai | E11: 70000000 | G11: Menerima pendapatan tiket dan parkir mobil | H11: Penerimaan kas dari penjualan jasa
A12: 2023-01-02 | B12: 001/01/UWA/2023 | C12: 4.1.01.01 Pendapatan Tiket | F12: 50000000 | G12: Menerima pendapatan tiket dan parkir mobil
A13: 2023-01-02 | B13: 001/01/UWA/2023 | C13: 4.1.07.01 Pendapatan Parkir Mobil | F13: 20000000 | G13: Menerima pendapatan tiket dan parkir mobil
A15: 2023-01-03 | B15: 002/01/UWA/2023 | C15: 1.1.01.02 Kas di Bank BSI | E15: 70000000 | G15: Menyetorkan pendapatan tiket dan parkir mobil
A16: 2023-01-03 | B16: 002/01/UWA/2023 | C16: 1.1.01.01 Kas Tunai | F16: 70000000 | G16: Menyetorkan pendapatan tiket dan parkir mobil
A18: 2023-03-03 | B18: 001/03/UWA/2023 | C18: 6.1.02.01 Beban Alat Tulis Kantor (ATK) | E18: 3000000 | G18: Membeli ATK
A19: 2023-03-03 | B19: 001/03/UWA/2023 | C19: 1.1.01.02 Kas di Bank BSI | F19: 3000000 | G19: Membeli ATK | H19: Pengeluaran kas untuk pembayaran beban-beban yang lain
A21: 2023-04-04 | B21: 001/04/UWA/2023 | C21: 1.3.02.01 Kendaraan | E21: 15000000 | G21: Membeli motor
A22: 2023-04-04 | B22: 001/04/UWA/2023 | C22: 2.1.01.01 Utang Usaha | F22: 15000000 | G22: Membeli motor | I22: Toko Baik Hati
A24: 2023-07-07 | B24: 001/07/UWA/2023 | C24: 1.1.01.01 Kas Tunai | E24: 5000000 | G24: Menerima pendapatan banana boat | H24: Penerimaan kas dari penjualan jasa
A25: 2023-07-07 | B25: 001/07/UWA/2023 | C25: 4.1.01.02 Pendapatan Wahana | F25: 5000000 | G25: Menerima pendapatan banana boat
A27: 2023-07-07 | B27: 002/07/UWA/2023 | C27: 1.1.01.02 Kas di Bank BSI | E27: 5000000 | G27: Menyetorkan pendapatan ke Bank BSI
A28: 2023-07-07 | B28: 002/07/UWA/2023 | C28: 1.1.01.01 Kas Tunai | F28: 5000000 | G28: Menyetorkan pendapatan ke Bank BSI
A30: 2023-08-05 | B30: 001/08/UWA/2023 | C30: 1.1.03.01 Piutang Usaha | E30: 3000000 | G30: Mencatat pendapatan sewa mobil secara piutang | I30: Tuan Upin
A31: 2023-08-05 | B31: 001/08/UWA/2023 | C31: 4.1.04.04 Pendapatan Sewa Mobil | F31: 3000000 | G31: Mencatat pendapatan sewa mobil secara piutang
A33: 2023-09-10 | B33: 001/09/UWA/2023 | C33: 1.1.01.02 Kas di Bank BSI | E33: 3000000 | G33: Menerima kas atas piutang pendapatan sewa mobil | H33: Penerimaan kas dari penjualan jasa
A34: 2023-09-10 | B34: 001/09/UWA/2023 | C34: 1.1.03.01 Piutang Usaha | F34: 3000000 | G34: Menerima kas atas piutang pendapatan sewa mobil | I34: Tuan Upin
A36: 2023-09-11 | B36: 002/09/UWA/2023 | C36: 6.1.01.01 Beban Gaji dan Tunjangan Bag. Adum | E36: 4500000 | G36: Membayar beban gaji
A37: 2023-09-11 | B37: 002/09/UWA/2023 | C37: 1.1.01.02 Kas di Bank BSI | F37: 4500000 | G37: Membayar beban gaji | H37: Pengeluaran kas untuk pembayaran gaji/upah pegawai/karyawan
A39: 2023-10-05 | B39: 001/10/UWA/2023 | C39: 1.1.05.01 Persediaan Barang Dagangan | E39: 2850000 | G39: Membeli barang dagangan bensin | I39: Bensin | J39: 300
A40: 2023-10-05 | B40: 001/10/UWA/2023 | C40: 1.1.01.02 Kas di Bank BSI | F40: 2850000 | G40: Membeli barang dagangan bensin | H40: Pengeluaran kas untuk pembayaran ke pemasok barang
A42: 2023-10-07 | B42: 002/10/UWA/2023 | C42: 1.1.01.01 Kas Tunai | E42: 1000000 | G42: Menerima pendapatan penjualan bensin | H42: Penerimaan kas dari penjualan barang dagangan
A43: 2023-10-07 | B43: 002/10/UWA/2023 | C43: 4.2.01.06 Pendapatan Penjualan Bensin | F43: 1000000 | G43: Menerima pendapatan penjualan bensin
A45: 2023-10-07 | B45: 002/10/UWA/2023 | C45: 5.1.01.01 Harga Pokok Penjualan Barang Dagangan | E45: 950000 | G45: Mencatat harga pokok penjualan bensin
A46: 2023-10-07 | B46: 002/10/UWA/2023 | C46: 1.1.05.01 Persediaan Barang Dagangan | F46: 950000 | G46: Mencatat harga pokok penjualan bensin | I46: Bensin | J46: -100
A48: 2023-10-09 | B48: 003/10/UWA/2023 | C48: 2.1.01.01 Utang Usaha | E48: 15000000 | G48: Membayar utang usaha | I48: Toko Baik Hati
A49: 2023-10-09 | B49: 003/10/UWA/2023 | C49: 1.1.01.02 Kas di Bank BSI | F49: 15000000 | G49: Membayar utang usaha | H49: Pengeluaran Kas untuk Pembelian Aset Tetap
A51: 2023-11-07 | B51: 001/11/UWA/2023 | C51: 6.1.04.01 Beban Listrik | E51: 1500000 | G51: Membayar beban listrik
A52: 2023-11-07 | B52: 001/11/UWA/2023 | C52: 1.1.01.02 Kas di Bank BSI | F52: 1500000 | G52: Membayar beban listrik | H52: Pengeluaran kas untuk pembayaran beban-beban yang lain
A54: 2023-12-08 | B54: 001/12/UWA/2023 | C54: 6.1.04.02 Beban Telepon/Internet | E54: 1750000 | G54: Membayar beban telepon dan internet
A55: 2023-12-08 | B55: 001/12/UWA/2023 | C55: 1.1.01.02 Kas di Bank BSI | F55: 1750000 | G55: Membayar beban telepon dan internet | H55: Pengeluaran kas untuk pembayaran beban-beban yang lain
A57: 2023-12-15 | B57: 002/12/UWA/2023 | C57: 1.1.01.02 Kas di Bank BSI | E57: 25000000 | G57: Menerima donasi/sumbangan | H57: Penerimaan kas dari Donasi/Sumbangan
A58: 2023-12-15 | B58: 002/12/UWA/2023 | C58: 3.4.01.01 Modal Donasi/Sumbangan | F58: 25000000 | G58: Menerima donasi/sumbangan
A60: 2023-12-31 | B60: 003/12/UWA/2023 | C60: 6.1.07.03 Beban Penyusutan Peralatan dan Mesin | E60: 3500000 | G60: Jurnal penyusutan aset tetap
A61: 2023-12-31 | B61: 003/12/UWA/2023 | C61: 1.3.07.02 Akumulasi Penyusutan Peralatan dan Mesin | F61: 3500000 | G61: Jurnal penyusutan aset tetap
A63: 2023-12-31 | B63: 003/12/UWA/2023 | C63: 6.1.07.02 Beban Penyusutan Kendaraan | E63: 1600000 | G63: Jurnal penyusutan aset tetap
A64: 2023-12-31 | B64: 003/12/UWA/2023 | C64: 1.3.07.01 Akumulasi Penyusutan Kendaraan | F64: 1600000 | G64: Jurnal penyusutan aset tetap
A66: 2023-12-31 | B66: 004/12/UWA/2023 | C66: 6.1.04.01 Beban Listrik | E66: 2000000 | G66: Beban Listrik terhutang
A67: 2023-12-31 | B67: 004/12/UWA/2023 | C67: 2.1.04.01 Utang Listrik | F67: 2000000 | G67: Beban Listrik terhutang
A69: 2023-12-31 | B69: 005/12/UWA/2023 | C69: 3.2.01.01 Bagi Hasil Penyertaan Modal Desa | E69: 24080000 | G69: Bagi hasil ke desa
A70: 2023-12-31 | B70: 005/12/UWA/2023 | C70: 1.1.01.02 Kas di Bank BSI | F70: 24080000 | G70: Bagi hasil ke desa | H70: Pembayaran bagi hasil penyertaan modal desa
A72: 2023-12-31 | B72: 005/12/UWA/2023 | C72: 3.2.02.01 Bagi Hasil Penyertaan Modal Masyarakat | E72: 18060000 | G72: Bagi hasil ke masyarakat
A73: 2023-12-31 | B73: 005/12/UWA/2023 | C73: 1.1.01.02 Kas di Bank BSI | F73: 18060000 | G73: Bagi hasil ke masyarakat | H73: Pembayaran bagi hasil penyertaan modal masyarakat

Sheet Buku Besar
A1: aph | J1: =VLOOKUP(J2,daftarakun,4,0) -> Debit
A2: andy p hamzah | F2: Silakan pilih akun yang akan ditampilkan! | J2: 15 | K2: =VLOOKUP(J2,daftarakun,3,0) -> 1.1.03.02 Piutang kepada Pegawai
B3: =IF(Home!C6="","",Home!C6) -> MADUSUKO MAKMUR
B4: =IF(Home!C8="","",Home!C8) -> SIMPAN PINJAM
B5: BUKU BESAR
D7: KODE AKUN | E7: : | F7: =LEFT(K2,8) -> 1.1.03.0
D8: NAMA AKUN | E8: : | F8: =MID(K2,10,50) -> Piutang kepada Pegawai
D9: PAGU PERUBAHAN APBD | E9: : | F9: =VLOOKUP(K2,dataakun,4) -> 
B12: Tanggal | C12: No Bukti | D12: Transaksi | E12: Ref | F12: Debit | G12: Kredit | H12: Saldo
B13: =IF(D13="","",Jurnal!B9) ->  | C13: =IF(D13="","",Jurnal!C9) ->  | D13: =IF(Jurnal!D9='Buku Besar'!$K$2,Jurnal!H9,"") ->  | F13: =IF(D13="",0,Jurnal!F9) -> 0 | G13: =IF(D13="",0,Jurnal!G9) -> 0 | H13: =IF($J$1="Debit",F13-G13,G13-F13) -> 0
B14: =IF(D14="","",Jurnal!B10) ->  | C14: =IF(D14="","",Jurnal!C10) ->  | D14: =IF(Jurnal!D10='Buku Besar'!$K$2,Jurnal!H10,"") ->  | F14: =IF(D14="",0,Jurnal!F10) -> 0 | G14: =IF(D14="",0,Jurnal!G10) -> 0 | H14: =IF($J$1="Debit",H13+F14-G14,H13+G14-F14) -> 0
B15: =IF(D15="","",Jurnal!#REF!) ->  | C15: =IF(D15="","",Jurnal!#REF!) ->  | D15: =IF(Jurnal!#REF!='Buku Besar'!$K$2,Jurnal!#REF!,"") ->  | F15: =IF(D15="",0,Jurnal!#REF!) ->  | G15: =IF(D15="",0,Jurnal!#REF!) ->  | H15: =IF($J$1="Debit",H14+F15-G15,H14+G15-F15) -> 
B16: =IF(D16="","",Jurnal!B11) ->  | C16: =IF(D16="","",Jurnal!C11) ->  | D16: =IF(Jurnal!D11='Buku Besar'!$K$2,Jurnal!H11,"") ->  | F16: =IF(D16="",0,Jurnal!F11) -> 0 | G16: =IF(D16="",0,Jurnal!G11) -> 0
B17: =IF(D17="","",Jurnal!B12) ->  | C17: =IF(D17="","",Jurnal!C12) ->  | D17: =IF(Jurnal!D12='Buku Besar'!$K$2,Jurnal!H12,"") ->  | F17: =IF(D17="",0,Jurnal!F12) -> 0 | G17: =IF(D17="",0,Jurnal!G12) -> 0
B18: =IF(D18="","",Jurnal!B13) ->  | C18: =IF(D18="","",Jurnal!C13) ->  | D18: =IF(Jurnal!D13='Buku Besar'!$K$2,Jurnal!H13,"") ->  | F18: =IF(D18="",0,Jurnal!F13) -> 0 | G18: =IF(D18="",0,Jurnal!G13) -> 0
B19: =IF(D19="","",Jurnal!B14) ->  | C19: =IF(D19="","",Jurnal!C14) ->  | D19: =IF(Jurnal!D14='Buku Besar'!$K$2,Jurnal!H14,"") ->  | F19: =IF(D19="",0,Jurnal!F14) -> 0 | G19: =IF(D19="",0,Jurnal!G14) -> 0
B20: =IF(D20="","",Jurnal!B15) ->  | C20: =IF(D20="","",Jurnal!C15) ->  | D20: =IF(Jurnal!D15='Buku Besar'!$K$2,Jurnal!H15,"") ->  | F20: =IF(D20="",0,Jurnal!F15) -> 0 | G20: =IF(D20="",0,Jurnal!G15) -> 0
B21: =IF(D21="","",Jurnal!B16) ->  | C21: =IF(D21="","",Jurnal!C16) ->  | D21: =IF(Jurnal!D16='Buku Besar'!$K$2,Jurnal!H16,"") ->  | F21: =IF(D21="",0,Jurnal!F16) -> 0 | G21: =IF(D21="",0,Jurnal!G16) -> 0
B22: =IF(D22="","",Jurnal!B17) ->  | C22: =IF(D22="","",Jurnal!C17) ->  | D22: =IF(Jurnal!D17='Buku Besar'!$K$2,Jurnal!H17,"") ->  | F22: =IF(D22="",0,Jurnal!F17) -> 0 | G22: =IF(D22="",0,Jurnal!G17) -> 0
B23: =IF(D23="","",Jurnal!B18) ->  | C23: =IF(D23="","",Jurnal!C18) ->  | D23: =IF(Jurnal!D18='Buku Besar'!$K$2,Jurnal!H18,"") ->  | F23: =IF(D23="",0,Jurnal!F18) -> 0 | G23: =IF(D23="",0,Jurnal!G18) -> 0
B24: =IF(D24="","",Jurnal!B19) ->  | C24: =IF(D24="","",Jurnal!C19) ->  | D24: =IF(Jurnal!D19='Buku Besar'!$K$2,Jurnal!H19,"") ->  | F24: =IF(D24="",0,Jurnal!F19) -> 0 | G24: =IF(D24="",0,Jurnal!G19) -> 0
B25: =IF(D25="","",Jurnal!B20) ->  | C25: =IF(D25="","",Jurnal!C20) ->  | D25: =IF(Jurnal!D20='Buku Besar'!$K$2,Jurnal!H20,"") ->  | F25: =IF(D25="",0,Jurnal!F20) -> 0 | G25: =IF(D25="",0,Jurnal!G20) -> 0
B26: =IF(D26="","",Jurnal!B21) ->  | C26: =IF(D26="","",Jurnal!C21) ->  | D26: =IF(Jurnal!D21='Buku Besar'!$K$2,Jurnal!H21,"") ->  | F26: =IF(D26="",0,Jurnal!F21) -> 0 | G26: =IF(D26="",0,Jurnal!G21) -> 0
B27: =IF(D27="","",Jurnal!B22) ->  | C27: =IF(D27="","",Jurnal!C22) ->  | D27: =IF(Jurnal!D22='Buku Besar'!$K$2,Jurnal!H22,"") ->  | F27: =IF(D27="",0,Jurnal!F22) -> 0 | G27: =IF(D27="",0,Jurnal!G22) -> 0
B28: =IF(D28="","",Jurnal!B23) ->  | C28: =IF(D28="","",Jurnal!C23) ->  | D28: =IF(Jurnal!D23='Buku Besar'!$K$2,Jurnal!H23,"") ->  | F28: =IF(D28="",0,Jurnal!F23) -> 0 | G28: =IF(D28="",0,Jurnal!G23) -> 0
B29: =IF(D29="","",Jurnal!B24) ->  | C29: =IF(D29="","",Jurnal!C24) ->  | D29: =IF(Jurnal!D24='Buku Besar'!$K$2,Jurnal!H24,"") ->  | F29: =IF(D29="",0,Jurnal!F24) -> 0 | G29: =IF(D29="",0,Jurnal!G24) -> 0
B30: =IF(D30="","",Jurnal!B25) ->  | C30: =IF(D30="","",Jurnal!C25) ->  | D30: =IF(Jurnal!D25='Buku Besar'!$K$2,Jurnal!H25,"") ->  | F30: =IF(D30="",0,Jurnal!F25) -> 0 | G30: =IF(D30="",0,Jurnal!G25) -> 0
B31: =IF(D31="","",Jurnal!B26) ->  | C31: =IF(D31="","",Jurnal!C26) ->  | D31: =IF(Jurnal!D26='Buku Besar'!$K$2,Jurnal!H26,"") ->  | F31: =IF(D31="",0,Jurnal!F26) -> 0 | G31: =IF(D31="",0,Jurnal!G26) -> 0
B32: =IF(D32="","",Jurnal!B27) ->  | C32: =IF(D32="","",Jurnal!C27) ->  | D32: =IF(Jurnal!D27='Buku Besar'!$K$2,Jurnal!H27,"") ->  | F32: =IF(D32="",0,Jurnal!F27) -> 0 | G32: =IF(D32="",0,Jurnal!G27) -> 0
B33: =IF(D33="","",Jurnal!B28) ->  | C33: =IF(D33="","",Jurnal!C28) ->  | D33: =IF(Jurnal!D28='Buku Besar'!$K$2,Jurnal!H28,"") ->  | F33: =IF(D33="",0,Jurnal!F28) -> 0 | G33: =IF(D33="",0,Jurnal!G28) -> 0
B34: =IF(D34="","",Jurnal!B29) ->  | C34: =IF(D34="","",Jurnal!C29) ->  | D34: =IF(Jurnal!D29='Buku Besar'!$K$2,Jurnal!H29,"") ->  | F34: =IF(D34="",0,Jurnal!F29) -> 0 | G34: =IF(D34="",0,Jurnal!G29) -> 0
B35: =IF(D35="","",Jurnal!B30) ->  | C35: =IF(D35="","",Jurnal!C30) ->  | D35: =IF(Jurnal!D30='Buku Besar'!$K$2,Jurnal!H30,"") ->  | F35: =IF(D35="",0,Jurnal!F30) -> 0 | G35: =IF(D35="",0,Jurnal!G30) -> 0
B36: =IF(D36="","",Jurnal!B31) ->  | C36: =IF(D36="","",Jurnal!C31) ->  | D36: =IF(Jurnal!D31='Buku Besar'!$K$2,Jurnal!H31,"") ->  | F36: =IF(D36="",0,Jurnal!F31) -> 0 | G36: =IF(D36="",0,Jurnal!G31) -> 0
B37: =IF(D37="","",Jurnal!B32) ->  | C37: =IF(D37="","",Jurnal!C32) ->  | D37: =IF(Jurnal!D32='Buku Besar'!$K$2,Jurnal!H32,"") ->  | F37: =IF(D37="",0,Jurnal!F32) -> 0 | G37: =IF(D37="",0,Jurnal!G32) -> 0
B38: =IF(D38="","",Jurnal!B33) ->  | C38: =IF(D38="","",Jurnal!C33) ->  | D38: =IF(Jurnal!D33='Buku Besar'!$K$2,Jurnal!H33,"") ->  | F38: =IF(D38="",0,Jurnal!F33) -> 0 | G38: =IF(D38="",0,Jurnal!G33) -> 0
B39: =IF(D39="","",Jurnal!B34) ->  | C39: =IF(D39="","",Jurnal!C34) ->  | D39: =IF(Jurnal!D34='Buku Besar'!$K$2,Jurnal!H34,"") ->  | F39: =IF(D39="",0,Jurnal!F34) -> 0 | G39: =IF(D39="",0,Jurnal!G34) -> 0
B40: =IF(D40="","",Jurnal!B35) ->  | C40: =IF(D40="","",Jurnal!C35) ->  | D40: =IF(Jurnal!D35='Buku Besar'!$K$2,Jurnal!H35,"") ->  | F40: =IF(D40="",0,Jurnal!F35) -> 0 | G40: =IF(D40="",0,Jurnal!G35) -> 0
B41: =IF(D41="","",Jurnal!B36) ->  | C41: =IF(D41="","",Jurnal!C36) ->  | D41: =IF(Jurnal!D36='Buku Besar'!$K$2,Jurnal!H36,"") ->  | F41: =IF(D41="",0,Jurnal!F36) -> 0 | G41: =IF(D41="",0,Jurnal!G36) -> 0
B42: =IF(D42="","",Jurnal!B37) ->  | C42: =IF(D42="","",Jurnal!C37) ->  | D42: =IF(Jurnal!D37='Buku Besar'!$K$2,Jurnal!H37,"") ->  | F42: =IF(D42="",0,Jurnal!F37) -> 0 | G42: =IF(D42="",0,Jurnal!G37) -> 0
B43: =IF(D43="","",Jurnal!B38) ->  | C43: =IF(D43="","",Jurnal!C38) ->  | D43: =IF(Jurnal!D38='Buku Besar'!$K$2,Jurnal!H38,"") ->  | F43: =IF(D43="",0,Jurnal!F38) -> 0 | G43: =IF(D43="",0,Jurnal!G38) -> 0
B44: =IF(D44="","",Jurnal!B39) ->  | C44: =IF(D44="","",Jurnal!C39) ->  | D44: =IF(Jurnal!D39='Buku Besar'!$K$2,Jurnal!H39,"") ->  | F44: =IF(D44="",0,Jurnal!F39) -> 0 | G44: =IF(D44="",0,Jurnal!G39) -> 0
B45: =IF(D45="","",Jurnal!B40) ->  | C45: =IF(D45="","",Jurnal!C40) ->  | D45: =IF(Jurnal!D40='Buku Besar'!$K$2,Jurnal!H40,"") ->  | F45: =IF(D45="",0,Jurnal!F40) -> 0 | G45: =IF(D45="",0,Jurnal!G40) -> 0
B46: =IF(D46="","",Jurnal!B41) ->  | C46: =IF(D46="","",Jurnal!C41) ->  | D46: =IF(Jurnal!D41='Buku Besar'!$K$2,Jurnal!H41,"") ->  | F46: =IF(D46="",0,Jurnal!F41) -> 0 | G46: =IF(D46="",0,Jurnal!G41) -> 0
B47: =IF(D47="","",Jurnal!B42) ->  | C47: =IF(D47="","",Jurnal!C42) ->  | D47: =IF(Jurnal!D42='Buku Besar'!$K$2,Jurnal!H42,"") ->  | F47: =IF(D47="",0,Jurnal!F42) -> 0 | G47: =IF(D47="",0,Jurnal!G42) -> 0
B48: =IF(D48="","",Jurnal!B43) ->  | C48: =IF(D48="","",Jurnal!C43) ->  | D48: =IF(Jurnal!D43='Buku Besar'!$K$2,Jurnal!H43,"") ->  | F48: =IF(D48="",0,Jurnal!F43) -> 0 | G48: =IF(D48="",0,Jurnal!G43) -> 0
B49: =IF(D49="","",Jurnal!B44) ->  | C49: =IF(D49="","",Jurnal!C44) ->  | D49: =IF(Jurnal!D44='Buku Besar'!$K$2,Jurnal!H44,"") ->  | F49: =IF(D49="",0,Jurnal!F44) -> 0 | G49: =IF(D49="",0,Jurnal!G44) -> 0
B50: =IF(D50="","",Jurnal!B45) ->  | C50: =IF(D50="","",Jurnal!C45) ->  | D50: =IF(Jurnal!D45='Buku Besar'!$K$2,Jurnal!H45,"") ->  | F50: =IF(D50="",0,Jurnal!F45) -> 0 | G50: =IF(D50="",0,Jurnal!G45) -> 0
B51: =IF(D51="","",Jurnal!B46) ->  | C51: =IF(D51="","",Jurnal!C46) ->  | D51: =IF(Jurnal!D46='Buku Besar'!$K$2,Jurnal!H46,"") ->  | F51: =IF(D51="",0,Jurnal!F46) -> 0 | G51: =IF(D51="",0,Jurnal!G46) -> 0
B52: =IF(D52="","",Jurnal!B47) ->  | C52: =IF(D52="","",Jurnal!C47) ->  | D52: =IF(Jurnal!D47='Buku Besar'!$K$2,Jurnal!H47,"") ->  | F52: =IF(D52="",0,Jurnal!F47) -> 0 | G52: =IF(D52="",0,Jurnal!G47) -> 0
B53: =IF(D53="","",Jurnal!B48) ->  | C53: =IF(D53="","",Jurnal!C48) ->  | D53: =IF(Jurnal!D48='Buku Besar'!$K$2,Jurnal!H48,"") ->  | F53: =IF(D53="",0,Jurnal!F48) -> 0 | G53: =IF(D53="",0,Jurnal!G48) -> 0
B54: =IF(D54="","",Jurnal!B49) ->  | C54: =IF(D54="","",Jurnal!C49) ->  | D54: =IF(Jurnal!D49='Buku Besar'!$K$2,Jurnal!H49,"") ->  | F54: =IF(D54="",0,Jurnal!F49) -> 0 | G54: =IF(D54="",0,Jurnal!G49) -> 0
B55: =IF(D55="","",Jurnal!B50) ->  | C55: =IF(D55="","",Jurnal!C50) ->  | D55: =IF(Jurnal!D50='Buku Besar'!$K$2,Jurnal!H50,"") ->  | F55: =IF(D55="",0,Jurnal!F50) -> 0 | G55: =IF(D55="",0,Jurnal!G50) -> 0
B56: =IF(D56="","",Jurnal!B51) ->  | C56: =IF(D56="","",Jurnal!C51) ->  | D56: =IF(Jurnal!D51='Buku Besar'!$K$2,Jurnal!H51,"") ->  | F56: =IF(D56="",0,Jurnal!F51) -> 0 | G56: =IF(D56="",0,Jurnal!G51) -> 0
B57: =IF(D57="","",Jurnal!B52) ->  | C57: =IF(D57="","",Jurnal!C52) ->  | D57: =IF(Jurnal!D52='Buku Besar'!$K$2,Jurnal!H52,"") ->  | F57: =IF(D57="",0,Jurnal!F52) -> 0 | G57: =IF(D57="",0,Jurnal!G52) -> 0
B58: =IF(D58="","",Jurnal!B53) ->  | C58: =IF(D58="","",Jurnal!C53) ->  | D58: =IF(Jurnal!D53='Buku Besar'!$K$2,Jurnal!H53,"") ->  | F58: =IF(D58="",0,Jurnal!F53) -> 0 | G58: =IF(D58="",0,Jurnal!G53) -> 0
B59: =IF(D59="","",Jurnal!B54) ->  | C59: =IF(D59="","",Jurnal!C54) ->  | D59: =IF(Jurnal!D54='Buku Besar'!$K$2,Jurnal!H54,"") ->  | F59: =IF(D59="",0,Jurnal!F54) -> 0 | G59: =IF(D59="",0,Jurnal!G54) -> 0
B60: =IF(D60="","",Jurnal!B55) ->  | C60: =IF(D60="","",Jurnal!C55) ->  | D60: =IF(Jurnal!D55='Buku Besar'!$K$2,Jurnal!H55,"") ->  | F60: =IF(D60="",0,Jurnal!F55) -> 0 | G60: =IF(D60="",0,Jurnal!G55) -> 0
B61: =IF(D61="","",Jurnal!B56) ->  | C61: =IF(D61="","",Jurnal!C56) ->  | D61: =IF(Jurnal!D56='Buku Besar'!$K$2,Jurnal!H56,"") ->  | F61: =IF(D61="",0,Jurnal!F56) -> 0 | G61: =IF(D61="",0,Jurnal!G56) -> 0
B62: =IF(D62="","",Jurnal!B57) ->  | C62: =IF(D62="","",Jurnal!C57) ->  | D62: =IF(Jurnal!D57='Buku Besar'!$K$2,Jurnal!H57,"") ->  | F62: =IF(D62="",0,Jurnal!F57) -> 0 | G62: =IF(D62="",0,Jurnal!G57) -> 0
B63: =IF(D63="","",Jurnal!B58) ->  | C63: =IF(D63="","",Jurnal!C58) ->  | D63: =IF(Jurnal!D58='Buku Besar'!$K$2,Jurnal!H58,"") ->  | F63: =IF(D63="",0,Jurnal!F58) -> 0 | G63: =IF(D63="",0,Jurnal!G58) -> 0
B64: =IF(D64="","",Jurnal!B59) ->  | C64: =IF(D64="","",Jurnal!C59) ->  | D64: =IF(Jurnal!D59='Buku Besar'!$K$2,Jurnal!H59,"") ->  | F64: =IF(D64="",0,Jurnal!F59) -> 0 | G64: =IF(D64="",0,Jurnal!G59) -> 0
B65: =IF(D65="","",Jurnal!B60) ->  | C65: =IF(D65="","",Jurnal!C60) ->  | D65: =IF(Jurnal!D60='Buku Besar'!$K$2,Jurnal!H60,"") ->  | F65: =IF(D65="",0,Jurnal!F60) -> 0 | G65: =IF(D65="",0,Jurnal!G60) -> 0
B66: =IF(D66="","",Jurnal!B61) ->  | C66: =IF(D66="","",Jurnal!C61) ->  | D66: =IF(Jurnal!D61='Buku Besar'!$K$2,Jurnal!H61,"") ->  | F66: =IF(D66="",0,Jurnal!F61) -> 0 | G66: =IF(D66="",0,Jurnal!G61) -> 0
B67: =IF(D67="","",Jurnal!B62) ->  | C67: =IF(D67="","",Jurnal!C62) ->  | D67: =IF(Jurnal!D62='Buku Besar'!$K$2,Jurnal!H62,"") ->  | F67: =IF(D67="",0,Jurnal!F62) -> 0 | G67: =IF(D67="",0,Jurnal!G62) -> 0
B68: =IF(D68="","",Jurnal!B63) ->  | C68: =IF(D68="","",Jurnal!C63) ->  | D68: =IF(Jurnal!D63='Buku Besar'!$K$2,Jurnal!H63,"") ->  | F68: =IF(D68="",0,Jurnal!F63) -> 0 | G68: =IF(D68="",0,Jurnal!G63) -> 0
B69: =IF(D69="","",Jurnal!B64) ->  | C69: =IF(D69="","",Jurnal!C64) ->  | D69: =IF(Jurnal!D64='Buku Besar'!$K$2,Jurnal!H64,"") ->  | F69: =IF(D69="",0,Jurnal!F64) -> 0 | G69: =IF(D69="",0,Jurnal!G64) -> 0
B70: =IF(D70="","",Jurnal!B65) ->  | C70: =IF(D70="","",Jurnal!C65) ->  | D70: =IF(Jurnal!D65='Buku Besar'!$K$2,Jurnal!H65,"") ->  | F70: =IF(D70="",0,Jurnal!F65) -> 0 | G70: =IF(D70="",0,Jurnal!G65) -> 0
B71: =IF(D71="","",Jurnal!B66) ->  | C71: =IF(D71="","",Jurnal!C66) ->  | D71: =IF(Jurnal!D66='Buku Besar'!$K$2,Jurnal!H66,"") ->  | F71: =IF(D71="",0,Jurnal!F66) -> 0 | G71: =IF(D71="",0,Jurnal!G66) -> 0
B72: =IF(D72="","",Jurnal!B67) ->  | C72: =IF(D72="","",Jurnal!C67) ->  | D72: =IF(Jurnal!D67='Buku Besar'!$K$2,Jurnal!H67,"") ->  | F72: =IF(D72="",0,Jurnal!F67) -> 0 | G72: =IF(D72="",0,Jurnal!G67) -> 0
B73: =IF(D73="","",Jurnal!B68) ->  | C73: =IF(D73="","",Jurnal!C68) ->  | D73: =IF(Jurnal!D68='Buku Besar'!$K$2,Jurnal!H68,"") ->  | F73: =IF(D73="",0,Jurnal!F68) -> 0 | G73: =IF(D73="",0,Jurnal!G68) -> 0
B74: =IF(D74="","",Jurnal!B69) ->  | C74: =IF(D74="","",Jurnal!C69) ->  | D74: =IF(Jurnal!D69='Buku Besar'!$K$2,Jurnal!H69,"") ->  | F74: =IF(D74="",0,Jurnal!F69) -> 0 | G74: =IF(D74="",0,Jurnal!G69) -> 0
B75: =IF(D75="","",Jurnal!B70) ->  | C75: =IF(D75="","",Jurnal!C70) ->  | D75: =IF(Jurnal!D70='Buku Besar'!$K$2,Jurnal!H70,"") ->  | F75: =IF(D75="",0,Jurnal!F70) -> 0 | G75: =IF(D75="",0,Jurnal!G70) -> 0
B76: =IF(D76="","",Jurnal!B71) ->  | C76: =IF(D76="","",Jurnal!C71) ->  | D76: =IF(Jurnal!D71='Buku Besar'!$K$2,Jurnal!H71,"") ->  | F76: =IF(D76="",0,Jurnal!F71) -> 0 | G76: =IF(D76="",0,Jurnal!G71) -> 0
B77: =IF(D77="","",Jurnal!B72) ->  | C77: =IF(D77="","",Jurnal!C72) ->  | D77: =IF(Jurnal!D72='Buku Besar'!$K$2,Jurnal!H72,"") ->  | F77: =IF(D77="",0,Jurnal!F72) -> 0 | G77: =IF(D77="",0,Jurnal!G72) -> 0
B78: =IF(D78="","",Jurnal!B73) ->  | C78: =IF(D78="","",Jurnal!C73) ->  | D78: =IF(Jurnal!D73='Buku Besar'!$K$2,Jurnal!H73,"") ->  | F78: =IF(D78="",0,Jurnal!F73) -> 0 | G78: =IF(D78="",0,Jurnal!G73) -> 0
B79: =IF(D79="","",Jurnal!B74) ->  | C79: =IF(D79="","",Jurnal!C74) ->  | D79: =IF(Jurnal!D74='Buku Besar'!$K$2,Jurnal!H74,"") ->  | F79: =IF(D79="",0,Jurnal!F74) -> 0 | G79: =IF(D79="",0,Jurnal!G74) -> 0 | H79: =IF($J$1="Debit",H78+F79-G79,H78+G79-F79) -> 
B80: =IF(D80="","",Jurnal!B75) ->  | C80: =IF(D80="","",Jurnal!C75) ->  | D80: =IF(Jurnal!D75='Buku Besar'!$K$2,Jurnal!H75,"") ->  | F80: =IF(D80="",0,Jurnal!F75) -> 0 | G80: =IF(D80="",0,Jurnal!G75) -> 0
B81: =IF(D81="","",Jurnal!B76) ->  | C81: =IF(D81="","",Jurnal!C76) ->  | D81: =IF(Jurnal!D76='Buku Besar'!$K$2,Jurnal!H76,"") ->  | F81: =IF(D81="",0,Jurnal!F76) -> 0 | G81: =IF(D81="",0,Jurnal!G76) -> 0
B82: =IF(D82="","",Jurnal!B77) ->  | C82: =IF(D82="","",Jurnal!C77) ->  | D82: =IF(Jurnal!D77='Buku Besar'!$K$2,Jurnal!H77,"") ->  | F82: =IF(D82="",0,Jurnal!F77) -> 0 | G82: =IF(D82="",0,Jurnal!G77) -> 0
B83: =IF(D83="","",Jurnal!B78) ->  | C83: =IF(D83="","",Jurnal!C78) ->  | D83: =IF(Jurnal!D78='Buku Besar'!$K$2,Jurnal!H78,"") ->  | F83: =IF(D83="",0,Jurnal!F78) -> 0 | G83: =IF(D83="",0,Jurnal!G78) -> 0
B84: =IF(D84="","",Jurnal!B79) ->  | C84: =IF(D84="","",Jurnal!C79) ->  | D84: =IF(Jurnal!D79='Buku Besar'!$K$2,Jurnal!H79,"") ->  | F84: =IF(D84="",0,Jurnal!F79) -> 0 | G84: =IF(D84="",0,Jurnal!G79) -> 0
B85: =IF(D85="","",Jurnal!B80) ->  | C85: =IF(D85="","",Jurnal!C80) ->  | D85: =IF(Jurnal!D80='Buku Besar'!$K$2,Jurnal!H80,"") ->  | F85: =IF(D85="",0,Jurnal!F80) -> 0 | G85: =IF(D85="",0,Jurnal!G80) -> 0
B86: =IF(D86="","",Jurnal!B81) ->  | C86: =IF(D86="","",Jurnal!C81) ->  | D86: =IF(Jurnal!D81='Buku Besar'!$K$2,Jurnal!H81,"") ->  | F86: =IF(D86="",0,Jurnal!F81) -> 0 | G86: =IF(D86="",0,Jurnal!G81) -> 0
B87: =IF(D87="","",Jurnal!B82) ->  | C87: =IF(D87="","",Jurnal!C82) ->  | D87: =IF(Jurnal!D82='Buku Besar'!$K$2,Jurnal!H82,"") ->  | F87: =IF(D87="",0,Jurnal!F82) -> 0 | G87: =IF(D87="",0,Jurnal!G82) -> 0
B88: =IF(D88="","",Jurnal!B83) ->  | C88: =IF(D88="","",Jurnal!C83) ->  | D88: =IF(Jurnal!D83='Buku Besar'!$K$2,Jurnal!H83,"") ->  | F88: =IF(D88="",0,Jurnal!F83) -> 0 | G88: =IF(D88="",0,Jurnal!G83) -> 0
B89: =IF(D89="","",Jurnal!B84) ->  | C89: =IF(D89="","",Jurnal!C84) ->  | D89: =IF(Jurnal!D84='Buku Besar'!$K$2,Jurnal!H84,"") ->  | F89: =IF(D89="",0,Jurnal!F84) -> 0 | G89: =IF(D89="",0,Jurnal!G84) -> 0
B90: =IF(D90="","",Jurnal!B85) ->  | C90: =IF(D90="","",Jurnal!C85) ->  | D90: =IF(Jurnal!D85='Buku Besar'!$K$2,Jurnal!H85,"") ->  | F90: =IF(D90="",0,Jurnal!F85) -> 0 | G90: =IF(D90="",0,Jurnal!G85) -> 0
B91: =IF(D91="","",Jurnal!B86) ->  | C91: =IF(D91="","",Jurnal!C86) ->  | D91: =IF(Jurnal!D86='Buku Besar'!$K$2,Jurnal!H86,"") ->  | F91: =IF(D91="",0,Jurnal!F86) -> 0 | G91: =IF(D91="",0,Jurnal!G86) -> 0
B92: =IF(D92="","",Jurnal!B87) ->  | C92: =IF(D92="","",Jurnal!C87) ->  | D92: =IF(Jurnal!D87='Buku Besar'!$K$2,Jurnal!H87,"") ->  | F92: =IF(D92="",0,Jurnal!F87) -> 0 | G92: =IF(D92="",0,Jurnal!G87) -> 0
B93: =IF(D93="","",Jurnal!B88) ->  | C93: =IF(D93="","",Jurnal!C88) ->  | D93: =IF(Jurnal!D88='Buku Besar'!$K$2,Jurnal!H88,"") ->  | F93: =IF(D93="",0,Jurnal!F88) -> 0 | G93: =IF(D93="",0,Jurnal!G88) -> 0
B94: =IF(D94="","",Jurnal!B89) ->  | C94: =IF(D94="","",Jurnal!C89) ->  | D94: =IF(Jurnal!D89='Buku Besar'!$K$2,Jurnal!H89,"") ->  | F94: =IF(D94="",0,Jurnal!F89) -> 0 | G94: =IF(D94="",0,Jurnal!G89) -> 0
B95: =IF(D95="","",Jurnal!B90) ->  | C95: =IF(D95="","",Jurnal!C90) ->  | D95: =IF(Jurnal!D90='Buku Besar'!$K$2,Jurnal!H90,"") ->  | F95: =IF(D95="",0,Jurnal!F90) -> 0 | G95: =IF(D95="",0,Jurnal!G90) -> 0
B96: =IF(D96="","",Jurnal!B91) ->  | C96: =IF(D96="","",Jurnal!C91) ->  | D96: =IF(Jurnal!D91='Buku Besar'!$K$2,Jurnal!H91,"") ->  | F96: =IF(D96="",0,Jurnal!F91) -> 0 | G96: =IF(D96="",0,Jurnal!G91) -> 0
B97: =IF(D97="","",Jurnal!B92) ->  | C97: =IF(D97="","",Jurnal!C92) ->  | D97: =IF(Jurnal!D92='Buku Besar'!$K$2,Jurnal!H92,"") ->  | F97: =IF(D97="",0,Jurnal!F92) -> 0 | G97: =IF(D97="",0,Jurnal!G92) -> 0
B98: =IF(D98="","",Jurnal!B93) ->  | C98: =IF(D98="","",Jurnal!C93) ->  | D98: =IF(Jurnal!D93='Buku Besar'!$K$2,Jurnal!H93,"") ->  | F98: =IF(D98="",0,Jurnal!F93) -> 0 | G98: =IF(D98="",0,Jurnal!G93) -> 0
B99: =IF(D99="","",Jurnal!B94) ->  | C99: =IF(D99="","",Jurnal!C94) ->  | D99: =IF(Jurnal!D94='Buku Besar'!$K$2,Jurnal!H94,"") ->  | F99: =IF(D99="",0,Jurnal!F94) -> 0 | G99: =IF(D99="",0,Jurnal!G94) -> 0
B100: =IF(D100="","",Jurnal!B95) ->  | C100: =IF(D100="","",Jurnal!C95) ->  | D100: =IF(Jurnal!D95='Buku Besar'!$K$2,Jurnal!H95,"") ->  | F100: =IF(D100="",0,Jurnal!F95) -> 0 | G100: =IF(D100="",0,Jurnal!G95) -> 0
B101: =IF(D101="","",Jurnal!B96) ->  | C101: =IF(D101="","",Jurnal!C96) ->  | D101: =IF(Jurnal!D96='Buku Besar'!$K$2,Jurnal!H96,"") ->  | F101: =IF(D101="",0,Jurnal!F96) -> 0 | G101: =IF(D101="",0,Jurnal!G96) -> 0
B102: =IF(D102="","",Jurnal!B97) ->  | C102: =IF(D102="","",Jurnal!C97) ->  | D102: =IF(Jurnal!D97='Buku Besar'!$K$2,Jurnal!H97,"") ->  | F102: =IF(D102="",0,Jurnal!F97) -> 0 | G102: =IF(D102="",0,Jurnal!G97) -> 0
B103: =IF(D103="","",Jurnal!B98) ->  | C103: =IF(D103="","",Jurnal!C98) ->  | D103: =IF(Jurnal!D98='Buku Besar'!$K$2,Jurnal!H98,"") ->  | F103: =IF(D103="",0,Jurnal!F98) -> 0 | G103: =IF(D103="",0,Jurnal!G98) -> 0
B104: =IF(D104="","",Jurnal!B99) ->  | C104: =IF(D104="","",Jurnal!C99) ->  | D104: =IF(Jurnal!D99='Buku Besar'!$K$2,Jurnal!H99,"") ->  | F104: =IF(D104="",0,Jurnal!F99) -> 0 | G104: =IF(D104="",0,Jurnal!G99) -> 0
B105: =IF(D105="","",Jurnal!B100) ->  | C105: =IF(D105="","",Jurnal!C100) ->  | D105: =IF(Jurnal!D100='Buku Besar'!$K$2,Jurnal!H100,"") ->  | F105: =IF(D105="",0,Jurnal!F100) -> 0 | G105: =IF(D105="",0,Jurnal!G100) -> 0
B106: =IF(D106="","",Jurnal!B101) ->  | C106: =IF(D106="","",Jurnal!C101) ->  | D106: =IF(Jurnal!D101='Buku Besar'!$K$2,Jurnal!H101,"") ->  | F106: =IF(D106="",0,Jurnal!F101) -> 0 | G106: =IF(D106="",0,Jurnal!G101) -> 0
B107: =IF(D107="","",Jurnal!B102) ->  | C107: =IF(D107="","",Jurnal!C102) ->  | D107: =IF(Jurnal!D102='Buku Besar'!$K$2,Jurnal!H102,"") ->  | F107: =IF(D107="",0,Jurnal!F102) -> 0 | G107: =IF(D107="",0,Jurnal!G102) -> 0
B108: =IF(D108="","",Jurnal!B103) ->  | C108: =IF(D108="","",Jurnal!C103) ->  | D108: =IF(Jurnal!D103='Buku Besar'!$K$2,Jurnal!H103,"") ->  | F108: =IF(D108="",0,Jurnal!F103) -> 0 | G108: =IF(D108="",0,Jurnal!G103) -> 0
B109: =IF(D109="","",Jurnal!B104) ->  | C109: =IF(D109="","",Jurnal!C104) ->  | D109: =IF(Jurnal!D104='Buku Besar'!$K$2,Jurnal!H104,"") ->  | F109: =IF(D109="",0,Jurnal!F104) -> 0 | G109: =IF(D109="",0,Jurnal!G104) -> 0
B110: =IF(D110="","",Jurnal!B105) ->  | C110: =IF(D110="","",Jurnal!C105) ->  | D110: =IF(Jurnal!D105='Buku Besar'!$K$2,Jurnal!H105,"") ->  | F110: =IF(D110="",0,Jurnal!F105) -> 0 | G110: =IF(D110="",0,Jurnal!G105) -> 0
B111: =IF(D111="","",Jurnal!B106) ->  | C111: =IF(D111="","",Jurnal!C106) ->  | D111: =IF(Jurnal!D106='Buku Besar'!$K$2,Jurnal!H106,"") ->  | F111: =IF(D111="",0,Jurnal!F106) -> 0 | G111: =IF(D111="",0,Jurnal!G106) -> 0
B112: =IF(D112="","",Jurnal!B107) ->  | C112: =IF(D112="","",Jurnal!C107) ->  | D112: =IF(Jurnal!D107='Buku Besar'!$K$2,Jurnal!H107,"") ->  | F112: =IF(D112="",0,Jurnal!F107) -> 0 | G112: =IF(D112="",0,Jurnal!G107) -> 0
B113: =IF(D113="","",Jurnal!B108) ->  | C113: =IF(D113="","",Jurnal!C108) ->  | D113: =IF(Jurnal!D108='Buku Besar'!$K$2,Jurnal!H108,"") ->  | F113: =IF(D113="",0,Jurnal!F108) -> 0 | G113: =IF(D113="",0,Jurnal!G108) -> 0
B114: =IF(D114="","",Jurnal!B109) ->  | C114: =IF(D114="","",Jurnal!C109) ->  | D114: =IF(Jurnal!D109='Buku Besar'!$K$2,Jurnal!H109,"") ->  | F114: =IF(D114="",0,Jurnal!F109) -> 0 | G114: =IF(D114="",0,Jurnal!G109) -> 0
B115: =IF(D115="","",Jurnal!B110) ->  | C115: =IF(D115="","",Jurnal!C110) ->  | D115: =IF(Jurnal!D110='Buku Besar'!$K$2,Jurnal!H110,"") ->  | F115: =IF(D115="",0,Jurnal!F110) -> 0 | G115: =IF(D115="",0,Jurnal!G110) -> 0
B116: =IF(D116="","",Jurnal!B111) ->  | C116: =IF(D116="","",Jurnal!C111) ->  | D116: =IF(Jurnal!D111='Buku Besar'!$K$2,Jurnal!H111,"") ->  | F116: =IF(D116="",0,Jurnal!F111) -> 0 | G116: =IF(D116="",0,Jurnal!G111) -> 0
B117: =IF(D117="","",Jurnal!B112) ->  | C117: =IF(D117="","",Jurnal!C112) ->  | D117: =IF(Jurnal!D112='Buku Besar'!$K$2,Jurnal!H112,"") ->  | F117: =IF(D117="",0,Jurnal!F112) -> 0 | G117: =IF(D117="",0,Jurnal!G112) -> 0
B118: =IF(D118="","",Jurnal!B113) ->  | C118: =IF(D118="","",Jurnal!C113) ->  | D118: =IF(Jurnal!D113='Buku Besar'!$K$2,Jurnal!H113,"") ->  | F118: =IF(D118="",0,Jurnal!F113) -> 0 | G118: =IF(D118="",0,Jurnal!G113) -> 0
B119: =IF(D119="","",Jurnal!B114) ->  | C119: =IF(D119="","",Jurnal!C114) ->  | D119: =IF(Jurnal!D114='Buku Besar'!$K$2,Jurnal!H114,"") ->  | F119: =IF(D119="",0,Jurnal!F114) -> 0 | G119: =IF(D119="",0,Jurnal!G114) -> 0
B120: =IF(D120="","",Jurnal!B115) ->  | C120: =IF(D120="","",Jurnal!C115) ->  | D120: =IF(Jurnal!D115='Buku Besar'!$K$2,Jurnal!H115,"") ->  | F120: =IF(D120="",0,Jurnal!F115) -> 0 | G120: =IF(D120="",0,Jurnal!G115) -> 0
B121: =IF(D121="","",Jurnal!B116) ->  | C121: =IF(D121="","",Jurnal!C116) ->  | D121: =IF(Jurnal!D116='Buku Besar'!$K$2,Jurnal!H116,"") ->  | F121: =IF(D121="",0,Jurnal!F116) -> 0 | G121: =IF(D121="",0,Jurnal!G116) -> 0
B122: =IF(D122="","",Jurnal!B117) ->  | C122: =IF(D122="","",Jurnal!C117) ->  | D122: =IF(Jurnal!D117='Buku Besar'!$K$2,Jurnal!H117,"") ->  | F122: =IF(D122="",0,Jurnal!F117) -> 0 | G122: =IF(D122="",0,Jurnal!G117) -> 0
B123: =IF(D123="","",Jurnal!B118) ->  | C123: =IF(D123="","",Jurnal!C118) ->  | D123: =IF(Jurnal!D118='Buku Besar'!$K$2,Jurnal!H118,"") ->  | F123: =IF(D123="",0,Jurnal!F118) -> 0 | G123: =IF(D123="",0,Jurnal!G118) -> 0
B124: =IF(D124="","",Jurnal!B119) ->  | C124: =IF(D124="","",Jurnal!C119) ->  | D124: =IF(Jurnal!D119='Buku Besar'!$K$2,Jurnal!H119,"") ->  | F124: =IF(D124="",0,Jurnal!F119) -> 0 | G124: =IF(D124="",0,Jurnal!G119) -> 0
B125: =IF(D125="","",Jurnal!B120) ->  | C125: =IF(D125="","",Jurnal!C120) ->  | D125: =IF(Jurnal!D120='Buku Besar'!$K$2,Jurnal!H120,"") ->  | F125: =IF(D125="",0,Jurnal!F120) -> 0 | G125: =IF(D125="",0,Jurnal!G120) -> 0
B126: =IF(D126="","",Jurnal!B121) ->  | C126: =IF(D126="","",Jurnal!C121) ->  | D126: =IF(Jurnal!D121='Buku Besar'!$K$2,Jurnal!H121,"") ->  | F126: =IF(D126="",0,Jurnal!F121) -> 0 | G126: =IF(D126="",0,Jurnal!G121) -> 0
B127: =IF(D127="","",Jurnal!B122) ->  | C127: =IF(D127="","",Jurnal!C122) ->  | D127: =IF(Jurnal!D122='Buku Besar'!$K$2,Jurnal!H122,"") ->  | F127: =IF(D127="",0,Jurnal!F122) -> 0 | G127: =IF(D127="",0,Jurnal!G122) -> 0
B128: =IF(D128="","",Jurnal!B123) ->  | C128: =IF(D128="","",Jurnal!C123) ->  | D128: =IF(Jurnal!D123='Buku Besar'!$K$2,Jurnal!H123,"") ->  | F128: =IF(D128="",0,Jurnal!F123) -> 0 | G128: =IF(D128="",0,Jurnal!G123) -> 0
B129: =IF(D129="","",Jurnal!B124) ->  | C129: =IF(D129="","",Jurnal!C124) ->  | D129: =IF(Jurnal!D124='Buku Besar'!$K$2,Jurnal!H124,"") ->  | F129: =IF(D129="",0,Jurnal!F124) -> 0 | G129: =IF(D129="",0,Jurnal!G124) -> 0
B130: =IF(D130="","",Jurnal!B125) ->  | C130: =IF(D130="","",Jurnal!C125) ->  | D130: =IF(Jurnal!D125='Buku Besar'!$K$2,Jurnal!H125,"") ->  | F130: =IF(D130="",0,Jurnal!F125) -> 0 | G130: =IF(D130="",0,Jurnal!G125) -> 0
B131: =IF(D131="","",Jurnal!B126) ->  | C131: =IF(D131="","",Jurnal!C126) ->  | D131: =IF(Jurnal!D126='Buku Besar'!$K$2,Jurnal!H126,"") ->  | F131: =IF(D131="",0,Jurnal!F126) -> 0 | G131: =IF(D131="",0,Jurnal!G126) -> 0
B132: =IF(D132="","",Jurnal!B127) ->  | C132: =IF(D132="","",Jurnal!C127) ->  | D132: =IF(Jurnal!D127='Buku Besar'!$K$2,Jurnal!H127,"") ->  | F132: =IF(D132="",0,Jurnal!F127) -> 0 | G132: =IF(D132="",0,Jurnal!G127) -> 0
B133: =IF(D133="","",Jurnal!B128) ->  | C133: =IF(D133="","",Jurnal!C128) ->  | D133: =IF(Jurnal!D128='Buku Besar'!$K$2,Jurnal!H128,"") ->  | F133: =IF(D133="",0,Jurnal!F128) -> 0 | G133: =IF(D133="",0,Jurnal!G128) -> 0
B134: =IF(D134="","",Jurnal!B129) ->  | C134: =IF(D134="","",Jurnal!C129) ->  | D134: =IF(Jurnal!D129='Buku Besar'!$K$2,Jurnal!H129,"") ->  | F134: =IF(D134="",0,Jurnal!F129) -> 0 | G134: =IF(D134="",0,Jurnal!G129) -> 0
B135: =IF(D135="","",Jurnal!B130) ->  | C135: =IF(D135="","",Jurnal!C130) ->  | D135: =IF(Jurnal!D130='Buku Besar'!$K$2,Jurnal!H130,"") ->  | F135: =IF(D135="",0,Jurnal!F130) -> 0 | G135: =IF(D135="",0,Jurnal!G130) -> 0
B136: =IF(D136="","",Jurnal!B131) ->  | C136: =IF(D136="","",Jurnal!C131) ->  | D136: =IF(Jurnal!D131='Buku Besar'!$K$2,Jurnal!H131,"") ->  | F136: =IF(D136="",0,Jurnal!F131) -> 0 | G136: =IF(D136="",0,Jurnal!G131) -> 0
B137: =IF(D137="","",Jurnal!B132) ->  | C137: =IF(D137="","",Jurnal!C132) ->  | D137: =IF(Jurnal!D132='Buku Besar'!$K$2,Jurnal!H132,"") ->  | F137: =IF(D137="",0,Jurnal!F132) -> 0 | G137: =IF(D137="",0,Jurnal!G132) -> 0
B138: =IF(D138="","",Jurnal!B133) ->  | C138: =IF(D138="","",Jurnal!C133) ->  | D138: =IF(Jurnal!D133='Buku Besar'!$K$2,Jurnal!H133,"") ->  | F138: =IF(D138="",0,Jurnal!F133) -> 0 | G138: =IF(D138="",0,Jurnal!G133) -> 0
B139: =IF(D139="","",Jurnal!B134) ->  | C139: =IF(D139="","",Jurnal!C134) ->  | D139: =IF(Jurnal!D134='Buku Besar'!$K$2,Jurnal!H134,"") ->  | F139: =IF(D139="",0,Jurnal!F134) -> 0 | G139: =IF(D139="",0,Jurnal!G134) -> 0
B140: =IF(D140="","",Jurnal!B135) ->  | C140: =IF(D140="","",Jurnal!C135) ->  | D140: =IF(Jurnal!D135='Buku Besar'!$K$2,Jurnal!H135,"") ->  | F140: =IF(D140="",0,Jurnal!F135) -> 0 | G140: =IF(D140="",0,Jurnal!G135) -> 0
B141: =IF(D141="","",Jurnal!B136) ->  | C141: =IF(D141="","",Jurnal!C136) ->  | D141: =IF(Jurnal!D136='Buku Besar'!$K$2,Jurnal!H136,"") ->  | F141: =IF(D141="",0,Jurnal!F136) -> 0 | G141: =IF(D141="",0,Jurnal!G136) -> 0
B142: =IF(D142="","",Jurnal!B137) ->  | C142: =IF(D142="","",Jurnal!C137) ->  | D142: =IF(Jurnal!D137='Buku Besar'!$K$2,Jurnal!H137,"") ->  | F142: =IF(D142="",0,Jurnal!F137) -> 0 | G142: =IF(D142="",0,Jurnal!G137) -> 0
B143: =IF(D143="","",Jurnal!B138) ->  | C143: =IF(D143="","",Jurnal!C138) ->  | D143: =IF(Jurnal!D138='Buku Besar'!$K$2,Jurnal!H138,"") ->  | F143: =IF(D143="",0,Jurnal!F138) -> 0 | G143: =IF(D143="",0,Jurnal!G138) -> 0 | H143: =IF($J$1="Debit",H142+F143-G143,H142+G143-F143) -> 
B144: =IF(D144="","",Jurnal!B139) ->  | C144: =IF(D144="","",Jurnal!C139) ->  | D144: =IF(Jurnal!D139='Buku Besar'!$K$2,Jurnal!H139,"") ->  | F144: =IF(D144="",0,Jurnal!F139) -> 0 | G144: =IF(D144="",0,Jurnal!G139) -> 0
B145: =IF(D145="","",Jurnal!B140) ->  | C145: =IF(D145="","",Jurnal!C140) ->  | D145: =IF(Jurnal!D140='Buku Besar'!$K$2,Jurnal!H140,"") ->  | F145: =IF(D145="",0,Jurnal!F140) -> 0 | G145: =IF(D145="",0,Jurnal!G140) -> 0
B146: =IF(D146="","",Jurnal!B141) ->  | C146: =IF(D146="","",Jurnal!C141) ->  | D146: =IF(Jurnal!D141='Buku Besar'!$K$2,Jurnal!H141,"") ->  | F146: =IF(D146="",0,Jurnal!F141) -> 0 | G146: =IF(D146="",0,Jurnal!G141) -> 0
B147: =IF(D147="","",Jurnal!B142) ->  | C147: =IF(D147="","",Jurnal!C142) ->  | D147: =IF(Jurnal!D142='Buku Besar'!$K$2,Jurnal!H142,"") ->  | F147: =IF(D147="",0,Jurnal!F142) -> 0 | G147: =IF(D147="",0,Jurnal!G142) -> 0
B148: =IF(D148="","",Jurnal!B143) ->  | C148: =IF(D148="","",Jurnal!C143) ->  | D148: =IF(Jurnal!D143='Buku Besar'!$K$2,Jurnal!H143,"") ->  | F148: =IF(D148="",0,Jurnal!F143) -> 0 | G148: =IF(D148="",0,Jurnal!G143) -> 0
B149: =IF(D149="","",Jurnal!B144) ->  | C149: =IF(D149="","",Jurnal!C144) ->  | D149: =IF(Jurnal!D144='Buku Besar'!$K$2,Jurnal!H144,"") ->  | F149: =IF(D149="",0,Jurnal!F144) -> 0 | G149: =IF(D149="",0,Jurnal!G144) -> 0
B150: =IF(D150="","",Jurnal!B145) ->  | C150: =IF(D150="","",Jurnal!C145) ->  | D150: =IF(Jurnal!D145='Buku Besar'!$K$2,Jurnal!H145,"") ->  | F150: =IF(D150="",0,Jurnal!F145) -> 0 | G150: =IF(D150="",0,Jurnal!G145) -> 0
B151: =IF(D151="","",Jurnal!B146) ->  | C151: =IF(D151="","",Jurnal!C146) ->  | D151: =IF(Jurnal!D146='Buku Besar'!$K$2,Jurnal!H146,"") ->  | F151: =IF(D151="",0,Jurnal!F146) -> 0 | G151: =IF(D151="",0,Jurnal!G146) -> 0
B152: =IF(D152="","",Jurnal!B147) ->  | C152: =IF(D152="","",Jurnal!C147) ->  | D152: =IF(Jurnal!D147='Buku Besar'!$K$2,Jurnal!H147,"") ->  | F152: =IF(D152="",0,Jurnal!F147) -> 0 | G152: =IF(D152="",0,Jurnal!G147) -> 0
B153: =IF(D153="","",Jurnal!B148) ->  | C153: =IF(D153="","",Jurnal!C148) ->  | D153: =IF(Jurnal!D148='Buku Besar'!$K$2,Jurnal!H148,"") ->  | F153: =IF(D153="",0,Jurnal!F148) -> 0 | G153: =IF(D153="",0,Jurnal!G148) -> 0
B154: =IF(D154="","",Jurnal!B149) ->  | C154: =IF(D154="","",Jurnal!C149) ->  | D154: =IF(Jurnal!D149='Buku Besar'!$K$2,Jurnal!H149,"") ->  | F154: =IF(D154="",0,Jurnal!F149) -> 0 | G154: =IF(D154="",0,Jurnal!G149) -> 0
B155: =IF(D155="","",Jurnal!B150) ->  | C155: =IF(D155="","",Jurnal!C150) ->  | D155: =IF(Jurnal!D150='Buku Besar'!$K$2,Jurnal!H150,"") ->  | F155: =IF(D155="",0,Jurnal!F150) -> 0 | G155: =IF(D155="",0,Jurnal!G150) -> 0
B156: =IF(D156="","",Jurnal!B151) ->  | C156: =IF(D156="","",Jurnal!C151) ->  | D156: =IF(Jurnal!D151='Buku Besar'!$K$2,Jurnal!H151,"") ->  | F156: =IF(D156="",0,Jurnal!F151) -> 0 | G156: =IF(D156="",0,Jurnal!G151) -> 0
B157: =IF(D157="","",Jurnal!B152) ->  | C157: =IF(D157="","",Jurnal!C152) ->  | D157: =IF(Jurnal!D152='Buku Besar'!$K$2,Jurnal!H152,"") ->  | F157: =IF(D157="",0,Jurnal!F152) -> 0 | G157: =IF(D157="",0,Jurnal!G152) -> 0
B158: =IF(D158="","",Jurnal!B153) ->  | C158: =IF(D158="","",Jurnal!C153) ->  | D158: =IF(Jurnal!D153='Buku Besar'!$K$2,Jurnal!H153,"") ->  | F158: =IF(D158="",0,Jurnal!F153) -> 0 | G158: =IF(D158="",0,Jurnal!G153) -> 0
B159: =IF(D159="","",Jurnal!B154) ->  | C159: =IF(D159="","",Jurnal!C154) ->  | D159: =IF(Jurnal!D154='Buku Besar'!$K$2,Jurnal!H154,"") ->  | F159: =IF(D159="",0,Jurnal!F154) -> 0 | G159: =IF(D159="",0,Jurnal!G154) -> 0
B160: =IF(D160="","",Jurnal!B155) ->  | C160: =IF(D160="","",Jurnal!C155) ->  | D160: =IF(Jurnal!D155='Buku Besar'!$K$2,Jurnal!H155,"") ->  | F160: =IF(D160="",0,Jurnal!F155) -> 0 | G160: =IF(D160="",0,Jurnal!G155) -> 0
B161: =IF(D161="","",Jurnal!B156) ->  | C161: =IF(D161="","",Jurnal!C156) ->  | D161: =IF(Jurnal!D156='Buku Besar'!$K$2,Jurnal!H156,"") ->  | F161: =IF(D161="",0,Jurnal!F156) -> 0 | G161: =IF(D161="",0,Jurnal!G156) -> 0
B162: =IF(D162="","",Jurnal!B157) ->  | C162: =IF(D162="","",Jurnal!C157) ->  | D162: =IF(Jurnal!D157='Buku Besar'!$K$2,Jurnal!H157,"") ->  | F162: =IF(D162="",0,Jurnal!F157) -> 0 | G162: =IF(D162="",0,Jurnal!G157) -> 0
B163: =IF(D163="","",Jurnal!B158) ->  | C163: =IF(D163="","",Jurnal!C158) ->  | D163: =IF(Jurnal!D158='Buku Besar'!$K$2,Jurnal!H158,"") ->  | F163: =IF(D163="",0,Jurnal!F158) -> 0 | G163: =IF(D163="",0,Jurnal!G158) -> 0
B164: =IF(D164="","",Jurnal!B159) ->  | C164: =IF(D164="","",Jurnal!C159) ->  | D164: =IF(Jurnal!D159='Buku Besar'!$K$2,Jurnal!H159,"") ->  | F164: =IF(D164="",0,Jurnal!F159) -> 0 | G164: =IF(D164="",0,Jurnal!G159) -> 0
B165: =IF(D165="","",Jurnal!B160) ->  | C165: =IF(D165="","",Jurnal!C160) ->  | D165: =IF(Jurnal!D160='Buku Besar'!$K$2,Jurnal!H160,"") ->  | F165: =IF(D165="",0,Jurnal!F160) -> 0 | G165: =IF(D165="",0,Jurnal!G160) -> 0
B166: =IF(D166="","",Jurnal!B161) ->  | C166: =IF(D166="","",Jurnal!C161) ->  | D166: =IF(Jurnal!D161='Buku Besar'!$K$2,Jurnal!H161,"") ->  | F166: =IF(D166="",0,Jurnal!F161) -> 0 | G166: =IF(D166="",0,Jurnal!G161) -> 0
B167: =IF(D167="","",Jurnal!B162) ->  | C167: =IF(D167="","",Jurnal!C162) ->  | D167: =IF(Jurnal!D162='Buku Besar'!$K$2,Jurnal!H162,"") ->  | F167: =IF(D167="",0,Jurnal!F162) -> 0 | G167: =IF(D167="",0,Jurnal!G162) -> 0
B168: =IF(D168="","",Jurnal!B163) ->  | C168: =IF(D168="","",Jurnal!C163) ->  | D168: =IF(Jurnal!D163='Buku Besar'!$K$2,Jurnal!H163,"") ->  | F168: =IF(D168="",0,Jurnal!F163) -> 0 | G168: =IF(D168="",0,Jurnal!G163) -> 0
B169: =IF(D169="","",Jurnal!B164) ->  | C169: =IF(D169="","",Jurnal!C164) ->  | D169: =IF(Jurnal!D164='Buku Besar'!$K$2,Jurnal!H164,"") ->  | F169: =IF(D169="",0,Jurnal!F164) -> 0 | G169: =IF(D169="",0,Jurnal!G164) -> 0
B170: =IF(D170="","",Jurnal!B165) ->  | C170: =IF(D170="","",Jurnal!C165) ->  | D170: =IF(Jurnal!D165='Buku Besar'!$K$2,Jurnal!H165,"") ->  | F170: =IF(D170="",0,Jurnal!F165) -> 0 | G170: =IF(D170="",0,Jurnal!G165) -> 0
B171: =IF(D171="","",Jurnal!B166) ->  | C171: =IF(D171="","",Jurnal!C166) ->  | D171: =IF(Jurnal!D166='Buku Besar'!$K$2,Jurnal!H166,"") ->  | F171: =IF(D171="",0,Jurnal!F166) -> 0 | G171: =IF(D171="",0,Jurnal!G166) -> 0
B172: =IF(D172="","",Jurnal!B167) ->  | C172: =IF(D172="","",Jurnal!C167) ->  | D172: =IF(Jurnal!D167='Buku Besar'!$K$2,Jurnal!H167,"") ->  | F172: =IF(D172="",0,Jurnal!F167) -> 0 | G172: =IF(D172="",0,Jurnal!G167) -> 0
B173: =IF(D173="","",Jurnal!B168) ->  | C173: =IF(D173="","",Jurnal!C168) ->  | D173: =IF(Jurnal!D168='Buku Besar'!$K$2,Jurnal!H168,"") ->  | F173: =IF(D173="",0,Jurnal!F168) -> 0 | G173: =IF(D173="",0,Jurnal!G168) -> 0
B174: =IF(D174="","",Jurnal!B169) ->  | C174: =IF(D174="","",Jurnal!C169) ->  | D174: =IF(Jurnal!D169='Buku Besar'!$K$2,Jurnal!H169,"") ->  | F174: =IF(D174="",0,Jurnal!F169) -> 0 | G174: =IF(D174="",0,Jurnal!G169) -> 0
B175: =IF(D175="","",Jurnal!B170) ->  | C175: =IF(D175="","",Jurnal!C170) ->  | D175: =IF(Jurnal!D170='Buku Besar'!$K$2,Jurnal!H170,"") ->  | F175: =IF(D175="",0,Jurnal!F170) -> 0 | G175: =IF(D175="",0,Jurnal!G170) -> 0
B176: =IF(D176="","",Jurnal!B171) ->  | C176: =IF(D176="","",Jurnal!C171) ->  | D176: =IF(Jurnal!D171='Buku Besar'!$K$2,Jurnal!H171,"") ->  | F176: =IF(D176="",0,Jurnal!F171) -> 0 | G176: =IF(D176="",0,Jurnal!G171) -> 0
B177: =IF(D177="","",Jurnal!B172) ->  | C177: =IF(D177="","",Jurnal!C172) ->  | D177: =IF(Jurnal!D172='Buku Besar'!$K$2,Jurnal!H172,"") ->  | F177: =IF(D177="",0,Jurnal!F172) -> 0 | G177: =IF(D177="",0,Jurnal!G172) -> 0
B178: =IF(D178="","",Jurnal!B173) ->  | C178: =IF(D178="","",Jurnal!C173) ->  | D178: =IF(Jurnal!D173='Buku Besar'!$K$2,Jurnal!H173,"") ->  | F178: =IF(D178="",0,Jurnal!F173) -> 0 | G178: =IF(D178="",0,Jurnal!G173) -> 0
B179: =IF(D179="","",Jurnal!B174) ->  | C179: =IF(D179="","",Jurnal!C174) ->  | D179: =IF(Jurnal!D174='Buku Besar'!$K$2,Jurnal!H174,"") ->  | F179: =IF(D179="",0,Jurnal!F174) -> 0 | G179: =IF(D179="",0,Jurnal!G174) -> 0
B180: =IF(D180="","",Jurnal!B175) ->  | C180: =IF(D180="","",Jurnal!C175) ->  | D180: =IF(Jurnal!D175='Buku Besar'!$K$2,Jurnal!H175,"") ->  | F180: =IF(D180="",0,Jurnal!F175) -> 0 | G180: =IF(D180="",0,Jurnal!G175) -> 0
B181: =IF(D181="","",Jurnal!B176) ->  | C181: =IF(D181="","",Jurnal!C176) ->  | D181: =IF(Jurnal!D176='Buku Besar'!$K$2,Jurnal!H176,"") ->  | F181: =IF(D181="",0,Jurnal!F176) -> 0 | G181: =IF(D181="",0,Jurnal!G176) -> 0
B182: =IF(D182="","",Jurnal!B177) ->  | C182: =IF(D182="","",Jurnal!C177) ->  | D182: =IF(Jurnal!D177='Buku Besar'!$K$2,Jurnal!H177,"") ->  | F182: =IF(D182="",0,Jurnal!F177) -> 0 | G182: =IF(D182="",0,Jurnal!G177) -> 0
B183: =IF(D183="","",Jurnal!B178) ->  | C183: =IF(D183="","",Jurnal!C178) ->  | D183: =IF(Jurnal!D178='Buku Besar'!$K$2,Jurnal!H178,"") ->  | F183: =IF(D183="",0,Jurnal!F178) -> 0 | G183: =IF(D183="",0,Jurnal!G178) -> 0
B184: =IF(D184="","",Jurnal!B179) ->  | C184: =IF(D184="","",Jurnal!C179) ->  | D184: =IF(Jurnal!D179='Buku Besar'!$K$2,Jurnal!H179,"") ->  | F184: =IF(D184="",0,Jurnal!F179) -> 0 | G184: =IF(D184="",0,Jurnal!G179) -> 0
B185: =IF(D185="","",Jurnal!B180) ->  | C185: =IF(D185="","",Jurnal!C180) ->  | D185: =IF(Jurnal!D180='Buku Besar'!$K$2,Jurnal!H180,"") ->  | F185: =IF(D185="",0,Jurnal!F180) -> 0 | G185: =IF(D185="",0,Jurnal!G180) -> 0
B186: =IF(D186="","",Jurnal!B181) ->  | C186: =IF(D186="","",Jurnal!C181) ->  | D186: =IF(Jurnal!D181='Buku Besar'!$K$2,Jurnal!H181,"") ->  | F186: =IF(D186="",0,Jurnal!F181) -> 0 | G186: =IF(D186="",0,Jurnal!G181) -> 0
B187: =IF(D187="","",Jurnal!B182) ->  | C187: =IF(D187="","",Jurnal!C182) ->  | D187: =IF(Jurnal!D182='Buku Besar'!$K$2,Jurnal!H182,"") ->  | F187: =IF(D187="",0,Jurnal!F182) -> 0 | G187: =IF(D187="",0,Jurnal!G182) -> 0
B188: =IF(D188="","",Jurnal!B183) ->  | C188: =IF(D188="","",Jurnal!C183) ->  | D188: =IF(Jurnal!D183='Buku Besar'!$K$2,Jurnal!H183,"") ->  | F188: =IF(D188="",0,Jurnal!F183) -> 0 | G188: =IF(D188="",0,Jurnal!G183) -> 0
B189: =IF(D189="","",Jurnal!B184) ->  | C189: =IF(D189="","",Jurnal!C184) ->  | D189: =IF(Jurnal!D184='Buku Besar'!$K$2,Jurnal!H184,"") ->  | F189: =IF(D189="",0,Jurnal!F184) -> 0 | G189: =IF(D189="",0,Jurnal!G184) -> 0
B190: =IF(D190="","",Jurnal!B185) ->  | C190: =IF(D190="","",Jurnal!C185) ->  | D190: =IF(Jurnal!D185='Buku Besar'!$K$2,Jurnal!H185,"") ->  | F190: =IF(D190="",0,Jurnal!F185) -> 0 | G190: =IF(D190="",0,Jurnal!G185) -> 0
B191: =IF(D191="","",Jurnal!B186) ->  | C191: =IF(D191="","",Jurnal!C186) ->  | D191: =IF(Jurnal!D186='Buku Besar'!$K$2,Jurnal!H186,"") ->  | F191: =IF(D191="",0,Jurnal!F186) -> 0 | G191: =IF(D191="",0,Jurnal!G186) -> 0
B192: =IF(D192="","",Jurnal!B187) ->  | C192: =IF(D192="","",Jurnal!C187) ->  | D192: =IF(Jurnal!D187='Buku Besar'!$K$2,Jurnal!H187,"") ->  | F192: =IF(D192="",0,Jurnal!F187) -> 0 | G192: =IF(D192="",0,Jurnal!G187) -> 0
B193: =IF(D193="","",Jurnal!B188) ->  | C193: =IF(D193="","",Jurnal!C188) ->  | D193: =IF(Jurnal!D188='Buku Besar'!$K$2,Jurnal!H188,"") ->  | F193: =IF(D193="",0,Jurnal!F188) -> 0 | G193: =IF(D193="",0,Jurnal!G188) -> 0
B194: =IF(D194="","",Jurnal!B189) ->  | C194: =IF(D194="","",Jurnal!C189) ->  | D194: =IF(Jurnal!D189='Buku Besar'!$K$2,Jurnal!H189,"") ->  | F194: =IF(D194="",0,Jurnal!F189) -> 0 | G194: =IF(D194="",0,Jurnal!G189) -> 0
B195: =IF(D195="","",Jurnal!B190) ->  | C195: =IF(D195="","",Jurnal!C190) ->  | D195: =IF(Jurnal!D190='Buku Besar'!$K$2,Jurnal!H190,"") ->  | F195: =IF(D195="",0,Jurnal!F190) -> 0 | G195: =IF(D195="",0,Jurnal!G190) -> 0
B196: =IF(D196="","",Jurnal!B191) ->  | C196: =IF(D196="","",Jurnal!C191) ->  | D196: =IF(Jurnal!D191='Buku Besar'!$K$2,Jurnal!H191,"") ->  | F196: =IF(D196="",0,Jurnal!F191) -> 0 | G196: =IF(D196="",0,Jurnal!G191) -> 0
B197: =IF(D197="","",Jurnal!B192) ->  | C197: =IF(D197="","",Jurnal!C192) ->  | D197: =IF(Jurnal!D192='Buku Besar'!$K$2,Jurnal!H192,"") ->  | F197: =IF(D197="",0,Jurnal!F192) -> 0 | G197: =IF(D197="",0,Jurnal!G192) -> 0
B198: =IF(D198="","",Jurnal!B193) ->  | C198: =IF(D198="","",Jurnal!C193) ->  | D198: =IF(Jurnal!D193='Buku Besar'!$K$2,Jurnal!H193,"") ->  | F198: =IF(D198="",0,Jurnal!F193) -> 0 | G198: =IF(D198="",0,Jurnal!G193) -> 0
B199: =IF(D199="","",Jurnal!B194) ->  | C199: =IF(D199="","",Jurnal!C194) ->  | D199: =IF(Jurnal!D194='Buku Besar'!$K$2,Jurnal!H194,"") ->  | F199: =IF(D199="",0,Jurnal!F194) -> 0 | G199: =IF(D199="",0,Jurnal!G194) -> 0
B200: =IF(D200="","",Jurnal!B195) ->  | C200: =IF(D200="","",Jurnal!C195) ->  | D200: =IF(Jurnal!D195='Buku Besar'!$K$2,Jurnal!H195,"") ->  | F200: =IF(D200="",0,Jurnal!F195) -> 0 | G200: =IF(D200="",0,Jurnal!G195) -> 0
B201: =IF(D201="","",Jurnal!B196) ->  | C201: =IF(D201="","",Jurnal!C196) ->  | D201: =IF(Jurnal!D196='Buku Besar'!$K$2,Jurnal!H196,"") ->  | F201: =IF(D201="",0,Jurnal!F196) -> 0 | G201: =IF(D201="",0,Jurnal!G196) -> 0
B202: =IF(D202="","",Jurnal!B197) ->  | C202: =IF(D202="","",Jurnal!C197) ->  | D202: =IF(Jurnal!D197='Buku Besar'!$K$2,Jurnal!H197,"") ->  | F202: =IF(D202="",0,Jurnal!F197) -> 0 | G202: =IF(D202="",0,Jurnal!G197) -> 0
B203: =IF(D203="","",Jurnal!B198) ->  | C203: =IF(D203="","",Jurnal!C198) ->  | D203: =IF(Jurnal!D198='Buku Besar'!$K$2,Jurnal!H198,"") ->  | F203: =IF(D203="",0,Jurnal!F198) -> 0 | G203: =IF(D203="",0,Jurnal!G198) -> 0
... 4297 more rows

Sheet neraca saldo
A1: aph | C1: =IF(C2=0,"Balance","Tidak Balance") -> Balance
C2: =F240-G240 -> 0 | G2: Silakan klik tombol refresh untuk menampilkan!
C3: =IF(Home!C6="","",Home!C6) -> MADUSUKO MAKMUR
C4: =IF(Home!C8="","",Home!C8) -> SIMPAN PINJAM
C5: NERACA SALDO SETELAH PENYESUAIAN
C6: =IF(Home!C10="","","Per "&TEXT(Home!C10,"DD MMMM YYYY")) -> Per 31 Desember 2023
G7: (dalam Rupiah)
C9: Kode dan Nama Akun | D9: Neraca Percobaan | F9: Saldo
D10: Debit | E10: Kredit | F10: Debit | G10: Kredit | H10: Saldo Akhir | I10: Check | J10: Level 2 | K10: Level 3 | L10: Level 3 | M10: No
A11: =IFERROR(VLOOKUP(C11,saldonormal,2,0),"") -> Debit | B11: =SUBTOTAL(9,$M$11:M11) -> 0 | C11: =COA!C2 -> 1.1.01.01 Kas Tunai | D11: =SUMIF(Jurnal!D:D,'neraca saldo'!C11,Jurnal!F:F) -> 3000000 | E11: =SUMIF(Jurnal!D:D,'neraca saldo'!C11,Jurnal!G:G) -> 0 | F11: =IF(D11>E11,D11-E11,0) -> 3000000 | G11: =IF(E11>D11,E11-D11,0) -> 0 | H11: =IF(A11="Debit",F11-G11,G11-F11) -> 3000000 | I11: =IF(F11=G11,"","V") -> V | J11: =LEFT(C11,3) -> 1.1 | K11: =LEFT(C11,6) -> 1.1.01 | L11: =LEFT(C11,9) -> 1.1.01.01 | M11: 1
A12: =IFERROR(VLOOKUP(C12,saldonormal,2,0),"") -> Debit | B12: =SUBTOTAL(9,$M$11:M12) -> 0 | C12: =COA!C3 -> 1.1.01.02 Kas di Bank BSI | D12: =SUMIF(Jurnal!D:D,'neraca saldo'!C12,Jurnal!F:F) -> 0 | E12: =SUMIF(Jurnal!D:D,'neraca saldo'!C12,Jurnal!G:G) -> 0 | F12: =IF(D12>E12,D12-E12,0) -> 0 | G12: =IF(E12>D12,E12-D12,0) -> 0 | H12: =IF(A12="Debit",F12-G12,G12-F12) -> 0 | I12: =IF(F12=G12,"","V") ->  | J12: =LEFT(C12,3) -> 1.1 | K12: =LEFT(C12,6) -> 1.1.01 | L12: =LEFT(C12,9) -> 1.1.01.02 | M12: 1
A13: Debit | B13: =SUBTOTAL(9,$M$11:M13) -> 0 | C13: =COA!C4 -> 1.1.01.03 Kas di Bank BKK | D13: =SUMIF(Jurnal!D:D,'neraca saldo'!C13,Jurnal!F:F) -> 0 | E13: =SUMIF(Jurnal!D:D,'neraca saldo'!C13,Jurnal!G:G) -> 0 | F13: 0 | G13: 0 | H13: 0 | J13: 1.1 | K13: 1.1.01 | L13: 1.1.01.03 | M13: 1
A14: Debit | B14: =SUBTOTAL(9,$M$11:M14) -> 0 | C14: =COA!C5 -> 1.1.01.04 Kas di Bank BRI | D14: =SUMIF(Jurnal!D:D,'neraca saldo'!C14,Jurnal!F:F) -> 0 | E14: =SUMIF(Jurnal!D:D,'neraca saldo'!C14,Jurnal!G:G) -> 0 | F14: 0 | G14: 0 | H14: 0 | J14: 1.1 | K14: 1.1.01 | L14: 1.1.01.04 | M14: 1
A15: Debit | B15: =SUBTOTAL(9,$M$11:M15) -> 0 | C15: =COA!C6 -> 1.1.01.05 Kas di Bank BPD | D15: =SUMIF(Jurnal!D:D,'neraca saldo'!C15,Jurnal!F:F) -> 0 | E15: =SUMIF(Jurnal!D:D,'neraca saldo'!C15,Jurnal!G:G) -> 0 | F15: 0 | G15: 0 | H15: 0 | J15: 1.1 | K15: 1.1.01 | L15: 1.1.01.05 | M15: 1
A16: Debit | B16: =SUBTOTAL(9,$M$11:M16) -> 0 | C16: =COA!C7 -> 1.1.01.98 Titipan Tabungan Peminjam | D16: =SUMIF(Jurnal!D:D,'neraca saldo'!C16,Jurnal!F:F) -> 0 | E16: =SUMIF(Jurnal!D:D,'neraca saldo'!C16,Jurnal!G:G) -> 0 | F16: 0 | G16: 0 | H16: 0 | J16: 1.1 | K16: 1.1.01 | L16: 1.1.01.98 | M16: 1
A17: Debit | B17: =SUBTOTAL(9,$M$11:M17) -> 0 | C17: =COA!C12 -> 1.1.02.01 Deposito <= 3 bulan | D17: =SUMIF(Jurnal!D:D,'neraca saldo'!C17,Jurnal!F:F) -> 0 | E17: =SUMIF(Jurnal!D:D,'neraca saldo'!C17,Jurnal!G:G) -> 0 | F17: 0 | G17: 0 | H17: 0 | J17: 1.1 | K17: 1.1.02 | L17: 1.1.02.01 | M17: 1
A18: Debit | B18: =SUBTOTAL(9,$M$11:M18) -> 0 | C18: =COA!C13 -> 1.1.02.99 Setara Kas Lainnya | D18: =SUMIF(Jurnal!D:D,'neraca saldo'!C18,Jurnal!F:F) -> 0 | E18: =SUMIF(Jurnal!D:D,'neraca saldo'!C18,Jurnal!G:G) -> 0 | F18: 0 | G18: 0 | H18: 0 | J18: 1.1 | K18: 1.1.02 | L18: 1.1.02.99 | M18: 1
A19: Debit | B19: =SUBTOTAL(9,$M$11:M19) -> 0 | C19: =COA!C14 -> 1.1.03.01 Piutang Usaha | D19: =SUMIF(Jurnal!D:D,'neraca saldo'!C19,Jurnal!F:F) -> 0 | E19: =SUMIF(Jurnal!D:D,'neraca saldo'!C19,Jurnal!G:G) -> 0 | F19: 0 | G19: 0 | H19: 0 | J19: 1.1 | K19: 1.1.03 | L19: 1.1.03.01 | M19: 1
A20: Debit | B20: =SUBTOTAL(9,$M$11:M20) -> 0 | C20: =COA!C15 -> 1.1.03.02 Piutang Pinjaman | D20: =SUMIF(Jurnal!D:D,'neraca saldo'!C20,Jurnal!F:F) -> 0 | E20: =SUMIF(Jurnal!D:D,'neraca saldo'!C20,Jurnal!G:G) -> 0 | F20: 0 | G20: 0 | H20: 0 | J20: 1.1 | K20: 1.1.03 | L20: 1.1.03.02 | M20: 1
A21: Debit | B21: =SUBTOTAL(9,$M$11:M21) -> 0 | C21: =COA!C17 -> 1.1.03.99 Piutang Lainnya | D21: =SUMIF(Jurnal!D:D,'neraca saldo'!C21,Jurnal!F:F) -> 0 | E21: =SUMIF(Jurnal!D:D,'neraca saldo'!C21,Jurnal!G:G) -> 0 | F21: 0 | G21: 0 | H21: 0 | J21: 1.1 | K21: 1.1.03 | L21: 1.1.03.99 | M21: 1
A22: Kredit | B22: =SUBTOTAL(9,$M$11:M22) -> 0 | C22: =COA!C18 -> 1.1.04.01 Penyisihan Piutang Usaha Tak Tertagih | D22: =SUMIF(Jurnal!D:D,'neraca saldo'!C22,Jurnal!F:F) -> 0 | E22: =SUMIF(Jurnal!D:D,'neraca saldo'!C22,Jurnal!G:G) -> 0 | F22: 0 | G22: 0 | H22: 0 | J22: 1.1 | K22: 1.1.04 | L22: 1.1.04.01 | M22: 1
A23: Kredit | B23: =SUBTOTAL(9,$M$11:M23) -> 0 | C23: =COA!C19 -> 1.1.04.02 Penyisihan Piutang kepada Pegawai Tak Tertagih | D23: =SUMIF(Jurnal!D:D,'neraca saldo'!C23,Jurnal!F:F) -> 0 | E23: =SUMIF(Jurnal!D:D,'neraca saldo'!C23,Jurnal!G:G) -> 0 | F23: 0 | G23: 0 | H23: 0 | J23: 1.1 | K23: 1.1.04 | L23: 1.1.04.02 | M23: 1
A24: Kredit | B24: =SUBTOTAL(9,$M$11:M24) -> 0 | C24: =COA!C20 -> 1.1.04.99 Penyisihan Piutang Lainnya Tak Tertagih | D24: =SUMIF(Jurnal!D:D,'neraca saldo'!C24,Jurnal!F:F) -> 0 | E24: =SUMIF(Jurnal!D:D,'neraca saldo'!C24,Jurnal!G:G) -> 0 | F24: 0 | G24: 0 | H24: 0 | J24: 1.1 | K24: 1.1.04 | L24: 1.1.04.99 | M24: 1
A25: Debit | B25: =SUBTOTAL(9,$M$11:M25) -> 0 | C25: =COA!C21 -> 1.1.05.01 Persediaan Barang Dagangan | D25: =SUMIF(Jurnal!D:D,'neraca saldo'!C25,Jurnal!F:F) -> 0 | E25: =SUMIF(Jurnal!D:D,'neraca saldo'!C25,Jurnal!G:G) -> 0 | F25: 0 | G25: 0 | H25: 0 | J25: 1.1 | K25: 1.1.05 | L25: 1.1.05.01 | M25: 1
A26: Debit | B26: =SUBTOTAL(9,$M$11:M26) -> 0 | C26: =COA!C22 -> 1.1.05.02 Persediaan Bahan Baku | D26: =SUMIF(Jurnal!D:D,'neraca saldo'!C26,Jurnal!F:F) -> 0 | E26: =SUMIF(Jurnal!D:D,'neraca saldo'!C26,Jurnal!G:G) -> 0 | F26: 0 | G26: 0 | H26: 0 | J26: 1.1 | K26: 1.1.05 | L26: 1.1.05.02 | M26: 1
A27: Debit | B27: =SUBTOTAL(9,$M$11:M27) -> 0 | C27: =COA!C23 -> 1.1.05.03 Persediaan Barang Dalam Proses | D27: =SUMIF(Jurnal!D:D,'neraca saldo'!C27,Jurnal!F:F) -> 0 | E27: =SUMIF(Jurnal!D:D,'neraca saldo'!C27,Jurnal!G:G) -> 0 | F27: 0 | G27: 0 | H27: 0 | J27: 1.1 | K27: 1.1.05 | L27: 1.1.05.03 | M27: 1
A28: Debit | B28: =SUBTOTAL(9,$M$11:M28) -> 0 | C28: =COA!C24 -> 1.1.05.04 Persediaan Barang Jadi | D28: =SUMIF(Jurnal!D:D,'neraca saldo'!C28,Jurnal!F:F) -> 0 | E28: =SUMIF(Jurnal!D:D,'neraca saldo'!C28,Jurnal!G:G) -> 0 | F28: 0 | G28: 0 | H28: 0 | J28: 1.1 | K28: 1.1.05 | L28: 1.1.05.04 | M28: 1
A29: Debit | B29: =SUBTOTAL(9,$M$11:M29) -> 0 | C29: =COA!C25 -> 1.1.06.01 Alat Tulis Kantor (ATK) | D29: =SUMIF(Jurnal!D:D,'neraca saldo'!C29,Jurnal!F:F) -> 0 | E29: =SUMIF(Jurnal!D:D,'neraca saldo'!C29,Jurnal!G:G) -> 0 | F29: 0 | G29: 0 | H29: 0 | J29: 1.1 | K29: 1.1.06 | L29: 1.1.06.01 | M29: 1
A30: Debit | B30: =SUBTOTAL(9,$M$11:M30) -> 0 | C30: =COA!C26 -> 1.1.07.01 Sewa Dibayar Dimuka | D30: =SUMIF(Jurnal!D:D,'neraca saldo'!C30,Jurnal!F:F) -> 0 | E30: =SUMIF(Jurnal!D:D,'neraca saldo'!C30,Jurnal!G:G) -> 0 | F30: 0 | G30: 0 | H30: 0 | J30: 1.1 | K30: 1.1.07 | L30: 1.1.07.01 | M30: 1
A31: Debit | B31: =SUBTOTAL(9,$M$11:M31) -> 0 | C31: =COA!C27 -> 1.1.07.02 Asuransi Dibayar Dimuka | D31: =SUMIF(Jurnal!D:D,'neraca saldo'!C31,Jurnal!F:F) -> 0 | E31: =SUMIF(Jurnal!D:D,'neraca saldo'!C31,Jurnal!G:G) -> 0 | F31: 0 | G31: 0 | H31: 0 | J31: 1.1 | K31: 1.1.07 | L31: 1.1.07.02 | M31: 1
A32: Debit | B32: =SUBTOTAL(9,$M$11:M32) -> 0 | C32: =COA!C28 -> 1.1.07.03 PPh 25 | D32: =SUMIF(Jurnal!D:D,'neraca saldo'!C32,Jurnal!F:F) -> 0 | E32: =SUMIF(Jurnal!D:D,'neraca saldo'!C32,Jurnal!G:G) -> 0 | F32: 0 | G32: 0 | H32: 0 | J32: 1.1 | K32: 1.1.07 | L32: 1.1.07.03 | M32: 1
A33: Debit | B33: =SUBTOTAL(9,$M$11:M33) -> 0 | C33: =COA!C29 -> 1.1.07.04 PPN Masukan | D33: =SUMIF(Jurnal!D:D,'neraca saldo'!C33,Jurnal!F:F) -> 0 | E33: =SUMIF(Jurnal!D:D,'neraca saldo'!C33,Jurnal!G:G) -> 0 | F33: 0 | G33: 0 | H33: 0 | J33: 1.1 | K33: 1.1.07 | L33: 1.1.07.04 | M33: 1
A34: Debit | B34: =SUBTOTAL(9,$M$11:M34) -> 0 | C34: =COA!C30 -> 1.1.98.99 Aset Lancar Lainnya | D34: =SUMIF(Jurnal!D:D,'neraca saldo'!C34,Jurnal!F:F) -> 0 | E34: =SUMIF(Jurnal!D:D,'neraca saldo'!C34,Jurnal!G:G) -> 0 | F34: 0 | G34: 0 | H34: 0 | J34: 1.1 | K34: 1.1.98 | L34: 1.1.98.99 | M34: 1
A35: Debit | B35: =SUBTOTAL(9,$M$11:M35) -> 0 | C35: =COA!C31 -> 1.1.99.01 RK Unit Wisata | D35: =SUMIF(Jurnal!D:D,'neraca saldo'!C35,Jurnal!F:F) -> 0 | E35: =SUMIF(Jurnal!D:D,'neraca saldo'!C35,Jurnal!G:G) -> 0 | F35: 0 | G35: 0 | H35: 0 | J35: 1.1 | K35: 1.1.99 | L35: 1.1.99.01 | M35: 1
A36: Debit | B36: =SUBTOTAL(9,$M$11:M36) -> 0 | C36: =COA!C32 -> 1.1.99.02 RK Unit Restoran | D36: =SUMIF(Jurnal!D:D,'neraca saldo'!C36,Jurnal!F:F) -> 0 | E36: =SUMIF(Jurnal!D:D,'neraca saldo'!C36,Jurnal!G:G) -> 0 | F36: 0 | G36: 0 | H36: 0 | J36: 1.1 | K36: 1.1.99 | L36: 1.1.99.02 | M36: 1
A37: Debit | B37: =SUBTOTAL(9,$M$11:M37) -> 0 | C37: =COA!C33 -> 1.1.99.03 RK Unit Minimart Desa | D37: =SUMIF(Jurnal!D:D,'neraca saldo'!C37,Jurnal!F:F) -> 0 | E37: =SUMIF(Jurnal!D:D,'neraca saldo'!C37,Jurnal!G:G) -> 0 | F37: 0 | G37: 0 | H37: 0 | J37: 1.1 | K37: 1.1.99 | L37: 1.1.99.03 | M37: 1
A38: Debit | B38: =SUBTOTAL(9,$M$11:M38) -> 0 | C38: =COA!C34 -> 1.1.99.04 RK Unit Gedung Serbaguna | D38: =SUMIF(Jurnal!D:D,'neraca saldo'!C38,Jurnal!F:F) -> 0 | E38: =SUMIF(Jurnal!D:D,'neraca saldo'!C38,Jurnal!G:G) -> 0 | F38: 0 | G38: 0 | H38: 0 | J38: 1.1 | K38: 1.1.99 | L38: 1.1.99.04 | M38: 1
A39: Debit | B39: =SUBTOTAL(9,$M$11:M39) -> 0 | C39: =COA!C35 -> 1.1.99.05 RK Unit Simpan Pinjam | D39: =SUMIF(Jurnal!D:D,'neraca saldo'!C39,Jurnal!F:F) -> 0 | E39: =SUMIF(Jurnal!D:D,'neraca saldo'!C39,Jurnal!G:G) -> 0 | F39: 0 | G39: 0 | H39: 0 | J39: 1.1 | K39: 1.1.99 | L39: 1.1.99.05 | M39: 1
A40: Debit | B40: =SUBTOTAL(9,$M$11:M40) -> 0 | C40: =COA!C36 -> 1.1.99.06 RK Unit Pengelolaan Air Bersih | D40: =SUMIF(Jurnal!D:D,'neraca saldo'!C40,Jurnal!F:F) -> 0 | E40: =SUMIF(Jurnal!D:D,'neraca saldo'!C40,Jurnal!G:G) -> 0 | F40: 0 | G40: 0 | H40: 0 | J40: 1.1 | K40: 1.1.99 | L40: 1.1.99.06 | M40: 1
A41: Debit | B41: =SUBTOTAL(9,$M$11:M41) -> 0 | C41: =COA!C37 -> 1.1.99.07 RK Unit Pengelolaan Sampah | D41: =SUMIF(Jurnal!D:D,'neraca saldo'!C41,Jurnal!F:F) -> 0 | E41: =SUMIF(Jurnal!D:D,'neraca saldo'!C41,Jurnal!G:G) -> 0 | F41: 0 | G41: 0 | H41: 0 | J41: 1.1 | K41: 1.1.99 | L41: 1.1.99.07 | M41: 1
A42: Debit | B42: =SUBTOTAL(9,$M$11:M42) -> 0 | C42: =COA!C38 -> 1.2.01.01 Deposito > 3 bulan | D42: =SUMIF(Jurnal!D:D,'neraca saldo'!C42,Jurnal!F:F) -> 0 | E42: =SUMIF(Jurnal!D:D,'neraca saldo'!C42,Jurnal!G:G) -> 0 | F42: 0 | G42: 0 | H42: 0 | J42: 1.2 | K42: 1.2.01 | L42: 1.2.01.01 | M42: 1
A43: Debit | B43: =SUBTOTAL(9,$M$11:M43) -> 0 | C43: =COA!C39 -> 1.2.01.99 Investasi Lainnya | D43: =SUMIF(Jurnal!D:D,'neraca saldo'!C43,Jurnal!F:F) -> 0 | E43: =SUMIF(Jurnal!D:D,'neraca saldo'!C43,Jurnal!G:G) -> 0 | F43: 0 | G43: 0 | H43: 0 | J43: 1.2 | K43: 1.2.01 | L43: 1.2.01.99 | M43: 1
A44: Debit | B44: =SUBTOTAL(9,$M$11:M44) -> 0 | C44: =COA!C40 -> 1.3.01.01 Tanah | D44: =SUMIF(Jurnal!D:D,'neraca saldo'!C44,Jurnal!F:F) -> 0 | E44: =SUMIF(Jurnal!D:D,'neraca saldo'!C44,Jurnal!G:G) -> 0 | F44: 0 | G44: 0 | H44: 0 | J44: 1.3 | K44: 1.3.01 | L44: 1.3.01.01 | M44: 1
A45: Debit | B45: =SUBTOTAL(9,$M$11:M45) -> 0 | C45: =COA!C41 -> 1.3.02.01 Kendaraan | D45: =SUMIF(Jurnal!D:D,'neraca saldo'!C45,Jurnal!F:F) -> 0 | E45: =SUMIF(Jurnal!D:D,'neraca saldo'!C45,Jurnal!G:G) -> 0 | F45: 0 | G45: 0 | H45: 0 | J45: 1.3 | K45: 1.3.02 | L45: 1.3.02.01 | M45: 1
A46: Debit | B46: =SUBTOTAL(9,$M$11:M46) -> 0 | C46: =COA!C42 -> 1.3.03.01 Peralatan dan Mesin | D46: =SUMIF(Jurnal!D:D,'neraca saldo'!C46,Jurnal!F:F) -> 0 | E46: =SUMIF(Jurnal!D:D,'neraca saldo'!C46,Jurnal!G:G) -> 0 | F46: 0 | G46: 0 | H46: 0 | J46: 1.3 | K46: 1.3.03 | L46: 1.3.03.01 | M46: 1
A47: Debit | B47: =SUBTOTAL(9,$M$11:M47) -> 0 | C47: =COA!C43 -> 1.3.04.01 Meubelair | D47: =SUMIF(Jurnal!D:D,'neraca saldo'!C47,Jurnal!F:F) -> 0 | E47: =SUMIF(Jurnal!D:D,'neraca saldo'!C47,Jurnal!G:G) -> 0 | F47: 0 | G47: 0 | H47: 0 | J47: 1.3 | K47: 1.3.04 | L47: 1.3.04.01 | M47: 1
A48: Debit | B48: =SUBTOTAL(9,$M$11:M48) -> 0 | C48: =COA!C44 -> 1.3.05.01 Gedung dan Bangunan | D48: =SUMIF(Jurnal!D:D,'neraca saldo'!C48,Jurnal!F:F) -> 0 | E48: =SUMIF(Jurnal!D:D,'neraca saldo'!C48,Jurnal!G:G) -> 0 | F48: 0 | G48: 0 | H48: 0 | J48: 1.3 | K48: 1.3.05 | L48: 1.3.05.01 | M48: 1
A49: Debit | B49: =SUBTOTAL(9,$M$11:M49) -> 0 | C49: =COA!C45 -> 1.3.06.01 Konstruksi Dalam Pengerjaan | D49: =SUMIF(Jurnal!D:D,'neraca saldo'!C49,Jurnal!F:F) -> 0 | E49: =SUMIF(Jurnal!D:D,'neraca saldo'!C49,Jurnal!G:G) -> 0 | F49: 0 | G49: 0 | H49: 0 | J49: 1.3 | K49: 1.3.06 | L49: 1.3.06.01 | M49: 1
A50: Kredit | B50: =SUBTOTAL(9,$M$11:M50) -> 0 | C50: =COA!C46 -> 1.3.07.01 Akumulasi Penyusutan Kendaraan | D50: =SUMIF(Jurnal!D:D,'neraca saldo'!C50,Jurnal!F:F) -> 0 | E50: =SUMIF(Jurnal!D:D,'neraca saldo'!C50,Jurnal!G:G) -> 0 | F50: 0 | G50: 0 | H50: 0 | J50: 1.3 | K50: 1.3.07 | L50: 1.3.07.01 | M50: 1
A51: Kredit | B51: =SUBTOTAL(9,$M$11:M51) -> 0 | C51: =COA!C47 -> 1.3.07.02 Akumulasi Penyusutan Peralatan dan Mesin | D51: =SUMIF(Jurnal!D:D,'neraca saldo'!C51,Jurnal!F:F) -> 0 | E51: =SUMIF(Jurnal!D:D,'neraca saldo'!C51,Jurnal!G:G) -> 0 | F51: 0 | G51: 0 | H51: 0 | J51: 1.3 | K51: 1.3.07 | L51: 1.3.07.02 | M51: 1
A52: Kredit | B52: =SUBTOTAL(9,$M$11:M52) -> 0 | C52: =COA!C48 -> 1.3.07.03 Akumulasi Penyusutan Meubelair | D52: =SUMIF(Jurnal!D:D,'neraca saldo'!C52,Jurnal!F:F) -> 0 | E52: =SUMIF(Jurnal!D:D,'neraca saldo'!C52,Jurnal!G:G) -> 0 | F52: 0 | G52: 0 | H52: 0 | J52: 1.3 | K52: 1.3.07 | L52: 1.3.07.03 | M52: 1
A53: Kredit | B53: =SUBTOTAL(9,$M$11:M53) -> 0 | C53: =COA!C49 -> 1.3.07.04 Akumulasi Penyusutan Gedung dan Bangunan | D53: =SUMIF(Jurnal!D:D,'neraca saldo'!C53,Jurnal!F:F) -> 0 | E53: =SUMIF(Jurnal!D:D,'neraca saldo'!C53,Jurnal!G:G) -> 0 | F53: 0 | G53: 0 | H53: 0 | J53: 1.3 | K53: 1.3.07 | L53: 1.3.07.04 | M53: 1
A54: Debit | B54: =SUBTOTAL(9,$M$11:M54) -> 0 | C54: =COA!C50 -> 1.3.99.99 Aset Tetap Lainnya | D54: =SUMIF(Jurnal!D:D,'neraca saldo'!C54,Jurnal!F:F) -> 0 | E54: =SUMIF(Jurnal!D:D,'neraca saldo'!C54,Jurnal!G:G) -> 0 | F54: 0 | G54: 0 | H54: 0 | J54: 1.3 | K54: 1.3.99 | L54: 1.3.99.99 | M54: 1
A55: Debit | B55: =SUBTOTAL(9,$M$11:M55) -> 0 | C55: =COA!C51 -> 1.4.01.01 Software | D55: =SUMIF(Jurnal!D:D,'neraca saldo'!C55,Jurnal!F:F) -> 0 | E55: =SUMIF(Jurnal!D:D,'neraca saldo'!C55,Jurnal!G:G) -> 0 | F55: 0 | G55: 0 | H55: 0 | J55: 1.4 | K55: 1.4.01 | L55: 1.4.01.01 | M55: 1
A56: Debit | B56: =SUBTOTAL(9,$M$11:M56) -> 0 | C56: =COA!C52 -> 1.4.01.02 Patent | D56: =SUMIF(Jurnal!D:D,'neraca saldo'!C56,Jurnal!F:F) -> 0 | E56: =SUMIF(Jurnal!D:D,'neraca saldo'!C56,Jurnal!G:G) -> 0 | F56: 0 | G56: 0 | H56: 0 | J56: 1.4 | K56: 1.4.01 | L56: 1.4.01.02 | M56: 1
A57: Debit | B57: =SUBTOTAL(9,$M$11:M57) -> 0 | C57: =COA!C53 -> 1.4.01.03 Trademark | D57: =SUMIF(Jurnal!D:D,'neraca saldo'!C57,Jurnal!F:F) -> 0 | E57: =SUMIF(Jurnal!D:D,'neraca saldo'!C57,Jurnal!G:G) -> 0 | F57: 0 | G57: 0 | H57: 0 | J57: 1.4 | K57: 1.4.01 | L57: 1.4.01.03 | M57: 1
A58: Kredit | B58: =SUBTOTAL(9,$M$11:M58) -> 0 | C58: =COA!C54 -> 1.4.02.01 Amortisasi Aset takberwujud | D58: =SUMIF(Jurnal!D:D,'neraca saldo'!C58,Jurnal!F:F) -> 0 | E58: =SUMIF(Jurnal!D:D,'neraca saldo'!C58,Jurnal!G:G) -> 0 | F58: 0 | G58: 0 | H58: 0 | J58: 1.4 | K58: 1.4.02 | L58: 1.4.02.01 | M58: 1
A59: Debit | B59: =SUBTOTAL(9,$M$11:M59) -> 0 | C59: =COA!C55 -> 1.9.01.01 Aset Lain-lain | D59: =SUMIF(Jurnal!D:D,'neraca saldo'!C59,Jurnal!F:F) -> 0 | E59: =SUMIF(Jurnal!D:D,'neraca saldo'!C59,Jurnal!G:G) -> 0 | F59: 0 | G59: 0 | H59: 0 | J59: 1.9 | K59: 1.9.01 | L59: 1.9.01.01 | M59: 1
A60: Kredit | B60: =SUBTOTAL(9,$M$11:M60) -> 0 | C60: =COA!C56 -> 1.9.01.02 Akumulasi Penyusutan Aset Lain-lain | D60: =SUMIF(Jurnal!D:D,'neraca saldo'!C60,Jurnal!F:F) -> 0 | E60: =SUMIF(Jurnal!D:D,'neraca saldo'!C60,Jurnal!G:G) -> 0 | F60: 0 | G60: 0 | H60: 0 | J60: 1.9 | K60: 1.9.01 | L60: 1.9.01.02 | M60: 1
A61: Kredit | B61: =SUBTOTAL(9,$M$11:M61) -> 0 | C61: =COA!C57 -> 2.1.01.01 Utang Usaha | D61: =SUMIF(Jurnal!D:D,'neraca saldo'!C61,Jurnal!F:F) -> 0 | E61: =SUMIF(Jurnal!D:D,'neraca saldo'!C61,Jurnal!G:G) -> 0 | F61: 0 | G61: 0 | H61: 0 | J61: 2.1 | K61: 2.1.01 | L61: 2.1.01.01 | M61: 1
A62: Kredit | B62: =SUBTOTAL(9,$M$11:M62) -> 0 | C62: =COA!C58 -> 2.1.02.01 PPN Keluaran | D62: =SUMIF(Jurnal!D:D,'neraca saldo'!C62,Jurnal!F:F) -> 0 | E62: =SUMIF(Jurnal!D:D,'neraca saldo'!C62,Jurnal!G:G) -> 0 | F62: 0 | G62: 0 | H62: 0 | J62: 2.1 | K62: 2.1.02 | L62: 2.1.02.01 | M62: 1
A63: Kredit | B63: =SUBTOTAL(9,$M$11:M63) -> 0 | C63: =COA!C59 -> 2.1.02.02 PPh 21 | D63: =SUMIF(Jurnal!D:D,'neraca saldo'!C63,Jurnal!F:F) -> 0 | E63: =SUMIF(Jurnal!D:D,'neraca saldo'!C63,Jurnal!G:G) -> 0 | F63: 0 | G63: 0 | H63: 0 | J63: 2.1 | K63: 2.1.02 | L63: 2.1.02.02 | M63: 1
A64: Kredit | B64: =SUBTOTAL(9,$M$11:M64) -> 0 | C64: =COA!C60 -> 2.1.02.03 PPh 23 | D64: =SUMIF(Jurnal!D:D,'neraca saldo'!C64,Jurnal!F:F) -> 0 | E64: =SUMIF(Jurnal!D:D,'neraca saldo'!C64,Jurnal!G:G) -> 0 | F64: 0 | G64: 0 | H64: 0 | J64: 2.1 | K64: 2.1.02 | L64: 2.1.02.03 | M64: 1
A65: Kredit | B65: =SUBTOTAL(9,$M$11:M65) -> 0 | C65: =COA!C61 -> 2.1.02.04 PPh 29 | D65: =SUMIF(Jurnal!D:D,'neraca saldo'!C65,Jurnal!F:F) -> 0 | E65: =SUMIF(Jurnal!D:D,'neraca saldo'!C65,Jurnal!G:G) -> 0 | F65: 0 | G65: 0 | H65: 0 | J65: 2.1 | K65: 2.1.02 | L65: 2.1.02.04 | M65: 1
A66: Kredit | B66: =SUBTOTAL(9,$M$11:M66) -> 0 | C66: =COA!C62 -> 2.1.03.01 Utang Gaji dan Tunjangan | D66: =SUMIF(Jurnal!D:D,'neraca saldo'!C66,Jurnal!F:F) -> 0 | E66: =SUMIF(Jurnal!D:D,'neraca saldo'!C66,Jurnal!G:G) -> 0 | F66: 0 | G66: 0 | H66: 0 | J66: 2.1 | K66: 2.1.03 | L66: 2.1.03.01 | M66: 1
A67: Kredit | B67: =SUBTOTAL(9,$M$11:M67) -> 0 | C67: =COA!C63 -> 2.1.03.02 Utang Gaji/Upah Karyawan | D67: =SUMIF(Jurnal!D:D,'neraca saldo'!C67,Jurnal!F:F) -> 0 | E67: =SUMIF(Jurnal!D:D,'neraca saldo'!C67,Jurnal!G:G) -> 0 | F67: 0 | G67: 0 | H67: 0 | J67: 2.1 | K67: 2.1.03 | L67: 2.1.03.02 | M67: 1
A68: Kredit | B68: =SUBTOTAL(9,$M$11:M68) -> 0 | C68: =COA!C64 -> 2.1.04.01 Utang Listrik | D68: =SUMIF(Jurnal!D:D,'neraca saldo'!C68,Jurnal!F:F) -> 0 | E68: =SUMIF(Jurnal!D:D,'neraca saldo'!C68,Jurnal!G:G) -> 0 | F68: 0 | G68: 0 | H68: 0 | J68: 2.1 | K68: 2.1.04 | L68: 2.1.04.01 | M68: 1
A69: Kredit | B69: =SUBTOTAL(9,$M$11:M69) -> 0 | C69: =COA!C65 -> 2.1.04.02 Utang Telepon/Internet | D69: =SUMIF(Jurnal!D:D,'neraca saldo'!C69,Jurnal!F:F) -> 0 | E69: =SUMIF(Jurnal!D:D,'neraca saldo'!C69,Jurnal!G:G) -> 0 | F69: 0 | G69: 0 | H69: 0 | J69: 2.1 | K69: 2.1.04 | L69: 2.1.04.02 | M69: 1
A70: Kredit | B70: =SUBTOTAL(9,$M$11:M70) -> 0 | C70: =COA!C66 -> 2.1.04.93 Utang Utilitas Lainnya | D70: =SUMIF(Jurnal!D:D,'neraca saldo'!C70,Jurnal!F:F) -> 0 | E70: =SUMIF(Jurnal!D:D,'neraca saldo'!C70,Jurnal!G:G) -> 0 | F70: 0 | G70: 0 | H70: 0 | J70: 2.1 | K70: 2.1.04 | L70: 2.1.04.93 | M70: 1
A71: Kredit | B71: =SUBTOTAL(9,$M$11:M71) -> 0 | C71: =COA!C67 -> 2.1.05.01 Utang kepada Pihak Ketiga Jk. Pendek | D71: =SUMIF(Jurnal!D:D,'neraca saldo'!C71,Jurnal!F:F) -> 0 | E71: =SUMIF(Jurnal!D:D,'neraca saldo'!C71,Jurnal!G:G) -> 0 | F71: 0 | G71: 0 | H71: 0 | J71: 2.1 | K71: 2.1.05 | L71: 2.1.05.01 | M71: 1
A72: Kredit | B72: =SUBTOTAL(9,$M$11:M72) -> 0 | C72: =COA!C68 -> 2.1.05.99 Utang kepada Pihak Ketiga Jk. Pendek Lainnya | D72: =SUMIF(Jurnal!D:D,'neraca saldo'!C72,Jurnal!F:F) -> 0 | E72: =SUMIF(Jurnal!D:D,'neraca saldo'!C72,Jurnal!G:G) -> 0 | F72: 0 | G72: 0 | H72: 0 | J72: 2.1 | K72: 2.1.05 | L72: 2.1.05.99 | M72: 1
A73: Kredit | B73: =SUBTOTAL(9,$M$11:M73) -> 0 | C73: =COA!C69 -> 2.1.09.99 Utang Jangka Pendek Lainnya | D73: =SUMIF(Jurnal!D:D,'neraca saldo'!C73,Jurnal!F:F) -> 0 | E73: =SUMIF(Jurnal!D:D,'neraca saldo'!C73,Jurnal!G:G) -> 0 | F73: 0 | G73: 0 | H73: 0 | J73: 2.1 | K73: 2.1.09 | L73: 2.1.09.99 | M73: 1
A74: Kredit | B74: =SUBTOTAL(9,$M$11:M74) -> 0 | C74: =COA!C70 -> 2.2.01.01 Utang Ke Bank | D74: =SUMIF(Jurnal!D:D,'neraca saldo'!C74,Jurnal!F:F) -> 0 | E74: =SUMIF(Jurnal!D:D,'neraca saldo'!C74,Jurnal!G:G) -> 0 | F74: 0 | G74: 0 | H74: 0 | J74: 2.2 | K74: 2.2.01 | L74: 2.2.01.01 | M74: 1
A75: Kredit | B75: =SUBTOTAL(9,$M$11:M75) -> 0 | C75: =COA!C71 -> 2.2.02.01 Utang kepada Pihak Ketiga Jk. Panjang | D75: =SUMIF(Jurnal!D:D,'neraca saldo'!C75,Jurnal!F:F) -> 0 | E75: =SUMIF(Jurnal!D:D,'neraca saldo'!C75,Jurnal!G:G) -> 0 | F75: 0 | G75: 0 | H75: 0 | J75: 2.2 | K75: 2.2.02 | L75: 2.2.02.01 | M75: 1
A76: =IFERROR(VLOOKUP(C76,saldonormal,2,0),"") -> Kredit | B76: =SUBTOTAL(9,$M$11:M76) -> 0 | C76: =COA!C72 -> 2.2.99.99 Utang Jangka Panjang Lainnya | D76: =SUMIF(Jurnal!D:D,'neraca saldo'!C76,Jurnal!F:F) -> 0 | E76: =SUMIF(Jurnal!D:D,'neraca saldo'!C76,Jurnal!G:G) -> 0 | F76: =IF(D76>E76,D76-E76,0) -> 0 | G76: =IF(E76>D76,E76-D76,0) -> 0 | H76: =IF(A76="Debit",F76-G76,G76-F76) -> 0 | I76: =IF(F76=G76,"","V") ->  | J76: =LEFT(C76,3) -> 2.2 | K76: =LEFT(C76,6) -> 2.2.99 | L76: =LEFT(C76,9) -> 2.2.99.99 | M76: 1
A77: Kredit | B77: =SUBTOTAL(9,$M$11:M77) -> 0 | C77: =COA!C73 -> 3.1.01.01 Penyertaan Modal Desa | D77: =SUMIF(Jurnal!D:D,'neraca saldo'!C77,Jurnal!F:F) -> 0 | E77: =SUMIF(Jurnal!D:D,'neraca saldo'!C77,Jurnal!G:G) -> 3000000 | F77: 0 | G77: 3000000 | H77: 3000000 | I77: V | J77: 3.1 | K77: 3.1.01 | L77: 3.1.01.01 | M77: 1
A78: Kredit | B78: =SUBTOTAL(9,$M$11:M78) -> 0 | C78: =COA!C74 -> 3.1.01.02 Penyertaan Modal Desa A | D78: =SUMIF(Jurnal!D:D,'neraca saldo'!C78,Jurnal!F:F) -> 0 | E78: =SUMIF(Jurnal!D:D,'neraca saldo'!C78,Jurnal!G:G) -> 0 | F78: 0 | G78: 0 | H78: 0 | J78: 3.1 | K78: 3.1.01 | L78: 3.1.01.02 | M78: 1
A79: Kredit | B79: =SUBTOTAL(9,$M$11:M79) -> 0 | C79: =COA!C75 -> 3.1.01.03 Penyertaan Modal Desa B | D79: =SUMIF(Jurnal!D:D,'neraca saldo'!C79,Jurnal!F:F) -> 0 | E79: =SUMIF(Jurnal!D:D,'neraca saldo'!C79,Jurnal!G:G) -> 0 | F79: 0 | G79: 0 | H79: 0 | J79: 3.1 | K79: 3.1.01 | L79: 3.1.01.03 | M79: 1
A80: Kredit | B80: =SUBTOTAL(9,$M$11:M80) -> 0 | C80: =COA!C76 -> 3.1.01.04 Penyertaan Modal Desa C | D80: =SUMIF(Jurnal!D:D,'neraca saldo'!C80,Jurnal!F:F) -> 0 | E80: =SUMIF(Jurnal!D:D,'neraca saldo'!C80,Jurnal!G:G) -> 0 | F80: 0 | G80: 0 | H80: 0 | J80: 3.1 | K80: 3.1.01 | L80: 3.1.01.04 | M80: 1
A81: Kredit | B81: =SUBTOTAL(9,$M$11:M81) -> 0 | C81: =COA!C77 -> 3.1.02.01 Penyertaan Modal Masyarakat | D81: =SUMIF(Jurnal!D:D,'neraca saldo'!C81,Jurnal!F:F) -> 0 | E81: =SUMIF(Jurnal!D:D,'neraca saldo'!C81,Jurnal!G:G) -> 0 | F81: 0 | G81: 0 | H81: 0 | J81: 3.1 | K81: 3.1.02 | L81: 3.1.02.01 | M81: 1
A82: Kredit | B82: =SUBTOTAL(9,$M$11:M82) -> 0 | C82: =COA!C78 -> 3.1.02.02 Penyertaan Modal Masyarakat Desa A | D82: =SUMIF(Jurnal!D:D,'neraca saldo'!C82,Jurnal!F:F) -> 0 | E82: =SUMIF(Jurnal!D:D,'neraca saldo'!C82,Jurnal!G:G) -> 0 | F82: 0 | G82: 0 | H82: 0 | J82: 3.1 | K82: 3.1.02 | L82: 3.1.02.02 | M82: 1
A83: Kredit | B83: =SUBTOTAL(9,$M$11:M83) -> 0 | C83: =COA!C79 -> 3.1.02.03 Penyertaan Modal Masyarakat Desa B | D83: =SUMIF(Jurnal!D:D,'neraca saldo'!C83,Jurnal!F:F) -> 0 | E83: =SUMIF(Jurnal!D:D,'neraca saldo'!C83,Jurnal!G:G) -> 0 | F83: 0 | G83: 0 | H83: 0 | J83: 3.1 | K83: 3.1.02 | L83: 3.1.02.03 | M83: 1
A84: Kredit | B84: =SUBTOTAL(9,$M$11:M84) -> 0 | C84: =COA!C80 -> 3.1.02.04 Penyertaan Modal Masyarakat Desa C | D84: =SUMIF(Jurnal!D:D,'neraca saldo'!C84,Jurnal!F:F) -> 0 | E84: =SUMIF(Jurnal!D:D,'neraca saldo'!C84,Jurnal!G:G) -> 0 | F84: 0 | G84: 0 | H84: 0 | J84: 3.1 | K84: 3.1.02 | L84: 3.1.02.04 | M84: 1
A85: Debit | B85: =SUBTOTAL(9,$M$11:M85) -> 0 | C85: =COA!C81 -> 3.2.01.01 Bagi Hasil Penyertaan Modal Desa | D85: =SUMIF(Jurnal!D:D,'neraca saldo'!C85,Jurnal!F:F) -> 0 | E85: =SUMIF(Jurnal!D:D,'neraca saldo'!C85,Jurnal!G:G) -> 0 | F85: 0 | G85: 0 | H85: 0 | J85: 3.2 | K85: 3.2.01 | L85: 3.2.01.01 | M85: 1
A86: Debit | B86: =SUBTOTAL(9,$M$11:M86) -> 0 | C86: =COA!C82 -> 3.2.01.02 Bagi Hasil Penyertaan Modal Desa A | D86: =SUMIF(Jurnal!D:D,'neraca saldo'!C86,Jurnal!F:F) -> 0 | E86: =SUMIF(Jurnal!D:D,'neraca saldo'!C86,Jurnal!G:G) -> 0 | F86: 0 | G86: 0 | H86: 0 | J86: 3.2 | K86: 3.2.01 | L86: 3.2.01.02 | M86: 1
A87: Debit | B87: =SUBTOTAL(9,$M$11:M87) -> 0 | C87: =COA!C83 -> 3.2.01.03 Bagi Hasil Penyertaan Modal Desa B | D87: =SUMIF(Jurnal!D:D,'neraca saldo'!C87,Jurnal!F:F) -> 0 | E87: =SUMIF(Jurnal!D:D,'neraca saldo'!C87,Jurnal!G:G) -> 0 | F87: 0 | G87: 0 | H87: 0 | J87: 3.2 | K87: 3.2.01 | L87: 3.2.01.03 | M87: 1
A88: Debit | B88: =SUBTOTAL(9,$M$11:M88) -> 0 | C88: =COA!C84 -> 3.2.01.04 Bagi Hasil Penyertaan Modal Desa C | D88: =SUMIF(Jurnal!D:D,'neraca saldo'!C88,Jurnal!F:F) -> 0 | E88: =SUMIF(Jurnal!D:D,'neraca saldo'!C88,Jurnal!G:G) -> 0 | F88: 0 | G88: 0 | H88: 0 | J88: 3.2 | K88: 3.2.01 | L88: 3.2.01.04 | M88: 1
A89: Debit | B89: =SUBTOTAL(9,$M$11:M89) -> 0 | C89: =COA!C85 -> 3.2.02.01 Bagi Hasil Penyertaan Modal Masyarakat | D89: =SUMIF(Jurnal!D:D,'neraca saldo'!C89,Jurnal!F:F) -> 0 | E89: =SUMIF(Jurnal!D:D,'neraca saldo'!C89,Jurnal!G:G) -> 0 | F89: 0 | G89: 0 | H89: 0 | J89: 3.2 | K89: 3.2.02 | L89: 3.2.02.01 | M89: 1
A90: Debit | B90: =SUBTOTAL(9,$M$11:M90) -> 0 | C90: =COA!C86 -> 3.2.02.02 Bagi Hasil Penyertaan Modal Masyarakat Desa A | D90: =SUMIF(Jurnal!D:D,'neraca saldo'!C90,Jurnal!F:F) -> 0 | E90: =SUMIF(Jurnal!D:D,'neraca saldo'!C90,Jurnal!G:G) -> 0 | F90: 0 | G90: 0 | H90: 0 | J90: 3.2 | K90: 3.2.02 | L90: 3.2.02.02 | M90: 1
A91: Debit | B91: =SUBTOTAL(9,$M$11:M91) -> 0 | C91: =COA!C87 -> 3.2.02.03 Bagi Hasil Penyertaan Modal Masyarakat Desa B | D91: =SUMIF(Jurnal!D:D,'neraca saldo'!C91,Jurnal!F:F) -> 0 | E91: =SUMIF(Jurnal!D:D,'neraca saldo'!C91,Jurnal!G:G) -> 0 | F91: 0 | G91: 0 | H91: 0 | J91: 3.2 | K91: 3.2.02 | L91: 3.2.02.03 | M91: 1
A92: Debit | B92: =SUBTOTAL(9,$M$11:M92) -> 0 | C92: =COA!C88 -> 3.2.02.04 Bagi Hasil Penyertaan Modal Masyarakat Desa C | D92: =SUMIF(Jurnal!D:D,'neraca saldo'!C92,Jurnal!F:F) -> 0 | E92: =SUMIF(Jurnal!D:D,'neraca saldo'!C92,Jurnal!G:G) -> 0 | F92: 0 | G92: 0 | H92: 0 | J92: 3.2 | K92: 3.2.02 | L92: 3.2.02.04 | M92: 1
A93: Kredit | B93: =SUBTOTAL(9,$M$11:M93) -> 0 | C93: =COA!C89 -> 3.3.01.01 Saldo Laba Tidak Dicadangkan | D93: =SUMIF(Jurnal!D:D,'neraca saldo'!C93,Jurnal!F:F) -> 0 | E93: =SUMIF(Jurnal!D:D,'neraca saldo'!C93,Jurnal!G:G) -> 0 | F93: 0 | G93: 0 | H93: 0 | J93: 3.3 | K93: 3.3.01 | L93: 3.3.01.01 | M93: 1
A94: Kredit | B94: =SUBTOTAL(9,$M$11:M94) -> 0 | C94: =COA!C90 -> 3.3.02.01 Saldo Laba Dicadangkan untuk Pembelian Aset Tetap | D94: =SUMIF(Jurnal!D:D,'neraca saldo'!C94,Jurnal!F:F) -> 0 | E94: =SUMIF(Jurnal!D:D,'neraca saldo'!C94,Jurnal!G:G) -> 0 | F94: 0 | G94: 0 | H94: 0 | J94: 3.3 | K94: 3.3.02 | L94: 3.3.02.01 | M94: 1
A95: Kredit | B95: =SUBTOTAL(9,$M$11:M95) -> 0 | C95: =COA!C91 -> 3.3.01.02 Saldo Laba Dicadangkan untuk Pembayaran Utang Jangka Panjang | D95: =SUMIF(Jurnal!D:D,'neraca saldo'!C95,Jurnal!F:F) -> 0 | E95: =SUMIF(Jurnal!D:D,'neraca saldo'!C95,Jurnal!G:G) -> 0 | F95: 0 | G95: 0 | H95: 0 | J95: 3.3 | K95: 3.3.01 | L95: 3.3.01.02 | M95: 1
A96: Kredit | B96: =SUBTOTAL(9,$M$11:M96) -> 0 | C96: =COA!C92 -> 3.4.01.01 Modal Donasi/Sumbangan | D96: =SUMIF(Jurnal!D:D,'neraca saldo'!C96,Jurnal!F:F) -> 0 | E96: =SUMIF(Jurnal!D:D,'neraca saldo'!C96,Jurnal!G:G) -> 0 | F96: 0 | G96: 0 | H96: 0 | J96: 3.4 | K96: 3.4.01 | L96: 3.4.01.01 | M96: 1
A97: Kredit | B97: =SUBTOTAL(9,$M$11:M97) -> 0 | C97: =COA!C93 -> 3.8.01.01 RK Pusat | D97: =SUMIF(Jurnal!D:D,'neraca saldo'!C97,Jurnal!F:F) -> 0 | E97: =SUMIF(Jurnal!D:D,'neraca saldo'!C97,Jurnal!G:G) -> 0 | F97: 0 | G97: 0 | H97: 0 | J97: 3.8 | K97: 3.8.01 | L97: 3.8.01.01 | M97: 1
A98: Kredit | B98: =SUBTOTAL(9,$M$11:M98) -> 0 | C98: =COA!C94 -> 3.9.01.01 Ikhtisar Laba Rugi | D98: =SUMIF(Jurnal!D:D,'neraca saldo'!C98,Jurnal!F:F) -> 0 | E98: =SUMIF(Jurnal!D:D,'neraca saldo'!C98,Jurnal!G:G) -> 0 | F98: 0 | G98: 0 | H98: 0 | J98: 3.9 | K98: 3.9.01 | L98: 3.9.01.01 | M98: 1
A99: Kredit | B99: =SUBTOTAL(9,$M$11:M99) -> 0 | C99: =COA!C95 -> 4.1.01.01 Pendapatan Tiket | D99: =SUMIF(Jurnal!D:D,'neraca saldo'!C99,Jurnal!F:F) -> 0 | E99: =SUMIF(Jurnal!D:D,'neraca saldo'!C99,Jurnal!G:G) -> 0 | F99: 0 | G99: 0 | H99: 0 | J99: 4.1 | K99: 4.1.01 | L99: 4.1.01.01 | M99: 1
A100: Kredit | B100: =SUBTOTAL(9,$M$11:M100) -> 0 | C100: =COA!C96 -> 4.1.01.02 Pendapatan Wahana | D100: =SUMIF(Jurnal!D:D,'neraca saldo'!C100,Jurnal!F:F) -> 0 | E100: =SUMIF(Jurnal!D:D,'neraca saldo'!C100,Jurnal!G:G) -> 0 | F100: 0 | G100: 0 | H100: 0 | J100: 4.1 | K100: 4.1.01 | L100: 4.1.01.02 | M100: 1
A101: Kredit | B101: =SUBTOTAL(9,$M$11:M101) -> 0 | C101: =COA!C97 -> 4.1.01.03 Pendapatan Paket Wisata | D101: =SUMIF(Jurnal!D:D,'neraca saldo'!C101,Jurnal!F:F) -> 0 | E101: =SUMIF(Jurnal!D:D,'neraca saldo'!C101,Jurnal!G:G) -> 0 | F101: 0 | G101: 0 | H101: 0 | J101: 4.1 | K101: 4.1.01 | L101: 4.1.01.03 | M101: 1
A102: Kredit | B102: =SUBTOTAL(9,$M$11:M102) -> 0 | C102: =COA!C98 -> 4.1.02.01 Pendapatan Pengelolaan Air Bersih | D102: =SUMIF(Jurnal!D:D,'neraca saldo'!C102,Jurnal!F:F) -> 0 | E102: =SUMIF(Jurnal!D:D,'neraca saldo'!C102,Jurnal!G:G) -> 0 | F102: 0 | G102: 0 | H102: 0 | J102: 4.1 | K102: 4.1.02 | L102: 4.1.02.01 | M102: 1
A103: Kredit | B103: =SUBTOTAL(9,$M$11:M103) -> 0 | C103: =COA!C99 -> 4.1.03.01 Pendapatan Pengelolaan Sampah | D103: =SUMIF(Jurnal!D:D,'neraca saldo'!C103,Jurnal!F:F) -> 0 | E103: =SUMIF(Jurnal!D:D,'neraca saldo'!C103,Jurnal!G:G) -> 0 | F103: 0 | G103: 0 | H103: 0 | J103: 4.1 | K103: 4.1.03 | L103: 4.1.03.01 | M103: 1
A104: Kredit | B104: =SUBTOTAL(9,$M$11:M104) -> 0 | C104: =COA!C100 -> 4.1.04.01 Pendapatan Sewa Tempat Outbound | D104: =SUMIF(Jurnal!D:D,'neraca saldo'!C104,Jurnal!F:F) -> 0 | E104: =SUMIF(Jurnal!D:D,'neraca saldo'!C104,Jurnal!G:G) -> 0 | F104: 0 | G104: 0 | H104: 0 | J104: 4.1 | K104: 4.1.04 | L104: 4.1.04.01 | M104: 1
A105: Kredit | B105: =SUBTOTAL(9,$M$11:M105) -> 0 | C105: =COA!C101 -> 4.1.04.02 Pendapatan Sewa Tempat untuk Toko/Kios | D105: =SUMIF(Jurnal!D:D,'neraca saldo'!C105,Jurnal!F:F) -> 0 | E105: =SUMIF(Jurnal!D:D,'neraca saldo'!C105,Jurnal!G:G) -> 0 | F105: 0 | G105: 0 | H105: 0 | J105: 4.1 | K105: 4.1.04 | L105: 4.1.04.02 | M105: 1
A106: Kredit | B106: =SUBTOTAL(9,$M$11:M106) -> 0 | C106: =COA!C102 -> 4.1.04.03 Pendapatan Sewa Gedung | D106: =SUMIF(Jurnal!D:D,'neraca saldo'!C106,Jurnal!F:F) -> 0 | E106: =SUMIF(Jurnal!D:D,'neraca saldo'!C106,Jurnal!G:G) -> 0 | F106: 0 | G106: 0 | H106: 0 | J106: 4.1 | K106: 4.1.04 | L106: 4.1.04.03 | M106: 1
A107: Kredit | B107: =SUBTOTAL(9,$M$11:M107) -> 0 | C107: =COA!C103 -> 4.1.04.04 Pendapatan Sewa Mobil | D107: =SUMIF(Jurnal!D:D,'neraca saldo'!C107,Jurnal!F:F) -> 0 | E107: =SUMIF(Jurnal!D:D,'neraca saldo'!C107,Jurnal!G:G) -> 0 | F107: 0 | G107: 0 | H107: 0 | J107: 4.1 | K107: 4.1.04 | L107: 4.1.04.04 | M107: 1
A108: Kredit | B108: =SUBTOTAL(9,$M$11:M108) -> 0 | C108: =COA!C104 -> 4.1.04.05 Pendapatan Sewa Peralatan Gedung | D108: =SUMIF(Jurnal!D:D,'neraca saldo'!C108,Jurnal!F:F) -> 0 | E108: =SUMIF(Jurnal!D:D,'neraca saldo'!C108,Jurnal!G:G) -> 0 | F108: 0 | G108: 0 | H108: 0 | J108: 4.1 | K108: 4.1.04 | L108: 4.1.04.05 | M108: 1
A109: Kredit | B109: =SUBTOTAL(9,$M$11:M109) -> 0 | C109: =COA!C105 -> 4.1.04.99 Pendapatan Sewa Lainnya | D109: =SUMIF(Jurnal!D:D,'neraca saldo'!C109,Jurnal!F:F) -> 0 | E109: =SUMIF(Jurnal!D:D,'neraca saldo'!C109,Jurnal!G:G) -> 0 | F109: 0 | G109: 0 | H109: 0 | J109: 4.1 | K109: 4.1.04 | L109: 4.1.04.99 | M109: 1
A110: Kredit | B110: =SUBTOTAL(9,$M$11:M110) -> 0 | C110: =COA!C106 -> 4.1.05.01 Pendapatan Jasa Pembayaran Listrik | D110: =SUMIF(Jurnal!D:D,'neraca saldo'!C110,Jurnal!F:F) -> 0 | E110: =SUMIF(Jurnal!D:D,'neraca saldo'!C110,Jurnal!G:G) -> 0 | F110: 0 | G110: 0 | H110: 0 | J110: 4.1 | K110: 4.1.05 | L110: 4.1.05.01 | M110: 1
A111: Kredit | B111: =SUBTOTAL(9,$M$11:M111) -> 0 | C111: =COA!C107 -> 4.1.05.99 Pendapatan Jasa Pelayanan lainnya | D111: =SUMIF(Jurnal!D:D,'neraca saldo'!C111,Jurnal!F:F) -> 0 | E111: =SUMIF(Jurnal!D:D,'neraca saldo'!C111,Jurnal!G:G) -> 0 | F111: 0 | G111: 0 | H111: 0 | J111: 4.1 | K111: 4.1.05 | L111: 4.1.05.99 | M111: 1
A112: Kredit | B112: =SUBTOTAL(9,$M$11:M112) -> 0 | C112: =COA!C108 -> 4.1.06.01 Pendapatan Transportasi | D112: =SUMIF(Jurnal!D:D,'neraca saldo'!C112,Jurnal!F:F) -> 0 | E112: =SUMIF(Jurnal!D:D,'neraca saldo'!C112,Jurnal!G:G) -> 0 | F112: 0 | G112: 0 | H112: 0 | J112: 4.1 | K112: 4.1.06 | L112: 4.1.06.01 | M112: 1
A113: Kredit | B113: =SUBTOTAL(9,$M$11:M113) -> 0 | C113: =COA!C109 -> 4.1.07.01 Pendapatan Parkir Mobil | D113: =SUMIF(Jurnal!D:D,'neraca saldo'!C113,Jurnal!F:F) -> 0 | E113: =SUMIF(Jurnal!D:D,'neraca saldo'!C113,Jurnal!G:G) -> 0 | F113: 0 | G113: 0 | H113: 0 | J113: 4.1 | K113: 4.1.07 | L113: 4.1.07.01 | M113: 1
A114: Kredit | B114: =SUBTOTAL(9,$M$11:M114) -> 0 | C114: =COA!C110 -> 4.1.07.02 Pendapatan Parkir Motor | D114: =SUMIF(Jurnal!D:D,'neraca saldo'!C114,Jurnal!F:F) -> 0 | E114: =SUMIF(Jurnal!D:D,'neraca saldo'!C114,Jurnal!G:G) -> 0 | F114: 0 | G114: 0 | H114: 0 | J114: 4.1 | K114: 4.1.07 | L114: 4.1.07.02 | M114: 1
A115: Kredit | B115: =SUBTOTAL(9,$M$11:M115) -> 0 | C115: =COA!C111 -> 4.1.08.01 Pendapatan Simpan Pinjam | D115: =SUMIF(Jurnal!D:D,'neraca saldo'!C115,Jurnal!F:F) -> 0 | E115: =SUMIF(Jurnal!D:D,'neraca saldo'!C115,Jurnal!G:G) -> 0 | F115: 0 | G115: 0 | H115: 0 | J115: 4.1 | K115: 4.1.08 | L115: 4.1.08.01 | M115: 1
A116: Kredit | B116: =SUBTOTAL(9,$M$11:M116) -> 0 | C116: =COA!C112 -> 4.1.09.01 Pendapatan Pelatihan | D116: =SUMIF(Jurnal!D:D,'neraca saldo'!C116,Jurnal!F:F) -> 0 | E116: =SUMIF(Jurnal!D:D,'neraca saldo'!C116,Jurnal!G:G) -> 0 | F116: 0 | G116: 0 | H116: 0 | J116: 4.1 | K116: 4.1.09 | L116: 4.1.09.01 | M116: 1
A117: Kredit | B117: =SUBTOTAL(9,$M$11:M117) -> 0 | C117: =COA!C113 -> 4.1.10.01 Pendapatan Homestay | D117: =SUMIF(Jurnal!D:D,'neraca saldo'!C117,Jurnal!F:F) -> 0 | E117: =SUMIF(Jurnal!D:D,'neraca saldo'!C117,Jurnal!G:G) -> 0 | F117: 0 | G117: 0 | H117: 0 | J117: 4.1 | K117: 4.1.10 | L117: 4.1.10.01 | M117: 1
A118: Kredit | B118: =SUBTOTAL(9,$M$11:M118) -> 0 | C118: =COA!C114 -> 4.1.11.01 Pendapata Komisi | D118: =SUMIF(Jurnal!D:D,'neraca saldo'!C118,Jurnal!F:F) -> 0 | E118: =SUMIF(Jurnal!D:D,'neraca saldo'!C118,Jurnal!G:G) -> 0 | F118: 0 | G118: 0 | H118: 0 | J118: 4.1 | K118: 4.1.11 | L118: 4.1.11.01 | M118: 1
A119: Kredit | B119: =SUBTOTAL(9,$M$11:M119) -> 0 | C119: =COA!C115 -> 4.2.01.01 Pendapatan Penjualan Makanan/Minuman | D119: =SUMIF(Jurnal!D:D,'neraca saldo'!C119,Jurnal!F:F) -> 0 | E119: =SUMIF(Jurnal!D:D,'neraca saldo'!C119,Jurnal!G:G) -> 0 | F119: 0 | G119: 0 | H119: 0 | J119: 4.2 | K119: 4.2.01 | L119: 4.2.01.01 | M119: 1
A120: Kredit | B120: =SUBTOTAL(9,$M$11:M120) -> 0 | C120: =COA!C116 -> 4.2.01.02 Pendapatan Penjualan Pakaian/Kaos/Jaket | D120: =SUMIF(Jurnal!D:D,'neraca saldo'!C120,Jurnal!F:F) -> 0 | E120: =SUMIF(Jurnal!D:D,'neraca saldo'!C120,Jurnal!G:G) -> 0 | F120: 0 | G120: 0 | H120: 0 | J120: 4.2 | K120: 4.2.01 | L120: 4.2.01.02 | M120: 1
A121: Kredit | B121: =SUBTOTAL(9,$M$11:M121) -> 0 | C121: =COA!C117 -> 4.2.01.03 Pendapatan Penjualan Hasil Kerajinan/Suvenir | D121: =SUMIF(Jurnal!D:D,'neraca saldo'!C121,Jurnal!F:F) -> 0 | E121: =SUMIF(Jurnal!D:D,'neraca saldo'!C121,Jurnal!G:G) -> 0 | F121: 0 | G121: 0 | H121: 0 | J121: 4.2 | K121: 4.2.01 | L121: 4.2.01.03 | M121: 1
A122: Kredit | B122: =SUBTOTAL(9,$M$11:M122) -> 0 | C122: =COA!C118 -> 4.2.01.04 Pendapatan Penjualan Buku | D122: =SUMIF(Jurnal!D:D,'neraca saldo'!C122,Jurnal!F:F) -> 0 | E122: =SUMIF(Jurnal!D:D,'neraca saldo'!C122,Jurnal!G:G) -> 0 | F122: 0 | G122: 0 | H122: 0 | J122: 4.2 | K122: 4.2.01 | L122: 4.2.01.04 | M122: 1
A123: Kredit | B123: =SUBTOTAL(9,$M$11:M123) -> 0 | C123: =COA!C119 -> 4.2.01.05 Pendapatan Penjualan Biji Kopi | D123: =SUMIF(Jurnal!D:D,'neraca saldo'!C123,Jurnal!F:F) -> 0 | E123: =SUMIF(Jurnal!D:D,'neraca saldo'!C123,Jurnal!G:G) -> 0 | F123: 0 | G123: 0 | H123: 0 | J123: 4.2 | K123: 4.2.01 | L123: 4.2.01.05 | M123: 1
A124: Kredit | B124: =SUBTOTAL(9,$M$11:M124) -> 0 | C124: =COA!C120 -> 4.2.01.06 Pendapatan Penjualan Bensin | D124: =SUMIF(Jurnal!D:D,'neraca saldo'!C124,Jurnal!F:F) -> 0 | E124: =SUMIF(Jurnal!D:D,'neraca saldo'!C124,Jurnal!G:G) -> 0 | F124: 0 | G124: 0 | H124: 0 | J124: 4.2 | K124: 4.2.01 | L124: 4.2.01.06 | M124: 1
A125: Kredit | B125: =SUBTOTAL(9,$M$11:M125) -> 0 | C125: =COA!C121 -> 4.2.01.98 Pendapatan Penjualan Barang Dagangan | D125: =SUMIF(Jurnal!D:D,'neraca saldo'!C125,Jurnal!F:F) -> 0 | E125: =SUMIF(Jurnal!D:D,'neraca saldo'!C125,Jurnal!G:G) -> 0 | F125: 0 | G125: 0 | H125: 0 | J125: 4.2 | K125: 4.2.01 | L125: 4.2.01.98 | M125: 1
A126: Debit | B126: =SUBTOTAL(9,$M$11:M126) -> 0 | C126: =COA!C122 -> 4.2.01.99 Diskon Penjualan Barang Dagangan | D126: =SUMIF(Jurnal!D:D,'neraca saldo'!C126,Jurnal!F:F) -> 0 | E126: =SUMIF(Jurnal!D:D,'neraca saldo'!C126,Jurnal!G:G) -> 0 | F126: 0 | G126: 0 | H126: 0 | J126: 4.2 | K126: 4.2.01 | L126: 4.2.01.99 | M126: 1
A127: Kredit | B127: =SUBTOTAL(9,$M$11:M127) -> 0 | C127: =COA!C123 -> 4.3.01.01 Pendapatan Katering | D127: =SUMIF(Jurnal!D:D,'neraca saldo'!C127,Jurnal!F:F) -> 0 | E127: =SUMIF(Jurnal!D:D,'neraca saldo'!C127,Jurnal!G:G) -> 0 | F127: 0 | G127: 0 | H127: 0 | J127: 4.3 | K127: 4.3.01 | L127: 4.3.01.01 | M127: 1
A128: Kredit | B128: =SUBTOTAL(9,$M$11:M128) -> 0 | C128: =COA!C124 -> 4.3.01.02 Pendapatan Restoran | D128: =SUMIF(Jurnal!D:D,'neraca saldo'!C128,Jurnal!F:F) -> 0 | E128: =SUMIF(Jurnal!D:D,'neraca saldo'!C128,Jurnal!G:G) -> 0 | F128: 0 | G128: 0 | H128: 0 | J128: 4.3 | K128: 4.3.01 | L128: 4.3.01.02 | M128: 1
A129: Kredit | B129: =SUBTOTAL(9,$M$11:M129) -> 0 | C129: =COA!C125 -> 4.3.01.03 Pendapatan Kopi | D129: =SUMIF(Jurnal!D:D,'neraca saldo'!C129,Jurnal!F:F) -> 0 | E129: =SUMIF(Jurnal!D:D,'neraca saldo'!C129,Jurnal!G:G) -> 0 | F129: 0 | G129: 0 | H129: 0 | J129: 4.3 | K129: 4.3.01 | L129: 4.3.01.03 | M129: 1
A130: Kredit | B130: =SUBTOTAL(9,$M$11:M130) -> 0 | C130: =COA!C126 -> 4.2.01.98 Pendapatan Penjualan Barang Jadi | D130: =SUMIF(Jurnal!D:D,'neraca saldo'!C130,Jurnal!F:F) -> 0 | E130: =SUMIF(Jurnal!D:D,'neraca saldo'!C130,Jurnal!G:G) -> 0 | F130: 0 | G130: 0 | H130: 0 | J130: 4.2 | K130: 4.2.01 | L130: 4.2.01.98 | M130: 1
A131: Debit | B131: =SUBTOTAL(9,$M$11:M131) -> 0 | C131: =COA!C127 -> 4.3.01.99 Diskon Penjualan Barang Jadi | D131: =SUMIF(Jurnal!D:D,'neraca saldo'!C131,Jurnal!F:F) -> 0 | E131: =SUMIF(Jurnal!D:D,'neraca saldo'!C131,Jurnal!G:G) -> 0 | F131: 0 | G131: 0 | H131: 0 | J131: 4.3 | K131: 4.3.01 | L131: 4.3.01.99 | M131: 1
A132: Debit | B132: =SUBTOTAL(9,$M$11:M132) -> 0 | C132: =COA!C128 -> 5.1.01.01 Harga Pokok Penjualan Barang Dagangan | D132: =SUMIF(Jurnal!D:D,'neraca saldo'!C132,Jurnal!F:F) -> 0 | E132: =SUMIF(Jurnal!D:D,'neraca saldo'!C132,Jurnal!G:G) -> 0 | F132: 0 | G132: 0 | H132: 0 | J132: 5.1 | K132: 5.1.01 | L132: 5.1.01.01 | M132: 1
A133: Debit | B133: =SUBTOTAL(9,$M$11:M133) -> 0 | C133: =COA!C129 -> 5.2.01.01 Harga Pokok Penjualan Barang Jadi | D133: =SUMIF(Jurnal!D:D,'neraca saldo'!C133,Jurnal!F:F) -> 0 | E133: =SUMIF(Jurnal!D:D,'neraca saldo'!C133,Jurnal!G:G) -> 0 | F133: 0 | G133: 0 | H133: 0 | J133: 5.2 | K133: 5.2.01 | L133: 5.2.01.01 | M133: 1
A134: Debit | B134: =SUBTOTAL(9,$M$11:M134) -> 0 | C134: =COA!C130 -> 5.3.01.01 Harga Pokok Produksi | D134: =SUMIF(Jurnal!D:D,'neraca saldo'!C134,Jurnal!F:F) -> 0 | E134: =SUMIF(Jurnal!D:D,'neraca saldo'!C134,Jurnal!G:G) -> 0 | F134: 0 | G134: 0 | H134: 0 | J134: 5.3 | K134: 5.3.01 | L134: 5.3.01.01 | M134: 1
A135: Debit | B135: =SUBTOTAL(9,$M$11:M135) -> 0 | C135: =COA!C131 -> 6.1.01.01 Beban Gaji dan Tunjangan Bag. Adum | D135: =SUMIF(Jurnal!D:D,'neraca saldo'!C135,Jurnal!F:F) -> 0 | E135: =SUMIF(Jurnal!D:D,'neraca saldo'!C135,Jurnal!G:G) -> 0 | F135: 0 | G135: 0 | H135: 0 | J135: 6.1 | K135: 6.1.01 | L135: 6.1.01.01 | M135: 1
A136: Debit | B136: =SUBTOTAL(9,$M$11:M136) -> 0 | C136: =COA!C132 -> 6.1.01.02 Beban Honor Lembur Bag. Adum | D136: =SUMIF(Jurnal!D:D,'neraca saldo'!C136,Jurnal!F:F) -> 0 | E136: =SUMIF(Jurnal!D:D,'neraca saldo'!C136,Jurnal!G:G) -> 0 | F136: 0 | G136: 0 | H136: 0 | J136: 6.1 | K136: 6.1.01 | L136: 6.1.01.02 | M136: 1
A137: Debit | B137: =SUBTOTAL(9,$M$11:M137) -> 0 | C137: =COA!C133 -> 6.1.01.03 Beban Honor Narasumber | D137: =SUMIF(Jurnal!D:D,'neraca saldo'!C137,Jurnal!F:F) -> 0 | E137: =SUMIF(Jurnal!D:D,'neraca saldo'!C137,Jurnal!G:G) -> 0 | F137: 0 | G137: 0 | H137: 0 | J137: 6.1 | K137: 6.1.01 | L137: 6.1.01.03 | M137: 1
A138: Debit | B138: =SUBTOTAL(9,$M$11:M138) -> 0 | C138: =COA!C134 -> 6.1.01.04 Beban Insentif (Bonus) Bag. Adum | D138: =SUMIF(Jurnal!D:D,'neraca saldo'!C138,Jurnal!F:F) -> 0 | E138: =SUMIF(Jurnal!D:D,'neraca saldo'!C138,Jurnal!G:G) -> 0 | F138: 0 | G138: 0 | H138: 0 | J138: 6.1 | K138: 6.1.01 | L138: 6.1.01.04 | M138: 1
A139: Debit | B139: =SUBTOTAL(9,$M$11:M139) -> 0 | C139: =COA!C135 -> 6.1.01.05 Beban Komisi Bag. Adum | D139: =SUMIF(Jurnal!D:D,'neraca saldo'!C139,Jurnal!F:F) -> 0 | E139: =SUMIF(Jurnal!D:D,'neraca saldo'!C139,Jurnal!G:G) -> 0 | F139: 0 | G139: 0 | H139: 0 | J139: 6.1 | K139: 6.1.01 | L139: 6.1.01.05 | M139: 1
A140: =IFERROR(VLOOKUP(C140,saldonormal,2,0),"") -> Debit | B140: =SUBTOTAL(9,$M$11:M140) -> 0 | C140: =COA!C136 -> 6.1.01.06 Beban Seragam Pegawai Bag. Adum | D140: =SUMIF(Jurnal!D:D,'neraca saldo'!C140,Jurnal!F:F) -> 0 | E140: =SUMIF(Jurnal!D:D,'neraca saldo'!C140,Jurnal!G:G) -> 0 | F140: =IF(D140>E140,D140-E140,0) -> 0 | G140: =IF(E140>D140,E140-D140,0) -> 0 | H140: =IF(A140="Debit",F140-G140,G140-F140) -> 0 | I140: =IF(F140=G140,"","V") ->  | J140: =LEFT(C140,3) -> 6.1 | K140: =LEFT(C140,6) -> 6.1.01 | L140: =LEFT(C140,9) -> 6.1.01.06 | M140: 1
A141: Debit | B141: =SUBTOTAL(9,$M$11:M141) -> 0 | C141: =COA!C137 -> 6.1.01.07 Beban Penguatan SDM | D141: =SUMIF(Jurnal!D:D,'neraca saldo'!C141,Jurnal!F:F) -> 0 | E141: =SUMIF(Jurnal!D:D,'neraca saldo'!C141,Jurnal!G:G) -> 0 | F141: 0 | G141: 0 | H141: 0 | J141: 6.1 | K141: 6.1.01 | L141: 6.1.01.07 | M141: 1
A142: Debit | B142: =SUBTOTAL(9,$M$11:M142) -> 0 | C142: =COA!C138 -> 6.1.01.99 Beban Pegawai Bag. Adum Lainnya | D142: =SUMIF(Jurnal!D:D,'neraca saldo'!C142,Jurnal!F:F) -> 0 | E142: =SUMIF(Jurnal!D:D,'neraca saldo'!C142,Jurnal!G:G) -> 0 | F142: 0 | G142: 0 | H142: 0 | J142: 6.1 | K142: 6.1.01 | L142: 6.1.01.99 | M142: 1
A143: Debit | B143: =SUBTOTAL(9,$M$11:M143) -> 0 | C143: =COA!C139 -> 6.1.02.01 Beban Alat Tulis Kantor (ATK) | D143: =SUMIF(Jurnal!D:D,'neraca saldo'!C143,Jurnal!F:F) -> 0 | E143: =SUMIF(Jurnal!D:D,'neraca saldo'!C143,Jurnal!G:G) -> 0 | F143: 0 | G143: 0 | H143: 0 | J143: 6.1 | K143: 6.1.02 | L143: 6.1.02.01 | M143: 1
A144: Debit | B144: =SUBTOTAL(9,$M$11:M144) -> 0 | C144: =COA!C140 -> 6.1.02.02 Beban Foto Copy | D144: =SUMIF(Jurnal!D:D,'neraca saldo'!C144,Jurnal!F:F) -> 0 | E144: =SUMIF(Jurnal!D:D,'neraca saldo'!C144,Jurnal!G:G) -> 0 | F144: 0 | G144: 0 | H144: 0 | J144: 6.1 | K144: 6.1.02 | L144: 6.1.02.02 | M144: 1
A145: Debit | B145: =SUBTOTAL(9,$M$11:M145) -> 0 | C145: =COA!C141 -> 6.1.02.03 Beban Konsumsi Rapat | D145: =SUMIF(Jurnal!D:D,'neraca saldo'!C145,Jurnal!F:F) -> 0 | E145: =SUMIF(Jurnal!D:D,'neraca saldo'!C145,Jurnal!G:G) -> 0 | F145: 0 | G145: 0 | H145: 0 | J145: 6.1 | K145: 6.1.02 | L145: 6.1.02.03 | M145: 1
A146: Debit | B146: =SUBTOTAL(9,$M$11:M146) -> 0 | C146: =COA!C142 -> 6.1.02.04 Beban Cetak dan Dekorasi | D146: =SUMIF(Jurnal!D:D,'neraca saldo'!C146,Jurnal!F:F) -> 0 | E146: =SUMIF(Jurnal!D:D,'neraca saldo'!C146,Jurnal!G:G) -> 0 | F146: 0 | G146: 0 | H146: 0 | J146: 6.1 | K146: 6.1.02 | L146: 6.1.02.04 | M146: 1
A147: Debit | B147: =SUBTOTAL(9,$M$11:M147) -> 0 | C147: =COA!C143 -> 6.1.02.99 Beban Perlengkapan Lainnya | D147: =SUMIF(Jurnal!D:D,'neraca saldo'!C147,Jurnal!F:F) -> 0 | E147: =SUMIF(Jurnal!D:D,'neraca saldo'!C147,Jurnal!G:G) -> 0 | F147: 0 | G147: 0 | H147: 0 | J147: 6.1 | K147: 6.1.02 | L147: 6.1.02.99 | M147: 1
A148: Debit | B148: =SUBTOTAL(9,$M$11:M148) -> 0 | C148: =COA!C144 -> 6.1.03.01 Beban Pemeliharaan dan Perbaikan | D148: =SUMIF(Jurnal!D:D,'neraca saldo'!C148,Jurnal!F:F) -> 0 | E148: =SUMIF(Jurnal!D:D,'neraca saldo'!C148,Jurnal!G:G) -> 0 | F148: 0 | G148: 0 | H148: 0 | J148: 6.1 | K148: 6.1.03 | L148: 6.1.03.01 | M148: 1
A149: Debit | B149: =SUBTOTAL(9,$M$11:M149) -> 0 | C149: =COA!C145 -> 6.1.04.01 Beban Listrik | D149: =SUMIF(Jurnal!D:D,'neraca saldo'!C149,Jurnal!F:F) -> 0 | E149: =SUMIF(Jurnal!D:D,'neraca saldo'!C149,Jurnal!G:G) -> 0 | F149: 0 | G149: 0 | H149: 0 | J149: 6.1 | K149: 6.1.04 | L149: 6.1.04.01 | M149: 1
A150: Debit | B150: =SUBTOTAL(9,$M$11:M150) -> 0 | C150: =COA!C146 -> 6.1.04.02 Beban Telepon/Internet | D150: =SUMIF(Jurnal!D:D,'neraca saldo'!C150,Jurnal!F:F) -> 0 | E150: =SUMIF(Jurnal!D:D,'neraca saldo'!C150,Jurnal!G:G) -> 0 | F150: 0 | G150: 0 | H150: 0 | J150: 6.1 | K150: 6.1.04 | L150: 6.1.04.02 | M150: 1
A151: Debit | B151: =SUBTOTAL(9,$M$11:M151) -> 0 | C151: =COA!C147 -> 6.1.04.99 Beban Utilitas Lainnya | D151: =SUMIF(Jurnal!D:D,'neraca saldo'!C151,Jurnal!F:F) -> 0 | E151: =SUMIF(Jurnal!D:D,'neraca saldo'!C151,Jurnal!G:G) -> 0 | F151: 0 | G151: 0 | H151: 0 | J151: 6.1 | K151: 6.1.04 | L151: 6.1.04.99 | M151: 1
A152: Debit | B152: =SUBTOTAL(9,$M$11:M152) -> 0 | C152: =COA!C148 -> 6.1.05.01 Beban Sewa | D152: =SUMIF(Jurnal!D:D,'neraca saldo'!C152,Jurnal!F:F) -> 0 | E152: =SUMIF(Jurnal!D:D,'neraca saldo'!C152,Jurnal!G:G) -> 0 | F152: 0 | G152: 0 | H152: 0 | J152: 6.1 | K152: 6.1.05 | L152: 6.1.05.01 | M152: 1
A153: Debit | B153: =SUBTOTAL(9,$M$11:M153) -> 0 | C153: =COA!C149 -> 6.1.05.02 Beban Asuransi | D153: =SUMIF(Jurnal!D:D,'neraca saldo'!C153,Jurnal!F:F) -> 0 | E153: =SUMIF(Jurnal!D:D,'neraca saldo'!C153,Jurnal!G:G) -> 0 | F153: 0 | G153: 0 | H153: 0 | J153: 6.1 | K153: 6.1.05 | L153: 6.1.05.02 | M153: 1
A154: Debit | B154: =SUBTOTAL(9,$M$11:M154) -> 0 | C154: =COA!C150 -> 6.1.06.01 Beban Kebersihan | D154: =SUMIF(Jurnal!D:D,'neraca saldo'!C154,Jurnal!F:F) -> 0 | E154: =SUMIF(Jurnal!D:D,'neraca saldo'!C154,Jurnal!G:G) -> 0 | F154: 0 | G154: 0 | H154: 0 | J154: 6.1 | K154: 6.1.06 | L154: 6.1.06.01 | M154: 1
A155: Debit | B155: =SUBTOTAL(9,$M$11:M155) -> 0 | C155: =COA!C151 -> 6.1.06.02 Beban Keamanan | D155: =SUMIF(Jurnal!D:D,'neraca saldo'!C155,Jurnal!F:F) -> 0 | E155: =SUMIF(Jurnal!D:D,'neraca saldo'!C155,Jurnal!G:G) -> 0 | F155: 0 | G155: 0 | H155: 0 | J155: 6.1 | K155: 6.1.06 | L155: 6.1.06.02 | M155: 1
A156: Debit | B156: =SUBTOTAL(9,$M$11:M156) -> 0 | C156: =COA!C152 -> 6.1.07.01 Beban Penyisihan Piutang Tak Tertagih | D156: =SUMIF(Jurnal!D:D,'neraca saldo'!C156,Jurnal!F:F) -> 0 | E156: =SUMIF(Jurnal!D:D,'neraca saldo'!C156,Jurnal!G:G) -> 0 | F156: 0 | G156: 0 | H156: 0 | J156: 6.1 | K156: 6.1.07 | L156: 6.1.07.01 | M156: 1
A157: Debit | B157: =SUBTOTAL(9,$M$11:M157) -> 0 | C157: =COA!C153 -> 6.1.07.02 Beban Penyusutan Kendaraan | D157: =SUMIF(Jurnal!D:D,'neraca saldo'!C157,Jurnal!F:F) -> 0 | E157: =SUMIF(Jurnal!D:D,'neraca saldo'!C157,Jurnal!G:G) -> 0 | F157: 0 | G157: 0 | H157: 0 | J157: 6.1 | K157: 6.1.07 | L157: 6.1.07.02 | M157: 1
A158: Debit | B158: =SUBTOTAL(9,$M$11:M158) -> 0 | C158: =COA!C154 -> 6.1.07.03 Beban Penyusutan Peralatan dan Mesin | D158: =SUMIF(Jurnal!D:D,'neraca saldo'!C158,Jurnal!F:F) -> 0 | E158: =SUMIF(Jurnal!D:D,'neraca saldo'!C158,Jurnal!G:G) -> 0 | F158: 0 | G158: 0 | H158: 0 | J158: 6.1 | K158: 6.1.07 | L158: 6.1.07.03 | M158: 1
A159: Debit | B159: =SUBTOTAL(9,$M$11:M159) -> 0 | C159: =COA!C155 -> 6.1.07.04 Beban Penyusutan Meubelair | D159: =SUMIF(Jurnal!D:D,'neraca saldo'!C159,Jurnal!F:F) -> 0 | E159: =SUMIF(Jurnal!D:D,'neraca saldo'!C159,Jurnal!G:G) -> 0 | F159: 0 | G159: 0 | H159: 0 | J159: 6.1 | K159: 6.1.07 | L159: 6.1.07.04 | M159: 1
A160: Debit | B160: =SUBTOTAL(9,$M$11:M160) -> 0 | C160: =COA!C156 -> 6.1.07.05 Beban Penyusutan Gedung dan Bangunan | D160: =SUMIF(Jurnal!D:D,'neraca saldo'!C160,Jurnal!F:F) -> 0 | E160: =SUMIF(Jurnal!D:D,'neraca saldo'!C160,Jurnal!G:G) -> 0 | F160: 0 | G160: 0 | H160: 0 | J160: 6.1 | K160: 6.1.07 | L160: 6.1.07.05 | M160: 1
A161: Debit | B161: =SUBTOTAL(9,$M$11:M161) -> 0 | C161: =COA!C157 -> 6.1.07.06 Beban Amortisasi Aset takberwujud | D161: =SUMIF(Jurnal!D:D,'neraca saldo'!C161,Jurnal!F:F) -> 0 | E161: =SUMIF(Jurnal!D:D,'neraca saldo'!C161,Jurnal!G:G) -> 0 | F161: 0 | G161: 0 | H161: 0 | J161: 6.1 | K161: 6.1.07 | L161: 6.1.07.06 | M161: 1
A162: Debit | B162: =SUBTOTAL(9,$M$11:M162) -> 0 | C162: =COA!C158 -> 6.1.99.01 Beban Parkir | D162: =SUMIF(Jurnal!D:D,'neraca saldo'!C162,Jurnal!F:F) -> 0 | E162: =SUMIF(Jurnal!D:D,'neraca saldo'!C162,Jurnal!G:G) -> 0 | F162: 0 | G162: 0 | H162: 0 | J162: 6.1 | K162: 6.1.99 | L162: 6.1.99.01 | M162: 1
A163: Debit | B163: =SUBTOTAL(9,$M$11:M163) -> 0 | C163: =COA!C159 -> 6.1.99.02 Beban Audit | D163: =SUMIF(Jurnal!D:D,'neraca saldo'!C163,Jurnal!F:F) -> 0 | E163: =SUMIF(Jurnal!D:D,'neraca saldo'!C163,Jurnal!G:G) -> 0 | F163: 0 | G163: 0 | H163: 0 | J163: 6.1 | K163: 6.1.99 | L163: 6.1.99.02 | M163: 1
A164: Debit | B164: =SUBTOTAL(9,$M$11:M164) -> 0 | C164: =COA!C160 -> 6.1.99.03 Beban Perjalanan Dinas | D164: =SUMIF(Jurnal!D:D,'neraca saldo'!C164,Jurnal!F:F) -> 0 | E164: =SUMIF(Jurnal!D:D,'neraca saldo'!C164,Jurnal!G:G) -> 0 | F164: 0 | G164: 0 | H164: 0 | J164: 6.1 | K164: 6.1.99 | L164: 6.1.99.03 | M164: 1
A165: Debit | B165: =SUBTOTAL(9,$M$11:M165) -> 0 | C165: =COA!C161 -> 6.1.99.04 Beban Transportasi | D165: =SUMIF(Jurnal!D:D,'neraca saldo'!C165,Jurnal!F:F) -> 0 | E165: =SUMIF(Jurnal!D:D,'neraca saldo'!C165,Jurnal!G:G) -> 0 | F165: 0 | G165: 0 | H165: 0 | J165: 6.1 | K165: 6.1.99 | L165: 6.1.99.04 | M165: 1
A166: Debit | B166: =SUBTOTAL(9,$M$11:M166) -> 0 | C166: =COA!C162 -> 6.1.99.05 Beban Jamuan Tamu | D166: =SUMIF(Jurnal!D:D,'neraca saldo'!C166,Jurnal!F:F) -> 0 | E166: =SUMIF(Jurnal!D:D,'neraca saldo'!C166,Jurnal!G:G) -> 0 | F166: 0 | G166: 0 | H166: 0 | J166: 6.1 | K166: 6.1.99 | L166: 6.1.99.05 | M166: 1
A167: Debit | B167: =SUBTOTAL(9,$M$11:M167) -> 0 | C167: =COA!C163 -> 6.1.99.99 Beban Administrasi dan Umum Lainnya | D167: =SUMIF(Jurnal!D:D,'neraca saldo'!C167,Jurnal!F:F) -> 0 | E167: =SUMIF(Jurnal!D:D,'neraca saldo'!C167,Jurnal!G:G) -> 0 | F167: 0 | G167: 0 | H167: 0 | J167: 6.1 | K167: 6.1.99 | L167: 6.1.99.99 | M167: 1
A168: Debit | B168: =SUBTOTAL(9,$M$11:M168) -> 0 | C168: =COA!C164 -> 6.2.01.01 Beban Gaji/Upah Bag. Operasional | D168: =SUMIF(Jurnal!D:D,'neraca saldo'!C168,Jurnal!F:F) -> 0 | E168: =SUMIF(Jurnal!D:D,'neraca saldo'!C168,Jurnal!G:G) -> 0 | F168: 0 | G168: 0 | H168: 0 | J168: 6.2 | K168: 6.2.01 | L168: 6.2.01.01 | M168: 1
A169: Debit | B169: =SUBTOTAL(9,$M$11:M169) -> 0 | C169: =COA!C165 -> 6.2.01.02 Beban Uang Makan Bag. Operasional | D169: =SUMIF(Jurnal!D:D,'neraca saldo'!C169,Jurnal!F:F) -> 0 | E169: =SUMIF(Jurnal!D:D,'neraca saldo'!C169,Jurnal!G:G) -> 0 | F169: 0 | G169: 0 | H169: 0 | J169: 6.2 | K169: 6.2.01 | L169: 6.2.01.02 | M169: 1
A170: Debit | B170: =SUBTOTAL(9,$M$11:M170) -> 0 | C170: =COA!C166 -> 6.2.02.01 Beban Pemeliharaan Wahana | D170: =SUMIF(Jurnal!D:D,'neraca saldo'!C170,Jurnal!F:F) -> 0 | E170: =SUMIF(Jurnal!D:D,'neraca saldo'!C170,Jurnal!G:G) -> 0 | F170: 0 | G170: 0 | H170: 0 | J170: 6.2 | K170: 6.2.02 | L170: 6.2.02.01 | M170: 1
A171: Debit | B171: =SUBTOTAL(9,$M$11:M171) -> 0 | C171: =COA!C167 -> 6.2.02.02 Beban Perbaikan dan Renovasi | D171: =SUMIF(Jurnal!D:D,'neraca saldo'!C171,Jurnal!F:F) -> 0 | E171: =SUMIF(Jurnal!D:D,'neraca saldo'!C171,Jurnal!G:G) -> 0 | F171: 0 | G171: 0 | H171: 0 | J171: 6.2 | K171: 6.2.02 | L171: 6.2.02.02 | M171: 1
A172: Debit | B172: =SUBTOTAL(9,$M$11:M172) -> 0 | C172: =COA!C168 -> 6.2.03.01 Beban Tim SAR | D172: =SUMIF(Jurnal!D:D,'neraca saldo'!C172,Jurnal!F:F) -> 0 | E172: =SUMIF(Jurnal!D:D,'neraca saldo'!C172,Jurnal!G:G) -> 0 | F172: 0 | G172: 0 | H172: 0 | J172: 6.2 | K172: 6.2.03 | L172: 6.2.03.01 | M172: 1
A173: Debit | B173: =SUBTOTAL(9,$M$11:M173) -> 0 | C173: =COA!C169 -> 6.2.03.02 Beban P3K | D173: =SUMIF(Jurnal!D:D,'neraca saldo'!C173,Jurnal!F:F) -> 0 | E173: =SUMIF(Jurnal!D:D,'neraca saldo'!C173,Jurnal!G:G) -> 0 | F173: 0 | G173: 0 | H173: 0 | J173: 6.2 | K173: 6.2.03 | L173: 6.2.03.02 | M173: 1
A174: Debit | B174: =SUBTOTAL(9,$M$11:M174) -> 0 | C174: =COA!C170 -> 6.2.99.01 Beban Komunikasi | D174: =SUMIF(Jurnal!D:D,'neraca saldo'!C174,Jurnal!F:F) -> 0 | E174: =SUMIF(Jurnal!D:D,'neraca saldo'!C174,Jurnal!G:G) -> 0 | F174: 0 | G174: 0 | H174: 0 | J174: 6.2 | K174: 6.2.99 | L174: 6.2.99.01 | M174: 1
A175: Debit | B175: =SUBTOTAL(9,$M$11:M175) -> 0 | C175: =COA!C171 -> 6.2.99.02 Beban Sewa Lokasi | D175: =SUMIF(Jurnal!D:D,'neraca saldo'!C175,Jurnal!F:F) -> 0 | E175: =SUMIF(Jurnal!D:D,'neraca saldo'!C175,Jurnal!G:G) -> 0 | F175: 0 | G175: 0 | H175: 0 | J175: 6.2 | K175: 6.2.99 | L175: 6.2.99.02 | M175: 1
A176: Debit | B176: =SUBTOTAL(9,$M$11:M176) -> 0 | C176: =COA!C172 -> 6.2.99.03 Beban Pakan Ikan | D176: =SUMIF(Jurnal!D:D,'neraca saldo'!C176,Jurnal!F:F) -> 0 | E176: =SUMIF(Jurnal!D:D,'neraca saldo'!C176,Jurnal!G:G) -> 0 | F176: 0 | G176: 0 | H176: 0 | J176: 6.2 | K176: 6.2.99 | L176: 6.2.99.03 | M176: 1
A177: Debit | B177: =SUBTOTAL(9,$M$11:M177) -> 0 | C177: =COA!C173 -> 6.2.99.99 Beban Operasional Lainnya | D177: =SUMIF(Jurnal!D:D,'neraca saldo'!C177,Jurnal!F:F) -> 0 | E177: =SUMIF(Jurnal!D:D,'neraca saldo'!C177,Jurnal!G:G) -> 0 | F177: 0 | G177: 0 | H177: 0 | J177: 6.2 | K177: 6.2.99 | L177: 6.2.99.99 | M177: 1
A178: Debit | B178: =SUBTOTAL(9,$M$11:M178) -> 0 | C178: =COA!C174 -> 6.3.01.01 Beban Gaji/Upah Bag. Pemasaran | D178: =SUMIF(Jurnal!D:D,'neraca saldo'!C178,Jurnal!F:F) -> 0 | E178: =SUMIF(Jurnal!D:D,'neraca saldo'!C178,Jurnal!G:G) -> 0 | F178: 0 | G178: 0 | H178: 0 | J178: 6.3 | K178: 6.3.01 | L178: 6.3.01.01 | M178: 1
A179: Debit | B179: =SUBTOTAL(9,$M$11:M179) -> 0 | C179: =COA!C175 -> 6.3.01.02 Beban Insentif (Bonus) Bag. Pemasaran | D179: =SUMIF(Jurnal!D:D,'neraca saldo'!C179,Jurnal!F:F) -> 0 | E179: =SUMIF(Jurnal!D:D,'neraca saldo'!C179,Jurnal!G:G) -> 0 | F179: 0 | G179: 0 | H179: 0 | J179: 6.3 | K179: 6.3.01 | L179: 6.3.01.02 | M179: 1
A180: Debit | B180: =SUBTOTAL(9,$M$11:M180) -> 0 | C180: =COA!C176 -> 6.3.01.03 Beban Seragam Pegawai Bag. Pemasaran | D180: =SUMIF(Jurnal!D:D,'neraca saldo'!C180,Jurnal!F:F) -> 0 | E180: =SUMIF(Jurnal!D:D,'neraca saldo'!C180,Jurnal!G:G) -> 0 | F180: 0 | G180: 0 | H180: 0 | J180: 6.3 | K180: 6.3.01 | L180: 6.3.01.03 | M180: 1
A181: Debit | B181: =SUBTOTAL(9,$M$11:M181) -> 0 | C181: =COA!C177 -> 6.3.02.01 Beban Iklan | D181: =SUMIF(Jurnal!D:D,'neraca saldo'!C181,Jurnal!F:F) -> 0 | E181: =SUMIF(Jurnal!D:D,'neraca saldo'!C181,Jurnal!G:G) -> 0 | F181: 0 | G181: 0 | H181: 0 | J181: 6.3 | K181: 6.3.02 | L181: 6.3.02.01 | M181: 1
A182: Debit | B182: =SUBTOTAL(9,$M$11:M182) -> 0 | C182: =COA!C178 -> 6.3.02.02 Beban Promosi wartawan | D182: =SUMIF(Jurnal!D:D,'neraca saldo'!C182,Jurnal!F:F) -> 0 | E182: =SUMIF(Jurnal!D:D,'neraca saldo'!C182,Jurnal!G:G) -> 0 | F182: 0 | G182: 0 | H182: 0 | J182: 6.3 | K182: 6.3.02 | L182: 6.3.02.02 | M182: 1
A183: Debit | B183: =SUBTOTAL(9,$M$11:M183) -> 0 | C183: =COA!C179 -> 6.3.02.03 Beban Dana Sosial | D183: =SUMIF(Jurnal!D:D,'neraca saldo'!C183,Jurnal!F:F) -> 0 | E183: =SUMIF(Jurnal!D:D,'neraca saldo'!C183,Jurnal!G:G) -> 0 | F183: 0 | G183: 0 | H183: 0 | J183: 6.3 | K183: 6.3.02 | L183: 6.3.02.03 | M183: 1
A184: Debit | B184: =SUBTOTAL(9,$M$11:M184) -> 0 | C184: =COA!C180 -> 6.3.99.99 Beban Pemasaran Lainnya | D184: =SUMIF(Jurnal!D:D,'neraca saldo'!C184,Jurnal!F:F) -> 0 | E184: =SUMIF(Jurnal!D:D,'neraca saldo'!C184,Jurnal!G:G) -> 0 | F184: 0 | G184: 0 | H184: 0 | J184: 6.3 | K184: 6.3.99 | L184: 6.3.99.99 | M184: 1
A185: Kredit | B185: =SUBTOTAL(9,$M$11:M185) -> 0 | C185: =COA!C181 -> 7.1.01.01 Pendapatan Bunga Bank | D185: =SUMIF(Jurnal!D:D,'neraca saldo'!C185,Jurnal!F:F) -> 0 | E185: =SUMIF(Jurnal!D:D,'neraca saldo'!C185,Jurnal!G:G) -> 0 | F185: 0 | G185: 0 | H185: 0 | J185: 7.1 | K185: 7.1.01 | L185: 7.1.01.01 | M185: 1
A186: Kredit | B186: =SUBTOTAL(9,$M$11:M186) -> 0 | C186: =COA!C182 -> 7.1.01.02 Pendapatan Fee Agen BNI 46 | D186: =SUMIF(Jurnal!D:D,'neraca saldo'!C186,Jurnal!F:F) -> 0 | E186: =SUMIF(Jurnal!D:D,'neraca saldo'!C186,Jurnal!G:G) -> 0 | F186: 0 | G186: 0 | H186: 0 | J186: 7.1 | K186: 7.1.01 | L186: 7.1.01.02 | M186: 1
A187: Kredit | B187: =SUBTOTAL(9,$M$11:M187) -> 0 | C187: =COA!C183 -> 7.1.02.01 Pendapatan Dividen | D187: =SUMIF(Jurnal!D:D,'neraca saldo'!C187,Jurnal!F:F) -> 0 | E187: =SUMIF(Jurnal!D:D,'neraca saldo'!C187,Jurnal!G:G) -> 0 | F187: 0 | G187: 0 | H187: 0 | J187: 7.1 | K187: 7.1.02 | L187: 7.1.02.01 | M187: 1
A188: Kredit | B188: =SUBTOTAL(9,$M$11:M188) -> 0 | C188: =COA!C184 -> 7.1.03.01 Pendapatan Denda | D188: =SUMIF(Jurnal!D:D,'neraca saldo'!C188,Jurnal!F:F) -> 0 | E188: =SUMIF(Jurnal!D:D,'neraca saldo'!C188,Jurnal!G:G) -> 0 | F188: 0 | G188: 0 | H188: 0 | J188: 7.1 | K188: 7.1.03 | L188: 7.1.03.01 | M188: 1
A189: Kredit | B189: =SUBTOTAL(9,$M$11:M189) -> 0 | C189: =COA!C185 -> 7.1.04.01 Pendapatan Iklan | D189: =SUMIF(Jurnal!D:D,'neraca saldo'!C189,Jurnal!F:F) -> 0 | E189: =SUMIF(Jurnal!D:D,'neraca saldo'!C189,Jurnal!G:G) -> 0 | F189: 0 | G189: 0 | H189: 0 | J189: 7.1 | K189: 7.1.04 | L189: 7.1.04.01 | M189: 1
A190: Kredit | B190: =SUBTOTAL(9,$M$11:M190) -> 0 | C190: =COA!C186 -> 7.1.05.01 Keuntungan Penjualan Aset Tetap | D190: =SUMIF(Jurnal!D:D,'neraca saldo'!C190,Jurnal!F:F) -> 0 | E190: =SUMIF(Jurnal!D:D,'neraca saldo'!C190,Jurnal!G:G) -> 0 | F190: 0 | G190: 0 | H190: 0 | J190: 7.1 | K190: 7.1.05 | L190: 7.1.05.01 | M190: 1
A191: Kredit | B191: =SUBTOTAL(9,$M$11:M191) -> 0 | C191: =COA!C187 -> 7.1.99.99 Pendapatan Lain-lain lainnya | D191: =SUMIF(Jurnal!D:D,'neraca saldo'!C191,Jurnal!F:F) -> 0 | E191: =SUMIF(Jurnal!D:D,'neraca saldo'!C191,Jurnal!G:G) -> 0 | F191: 0 | G191: 0 | H191: 0 | J191: 7.1 | K191: 7.1.99 | L191: 7.1.99.99 | M191: 1
A192: Debit | B192: =SUBTOTAL(9,$M$11:M192) -> 0 | C192: =COA!C188 -> 7.2.01.01 Beban Administrasi Bank | D192: =SUMIF(Jurnal!D:D,'neraca saldo'!C192,Jurnal!F:F) -> 0 | E192: =SUMIF(Jurnal!D:D,'neraca saldo'!C192,Jurnal!G:G) -> 0 | F192: 0 | G192: 0 | H192: 0 | J192: 7.2 | K192: 7.2.01 | L192: 7.2.01.01 | M192: 1
A193: Debit | B193: =SUBTOTAL(9,$M$11:M193) -> 0 | C193: =COA!C189 -> 7.2.02.01 Beban Bunga | D193: =SUMIF(Jurnal!D:D,'neraca saldo'!C193,Jurnal!F:F) -> 0 | E193: =SUMIF(Jurnal!D:D,'neraca saldo'!C193,Jurnal!G:G) -> 0 | F193: 0 | G193: 0 | H193: 0 | J193: 7.2 | K193: 7.2.02 | L193: 7.2.02.01 | M193: 1
A194: Debit | B194: =SUBTOTAL(9,$M$11:M194) -> 0 | C194: =COA!C190 -> 7.2.03.01 Beban Denda | D194: =SUMIF(Jurnal!D:D,'neraca saldo'!C194,Jurnal!F:F) -> 0 | E194: =SUMIF(Jurnal!D:D,'neraca saldo'!C194,Jurnal!G:G) -> 0 | F194: 0 | G194: 0 | H194: 0 | J194: 7.2 | K194: 7.2.03 | L194: 7.2.03.01 | M194: 1
A195: Debit | B195: =SUBTOTAL(9,$M$11:M195) -> 0 | C195: =COA!C191 -> 7.2.04.01 Kerugian Penjualan Aset Tetap | D195: =SUMIF(Jurnal!D:D,'neraca saldo'!C195,Jurnal!F:F) -> 0 | E195: =SUMIF(Jurnal!D:D,'neraca saldo'!C195,Jurnal!G:G) -> 0 | F195: 0 | G195: 0 | H195: 0 | J195: 7.2 | K195: 7.2.04 | L195: 7.2.04.01 | M195: 1
A196: Debit | B196: =SUBTOTAL(9,$M$11:M196) -> 0 | C196: =COA!C192 -> 7.2.99.99 Beban Lain-lain lainnya | D196: =SUMIF(Jurnal!D:D,'neraca saldo'!C196,Jurnal!F:F) -> 0 | E196: =SUMIF(Jurnal!D:D,'neraca saldo'!C196,Jurnal!G:G) -> 0 | F196: 0 | G196: 0 | H196: 0 | J196: 7.2 | K196: 7.2.99 | L196: 7.2.99.99 | M196: 1
A197: Debit | B197: =SUBTOTAL(9,$M$11:M197) -> 0 | C197: =COA!C193 -> 7.3.01.01 Beban Pajak Air Permukaan | D197: =SUMIF(Jurnal!D:D,'neraca saldo'!C197,Jurnal!F:F) -> 0 | E197: =SUMIF(Jurnal!D:D,'neraca saldo'!C197,Jurnal!G:G) -> 0 | F197: 0 | G197: 0 | H197: 0 | J197: 7.3 | K197: 7.3.01 | L197: 7.3.01.01 | M197: 1
A198: Debit | B198: =SUBTOTAL(9,$M$11:M198) -> 0 | C198: =COA!C194 -> 7.3.01.02 Beban Pajak Bunga Bank | D198: =SUMIF(Jurnal!D:D,'neraca saldo'!C198,Jurnal!F:F) -> 0 | E198: =SUMIF(Jurnal!D:D,'neraca saldo'!C198,Jurnal!G:G) -> 0 | F198: 0 | G198: 0 | H198: 0 | J198: 7.3 | K198: 7.3.01 | L198: 7.3.01.02 | M198: 1
A199: Debit | B199: =SUBTOTAL(9,$M$11:M199) -> 0 | C199: =COA!C195 -> 7.3.01.03 Beban Pajak Daerah | D199: =SUMIF(Jurnal!D:D,'neraca saldo'!C199,Jurnal!F:F) -> 0 | E199: =SUMIF(Jurnal!D:D,'neraca saldo'!C199,Jurnal!G:G) -> 0 | F199: 0 | G199: 0 | H199: 0 | J199: 7.3 | K199: 7.3.01 | L199: 7.3.01.03 | M199: 1
A200: Debit | B200: =SUBTOTAL(9,$M$11:M200) -> 0 | C200: =COA!C196 -> 7.3.01.04 Beban Pajak Hiburan | D200: =SUMIF(Jurnal!D:D,'neraca saldo'!C200,Jurnal!F:F) -> 0 | E200: =SUMIF(Jurnal!D:D,'neraca saldo'!C200,Jurnal!G:G) -> 0 | F200: 0 | G200: 0 | H200: 0 | J200: 7.3 | K200: 7.3.01 | L200: 7.3.01.04 | M200: 1
A201: Debit | B201: =SUBTOTAL(9,$M$11:M201) -> 0 | C201: =COA!C197 -> 7.3.01.05 Beban Pajak Reklame | D201: =SUMIF(Jurnal!D:D,'neraca saldo'!C201,Jurnal!F:F) -> 0 | E201: =SUMIF(Jurnal!D:D,'neraca saldo'!C201,Jurnal!G:G) -> 0 | F201: 0 | G201: 0 | H201: 0 | J201: 7.3 | K201: 7.3.01 | L201: 7.3.01.05 | M201: 1
... 39 more rows

Sheet Laba Rugi
B1: aph | J1: Silakan pilih bulan periode laporan, dan semua komponen laporan akan mengikuti periode ini!
G2: 12 | H2: ="<="&G2 -> <=12 | I2: =VLOOKUP(G2,akhirbulan,3,0)&" "&TEXT(Home!C10,"YYYY") -> 31 Desember 2023
C3: =IF(Home!C6="","",Home!C6) -> MADUSUKO MAKMUR
C4: =IF(Home!C8="","",Home!C8) -> SIMPAN PINJAM
C5: LAPORAN LABA RUGI
C6: =IF(Home!C10="","","Untuk Periode yang berakhir sampai dengan "&TEXT(I2,"dd mmmm yyyy")) -> Untuk Periode yang berakhir sampai dengan 31 Desember 2023
C7: (dalam rupiah)
A9: Level | C9: Nomor Urut | D9: Uraian | E9: =IF(Home!C10="","",VLOOKUP(G2,akhirbulan,2,0)&" "&TEXT(Home!C10,"YYYY")) -> Desember 2023 | F9: =IF(E9="","","s.d "&I2) -> s.d 31 Desember 2023
C10: 1 | D10: 2 | E10: 3 | F10: 4
A11: 1 | B11: 4.0.00 | C11: 1 | D11: PENDAPATAN USAHA
A12: 2 | B12: 4.1.00 | C12: =C11+1 -> 2 | D12: Pendapatan Jasa
A13: 3 | B13: 4.1.01 | C13: =C12+1 -> 3 | D13: Pendapatan Wisata | E13: =SUMIFS(Jurnal!O:O,Jurnal!N:N,'Laba Rugi'!$B13,Jurnal!L:L,'Laba Rugi'!$G$2) -> 0 | F13: =SUMIFS(Jurnal!O:O,Jurnal!N:N,'Laba Rugi'!$B13,Jurnal!L:L,'Laba Rugi'!$H$2) -> 0
A14: 3 | B14: 4.1.02 | C14: 4 | D14: Pendapatan Pengelolaan Air Bersih | E14: =SUMIFS(Jurnal!O:O,Jurnal!N:N,'Laba Rugi'!$B14,Jurnal!L:L,'Laba Rugi'!$G$2) -> 0 | F14: =SUMIFS(Jurnal!O:O,Jurnal!N:N,'Laba Rugi'!$B14,Jurnal!L:L,'Laba Rugi'!$H$2) -> 0
A15: 3 | B15: 4.1.03 | C15: 5 | D15: Pendapatan Pengelolaan Sampah | E15: =SUMIFS(Jurnal!O:O,Jurnal!N:N,'Laba Rugi'!$B15,Jurnal!L:L,'Laba Rugi'!$G$2) -> 0 | F15: =SUMIFS(Jurnal!O:O,Jurnal!N:N,'Laba Rugi'!$B15,Jurnal!L:L,'Laba Rugi'!$H$2) -> 0
A16: 3 | B16: 4.1.04 | C16: 6 | D16: Pendapatan Sewa | E16: =SUMIFS(Jurnal!O:O,Jurnal!N:N,'Laba Rugi'!$B16,Jurnal!L:L,'Laba Rugi'!$G$2) -> 0 | F16: =SUMIFS(Jurnal!O:O,Jurnal!N:N,'Laba Rugi'!$B16,Jurnal!L:L,'Laba Rugi'!$H$2) -> 0
A17: 3 | B17: 4.1.05 | C17: 7 | D17: Pendapatan Jasa Pelayanan | E17: =SUMIFS(Jurnal!O:O,Jurnal!N:N,'Laba Rugi'!$B17,Jurnal!L:L,'Laba Rugi'!$G$2) -> 0 | F17: =SUMIFS(Jurnal!O:O,Jurnal!N:N,'Laba Rugi'!$B17,Jurnal!L:L,'Laba Rugi'!$H$2) -> 0
A18: 3 | B18: 4.1.06 | C18: 8 | D18: Pendapatan Transportasi | E18: =SUMIFS(Jurnal!O:O,Jurnal!N:N,'Laba Rugi'!$B18,Jurnal!L:L,'Laba Rugi'!$G$2) -> 0 | F18: =SUMIFS(Jurnal!O:O,Jurnal!N:N,'Laba Rugi'!$B18,Jurnal!L:L,'Laba Rugi'!$H$2) -> 0
A19: 3 | B19: 4.1.07 | C19: 9 | D19: Pendapatan Parkir | E19: =SUMIFS(Jurnal!O:O,Jurnal!N:N,'Laba Rugi'!$B19,Jurnal!L:L,'Laba Rugi'!$G$2) -> 0 | F19: =SUMIFS(Jurnal!O:O,Jurnal!N:N,'Laba Rugi'!$B19,Jurnal!L:L,'Laba Rugi'!$H$2) -> 0
A20: 3 | B20: 4.1.08 | C20: 10 | D20: Pendapatan Simpan Pinjam | E20: =SUMIFS(Jurnal!O:O,Jurnal!N:N,'Laba Rugi'!$B20,Jurnal!L:L,'Laba Rugi'!$G$2) -> 0 | F20: =SUMIFS(Jurnal!O:O,Jurnal!N:N,'Laba Rugi'!$B20,Jurnal!L:L,'Laba Rugi'!$H$2) -> 0
A21: 3 | B21: 4.1.09 | C21: 11 | D21: Pendapatan Pelatihan | E21: =SUMIFS(Jurnal!O:O,Jurnal!N:N,'Laba Rugi'!$B21,Jurnal!L:L,'Laba Rugi'!$G$2) -> 0 | F21: =SUMIFS(Jurnal!O:O,Jurnal!N:N,'Laba Rugi'!$B21,Jurnal!L:L,'Laba Rugi'!$H$2) -> 0
A22: 3 | B22: 4.1.10 | C22: 12 | D22: Pendapatan Penginapan/Homestay | E22: =SUMIFS(Jurnal!O:O,Jurnal!N:N,'Laba Rugi'!$B22,Jurnal!L:L,'Laba Rugi'!$G$2) -> 0 | F22: =SUMIFS(Jurnal!O:O,Jurnal!N:N,'Laba Rugi'!$B22,Jurnal!L:L,'Laba Rugi'!$H$2) -> 0
A23: 3 | B23: 4.1.11 | C23: 13 | D23: Pendapatan Komisi | E23: =SUMIFS(Jurnal!O:O,Jurnal!N:N,'Laba Rugi'!$B23,Jurnal!L:L,'Laba Rugi'!$G$2) -> 0 | F23: =SUMIFS(Jurnal!O:O,Jurnal!N:N,'Laba Rugi'!$B23,Jurnal!L:L,'Laba Rugi'!$H$2) -> 0
C24: 14 | D24: Total Pendapatan Jasa (3 s.d. 13) | E24: =SUM(E13:E23) -> 0 | F24: =SUM(F13:F23) -> 0
A25: 2 | B25: 4.2 | C25: 15 | D25: Pendapatan Penjualan Barang Dagangan
A26: 3 | B26: 4.2.01 | C26: 16 | D26: Pendapatan Penjualan Barang Dagangan | E26: =SUMIFS(Jurnal!O:O,Jurnal!N:N,'Laba Rugi'!$B26,Jurnal!L:L,'Laba Rugi'!$G$2) -> 0 | F26: =SUMIFS(Jurnal!O:O,Jurnal!N:N,'Laba Rugi'!$B26,Jurnal!L:L,'Laba Rugi'!$H$2) -> 0
A27: 2 | B27: 4.3 | C27: 17 | D27: Pendapatan Penjualan Barang Jadi
A28: 3 | B28: 4.3.01 | C28: 18 | D28: Pendapatan Penjualan Barang Jadi | E28: =SUMIFS(Jurnal!O:O,Jurnal!N:N,'Laba Rugi'!$B28,Jurnal!L:L,'Laba Rugi'!$G$2) -> 0 | F28: =SUMIFS(Jurnal!O:O,Jurnal!N:N,'Laba Rugi'!$B28,Jurnal!L:L,'Laba Rugi'!$H$2) -> 0
C29: 19 | D29: Total Pendapatan (14+16+18) | E29: =E28+E26+E24 -> 0 | F29: =F28+F26+F24 -> 0
C30: 20
A31: 1 | B31: 5.0.00 | C31: 21 | D31: HARGA POKOK PENJUALAN
A32: 2 | B32: 5.1.00 | C32: 22 | D32: Harga Pokok Penjualan Barang Dagangan
A33: 3 | B33: 5.1.01 | C33: 23 | D33: Harga Pokok Penjualan Barang Dagangan | E33: =SUMIFS(Jurnal!O:O,Jurnal!N:N,'Laba Rugi'!$B33,Jurnal!L:L,'Laba Rugi'!$G$2) -> 0 | F33: =SUMIFS(Jurnal!O:O,Jurnal!N:N,'Laba Rugi'!$B33,Jurnal!L:L,'Laba Rugi'!$H$2) -> 0
A34: 2 | B34: 5.2.00 | C34: 24 | D34: Harga Pokok Penjualan Barang Jadi
A35: 3 | B35: 5.2.01 | C35: 25 | D35: Harga Pokok Penjualan Barang Jadi | E35: =SUMIFS(Jurnal!O:O,Jurnal!N:N,'Laba Rugi'!$B35,Jurnal!L:L,'Laba Rugi'!$G$2) -> 0 | F35: =SUMIFS(Jurnal!O:O,Jurnal!N:N,'Laba Rugi'!$B35,Jurnal!L:L,'Laba Rugi'!$H$2) -> 0
C36: 26 | D36: Total Harga Pokok Penjualan (23+25) | E36: =E35+E33 -> 0 | F36: =F35+F33 -> 0
C37: 27 | D37: Laba (Rugi) Kotor (19-26) | E37: =E29-E36 -> 0 | F37: =F29-F36 -> 0
C38: 28
A39: 1 | B39: 6.0.00 | C39: 29 | D39: BEBAN-BEBAN USAHA
A40: 2 | B40: 6.1.00 | C40: 30 | D40: Beban Administrasi dan Umum
A41: 3 | B41: 6.1.01 | C41: 31 | D41: Beban Pegawai Bagian Administrasi Umum | E41: =SUMIFS(Jurnal!O:O,Jurnal!N:N,'Laba Rugi'!$B41,Jurnal!L:L,'Laba Rugi'!$G$2) -> 0 | F41: =SUMIFS(Jurnal!O:O,Jurnal!N:N,'Laba Rugi'!$B41,Jurnal!L:L,'Laba Rugi'!$H$2) -> 0
A42: 3 | B42: 6.1.02 | C42: 32 | D42: Beban Perlengkapan | E42: =SUMIFS(Jurnal!O:O,Jurnal!N:N,'Laba Rugi'!$B42,Jurnal!L:L,'Laba Rugi'!$G$2) -> 0 | F42: =SUMIFS(Jurnal!O:O,Jurnal!N:N,'Laba Rugi'!$B42,Jurnal!L:L,'Laba Rugi'!$H$2) -> 0
A43: 3 | B43: 6.1.03 | C43: 33 | D43: Beban Pemeliharaan dan Perbaikan | E43: =SUMIFS(Jurnal!O:O,Jurnal!N:N,'Laba Rugi'!$B43,Jurnal!L:L,'Laba Rugi'!$G$2) -> 0 | F43: =SUMIFS(Jurnal!O:O,Jurnal!N:N,'Laba Rugi'!$B43,Jurnal!L:L,'Laba Rugi'!$H$2) -> 0
A44: 3 | B44: 6.1.04 | C44: 34 | D44: Beban Utilitas | E44: =SUMIFS(Jurnal!O:O,Jurnal!N:N,'Laba Rugi'!$B44,Jurnal!L:L,'Laba Rugi'!$G$2) -> 0 | F44: =SUMIFS(Jurnal!O:O,Jurnal!N:N,'Laba Rugi'!$B44,Jurnal!L:L,'Laba Rugi'!$H$2) -> 0
A45: 3 | B45: 6.1.05 | C45: 35 | D45: Beban Sewa dan Asuransi | E45: =SUMIFS(Jurnal!O:O,Jurnal!N:N,'Laba Rugi'!$B45,Jurnal!L:L,'Laba Rugi'!$G$2) -> 0 | F45: =SUMIFS(Jurnal!O:O,Jurnal!N:N,'Laba Rugi'!$B45,Jurnal!L:L,'Laba Rugi'!$H$2) -> 0
A46: 3 | B46: 6.1.06 | C46: 36 | D46: Beban Kebersihan dan Keamanan | E46: =SUMIFS(Jurnal!O:O,Jurnal!N:N,'Laba Rugi'!$B46,Jurnal!L:L,'Laba Rugi'!$G$2) -> 0 | F46: =SUMIFS(Jurnal!O:O,Jurnal!N:N,'Laba Rugi'!$B46,Jurnal!L:L,'Laba Rugi'!$H$2) -> 0
A47: 3 | B47: 6.1.07 | C47: 37 | D47: Beban Penyisihan dan Penyusutan/Amortisasi | E47: =SUMIFS(Jurnal!O:O,Jurnal!N:N,'Laba Rugi'!$B47,Jurnal!L:L,'Laba Rugi'!$G$2) -> 0 | F47: =SUMIFS(Jurnal!O:O,Jurnal!N:N,'Laba Rugi'!$B47,Jurnal!L:L,'Laba Rugi'!$H$2) -> 0
A48: 3 | B48: 6.1.99 | C48: 38 | D48: Beban Administrasi dan Umum Lainnya | E48: =SUMIFS(Jurnal!O:O,Jurnal!N:N,'Laba Rugi'!$B48,Jurnal!L:L,'Laba Rugi'!$G$2) -> 0 | F48: =SUMIFS(Jurnal!O:O,Jurnal!N:N,'Laba Rugi'!$B48,Jurnal!L:L,'Laba Rugi'!$H$2) -> 0
C49: 39 | D49: Total Beban Administrasi Umum (31 s.d. 38) | E49: =SUM(E41:E48) -> 0 | F49: =SUM(F41:F48) -> 0
A50: 2 | B50: 6.2.00 | C50: 40 | D50: Beban Operasional
A51: 3 | B51: 6.2.01 | C51: 41 | D51: Beban Pegawa Bagian Operasional | E51: =SUMIFS(Jurnal!O:O,Jurnal!N:N,'Laba Rugi'!$B51,Jurnal!L:L,'Laba Rugi'!$G$2) -> 0 | F51: =SUMIFS(Jurnal!O:O,Jurnal!N:N,'Laba Rugi'!$B51,Jurnal!L:L,'Laba Rugi'!$H$2) -> 0
A52: 3 | B52: 6.2.02 | C52: 42 | D52: Beban Pemeliharaan dan Perbaikan | E52: =SUMIFS(Jurnal!O:O,Jurnal!N:N,'Laba Rugi'!$B52,Jurnal!L:L,'Laba Rugi'!$G$2) -> 0 | F52: =SUMIFS(Jurnal!O:O,Jurnal!N:N,'Laba Rugi'!$B52,Jurnal!L:L,'Laba Rugi'!$H$2) -> 0
A53: 3 | B53: 6.2.03 | C53: 43 | D53: Beban Keamanan | E53: =SUMIFS(Jurnal!O:O,Jurnal!N:N,'Laba Rugi'!$B53,Jurnal!L:L,'Laba Rugi'!$G$2) -> 0 | F53: =SUMIFS(Jurnal!O:O,Jurnal!N:N,'Laba Rugi'!$B53,Jurnal!L:L,'Laba Rugi'!$H$2) -> 0
A54: 3 | B54: 6.2.99 | C54: 44 | D54: Beban Operasional Lainnya | E54: =SUMIFS(Jurnal!O:O,Jurnal!N:N,'Laba Rugi'!$B54,Jurnal!L:L,'Laba Rugi'!$G$2) -> 0 | F54: =SUMIFS(Jurnal!O:O,Jurnal!N:N,'Laba Rugi'!$B54,Jurnal!L:L,'Laba Rugi'!$H$2) -> 0
C55: 45 | D55: Total Beban Operasional (41 s.d. 44) | E55: =SUM(E51:E54) -> 0 | F55: =SUM(F51:F54) -> 0
A56: 2 | B56: 6.3.00 | C56: 46 | D56: Beban Pemasaran
A57: 3 | B57: 6.3.01 | C57: 47 | D57: Beban Pegawai Bagian Pemasaran | E57: =SUMIFS(Jurnal!O:O,Jurnal!N:N,'Laba Rugi'!$B57,Jurnal!L:L,'Laba Rugi'!$G$2) -> 0 | F57: =SUMIFS(Jurnal!O:O,Jurnal!N:N,'Laba Rugi'!$B57,Jurnal!L:L,'Laba Rugi'!$H$2) -> 0
A58: 3 | B58: 6.3.02 | C58: 48 | D58: Beban Iklan dan Promosi | E58: =SUMIFS(Jurnal!O:O,Jurnal!N:N,'Laba Rugi'!$B58,Jurnal!L:L,'Laba Rugi'!$G$2) -> 0 | F58: =SUMIFS(Jurnal!O:O,Jurnal!N:N,'Laba Rugi'!$B58,Jurnal!L:L,'Laba Rugi'!$H$2) -> 0
A59: 3 | B59: 6.3.99 | C59: 49 | D59: Beban Pemasaran Lainnya | E59: =SUMIFS(Jurnal!O:O,Jurnal!N:N,'Laba Rugi'!$B59,Jurnal!L:L,'Laba Rugi'!$G$2) -> 0 | F59: =SUMIFS(Jurnal!O:O,Jurnal!N:N,'Laba Rugi'!$B59,Jurnal!L:L,'Laba Rugi'!$H$2) -> 0
C60: 50 | D60: Total Beban Pemasaran (47 s.d. 49) | E60: =SUM(E57:E59) -> 0 | F60: =SUM(F57:F59) -> 0
C61: 51 | D61: Total Beban-Beban (39+45+50) | E61: =E60+E55+E49 -> 0 | F61: =F60+F55+F49 -> 0
C62: 52 | D62: LABA (RUGI) OPERASI (27-51) | E62: =E37-E61 -> 0 | F62: =F37-F61 -> 0
C63: 53
A64: 1 | B64: 7.0.00 | C64: 54 | D64: PENDAPATAN DAN BEBAN LAIN-LAIN
A65: 2 | B65: 7.1.00 | C65: 55 | D65: Pendapatan Lain-lain
A66: 3 | B66: 7.1.01 | C66: 56 | D66: Pendapatan dari Bank | E66: =SUMIFS(Jurnal!O:O,Jurnal!N:N,'Laba Rugi'!$B66,Jurnal!L:L,'Laba Rugi'!$G$2) -> 0 | F66: =SUMIFS(Jurnal!O:O,Jurnal!N:N,'Laba Rugi'!$B66,Jurnal!L:L,'Laba Rugi'!$H$2) -> 0
A67: 3 | B67: 7.1.02 | C67: 57 | D67: Pendapatan Dividen | E67: =SUMIFS(Jurnal!O:O,Jurnal!N:N,'Laba Rugi'!$B67,Jurnal!L:L,'Laba Rugi'!$G$2) -> 0 | F67: =SUMIFS(Jurnal!O:O,Jurnal!N:N,'Laba Rugi'!$B67,Jurnal!L:L,'Laba Rugi'!$H$2) -> 0
A68: 3 | B68: 7.1.03 | C68: 58 | D68: Pendapatan Denda | E68: =SUMIFS(Jurnal!O:O,Jurnal!N:N,'Laba Rugi'!$B68,Jurnal!L:L,'Laba Rugi'!$G$2) -> 0 | F68: =SUMIFS(Jurnal!O:O,Jurnal!N:N,'Laba Rugi'!$B68,Jurnal!L:L,'Laba Rugi'!$H$2) -> 0
A69: 3 | B69: 7.1.04 | C69: 59 | D69: Pendapatan Iklan | E69: =SUMIFS(Jurnal!O:O,Jurnal!N:N,'Laba Rugi'!$B69,Jurnal!L:L,'Laba Rugi'!$G$2) -> 0 | F69: =SUMIFS(Jurnal!O:O,Jurnal!N:N,'Laba Rugi'!$B69,Jurnal!L:L,'Laba Rugi'!$H$2) -> 0
A70: 3 | B70: 7.1.05 | C70: =C68+1 -> 59 | D70: Pendapatan Penjualan Aset Tetap | E70: =SUMIFS(Jurnal!O:O,Jurnal!N:N,'Laba Rugi'!$B70,Jurnal!L:L,'Laba Rugi'!$G$2) -> 0 | F70: =SUMIFS(Jurnal!O:O,Jurnal!N:N,'Laba Rugi'!$B70,Jurnal!L:L,'Laba Rugi'!$H$2) -> 0
A71: 3 | B71: 7.1.99 | C71: =C70+1 -> 60 | D71: Pendapatan Lain-lain lainnya | E71: =SUMIFS(Jurnal!O:O,Jurnal!N:N,'Laba Rugi'!$B71,Jurnal!L:L,'Laba Rugi'!$G$2) -> 0 | F71: =SUMIFS(Jurnal!O:O,Jurnal!N:N,'Laba Rugi'!$B71,Jurnal!L:L,'Laba Rugi'!$H$2) -> 0
C72: 61 | D72: Total Pendapatan Lain-lain (56 s.d. 60) | E72: =SUM(E66:E71) -> 0 | F72: =SUM(F66:F71) -> 0
A73: 2 | B73: 7.2.00 | C73: 62 | D73: Beban Lain-lain
A74: 3 | B74: 7.2.01 | C74: 63 | D74: Beban Bank | E74: =SUMIFS(Jurnal!O:O,Jurnal!N:N,'Laba Rugi'!$B74,Jurnal!L:L,'Laba Rugi'!$G$2) -> 0 | F74: =SUMIFS(Jurnal!O:O,Jurnal!N:N,'Laba Rugi'!$B74,Jurnal!L:L,'Laba Rugi'!$H$2) -> 0
A75: 3 | B75: 7.2.02 | C75: 64 | D75: Beban Bunga | E75: =SUMIFS(Jurnal!O:O,Jurnal!N:N,'Laba Rugi'!$B75,Jurnal!L:L,'Laba Rugi'!$G$2) -> 0 | F75: =SUMIFS(Jurnal!O:O,Jurnal!N:N,'Laba Rugi'!$B75,Jurnal!L:L,'Laba Rugi'!$H$2) -> 0
A76: 3 | B76: 7.2.03 | C76: 65 | D76: Beban Denda | E76: =SUMIFS(Jurnal!O:O,Jurnal!N:N,'Laba Rugi'!$B76,Jurnal!L:L,'Laba Rugi'!$G$2) -> 0 | F76: =SUMIFS(Jurnal!O:O,Jurnal!N:N,'Laba Rugi'!$B76,Jurnal!L:L,'Laba Rugi'!$H$2) -> 0
A77: 3 | B77: 7.2.04 | C77: 66 | D77: Beban Penjualan Aset Tetap | E77: =SUMIFS(Jurnal!O:O,Jurnal!N:N,'Laba Rugi'!$B77,Jurnal!L:L,'Laba Rugi'!$G$2) -> 0 | F77: =SUMIFS(Jurnal!O:O,Jurnal!N:N,'Laba Rugi'!$B77,Jurnal!L:L,'Laba Rugi'!$H$2) -> 0
A78: 3 | B78: 7.2.04 | C78: =C76+1 -> 66 | D78: Beban Lain-lain Lainnya | E78: =SUMIFS(Jurnal!O:O,Jurnal!N:N,'Laba Rugi'!$B78,Jurnal!L:L,'Laba Rugi'!$G$2) -> 0 | F78: =SUMIFS(Jurnal!O:O,Jurnal!N:N,'Laba Rugi'!$B78,Jurnal!L:L,'Laba Rugi'!$H$2) -> 0
C79: =C78+1 -> 67 | D79: Total Beban Lain-lain (63 s.d. 66) | E79: =SUM(E74:E78) -> 0 | F79: =SUM(F74:F78) -> 0
A80: 2 | B80: 7.3.00 | C80: 68 | D80: Beban Pajak
A81: 3 | B81: 7.3.01 | C81: 69 | D81: Beban Pajak | E81: =SUMIFS(Jurnal!O:O,Jurnal!N:N,'Laba Rugi'!$B81,Jurnal!L:L,'Laba Rugi'!$G$2) -> 0 | F81: =SUMIFS(Jurnal!O:O,Jurnal!N:N,'Laba Rugi'!$B81,Jurnal!L:L,'Laba Rugi'!$H$2) -> 0
C82: 70 | D82: Total Pendapatan dan Beban Lain-lain (61-67-69) | E82: =E72-E79-E81 -> 0 | F82: =F72-F79-F81 -> 0
C83: 71 | D83: LABA (RUGI) BERSIH SEBELUM BAGI HASIL (52+70) | E83: =E62+E82 -> 0 | F83: =F62+F82 -> 0
A84: 3 | B84: 3.2.01 | C84: 72 | D84: BAGI HASIL PENYERTAAN MODAL DESA | E84: =SUMIFS(Jurnal!O:O,Jurnal!N:N,'Laba Rugi'!$B84,Jurnal!L:L,'Laba Rugi'!$G$2) -> 0 | F84: =SUMIFS(Jurnal!O:O,Jurnal!N:N,'Laba Rugi'!$B84,Jurnal!L:L,'Laba Rugi'!$H$2) -> 0
A85: 3 | B85: 3.2.02 | C85: 73 | D85: BAGI HASIL PENYERTAAN MODAL MASYARAKAT | E85: =SUMIFS(Jurnal!O:O,Jurnal!N:N,'Laba Rugi'!$B85,Jurnal!L:L,'Laba Rugi'!$G$2) -> 0 | F85: =SUMIFS(Jurnal!O:O,Jurnal!N:N,'Laba Rugi'!$B85,Jurnal!L:L,'Laba Rugi'!$H$2) -> 0
C86: =C84+1 -> 73 | D86: Laba (RUGI) BERSIH SETELAH BAGI HASIL KE PEMILIK (71-72) | E86: =E83-E84-E85 -> 0 | F86: =F83-F84-F85 -> 0
E88: =IF(Home!H5="","",Home!C3&", "&TEXT(I2,"dd mmmm yyyy")) -> KARANGANYAR, 31 Desember 2023
E89: =IF(Home!H5="","",Home!G4) -> Direktur BUMDesa
E93: =IF(Home!H5="","",Home!H5) -> RIDHO
E94: =IF(Home!H5="","","NIK "&Home!H6) -> NIK

Sheet LPE
A1: aph
B3: =IF(Home!C6="","",Home!C6) -> MADUSUKO MAKMUR
B4: =IF(Home!C8="","",Home!C8) -> SIMPAN PINJAM
B5: LAPORAN PERUBAHAN EKUITAS
B6: =IF(Home!C10="","","Untuk Periode yang berakhir sampai dengan "&TEXT('Laba Rugi'!I2,"dd mmmm yyyy")) -> Untuk Periode yang berakhir sampai dengan 31 Desember 2023
B7: (dalam rupiah)
B9: Nomor Urut | C9: Uraian | D9: =IF(Home!C10="","",Home!C10) -> 2023-12-31
B10: 1 | C10: 2 | D10: 3
B11: 1 | C11: PENYERTAAN MODAL
A12: 3.1.01.01 | B12: 2 | C12: Penyertaan Modal Desa Awal | D12: =SUMIFS(Jurnal!O:O,Jurnal!M:M,LPE!A12,Jurnal!H:H,"Saldo Awal") -> 0
A13: 3.1.02.01 | B13: 3 | C13: Penyertaan Modal Masyarakat Awal | D13: =SUMIFS(Jurnal!O:O,Jurnal!M:M,LPE!A13,Jurnal!H:H,"Saldo Awal") -> 0
B14: 4 | C14: Penambahan Investasi periode berjalan:
A15: 3.1.01.01 | B15: 5 | C15: Penyertaan Modal Desa | D15: =SUMIFS(Jurnal!O:O,Jurnal!M:M,LPE!A15,Jurnal!L:L,'Laba Rugi'!$H$2)-SUMIFS(Jurnal!O:O,Jurnal!M:M,LPE!A15,Jurnal!H:H,"Saldo Awal") -> 3000000
A16: 3.1.02.01 | B16: 6 | C16: Penyertaan Modal Masyarakat | D16: =SUMIFS(Jurnal!O:O,Jurnal!M:M,LPE!A16,Jurnal!L:L,'Laba Rugi'!$H$2)-SUMIFS(Jurnal!O:O,Jurnal!M:M,LPE!A16,Jurnal!H:H,"Saldo Awal") -> 0
B17: 7 | C17: Penyertaan Modal Akhir | D17: =SUM(D12:D16) -> 3000000
B18: 8 | C18: SALDO LABA
B19: 9 | C19: Saldo Laba Awal:
A20: 3.3.01 | B20: 10 | C20: Saldo Laba Tidak Dicadangkan | D20: =SUMIFS(Jurnal!O:O,Jurnal!N:N,LPE!A20,Jurnal!H:H,"Saldo Awal") -> 0
A21: 3.3.02 | B21: 11 | C21: Saldo Laba Dicadangkan | D21: =SUMIFS(Jurnal!O:O,Jurnal!N:N,LPE!A21,Jurnal!H:H,"Saldo Awal") -> 0
B22: 12 | C22: Laba (Rugi) periode berjalan | D22: ='Laba Rugi'!F83 -> 0
B23: 13 | C23: Bagi Hasil Penyertaan:
A24: 3.2.01.01 | B24: 14 | C24: Bagi Hasil Penyertaan Modal Desa | D24: =SUMIFS(Jurnal!O:O,Jurnal!M:M,LPE!A24,Jurnal!L:L,'Laba Rugi'!$H$2) -> 0
A25: 3.2.02.01 | B25: 15 | C25: Bagi Hasil Penyertaan Modal Masyarakat | D25: =SUMIFS(Jurnal!O:O,Jurnal!M:M,LPE!A25,Jurnal!L:L,'Laba Rugi'!$H$2) -> 0
B26: 16 | C26: Saldo Laba Akhir | D26: =D20+D21++D22-D24-D25 -> 0
B27: 17 | C27: MODAL DONASI/SUMBANGAN
A28: 3.4.01.01 | B28: 18 | C28: Modal Donasi/Sumbangan | D28: =SUMIFS(Jurnal!O:O,Jurnal!M:M,LPE!A28,Jurnal!L:L,'Laba Rugi'!$H$2) -> 0
B29: 19 | C29: EKUITAS AKHIR | D29: =D26+D17+D28 -> 3000000
C32: =IF(Home!H5="","",Home!C3&", "&TEXT('Laba Rugi'!I2,"dd mmmm yyyy")) -> KARANGANYAR, 31 Desember 2023
C33: =IF(Home!H5="","",Home!G4) -> Direktur BUMDesa
B37: .................................... | C37: =IF(Home!H5="","",Home!H5) -> RIDHO
B38: NIK ............................. | C38: =IF(Home!H5="","","NIK "&Home!H6) -> NIK

Sheet Neraca
B1: aph | E1: =IF(E2=0,"Balance","Tidak Balance") -> Balance | F1: =IF(F2=0,"Balance","Tidak Balance") -> Balance
E2: =E48-E71 -> 0 | F2: =F48-F71 -> 0
C3: =IF(Home!C6="","",Home!C6) -> MADUSUKO MAKMUR
C4: =IF(Home!C8="","",Home!C8) -> SIMPAN PINJAM
C5: LAPORAN POSISI KEUANGAN (NERACA)
C6: =IF(Home!C10="","","Per "&TEXT('Laba Rugi'!I2,"DD MMMM YYYY")&" dan "&TEXT(F9,"YYYY")) -> Per 31 Desember 2023 dan 2022
C7: (dalam rupiah)
A9: Level | C9: No | D9: Uraian | E9: =IF(Home!C10="","",Home!C10) -> 2023-12-31 | F9: =IF(E9="","",E9-366) -> 2022-12-30
C10: 1 | D10: 2 | F10: 4
A11: 1 | B11: 1.0.01 | C11: 1 | D11: ASET
A12: 2 | B12: 1.1.01 | C12: 2 | D12: Aset Lancar
A13: 3 | B13: 1.1.01 | C13: 3 | D13: Kas | E13: =SUMIFS(Jurnal!O:O,Jurnal!N:N,Neraca!B13,Jurnal!L:L,'Laba Rugi'!$H$2) -> 3000000 | F13: =SUMIFS(Jurnal!O:O,Jurnal!N:N,Neraca!B13,Jurnal!H:H,"Saldo Awal") -> 0
A14: 3 | B14: 1.1.02 | C14: 4 | D14: Setara Kas | E14: =SUMIFS(Jurnal!O:O,Jurnal!N:N,Neraca!B14,Jurnal!L:L,'Laba Rugi'!$H$2) -> 0 | F14: =SUMIFS(Jurnal!O:O,Jurnal!N:N,Neraca!B14,Jurnal!H:H,"Saldo Awal") -> 0
A15: 3 | B15: 1.1.03 | C15: 5 | D15: Piutang | E15: =SUMIFS(Jurnal!O:O,Jurnal!N:N,Neraca!B15,Jurnal!L:L,'Laba Rugi'!$H$2) -> 0 | F15: =SUMIFS(Jurnal!O:O,Jurnal!N:N,Neraca!B15,Jurnal!H:H,"Saldo Awal") -> 0
A16: 3 | B16: 1.1.04 | C16: 6 | D16: Penyisihan Piutang | E16: =-SUMIFS(Jurnal!O:O,Jurnal!N:N,Neraca!B16,Jurnal!L:L,'Laba Rugi'!$H$2) -> 0 | F16: =-SUMIFS(Jurnal!O:O,Jurnal!N:N,Neraca!B16,Jurnal!H:H,"Saldo Awal") -> 0
A17: 3 | B17: 1.1.05 | C17: 7 | D17: Persediaan | E17: =SUMIFS(Jurnal!O:O,Jurnal!N:N,Neraca!B17,Jurnal!L:L,'Laba Rugi'!$H$2) -> 0 | F17: =SUMIFS(Jurnal!O:O,Jurnal!N:N,Neraca!B17,Jurnal!H:H,"Saldo Awal") -> 0
A18: 3 | B18: 1.1.06 | C18: 8 | D18: Perlengkapan | E18: =SUMIFS(Jurnal!O:O,Jurnal!N:N,Neraca!B18,Jurnal!L:L,'Laba Rugi'!$H$2) -> 0 | F18: =SUMIFS(Jurnal!O:O,Jurnal!N:N,Neraca!B18,Jurnal!H:H,"Saldo Awal") -> 0
A19: 3 | B19: 1.1.07 | C19: 9 | D19: Pembayaran Dimuka | E19: =SUMIFS(Jurnal!O:O,Jurnal!N:N,Neraca!B19,Jurnal!L:L,'Laba Rugi'!$H$2) -> 0 | F19: =SUMIFS(Jurnal!O:O,Jurnal!N:N,Neraca!B19,Jurnal!H:H,"Saldo Awal") -> 0
A20: 3 | B20: 1.1.98 | C20: 10 | D20: Aset Lancar Lainnya | E20: =SUMIFS(Jurnal!O:O,Jurnal!N:N,Neraca!B20,Jurnal!L:L,'Laba Rugi'!$H$2) -> 0 | F20: =SUMIFS(Jurnal!O:O,Jurnal!N:N,Neraca!B20,Jurnal!H:H,"Saldo Awal") -> 0
A21: 3 | B21: 1.1.99 | C21: 11 | D21: RK Unit Usaha | E21: =SUMIFS(Jurnal!O:O,Jurnal!N:N,Neraca!B21,Jurnal!L:L,'Laba Rugi'!$H$2) -> 0 | F21: =SUMIFS(Jurnal!O:O,Jurnal!N:N,Neraca!B21,Jurnal!H:H,"Saldo Awal") -> 0
C22: 12 | D22: Total Aset Lancar | E22: =SUM(E13:E21) -> 3000000 | F22: =SUM(F13:F21) -> 0
C23: 13
A24: 2 | B24: 1.2.00 | C24: 14 | D24: Investasi
A25: 3 | B25: 1.2.01 | C25: 15 | D25: Investasi | E25: =SUMIFS(Jurnal!O:O,Jurnal!N:N,Neraca!B25,Jurnal!L:L,'Laba Rugi'!$H$2) -> 0 | F25: =SUMIFS(Jurnal!O:O,Jurnal!N:N,Neraca!B25,Jurnal!H:H,"Saldo Awal") -> 0
C26: 16 | D26: Total Investasi | E26: =SUM(E25) -> 0 | F26: =SUM(F25) -> 0
C27: 17
A28: 2 | B28: 1.3.00 | C28: 18 | D28: Aset Tetap
A29: 3 | B29: 1.3.01 | C29: 19 | D29: Tanah | E29: =SUMIFS(Jurnal!O:O,Jurnal!N:N,Neraca!B29,Jurnal!L:L,'Laba Rugi'!$H$2) -> 0 | F29: =SUMIFS(Jurnal!O:O,Jurnal!N:N,Neraca!B29,Jurnal!H:H,"Saldo Awal") -> 0
A30: 3 | B30: 1.3.02 | C30: 20 | D30: Kendaraan | E30: =SUMIFS(Jurnal!O:O,Jurnal!N:N,Neraca!B30,Jurnal!L:L,'Laba Rugi'!$H$2) -> 0 | F30: =SUMIFS(Jurnal!O:O,Jurnal!N:N,Neraca!B30,Jurnal!H:H,"Saldo Awal") -> 0
A31: 3 | B31: 1.3.03 | C31: 21 | D31: Peralatan dan Mesin | E31: =SUMIFS(Jurnal!O:O,Jurnal!N:N,Neraca!B31,Jurnal!L:L,'Laba Rugi'!$H$2) -> 0 | F31: =SUMIFS(Jurnal!O:O,Jurnal!N:N,Neraca!B31,Jurnal!H:H,"Saldo Awal") -> 0
A32: 3 | B32: 1.3.04 | C32: 22 | D32: Meubelair | E32: =SUMIFS(Jurnal!O:O,Jurnal!N:N,Neraca!B32,Jurnal!L:L,'Laba Rugi'!$H$2) -> 0 | F32: =SUMIFS(Jurnal!O:O,Jurnal!N:N,Neraca!B32,Jurnal!H:H,"Saldo Awal") -> 0
A33: 3 | B33: 1.3.05 | C33: 23 | D33: Gedung dan Bangunan | E33: =SUMIFS(Jurnal!O:O,Jurnal!N:N,Neraca!B33,Jurnal!L:L,'Laba Rugi'!$H$2) -> 0 | F33: =SUMIFS(Jurnal!O:O,Jurnal!N:N,Neraca!B33,Jurnal!H:H,"Saldo Awal") -> 0
A34: 3 | B34: 1.3.06 | C34: 24 | D34: Konstruksi Dalam Pengerjaan | E34: =SUMIFS(Jurnal!O:O,Jurnal!N:N,Neraca!B34,Jurnal!L:L,'Laba Rugi'!$H$2) -> 0 | F34: =SUMIFS(Jurnal!O:O,Jurnal!N:N,Neraca!B34,Jurnal!H:H,"Saldo Awal") -> 0
A35: 3 | B35: 1.3.07 | C35: 25 | D35: Akumulasi Penyusutan Aset Tetap | E35: =-SUMIFS(Jurnal!O:O,Jurnal!N:N,Neraca!B35,Jurnal!L:L,'Laba Rugi'!$H$2) -> 0 | F35: =-SUMIFS(Jurnal!O:O,Jurnal!N:N,Neraca!B35,Jurnal!H:H,"Saldo Awal") -> 0
A36: 3 | B36: 1.3.99 | C36: 26 | D36: Aset Tetap Lainnya | E36: =SUMIFS(Jurnal!O:O,Jurnal!N:N,Neraca!B36,Jurnal!L:L,'Laba Rugi'!$H$2) -> 0 | F36: =SUMIFS(Jurnal!O:O,Jurnal!N:N,Neraca!B36,Jurnal!H:H,"Saldo Awal") -> 0
C37: 27 | D37: Total Aset Tetap | E37: =SUM(E29:E36) -> 0 | F37: =SUM(F29:F36) -> 0
C38: 28
A39: 2 | B39: 1.4.00 | C39: 29 | D39: Aset Takberwujud
A40: 3 | B40: 1.4.01 | C40: 30 | D40: Aset Takberwujud | E40: =SUMIFS(Jurnal!O:O,Jurnal!N:N,Neraca!B40,Jurnal!L:L,'Laba Rugi'!$H$2) -> 0 | F40: =SUMIFS(Jurnal!O:O,Jurnal!N:N,Neraca!B40,Jurnal!H:H,"Saldo Awal") -> 0
A41: 3 | B41: 1.4.02 | C41: 31 | D41: Amortisasi Aset Takberwujud | E41: =-SUMIFS(Jurnal!O:O,Jurnal!N:N,Neraca!B41,Jurnal!L:L,'Laba Rugi'!$H$2) -> 0 | F41: =-SUMIFS(Jurnal!O:O,Jurnal!N:N,Neraca!B41,Jurnal!H:H,"Saldo Awal") -> 0
C42: 32 | D42: Total Aset Takberwujud | E42: =SUM(E40:E41) -> 0 | F42: =SUM(F40:F41) -> 0
C43: 33
A44: 2 | B44: 1.9.00 | C44: 34 | D44: Aset Lain-lain
A45: 3 | B45: 1.90.1 | C45: 35 | D45: Aset Lain-lain | E45: =SUMIFS(Jurnal!O:O,Jurnal!N:N,Neraca!B45,Jurnal!L:L,'Laba Rugi'!$H$2) -> 0 | F45: =SUMIFS(Jurnal!O:O,Jurnal!N:N,Neraca!B45,Jurnal!H:H,"Saldo Awal") -> 0
A46: 3 | B46: 1.9.02 | C46: 36 | D46: Akumulasi Penyusutan Aset Lain-lain | E46: =-SUMIFS(Jurnal!O:O,Jurnal!N:N,Neraca!B46,Jurnal!L:L,'Laba Rugi'!$H$2) -> 0 | F46: =-SUMIFS(Jurnal!O:O,Jurnal!N:N,Neraca!B46,Jurnal!H:H,"Saldo Awal") -> 0
C47: 37 | D47: Total Aset Lain-lain | E47: =SUM(E45:E46) -> 0 | F47: =SUM(F45:F46) -> 0
C48: 38 | D48: TOTAL ASET | E48: =E47+E42+E37+E26+E22 -> 3000000 | F48: =F47+F42+F37+F26+F22 -> 0
C49: 39
A50: 1 | B50: 2.0.00 | C50: 40 | D50: KEWAJIBAN
A51: 2 | B51: 2.1.00 | C51: 41 | D51: Kewajiban Jangka Pendek
A52: 3 | B52: 2.1.01 | C52: 42 | D52: Utang Usaha | E52: =SUMIFS(Jurnal!O:O,Jurnal!N:N,Neraca!B52,Jurnal!L:L,'Laba Rugi'!$H$2) -> 0 | F52: =SUMIFS(Jurnal!O:O,Jurnal!N:N,Neraca!B52,Jurnal!H:H,"Saldo Awal") -> 0
A53: 3 | B53: 2.1.02 | C53: 43 | D53: Utang Pajak | E53: =SUMIFS(Jurnal!O:O,Jurnal!N:N,Neraca!B53,Jurnal!L:L,'Laba Rugi'!$H$2) -> 0 | F53: =SUMIFS(Jurnal!O:O,Jurnal!N:N,Neraca!B53,Jurnal!H:H,"Saldo Awal") -> 0
A54: 3 | B54: 2.1.03 | C54: 44 | D54: Utang Gaji/Upah dan Tunjangan | E54: =SUMIFS(Jurnal!O:O,Jurnal!N:N,Neraca!B54,Jurnal!L:L,'Laba Rugi'!$H$2) -> 0 | F54: =SUMIFS(Jurnal!O:O,Jurnal!N:N,Neraca!B54,Jurnal!H:H,"Saldo Awal") -> 0
A55: 3 | B55: 2.1.04 | C55: 45 | D55: Utang Utilitas | E55: =SUMIFS(Jurnal!O:O,Jurnal!N:N,Neraca!B55,Jurnal!L:L,'Laba Rugi'!$H$2) -> 0 | F55: =SUMIFS(Jurnal!O:O,Jurnal!N:N,Neraca!B55,Jurnal!H:H,"Saldo Awal") -> 0
A56: 3 | B56: 2.1.05 | C56: 46 | D56: Utang kepada Pihak Ketiga Jk. Pendek | E56: =SUMIFS(Jurnal!O:O,Jurnal!N:N,Neraca!B56,Jurnal!L:L,'Laba Rugi'!$H$2) -> 0 | F56: =SUMIFS(Jurnal!O:O,Jurnal!N:N,Neraca!B56,Jurnal!H:H,"Saldo Awal") -> 0
A57: 3 | B57: 2.1.99 | C57: 47 | D57: Utang Jangka Pendek Lainnya | E57: =SUMIFS(Jurnal!O:O,Jurnal!N:N,Neraca!B57,Jurnal!L:L,'Laba Rugi'!$H$2) -> 0 | F57: =SUMIFS(Jurnal!O:O,Jurnal!N:N,Neraca!B57,Jurnal!H:H,"Saldo Awal") -> 0
C58: 48 | D58: Total Kewajiban Jangka Pendek | E58: =SUM(E52:E57) -> 0 | F58: =SUM(F52:F57) -> 0
C59: 49
A60: 2 | B60: 2.2.00 | C60: 50 | D60: Kewajiban Jangka Panjang
A61: 3 | B61: 2.2.01 | C61: 51 | D61: Utang Ke Bank | E61: =SUMIFS(Jurnal!O:O,Jurnal!N:N,Neraca!B61,Jurnal!L:L,'Laba Rugi'!$H$2) -> 0 | F61: =SUMIFS(Jurnal!O:O,Jurnal!N:N,Neraca!B61,Jurnal!H:H,"Saldo Awal") -> 0
A62: 3 | B62: 2.2.02 | C62: 52 | D62: Utang kepada Pihak Ketiga Jk. Panjang | E62: =SUMIFS(Jurnal!O:O,Jurnal!N:N,Neraca!B62,Jurnal!L:L,'Laba Rugi'!$H$2) -> 0 | F62: =SUMIFS(Jurnal!O:O,Jurnal!N:N,Neraca!B62,Jurnal!H:H,"Saldo Awal") -> 0
A63: 3 | B63: 2.2.99 | C63: 53 | D63: Utang Jangka Panjang Lainnya | E63: =SUMIFS(Jurnal!O:O,Jurnal!N:N,Neraca!B63,Jurnal!L:L,'Laba Rugi'!$H$2) -> 0 | F63: =SUMIFS(Jurnal!O:O,Jurnal!N:N,Neraca!B63,Jurnal!H:H,"Saldo Awal") -> 0
C64: 54 | D64: Total Kewajiban Jangka Panjang | E64: =SUM(E61:E63) -> 0 | F64: =SUM(F61:F63) -> 0
C65: 55 | D65: TOTAL KEWAJIBAN | E65: =E64+E58 -> 0 | F65: =F64+F58 -> 0
C66: 56
A67: 1 | B67: 3.0.00 | C67: 57 | D67: EKUITAS
C68: 58 | D68: Ekuitas Akhir | E68: =LPE!D29 -> 3000000 | F68: =SUMIFS(Jurnal!O:O,Jurnal!N:N,"3.1.01",Jurnal!H:H,"Saldo Awal")+SUMIFS(Jurnal!O:O,Jurnal!N:N,"3.1.02",Jurnal!H:H,"Saldo Awal")+SUMIFS(Jurnal!O:O,Jurnal!N:N,"3.3.01",Jurnal!H:H,"Saldo Awal") -> 0
A69: 3 | B69: 3.8.01 | C69: 59 | D69: RK Pusat | E69: =SUMIFS(Jurnal!O:O,Jurnal!N:N,Neraca!B69,Jurnal!L:L,'Laba Rugi'!$H$2) -> 0 | F69: =SUMIFS(Jurnal!O:O,Jurnal!N:N,Neraca!B69,Jurnal!H:H,"Saldo Awal") -> 0
C70: 60 | D70: TOTAL EKUITAS | E70: =SUM(E68:E69) -> 3000000 | F70: =SUM(F68:F69) -> 0
C71: 61 | D71: TOTAL KEWAJIBAN DAN EKUITAS | E71: =E70+E65 -> 3000000 | F71: =F70+F65 -> 0
E74: =IF(Home!H5="","",Home!C3&", "&TEXT('Laba Rugi'!I2,"dd mmmm yyyy")) -> KARANGANYAR, 31 Desember 2023
E75: =IF(Home!H5="","",Home!G4) -> Direktur BUMDesa
E79: =IF(Home!H5="","",Home!H5) -> RIDHO
E80: =IF(Home!H5="","","NIK "&Home!H6) -> NIK

Sheet LAK
B1: aph
D3: =IF(Home!C6="","",Home!C6) -> MADUSUKO MAKMUR
D4: =IF(Home!C8="","",Home!C8) -> SIMPAN PINJAM
C5: LAPORAN ARUS KAS
C6: =IF(Home!C10="","","Untuk tahun yang berakhir sampai dengan "&TEXT('Laba Rugi'!I2,"DD MMMM YYYY")) -> Untuk tahun yang berakhir sampai dengan 31 Desember 2023
C7: (dalam rupiah)
A9: Level | C9: Nomor Urut | D9: Uraian | E9: =IF(Home!C10="","",Home!C10) -> 2023-12-31
C10: 1 | D10: 2
A11: 1 | C11: 1 | D11: ARUS KAS DARI AKTIVITAS OPERASI
A12: 2 | C12: 2 | D12: Arus Kas Masuk
A13: 3 | C13: 3 | D13: Penerimaan kas dari penjualan jasa | E13: =SUMIFS(Jurnal!O:O,Jurnal!I:I,LAK!D13,Jurnal!L:L,'Laba Rugi'!$H$2) -> 0
A14: 3 | C14: 4 | D14: Penerimaan kas dari penjualan barang dagangan | E14: =SUMIFS(Jurnal!O:O,Jurnal!I:I,LAK!D14,Jurnal!L:L,'Laba Rugi'!$H$2) -> 3000000
A15: 3 | C15: 5 | D15: Penerimaan kas dari penjualan barang jadi | E15: =SUMIFS(Jurnal!O:O,Jurnal!I:I,LAK!D15,Jurnal!L:L,'Laba Rugi'!$H$2) -> 0
A16: 3 | C16: 6 | D16: penerimaan kas dari bunga dan deviden | E16: =SUMIFS(Jurnal!O:O,Jurnal!I:I,LAK!D16,Jurnal!L:L,'Laba Rugi'!$H$2) -> 0
A17: 3 | C17: 7 | D17: penerimaan kas dari bunga bank | E17: =SUMIFS(Jurnal!O:O,Jurnal!I:I,LAK!D17,Jurnal!L:L,'Laba Rugi'!$H$2) -> 0
C18: 8 | D18: Jumlah arus kas masuk dari aktivitas operasi | E18: =SUM(E13:E17) -> 3000000
A19: 2 | C19: 9 | D19: Arus Kas Keluar
A20: 3 | C20: 10 | D20: Pengeluaran kas untuk pembayaran ke pemasok barang | E20: =SUMIFS(Jurnal!O:O,Jurnal!I:I,LAK!D20,Jurnal!L:L,'Laba Rugi'!$H$2) -> 0
A21: 3 | C21: 11 | D21: Pengeluaran kas untuk pembayaran gaji/upah pegawai/karyawan | E21: =SUMIFS(Jurnal!O:O,Jurnal!I:I,LAK!D21,Jurnal!L:L,'Laba Rugi'!$H$2) -> 0
A22: 3 | C22: 12 | D22: Pengeluaran kas untku pembayaran pajak | E22: =SUMIFS(Jurnal!O:O,Jurnal!I:I,LAK!D22,Jurnal!L:L,'Laba Rugi'!$H$2) -> 0
A23: 3 | C23: 13 | D23: Pengeluaran kas untuk pembayaran bunga | E23: =SUMIFS(Jurnal!O:O,Jurnal!I:I,LAK!D23,Jurnal!L:L,'Laba Rugi'!$H$2) -> 0
A24: 3 | C24: 14 | D24: Pengeluaran kas untuk pembayaran beban-beban yang lain | E24: =SUMIFS(Jurnal!O:O,Jurnal!I:I,LAK!D24,Jurnal!L:L,'Laba Rugi'!$H$2) -> 0
C25: 15 | D25: Jumlah arus kas keluar dari aktivitas operasi | E25: =SUM(E20:E24) -> 0
C26: 16 | D26: Arus kas bersih dari aktivitas operasi | E26: =E18+E25 -> 3000000
C27: 17
A28: 1 | C28: 18 | D28: ARUS KAS DARI AKTIVITAS INVESTASI
A29: 2 | C29: 19 | D29: Arus Kas Masuk
A30: 3 | C30: 20 | D30: Penerimaan Kas dari Penjualan Aset Tetap | E30: =SUMIFS(Jurnal!O:O,Jurnal!I:I,LAK!D30,Jurnal!L:L,'Laba Rugi'!$H$2) -> 0
A31: 3 | C31: 21 | D31: Penerimaan Kas dari Penjualan Investasi | E31: =SUMIFS(Jurnal!O:O,Jurnal!I:I,LAK!D31,Jurnal!L:L,'Laba Rugi'!$H$2) -> 0
C32: 22 | D32: Jumlah arus kas masuk dari aktivitas Investasi | E32: =SUM(E30:E31) -> 0
A33: 2 | C33: 23 | D33: Arus Kas Keluar
A34: 3 | C34: 24 | D34: Pengeluaran Kas untuk Pembelian Aset Tetap | E34: =SUMIFS(Jurnal!O:O,Jurnal!I:I,LAK!D34,Jurnal!L:L,'Laba Rugi'!$H$2) -> 0
A35: 3 | C35: 25 | D35: Pengeluaran Kas untuk Pembelian Investasi | E35: =SUMIFS(Jurnal!O:O,Jurnal!I:I,LAK!D35,Jurnal!L:L,'Laba Rugi'!$H$2) -> 0
C36: 26 | D36: Jumlah arus kas keluar dari aktivitas Investasi | E36: =SUM(E34:E35) -> 0
C37: 27 | D37: Arus kas bersih dari aktivitas Investasi | E37: =E32+E36 -> 0
C38: 28
A39: 1 | C39: 29 | D39: ARUS KAS DARI AKTIVITAS PEMBIAYAAN
A40: 2 | C40: 30 | D40: Arus Kas Masuk
A41: 3 | C41: 31 | D41: Penerimaan kas dari penyertaan modal desa | E41: =SUMIFS(Jurnal!O:O,Jurnal!I:I,LAK!D41,Jurnal!L:L,'Laba Rugi'!$H$2) -> 0
A42: 3 | C42: 32 | D42: Penerimaan kas dari penyertaan modal masyarakat | E42: =SUMIFS(Jurnal!O:O,Jurnal!I:I,LAK!D42,Jurnal!L:L,'Laba Rugi'!$H$2) -> 0
A43: 3 | C43: 33 | D43: Penerimaan kas dari Donasi/Sumbangan | E43: =SUMIFS(Jurnal!O:O,Jurnal!I:I,LAK!D43,Jurnal!L:L,'Laba Rugi'!$H$2) -> 0
A44: 3 | C44: 34 | D44: Penerimaan kas dari utang jangka panjang | E44: =SUMIFS(Jurnal!O:O,Jurnal!I:I,LAK!D44,Jurnal!L:L,'Laba Rugi'!$H$2) -> 0
C45: 35 | D45: Jumlah arus kas masuk dari aktivitas Pembiayaan | E45: =SUM(E41:E44) -> 0
A46: 2 | C46: 36 | D46: Arus Kas Keluar
A47: 3 | C47: 37 | D47: Pembayaran bagi hasil penyertaan modal desa | E47: =SUMIFS(Jurnal!O:O,Jurnal!I:I,LAK!D47,Jurnal!L:L,'Laba Rugi'!$H$2) -> 0
A48: 3 | C48: 38 | D48: Pembayaran bagi hasil penyertaan modal masyarakat | E48: =SUMIFS(Jurnal!O:O,Jurnal!I:I,LAK!D48,Jurnal!L:L,'Laba Rugi'!$H$2) -> 0
A49: 3 | C49: 39 | D49: Pembayaran pokok utang jangka panjang | E49: =SUMIFS(Jurnal!O:O,Jurnal!I:I,LAK!D49,Jurnal!L:L,'Laba Rugi'!$H$2) -> 0
C50: 40 | D50: Jumlah arus kas keluar dari aktivitas Pembiayaan | E50: =SUM(E47:E49) -> 0
C51: 41 | D51: Arus kas bersih dari aktivitas Pembiayaan | E51: =E50+E45 -> 0
C52: 42
A53: 1 | C53: 43 | D53: Kenaikan (penurunan) Kas | E53: =E51+E37+E26 -> 3000000
A54: 1 | B54: 1.1.01 | C54: 44 | D54: Saldo kas awal tahun | E54: =SUMIF(Neraca!B:B,LAK!B54,Neraca!F:F) -> 0
A55: 1 | C55: 45 | D55: Saldo kas akhir tahun | E55: =E53+E54 -> 3000000 | F55: =Neraca!E13-LAK!E55 -> 0
D58: =IF(Home!H5="","",Home!C3&", "&TEXT('Laba Rugi'!I2,"dd mmmm yyyy")) -> KARANGANYAR, 31 Desember 2023
D59: =IF(Home!H5="","",Home!G4) -> Direktur BUMDesa
D63: =IF(Home!H5="","",Home!H5) -> RIDHO
D64: =IF(Home!H5="","","NIK "&Home!H6) -> NIK

Sheet EIS
B2: =IF(Home!C6="","",Home!C6) -> MADUSUKO MAKMUR
B3: RINGKASAN INFORMASI EKSEKUTIF
B4: HASIL PENILAIAN TINGKAT KESEHATAN BUM DESA ASPEK KEUANGAN
B5: =IF(Home!C10="","","Tahun Buku 1 Januari - "&TEXT(Home!C10,"DD MMMM YYYY")) -> Tahun Buku 1 Januari - 31 Desember 2023
C7: =IF(H18="","",IFERROR(VLOOKUP(H18,KATEGORI,2,1)&" (SKOR "&H18&")","")) ->  | I7: =IF(MAX(Jurnal!L:L)=12,"valid","proyeksi") -> proyeksi
C9: No. | D9: Indikator | F9: Skor Makx | G9: Nilai | H9: Skor
C10: 1 | D10: Imbalan kepada pemilik (ROE) | F10: 29 | G10: =IF(I7="valid",IFERROR('Laba Rugi'!F83/LPE!D17,""),"") ->  | H10: =IF(G10="","",IF(G10<0%,0,IF(G10>15%,29,VLOOKUP(G10,ROE,2,1)))) -> 
C11: 2 | D11: Imbalan Investasi (ROI) | F11: 22 | G11: =IF(I7="valid",IFERROR((('Laba Rugi'!F83+'Laba Rugi'!E75+'Laba Rugi'!F81)+'Laba Rugi'!F47)/(Neraca!E48-Neraca!E34),""),"") ->  | H11: =IF(G11="","",IF(G11<0%,1,IF(G11>18%,21,VLOOKUP(G11,ROI,2,1)))) -> 
C12: 3 | D12: Rasio Kas | F12: 7 | G12: =IF(I7="valid",IFERROR((Neraca!E13+Neraca!E14)/Neraca!E58,""),"") ->  | H12: =IF(G12="","",IF((Neraca!E13+Neraca!E14)=0,"",IF(G12="",7,IF(G12>35%,7,VLOOKUP(G12,CASHRATIO,2,1))))) -> 
C13: 4 | D13: Rasio Lancar | F13: 7 | G13: =IF(I7="valid",IFERROR(Neraca!E22/Neraca!E58,""),"") ->  | H13: =IF(G13="","",IF(Neraca!E22=0,"",IF(G13="",7,IF(G13>135%,7,VLOOKUP(G13,CURRENTRATIO,2,1))))) -> 
C14: 5 | D14: Periode Penagihan (Collection Period) | F14: 7 | G14: =IF(I7="valid",IFERROR((Neraca!E15/'Laba Rugi'!F29)*365,""),"") ->  | H14: =IF(G14="","",VLOOKUP(G14,CP,2,1)) -> 
C15: 6 | D15: Perputaran Persediaan | F15: 7 | G15: =IF(I7="valid",IFERROR((Neraca!E17/'Laba Rugi'!F29)*365,""),"") ->  | H15: =IF(G15="","",VLOOKUP(G15,PP,2,1)) -> 
C16: 7 | D16: Perputaran Total Aset | F16: 7 | G16: =IF(I7="valid",IFERROR(('Laba Rugi'!F29/(Neraca!E48-Neraca!E34))*100%,""),"") ->  | H16: =IF(G16="","",VLOOKUP(G16,TATO,2,1)) -> 
C17: 8 | D17: Rasio Total Modal Pemilik thd Total Aset | F17: 14 | G17: =IF(I7="valid",IFERROR(LPE!D17/Neraca!E48,""),"") ->  | H17: =IF(G17="","",IF(G17<0%,0,VLOOKUP(G17,TMSTA,2,1))) -> 
D18: Total Skor | F18: =SUM(F10:F17) -> 100 | H18: =SUM(H10:H17) -> 0
C20: Keterangan
C21: 1. Informasi tingkat kesehatan ini dihasilkan secara tahunan.
C22: 2. Kategori Tingkat Kesehatan
D23: Kategori | E23: Skor
D24: Sehat | E24: >=65
D25: Kurang Sehat | E25: 30<=x<65
D26: Tidak Sehat | E26: <30

Sheet BP Piutang-Utang
B2: LAPORAN BUKU PEMBANTU
B4: 1 | C4: Saldo Piutang Usaha | D4: =SUM(D11:D14) -> 0
B5: 2 | C5: Saldo Piutang kepada Pegawai | D5: =SUM(D17:D20) -> 0
B6: 3 | C6: Saldo Piutang Lainnya | D6: =SUM(D23:D26) -> 0
B7: 3 | C7: Saldo Utang Usaha | D7: =SUM(D29:D32) -> 0
B9: No. | C9: Jenis Buku Pembantu | D9: Saldo | F9: Silakan tambahkan jenis persediaan dalam range warna dan dapat diinsert ke bawah jika kurang.
B10: 1 | C10: Piutang Usaha
C11: Tuan Upin | D11: =SUMIF(Jurnal!J:J,'BP Piutang-Utang'!C11,Jurnal!O:O) -> 0
C12: Tuan Ipin | D12: =SUMIF(Jurnal!J:J,'BP Piutang-Utang'!C12,Jurnal!O:O) -> 0
C13: Tuan Jarjit | D13: =SUMIF(Jurnal!J:J,'BP Piutang-Utang'!C13,Jurnal!O:O) -> 0
B16: 2 | C16: Piutang kepada Pegawai
C17: Superman | D17: =SUMIF(Jurnal!J:J,'BP Piutang-Utang'!C17,Jurnal!O:O) -> 0
C18: Batman | D18: =SUMIF(Jurnal!J:J,'BP Piutang-Utang'!C18,Jurnal!O:O) -> 0
C19: Iron Man | D19: =SUMIF(Jurnal!J:J,'BP Piutang-Utang'!C19,Jurnal!O:O) -> 0
B22: 3 | C22: Piutang Lainnya
C23: Piutang Bunga | D23: =SUMIF(Jurnal!J:J,'BP Piutang-Utang'!C23,Jurnal!O:O) -> 0
B28: 4 | C28: Utang Usaha
C29: Toko Baik Hati | D29: =SUMIF(Jurnal!J:J,'BP Piutang-Utang'!C29,Jurnal!O:O) -> 0
C30: Apotik Sehat | D30: =SUMIF(Jurnal!J:J,'BP Piutang-Utang'!C30,Jurnal!O:O) -> 0
C31: Fulan | D31: =SUMIF(Jurnal!J:J,'BP Piutang-Utang'!C31,Jurnal!O:O) -> 0

Sheet Riwayat Piutang Utang
A1: Buku Pembantu | B1: Tuan Upin | F1: Silakan klik kanan tabel disamping dan pilih refresh! Untuk menampilkan
A3: Tanggal | B3: Keterangan Transaksi | C3: Debit | D3: Kredit
A4: 05-Agu | B4: Menerima pendapatan sewa mobil | C4: 3000000
A5: 10-Sep | B5: Menerima pendapatan sewa mobil | D5: 3000000
A6: Grand Total | C6: 3000000 | D6: 3000000

Sheet BP Persediaan
A1: BUKU PEMBANTU PERSEDIAAN | E1: Silakan klik kanan tabel disamping dan pilih refresh! Untuk menampilkan
A2: Buku Pembantu | B2: (blank)
F3: Jenis Persediaan | H3: Silakan tambahkan jenis persediaan dalam range warna dan dapat diinsert ke bawah jika kurang.
A4: Tanggal | B4: Keterangan Transaksi | C4: Unit | D4: Total Harga | F4: 1 | G4: Bensin
A5: (blank) | B5: (blank) | D5: 0 | F5: 2 | G5: Pupuk
A6: 01-Jan | B6: (blank) | D6: -500000 | F6: 3 | G6: ...
A7: Grand Total | D7: -500000 | F7: 4 | G7: ...
F8: 5 | G8: ...

Sheet Aset Tetap
B2: TABEL ASET TETAP BUMDESA
B3: =Home!C7 -> JL LAWU KEMUNING NGARGOYOSO KARANGANYAR
B7: Kode Aset | C7: Nama Aset | D7: Kelompok Akun | E7: Tanggal Perolehan | F7: Harga Perolehan | G7: Taksiran masa manfaat | H7: Taksiran nilai sisa | I7: Penyusutan Per Tahun | J7: Penyusutan Per Bulan
B10: AT-1 | C10: Peralatan kantor | D10: Peralatan kantor | E10: 2014-07-10 | F10: 25000000 | G10: 5 | H10: 0 | I10: =IFERROR((F10-H10)/G10,"") -> 5000000 | J10: =IFERROR(I10/12,"") -> 416666.6667
B11: AT-2 | C11: Motor | D11: Kendaraan | E11: 2014-08-14 | F11: 13000000 | G11: 10 | H11: 0 | I11: =IFERROR((F11-H11)/G11,"") -> 1300000 | J11: =IFERROR(I11/12,"") -> 108333.3333
B12: AT-3 | C12: Mobil Pick Up | D12: Kendaraan | E12: 2014-09-15 | F12: 70000000 | G12: 10 | H12: 0 | I12: =IFERROR((F12-H12)/G12,"") -> 7000000 | J12: 583333.3333
B13: AT-4 | C13: Mesin Giling | D13: Peralatan Produksi | E13: 2000-01-01 | F13: 80000000 | G13: 5 | H13: 0 | I13: 16000000 | J13: 1333333.333
B14: AT-5 | C14: Bak Sampah | D14: Peralatan Produksi | E14: 2020-07-01 | F14: 100000000 | G14: 10 | I14: 10000000 | J14: 833333.3333
B31: Total | F31: =SUM(F10:F30) -> 288000000 | H31: =SUM(H10:H30) -> 0 | I31: =SUM(I10:I30) -> 39300000 | J31: =SUM(J10:J30) -> 3275000

Sheet Penyusutan
B2: TABEL PENYUSUTAN BUMDESA MAJU TERUS
B3: ='Aset Tetap'!B3:C3 -> JL LAWU KEMUNING NGARGOYOSO KARANGANYAR
B7: Tabel Perhitungan Penyusutan Aset Tetap
C10: Nama Aset : | E10: Bak Sampah
B12: Kelompok Akun : | E12: =IF(ISBLANK(E10)," ",INDEX('Aset Tetap'!D10:D30,MATCH(E10,'Aset Tetap'!C10:C30,0))) -> Peralatan Produksi
B14: Tanggal Perolehan : | C14: =IF(ISBLANK(E10)," ",INDEX('Aset Tetap'!E10:E30,MATCH(E10,'Aset Tetap'!C10:C30,0))) -> 2020-07-01 | E14: Taksiran Masa Manfaat : | F14: =IF(ISBLANK(E10)," ",INDEX('Aset Tetap'!G10:G30,MATCH(E10,'Aset Tetap'!C10:C30,0))) -> 10
B16: Harga Perolehan : | C16: =IF(ISBLANK(E10)," ",INDEX('Aset Tetap'!F10:F30,MATCH(E10,'Aset Tetap'!C10:C30,0))) -> 100000000 | E16: Taksiran Nilai Sisa : | F16: =IF(ISBLANK(E10)," ",INDEX('Aset Tetap'!H10:H30,MATCH(E10,'Aset Tetap'!C10:C30,0))) -> 0
B18: Awal Periode Penyusutan : | C18: =IF(ISBLANK(E10)," ",EOMONTH(C14,0)) -> 2020-07-31 | E18: Akhir Periode Penyusutan : | F18: =IF(ISBLANK(E10)," ",EDATE(C18,(F14*12)-1)) -> 2030-06-30
B20: Metode Penyusutan : | D20: Garis lurus
B22: Nilai Penyusutan Aktiva :
B24: Tahun | C24: Jumlah Bulan | D24: Penyusutan | E24: Akumulasi Penyusutan | F24: Nilai Buku Aktiva
B25: =IF(ISBLANK($E$10)," ",YEAR(C18)) -> 2020 | C25: =IF(OR($E$10=0,B25=" ")," ",IF(B25=YEAR($C$18),12-MONTH($C$18)+1,IF(B25<YEAR($F$18),"12",IF(B25=YEAR($F$18),MONTH($F$18),"")))) -> 6 | D25: =IFERROR(IF(OR($D$20=0,B25=" ")," ",IF($D$20="Garis lurus",SLN($C$16,$F$16,$F$14)/12*C25,IF($D$20="Saldo menurun",DB($C$16,$F$16,$F$14,COUNT($B$25:B25),C25),IF($D$20="Double declining balance",DDB($C$16,$F$16,$F$14,COUNT($B$25:B25),2),IF($D$20="Jumlah angka tahun",SYD($C$16,$F$16,$F$14,COUNT($B$25:B25)),""))))),"") -> 5000000 | E25: =IF(OR($E$10=0,B25=" ",D25="",D25=0)," ",SUM($D$25:D25)) -> 5000000 | F25: =IF(OR($E$10=0,B25=" ",E25=" ")," ",$C$16-E25) -> 95000000
B26: =IF(ISBLANK($E$10)," ",IF(B25<$B$25+$F$14,B25+1," ")) -> 2021 | C26: =IF(OR($E$10=0,B26=" ")," ",IF(B26=YEAR($C$18),12-MONTH($C$18)+1,IF(B26<YEAR($F$18),"12",IF(B26=YEAR($F$18),MONTH($F$18),"")))) -> 12 | D26: =IFERROR(IF(OR($D$20=0,B26=" ")," ",IF($D$20="Garis lurus",SLN($C$16,$F$16,$F$14)/12*C26,IF($D$20="Saldo menurun",DB($C$16,$F$16,$F$14,COUNT($B$25:B26),C26),IF($D$20="Double declining balance",DDB($C$16,$F$16,$F$14,COUNT($B$25:B26),2),IF($D$20="Jumlah angka tahun",SYD($C$16,$F$16,$F$14,COUNT($B$25:B26)),""))))),"") -> 10000000 | E26: =IF(OR($E$10=0,B26=" ",D26="",D26=0)," ",SUM($D$25:D26)) -> 15000000 | F26: 85000000
B27: =IF(ISBLANK($E$10)," ",IF(B26<$B$25+$F$14,B26+1," ")) -> 2022 | C27: 12 | D27: =IFERROR(IF(OR($D$20=0,B27=" ")," ",IF($D$20="Garis lurus",SLN($C$16,$F$16,$F$14)/12*C27,IF($D$20="Saldo menurun",DB($C$16,$F$16,$F$14,COUNT($B$25:B27),C27),IF($D$20="Double declining balance",DDB($C$16,$F$16,$F$14,COUNT($B$25:B27),2),IF($D$20="Jumlah angka tahun",SYD($C$16,$F$16,$F$14,COUNT($B$25:B27)),""))))),"") -> 10000000 | E27: =IF(OR($E$10=0,B27=" ",D27="",D27=0)," ",SUM($D$25:D27)) -> 25000000 | F27: 75000000
B28: 2023 | C28: 12 | D28: =IFERROR(IF(OR($D$20=0,B28=" ")," ",IF($D$20="Garis lurus",SLN($C$16,$F$16,$F$14)/12*C28,IF($D$20="Saldo menurun",DB($C$16,$F$16,$F$14,COUNT($B$25:B28),C28),IF($D$20="Double declining balance",DDB($C$16,$F$16,$F$14,COUNT($B$25:B28),2),IF($D$20="Jumlah angka tahun",SYD($C$16,$F$16,$F$14,COUNT($B$25:B28)),""))))),"") -> 10000000 | E28: =IF(OR($E$10=0,B28=" ",D28="",D28=0)," ",SUM($D$25:D28)) -> 35000000 | F28: 65000000
B29: 2024 | C29: 12 | D29: =IFERROR(IF(OR($D$20=0,B29=" ")," ",IF($D$20="Garis lurus",SLN($C$16,$F$16,$F$14)/12*C29,IF($D$20="Saldo menurun",DB($C$16,$F$16,$F$14,COUNT($B$25:B29),C29),IF($D$20="Double declining balance",DDB($C$16,$F$16,$F$14,COUNT($B$25:B29),2),IF($D$20="Jumlah angka tahun",SYD($C$16,$F$16,$F$14,COUNT($B$25:B29)),""))))),"") -> 10000000 | E29: =IF(OR($E$10=0,B29=" ",D29="",D29=0)," ",SUM($D$25:D29)) -> 45000000 | F29: 55000000
B30: 2025 | C30: 12 | D30: =IFERROR(IF(OR($D$20=0,B30=" ")," ",IF($D$20="Garis lurus",SLN($C$16,$F$16,$F$14)/12*C30,IF($D$20="Saldo menurun",DB($C$16,$F$16,$F$14,COUNT($B$25:B30),C30),IF($D$20="Double declining balance",DDB($C$16,$F$16,$F$14,COUNT($B$25:B30),2),IF($D$20="Jumlah angka tahun",SYD($C$16,$F$16,$F$14,COUNT($B$25:B30)),""))))),"") -> 10000000 | E30: =IF(OR($E$10=0,B30=" ",D30="",D30=0)," ",SUM($D$25:D30)) -> 55000000 | F30: 45000000
B31: 2026 | C31: 12 | D31: =IFERROR(IF(OR($D$20=0,B31=" ")," ",IF($D$20="Garis lurus",SLN($C$16,$F$16,$F$14)/12*C31,IF($D$20="Saldo menurun",DB($C$16,$F$16,$F$14,COUNT($B$25:B31),C31),IF($D$20="Double declining balance",DDB($C$16,$F$16,$F$14,COUNT($B$25:B31),2),IF($D$20="Jumlah angka tahun",SYD($C$16,$F$16,$F$14,COUNT($B$25:B31)),""))))),"") -> 10000000 | E31: =IF(OR($E$10=0,B31=" ",D31="",D31=0)," ",SUM($D$25:D31)) -> 65000000 | F31: 35000000
B32: 2027 | C32: 12 | D32: =IFERROR(IF(OR($D$20=0,B32=" ")," ",IF($D$20="Garis lurus",SLN($C$16,$F$16,$F$14)/12*C32,IF($D$20="Saldo menurun",DB($C$16,$F$16,$F$14,COUNT($B$25:B32),C32),IF($D$20="Double declining balance",DDB($C$16,$F$16,$F$14,COUNT($B$25:B32),2),IF($D$20="Jumlah angka tahun",SYD($C$16,$F$16,$F$14,COUNT($B$25:B32)),""))))),"") -> 10000000 | E32: =IF(OR($E$10=0,B32=" ",D32="",D32=0)," ",SUM($D$25:D32)) -> 75000000 | F32: 25000000
B33: 2028 | C33: 12 | D33: =IFERROR(IF(OR($D$20=0,B33=" ")," ",IF($D$20="Garis lurus",SLN($C$16,$F$16,$F$14)/12*C33,IF($D$20="Saldo menurun",DB($C$16,$F$16,$F$14,COUNT($B$25:B33),C33),IF($D$20="Double declining balance",DDB($C$16,$F$16,$F$14,COUNT($B$25:B33),2),IF($D$20="Jumlah angka tahun",SYD($C$16,$F$16,$F$14,COUNT($B$25:B33)),""))))),"") -> 10000000 | E33: =IF(OR($E$10=0,B33=" ",D33="",D33=0)," ",SUM($D$25:D33)) -> 85000000 | F33: 15000000
B34: 2029 | C34: 12 | D34: =IFERROR(IF(OR($D$20=0,B34=" ")," ",IF($D$20="Garis lurus",SLN($C$16,$F$16,$F$14)/12*C34,IF($D$20="Saldo menurun",DB($C$16,$F$16,$F$14,COUNT($B$25:B34),C34),IF($D$20="Double declining balance",DDB($C$16,$F$16,$F$14,COUNT($B$25:B34),2),IF($D$20="Jumlah angka tahun",SYD($C$16,$F$16,$F$14,COUNT($B$25:B34)),""))))),"") -> 10000000 | E34: =IF(OR($E$10=0,B34=" ",D34="",D34=0)," ",SUM($D$25:D34)) -> 95000000 | F34: 5000000
B35: 2030 | C35: 6 | D35: =IFERROR(IF(OR($D$20=0,B35=" ")," ",IF($D$20="Garis lurus",SLN($C$16,$F$16,$F$14)/12*C35,IF($D$20="Saldo menurun",DB($C$16,$F$16,$F$14,COUNT($B$25:B35),C35),IF($D$20="Double declining balance",DDB($C$16,$F$16,$F$14,COUNT($B$25:B35),2),IF($D$20="Jumlah angka tahun",SYD($C$16,$F$16,$F$14,COUNT($B$25:B35)),""))))),"") -> 5000000 | E35: =IF(OR($E$10=0,B35=" ",D35="",D35=0)," ",SUM($D$25:D35)) -> 100000000 | F35: 0
D36: =IFERROR(IF(OR($D$20=0,B36=" ")," ",IF($D$20="Garis lurus",SLN($C$16,$F$16,$F$14)/12*C36,IF($D$20="Saldo menurun",DB($C$16,$F$16,$F$14,COUNT($B$25:B36),C36),IF($D$20="Double declining balance",DDB($C$16,$F$16,$F$14,COUNT($B$25:B36),2),IF($D$20="Jumlah angka tahun",SYD($C$16,$F$16,$F$14,COUNT($B$25:B36)),""))))),"") ->  | E36: =IF(OR($E$10=0,B36=" ",D36="",D36=0)," ",SUM($D$25:D36)) -> 
D37: =IFERROR(IF(OR($D$20=0,B37=" ")," ",IF($D$20="Garis lurus",SLN($C$16,$F$16,$F$14)/12*C37,IF($D$20="Saldo menurun",DB($C$16,$F$16,$F$14,COUNT($B$25:B37),C37),IF($D$20="Double declining balance",DDB($C$16,$F$16,$F$14,COUNT($B$25:B37),2),IF($D$20="Jumlah angka tahun",SYD($C$16,$F$16,$F$14,COUNT($B$25:B37)),""))))),"") -> 0 | E37: =IF(OR($E$10=0,B37=" ",D37="",D37=0)," ",SUM($D$25:D37)) -> 
D38: =IFERROR(IF(OR($D$20=0,B38=" ")," ",IF($D$20="Garis lurus",SLN($C$16,$F$16,$F$14)/12*C38,IF($D$20="Saldo menurun",DB($C$16,$F$16,$F$14,COUNT($B$25:B38),C38),IF($D$20="Double declining balance",DDB($C$16,$F$16,$F$14,COUNT($B$25:B38),2),IF($D$20="Jumlah angka tahun",SYD($C$16,$F$16,$F$14,COUNT($B$25:B38)),""))))),"") -> 0 | E38: =IF(OR($E$10=0,B38=" ",D38="",D38=0)," ",SUM($D$25:D38)) -> 
D39: =IFERROR(IF(OR($D$20=0,B39=" ")," ",IF($D$20="Garis lurus",SLN($C$16,$F$16,$F$14)/12*C39,IF($D$20="Saldo menurun",DB($C$16,$F$16,$F$14,COUNT($B$25:B39),C39),IF($D$20="Double declining balance",DDB($C$16,$F$16,$F$14,COUNT($B$25:B39),2),IF($D$20="Jumlah angka tahun",SYD($C$16,$F$16,$F$14,COUNT($B$25:B39)),""))))),"") -> 0 | E39: =IF(OR($E$10=0,B39=" ",D39="",D39=0)," ",SUM($D$25:D39)) -> 
D40: =IFERROR(IF(OR($D$20=0,B40=" ")," ",IF($D$20="Garis lurus",SLN($C$16,$F$16,$F$14)/12*C40,IF($D$20="Saldo menurun",DB($C$16,$F$16,$F$14,COUNT($B$25:B40),C40),IF($D$20="Double declining balance",DDB($C$16,$F$16,$F$14,COUNT($B$25:B40),2),IF($D$20="Jumlah angka tahun",SYD($C$16,$F$16,$F$14,COUNT($B$25:B40)),""))))),"") -> 0 | E40: =IF(OR($E$10=0,B40=" ",D40="",D40=0)," ",SUM($D$25:D40)) -> 
D41: =IFERROR(IF(OR($D$20=0,B41=" ")," ",IF($D$20="Garis lurus",SLN($C$16,$F$16,$F$14)/12*C41,IF($D$20="Saldo menurun",DB($C$16,$F$16,$F$14,COUNT($B$25:B41),C41),IF($D$20="Double declining balance",DDB($C$16,$F$16,$F$14,COUNT($B$25:B41),2),IF($D$20="Jumlah angka tahun",SYD($C$16,$F$16,$F$14,COUNT($B$25:B41)),""))))),"") -> 0 | E41: =IF(OR($E$10=0,B41=" ",D41="",D41=0)," ",SUM($D$25:D41)) -> 
D42: =IFERROR(IF(OR($D$20=0,B42=" ")," ",IF($D$20="Garis lurus",SLN($C$16,$F$16,$F$14)/12*C42,IF($D$20="Saldo menurun",DB($C$16,$F$16,$F$14,COUNT($B$25:B42),C42),IF($D$20="Double declining balance",DDB($C$16,$F$16,$F$14,COUNT($B$25:B42),2),IF($D$20="Jumlah angka tahun",SYD($C$16,$F$16,$F$14,COUNT($B$25:B42)),""))))),"") -> 0 | E42: =IF(OR($E$10=0,B42=" ",D42="",D42=0)," ",SUM($D$25:D42)) -> 
D43: =IFERROR(IF(OR($D$20=0,B43=" ")," ",IF($D$20="Garis lurus",SLN($C$16,$F$16,$F$14)/12*C43,IF($D$20="Saldo menurun",DB($C$16,$F$16,$F$14,COUNT($B$25:B43),C43),IF($D$20="Double declining balance",DDB($C$16,$F$16,$F$14,COUNT($B$25:B43),2),IF($D$20="Jumlah angka tahun",SYD($C$16,$F$16,$F$14,COUNT($B$25:B43)),""))))),"") -> 0 | E43: =IF(OR($E$10=0,B43=" ",D43="",D43=0)," ",SUM($D$25:D43)) -> 
D44: =IFERROR(IF(OR($D$20=0,B44=" ")," ",IF($D$20="Garis lurus",SLN($C$16,$F$16,$F$14)/12*C44,IF($D$20="Saldo menurun",DB($C$16,$F$16,$F$14,COUNT($B$25:B44),C44),IF($D$20="Double declining balance",DDB($C$16,$F$16,$F$14,COUNT($B$25:B44),2),IF($D$20="Jumlah angka tahun",SYD($C$16,$F$16,$F$14,COUNT($B$25:B44)),""))))),"") -> 0 | E44: =IF(OR($E$10=0,B44=" ",D44="",D44=0)," ",SUM($D$25:D44)) -> 
D45: =IFERROR(IF(OR($D$20=0,B45=" ")," ",IF($D$20="Garis lurus",SLN($C$16,$F$16,$F$14)/12*C45,IF($D$20="Saldo menurun",DB($C$16,$F$16,$F$14,COUNT($B$25:B45),C45),IF($D$20="Double declining balance",DDB($C$16,$F$16,$F$14,COUNT($B$25:B45),2),IF($D$20="Jumlah angka tahun",SYD($C$16,$F$16,$F$14,COUNT($B$25:B45)),""))))),"") -> 0 | E45: =IF(OR($E$10=0,B45=" ",D45="",D45=0)," ",SUM($D$25:D45)) -> 
D46: =IFERROR(IF(OR($D$20=0,B46=" ")," ",IF($D$20="Garis lurus",SLN($C$16,$F$16,$F$14)/12*C46,IF($D$20="Saldo menurun",DB($C$16,$F$16,$F$14,COUNT($B$25:B46),C46),IF($D$20="Double declining balance",DDB($C$16,$F$16,$F$14,COUNT($B$25:B46),2),IF($D$20="Jumlah angka tahun",SYD($C$16,$F$16,$F$14,COUNT($B$25:B46)),""))))),"") -> 0 | E46: =IF(OR($E$10=0,B46=" ",D46="",D46=0)," ",SUM($D$25:D46)) -> 
D47: =IFERROR(IF(OR($D$20=0,B47=" ")," ",IF($D$20="Garis lurus",SLN($C$16,$F$16,$F$14)/12*C47,IF($D$20="Saldo menurun",DB($C$16,$F$16,$F$14,COUNT($B$25:B47),C47),IF($D$20="Double declining balance",DDB($C$16,$F$16,$F$14,COUNT($B$25:B47),2),IF($D$20="Jumlah angka tahun",SYD($C$16,$F$16,$F$14,COUNT($B$25:B47)),""))))),"") -> 0 | E47: =IF(OR($E$10=0,B47=" ",D47="",D47=0)," ",SUM($D$25:D47)) -> 
D48: =IFERROR(IF(OR($D$20=0,B48=" ")," ",IF($D$20="Garis lurus",SLN($C$16,$F$16,$F$14)/12*C48,IF($D$20="Saldo menurun",DB($C$16,$F$16,$F$14,COUNT($B$25:B48),C48),IF($D$20="Double declining balance",DDB($C$16,$F$16,$F$14,COUNT($B$25:B48),2),IF($D$20="Jumlah angka tahun",SYD($C$16,$F$16,$F$14,COUNT($B$25:B48)),""))))),"") -> 0 | E48: =IF(OR($E$10=0,B48=" ",D48="",D48=0)," ",SUM($D$25:D48)) -> 
D49: =IFERROR(IF(OR($D$20=0,B49=" ")," ",IF($D$20="Garis lurus",SLN($C$16,$F$16,$F$14)/12*C49,IF($D$20="Saldo menurun",DB($C$16,$F$16,$F$14,COUNT($B$25:B49),C49),IF($D$20="Double declining balance",DDB($C$16,$F$16,$F$14,COUNT($B$25:B49),2),IF($D$20="Jumlah angka tahun",SYD($C$16,$F$16,$F$14,COUNT($B$25:B49)),""))))),"") -> 0 | E49: =IF(OR($E$10=0,B49=" ",D49="",D49=0)," ",SUM($D$25:D49)) -> 
D50: =IFERROR(IF(OR($D$20=0,B50=" ")," ",IF($D$20="Garis lurus",SLN($C$16,$F$16,$F$14)/12*C50,IF($D$20="Saldo menurun",DB($C$16,$F$16,$F$14,COUNT($B$25:B50),C50),IF($D$20="Double declining balance",DDB($C$16,$F$16,$F$14,COUNT($B$25:B50),2),IF($D$20="Jumlah angka tahun",SYD($C$16,$F$16,$F$14,COUNT($B$25:B50)),""))))),"") -> 0 | E50: =IF(OR($E$10=0,B50=" ",D50="",D50=0)," ",SUM($D$25:D50)) -> 
D51: =IFERROR(IF(OR($D$20=0,B51=" ")," ",IF($D$20="Garis lurus",SLN($C$16,$F$16,$F$14)/12*C51,IF($D$20="Saldo menurun",DB($C$16,$F$16,$F$14,COUNT($B$25:B51),C51),IF($D$20="Double declining balance",DDB($C$16,$F$16,$F$14,COUNT($B$25:B51),2),IF($D$20="Jumlah angka tahun",SYD($C$16,$F$16,$F$14,COUNT($B$25:B51)),""))))),"") -> 0 | E51: =IF(OR($E$10=0,B51=" ",D51="",D51=0)," ",SUM($D$25:D51)) -> 
D52: =IFERROR(IF(OR($D$20=0,B52=" ")," ",IF($D$20="Garis lurus",SLN($C$16,$F$16,$F$14)/12*C52,IF($D$20="Saldo menurun",DB($C$16,$F$16,$F$14,COUNT($B$25:B52),C52),IF($D$20="Double declining balance",DDB($C$16,$F$16,$F$14,COUNT($B$25:B52),2),IF($D$20="Jumlah angka tahun",SYD($C$16,$F$16,$F$14,COUNT($B$25:B52)),""))))),"") -> 0 | E52: =IF(OR($E$10=0,B52=" ",D52="",D52=0)," ",SUM($D$25:D52)) -> 
D53: =IFERROR(IF(OR($D$20=0,B53=" ")," ",IF($D$20="Garis lurus",SLN($C$16,$F$16,$F$14)/12*C53,IF($D$20="Saldo menurun",DB($C$16,$F$16,$F$14,COUNT($B$25:B53),C53),IF($D$20="Double declining balance",DDB($C$16,$F$16,$F$14,COUNT($B$25:B53),2),IF($D$20="Jumlah angka tahun",SYD($C$16,$F$16,$F$14,COUNT($B$25:B53)),""))))),"") -> 0 | E53: =IF(OR($E$10=0,B53=" ",D53="",D53=0)," ",SUM($D$25:D53)) -> 
D54: =IFERROR(IF(OR($D$20=0,B54=" ")," ",IF($D$20="Garis lurus",SLN($C$16,$F$16,$F$14)/12*C54,IF($D$20="Saldo menurun",DB($C$16,$F$16,$F$14,COUNT($B$25:B54),C54),IF($D$20="Double declining balance",DDB($C$16,$F$16,$F$14,COUNT($B$25:B54),2),IF($D$20="Jumlah angka tahun",SYD($C$16,$F$16,$F$14,COUNT($B$25:B54)),""))))),"") -> 0 | E54: =IF(OR($E$10=0,B54=" ",D54="",D54=0)," ",SUM($D$25:D54)) -> 
D55: =IFERROR(IF(OR($D$20=0,B55=" ")," ",IF($D$20="Garis lurus",SLN($C$16,$F$16,$F$14)/12*C55,IF($D$20="Saldo menurun",DB($C$16,$F$16,$F$14,COUNT($B$25:B55),C55),IF($D$20="Double declining balance",DDB($C$16,$F$16,$F$14,COUNT($B$25:B55),2),IF($D$20="Jumlah angka tahun",SYD($C$16,$F$16,$F$14,COUNT($B$25:B55)),""))))),"") -> 0 | E55: =IF(OR($E$10=0,B55=" ",D55="",D55=0)," ",SUM($D$25:D55)) -> 
D56: =IFERROR(IF(OR($D$20=0,B56=" ")," ",IF($D$20="Garis lurus",SLN($C$16,$F$16,$F$14)/12*C56,IF($D$20="Saldo menurun",DB($C$16,$F$16,$F$14,COUNT($B$25:B56),C56),IF($D$20="Double declining balance",DDB($C$16,$F$16,$F$14,COUNT($B$25:B56),2),IF($D$20="Jumlah angka tahun",SYD($C$16,$F$16,$F$14,COUNT($B$25:B56)),""))))),"") -> 0 | E56: =IF(OR($E$10=0,B56=" ",D56="",D56=0)," ",SUM($D$25:D56)) -> 
D57: =IFERROR(IF(OR($D$20=0,B57=" ")," ",IF($D$20="Garis lurus",SLN($C$16,$F$16,$F$14)/12*C57,IF($D$20="Saldo menurun",DB($C$16,$F$16,$F$14,COUNT($B$25:B57),C57),IF($D$20="Double declining balance",DDB($C$16,$F$16,$F$14,COUNT($B$25:B57),2),IF($D$20="Jumlah angka tahun",SYD($C$16,$F$16,$F$14,COUNT($B$25:B57)),""))))),"") -> 0 | E57: =IF(OR($E$10=0,B57=" ",D57="",D57=0)," ",SUM($D$25:D57)) -> 
D58: =IFERROR(IF(OR($D$20=0,B58=" ")," ",IF($D$20="Garis lurus",SLN($C$16,$F$16,$F$14)/12*C58,IF($D$20="Saldo menurun",DB($C$16,$F$16,$F$14,COUNT($B$25:B58),C58),IF($D$20="Double declining balance",DDB($C$16,$F$16,$F$14,COUNT($B$25:B58),2),IF($D$20="Jumlah angka tahun",SYD($C$16,$F$16,$F$14,COUNT($B$25:B58)),""))))),"") -> 0 | E58: =IF(OR($E$10=0,B58=" ",D58="",D58=0)," ",SUM($D$25:D58)) -> 
D59: =IFERROR(IF(OR($D$20=0,B59=" ")," ",IF($D$20="Garis lurus",SLN($C$16,$F$16,$F$14)/12*C59,IF($D$20="Saldo menurun",DB($C$16,$F$16,$F$14,COUNT($B$25:B59),C59),IF($D$20="Double declining balance",DDB($C$16,$F$16,$F$14,COUNT($B$25:B59),2),IF($D$20="Jumlah angka tahun",SYD($C$16,$F$16,$F$14,COUNT($B$25:B59)),""))))),"") -> 0 | E59: =IF(OR($E$10=0,B59=" ",D59="",D59=0)," ",SUM($D$25:D59)) -> 
D60: =IFERROR(IF(OR($D$20=0,B60=" ")," ",IF($D$20="Garis lurus",SLN($C$16,$F$16,$F$14)/12*C60,IF($D$20="Saldo menurun",DB($C$16,$F$16,$F$14,COUNT($B$25:B60),C60),IF($D$20="Double declining balance",DDB($C$16,$F$16,$F$14,COUNT($B$25:B60),2),IF($D$20="Jumlah angka tahun",SYD($C$16,$F$16,$F$14,COUNT($B$25:B60)),""))))),"") -> 0 | E60: =IF(OR($E$10=0,B60=" ",D60="",D60=0)," ",SUM($D$25:D60)) -> 
D61: =IFERROR(IF(OR($D$20=0,B61=" ")," ",IF($D$20="Garis lurus",SLN($C$16,$F$16,$F$14)/12*C61,IF($D$20="Saldo menurun",DB($C$16,$F$16,$F$14,COUNT($B$25:B61),C61),IF($D$20="Double declining balance",DDB($C$16,$F$16,$F$14,COUNT($B$25:B61),2),IF($D$20="Jumlah angka tahun",SYD($C$16,$F$16,$F$14,COUNT($B$25:B61)),""))))),"") -> 0 | E61: =IF(OR($E$10=0,B61=" ",D61="",D61=0)," ",SUM($D$25:D61)) -> 
D62: =IFERROR(IF(OR($D$20=0,B62=" ")," ",IF($D$20="Garis lurus",SLN($C$16,$F$16,$F$14)/12*C62,IF($D$20="Saldo menurun",DB($C$16,$F$16,$F$14,COUNT($B$25:B62),C62),IF($D$20="Double declining balance",DDB($C$16,$F$16,$F$14,COUNT($B$25:B62),2),IF($D$20="Jumlah angka tahun",SYD($C$16,$F$16,$F$14,COUNT($B$25:B62)),""))))),"") -> 0 | E62: =IF(OR($E$10=0,B62=" ",D62="",D62=0)," ",SUM($D$25:D62)) -> 
D63: =IFERROR(IF(OR($D$20=0,B63=" ")," ",IF($D$20="Garis lurus",SLN($C$16,$F$16,$F$14)/12*C63,IF($D$20="Saldo menurun",DB($C$16,$F$16,$F$14,COUNT($B$25:B63),C63),IF($D$20="Double declining balance",DDB($C$16,$F$16,$F$14,COUNT($B$25:B63),2),IF($D$20="Jumlah angka tahun",SYD($C$16,$F$16,$F$14,COUNT($B$25:B63)),""))))),"") -> 0 | E63: =IF(OR($E$10=0,B63=" ",D63="",D63=0)," ",SUM($D$25:D63)) -> 
D64: =IFERROR(IF(OR($D$20=0,B64=" ")," ",IF($D$20="Garis lurus",SLN($C$16,$F$16,$F$14)/12*C64,IF($D$20="Saldo menurun",DB($C$16,$F$16,$F$14,COUNT($B$25:B64),C64),IF($D$20="Double declining balance",DDB($C$16,$F$16,$F$14,COUNT($B$25:B64),2),IF($D$20="Jumlah angka tahun",SYD($C$16,$F$16,$F$14,COUNT($B$25:B64)),""))))),"") -> 0 | E64: =IF(OR($E$10=0,B64=" ",D64="",D64=0)," ",SUM($D$25:D64)) -> 
D65: =IFERROR(IF(OR($D$20=0,B65=" ")," ",IF($D$20="Garis lurus",SLN($C$16,$F$16,$F$14)/12*C65,IF($D$20="Saldo menurun",DB($C$16,$F$16,$F$14,COUNT($B$25:B65),C65),IF($D$20="Double declining balance",DDB($C$16,$F$16,$F$14,COUNT($B$25:B65),2),IF($D$20="Jumlah angka tahun",SYD($C$16,$F$16,$F$14,COUNT($B$25:B65)),""))))),"") -> 0 | E65: =IF(OR($E$10=0,B65=" ",D65="",D65=0)," ",SUM($D$25:D65)) -> 
D66: =IFERROR(IF(OR($D$20=0,B66=" ")," ",IF($D$20="Garis lurus",SLN($C$16,$F$16,$F$14)/12*C66,IF($D$20="Saldo menurun",DB($C$16,$F$16,$F$14,COUNT($B$25:B66),C66),IF($D$20="Double declining balance",DDB($C$16,$F$16,$F$14,COUNT($B$25:B66),2),IF($D$20="Jumlah angka tahun",SYD($C$16,$F$16,$F$14,COUNT($B$25:B66)),""))))),"") -> 0 | E66: =IF(OR($E$10=0,B66=" ",D66="",D66=0)," ",SUM($D$25:D66)) -> 
D67: =IFERROR(IF(OR($D$20=0,B67=" ")," ",IF($D$20="Garis lurus",SLN($C$16,$F$16,$F$14)/12*C67,IF($D$20="Saldo menurun",DB($C$16,$F$16,$F$14,COUNT($B$25:B67),C67),IF($D$20="Double declining balance",DDB($C$16,$F$16,$F$14,COUNT($B$25:B67),2),IF($D$20="Jumlah angka tahun",SYD($C$16,$F$16,$F$14,COUNT($B$25:B67)),""))))),"") -> 0 | E67: =IF(OR($E$10=0,B67=" ",D67="",D67=0)," ",SUM($D$25:D67)) -> 
D68: =IFERROR(IF(OR($D$20=0,B68=" ")," ",IF($D$20="Garis lurus",SLN($C$16,$F$16,$F$14)/12*C68,IF($D$20="Saldo menurun",DB($C$16,$F$16,$F$14,COUNT($B$25:B68),C68),IF($D$20="Double declining balance",DDB($C$16,$F$16,$F$14,COUNT($B$25:B68),2),IF($D$20="Jumlah angka tahun",SYD($C$16,$F$16,$F$14,COUNT($B$25:B68)),""))))),"") -> 0 | E68: =IF(OR($E$10=0,B68=" ",D68="",D68=0)," ",SUM($D$25:D68)) -> 
D69: =IFERROR(IF(OR($D$20=0,B69=" ")," ",IF($D$20="Garis lurus",SLN($C$16,$F$16,$F$14)/12*C69,IF($D$20="Saldo menurun",DB($C$16,$F$16,$F$14,COUNT($B$25:B69),C69),IF($D$20="Double declining balance",DDB($C$16,$F$16,$F$14,COUNT($B$25:B69),2),IF($D$20="Jumlah angka tahun",SYD($C$16,$F$16,$F$14,COUNT($B$25:B69)),""))))),"") -> 0 | E69: =IF(OR($E$10=0,B69=" ",D69="",D69=0)," ",SUM($D$25:D69)) -> 
D70: =IFERROR(IF(OR($D$20=0,B70=" ")," ",IF($D$20="Garis lurus",SLN($C$16,$F$16,$F$14)/12*C70,IF($D$20="Saldo menurun",DB($C$16,$F$16,$F$14,COUNT($B$25:B70),C70),IF($D$20="Double declining balance",DDB($C$16,$F$16,$F$14,COUNT($B$25:B70),2),IF($D$20="Jumlah angka tahun",SYD($C$16,$F$16,$F$14,COUNT($B$25:B70)),""))))),"") -> 0 | E70: =IF(OR($E$10=0,B70=" ",D70="",D70=0)," ",SUM($D$25:D70)) -> 
D71: =IFERROR(IF(OR($D$20=0,B71=" ")," ",IF($D$20="Garis lurus",SLN($C$16,$F$16,$F$14)/12*C71,IF($D$20="Saldo menurun",DB($C$16,$F$16,$F$14,COUNT($B$25:B71),C71),IF($D$20="Double declining balance",DDB($C$16,$F$16,$F$14,COUNT($B$25:B71),2),IF($D$20="Jumlah angka tahun",SYD($C$16,$F$16,$F$14,COUNT($B$25:B71)),""))))),"") -> 0 | E71: =IF(OR($E$10=0,B71=" ",D71="",D71=0)," ",SUM($D$25:D71)) -> 
D72: =IFERROR(IF(OR($D$20=0,B72=" ")," ",IF($D$20="Garis lurus",SLN($C$16,$F$16,$F$14)/12*C72,IF($D$20="Saldo menurun",DB($C$16,$F$16,$F$14,COUNT($B$25:B72),C72),IF($D$20="Double declining balance",DDB($C$16,$F$16,$F$14,COUNT($B$25:B72),2),IF($D$20="Jumlah angka tahun",SYD($C$16,$F$16,$F$14,COUNT($B$25:B72)),""))))),"") -> 0 | E72: =IF(OR($E$10=0,B72=" ",D72="",D72=0)," ",SUM($D$25:D72)) -> 
D73: =IFERROR(IF(OR($D$20=0,B73=" ")," ",IF($D$20="Garis lurus",SLN($C$16,$F$16,$F$14)/12*C73,IF($D$20="Saldo menurun",DB($C$16,$F$16,$F$14,COUNT($B$25:B73),C73),IF($D$20="Double declining balance",DDB($C$16,$F$16,$F$14,COUNT($B$25:B73),2),IF($D$20="Jumlah angka tahun",SYD($C$16,$F$16,$F$14,COUNT($B$25:B73)),""))))),"") -> 0 | E73: =IF(OR($E$10=0,B73=" ",D73="",D73=0)," ",SUM($D$25:D73)) -> 
D74: =IFERROR(IF(OR($D$20=0,B74=" ")," ",IF($D$20="Garis lurus",SLN($C$16,$F$16,$F$14)/12*C74,IF($D$20="Saldo menurun",DB($C$16,$F$16,$F$14,COUNT($B$25:B74),C74),IF($D$20="Double declining balance",DDB($C$16,$F$16,$F$14,COUNT($B$25:B74),2),IF($D$20="Jumlah angka tahun",SYD($C$16,$F$16,$F$14,COUNT($B$25:B74)),""))))),"") -> 0 | E74: =IF(OR($E$10=0,B74=" ",D74="",D74=0)," ",SUM($D$25:D74)) -> 
D75: =IFERROR(IF(OR($D$20=0,B75=" ")," ",IF($D$20="Garis lurus",SLN($C$16,$F$16,$F$14)/12*C75,IF($D$20="Saldo menurun",DB($C$16,$F$16,$F$14,COUNT($B$25:B75),C75),IF($D$20="Double declining balance",DDB($C$16,$F$16,$F$14,COUNT($B$25:B75),2),IF($D$20="Jumlah angka tahun",SYD($C$16,$F$16,$F$14,COUNT($B$25:B75)),""))))),"") -> 0 | E75: =IF(OR($E$10=0,B75=" ",D75="",D75=0)," ",SUM($D$25:D75)) -> 
D76: =IFERROR(IF(OR($D$20=0,B76=" ")," ",IF($D$20="Garis lurus",SLN($C$16,$F$16,$F$14)/12*C76,IF($D$20="Saldo menurun",DB($C$16,$F$16,$F$14,COUNT($B$25:B76),C76),IF($D$20="Double declining balance",DDB($C$16,$F$16,$F$14,COUNT($B$25:B76),2),IF($D$20="Jumlah angka tahun",SYD($C$16,$F$16,$F$14,COUNT($B$25:B76)),""))))),"") -> 0 | E76: =IF(OR($E$10=0,B76=" ",D76="",D76=0)," ",SUM($D$25:D76)) -> 
D77: =IFERROR(IF(OR($D$20=0,B77=" ")," ",IF($D$20="Garis lurus",SLN($C$16,$F$16,$F$14)/12*C77,IF($D$20="Saldo menurun",DB($C$16,$F$16,$F$14,COUNT($B$25:B77),C77),IF($D$20="Double declining balance",DDB($C$16,$F$16,$F$14,COUNT($B$25:B77),2),IF($D$20="Jumlah angka tahun",SYD($C$16,$F$16,$F$14,COUNT($B$25:B77)),""))))),"") -> 0 | E77: =IF(OR($E$10=0,B77=" ",D77="",D77=0)," ",SUM($D$25:D77)) -> 
D78: =IFERROR(IF(OR($D$20=0,B78=" ")," ",IF($D$20="Garis lurus",SLN($C$16,$F$16,$F$14)/12*C78,IF($D$20="Saldo menurun",DB($C$16,$F$16,$F$14,COUNT($B$25:B78),C78),IF($D$20="Double declining balance",DDB($C$16,$F$16,$F$14,COUNT($B$25:B78),2),IF($D$20="Jumlah angka tahun",SYD($C$16,$F$16,$F$14,COUNT($B$25:B78)),""))))),"") -> 0 | E78: =IF(OR($E$10=0,B78=" ",D78="",D78=0)," ",SUM($D$25:D78)) -> 
D79: =IFERROR(IF(OR($D$20=0,B79=" ")," ",IF($D$20="Garis lurus",SLN($C$16,$F$16,$F$14)/12*C79,IF($D$20="Saldo menurun",DB($C$16,$F$16,$F$14,COUNT($B$25:B79),C79),IF($D$20="Double declining balance",DDB($C$16,$F$16,$F$14,COUNT($B$25:B79),2),IF($D$20="Jumlah angka tahun",SYD($C$16,$F$16,$F$14,COUNT($B$25:B79)),""))))),"") -> 0 | E79: =IF(OR($E$10=0,B79=" ",D79="",D79=0)," ",SUM($D$25:D79)) -> 
D80: =IFERROR(IF(OR($D$20=0,B80=" ")," ",IF($D$20="Garis lurus",SLN($C$16,$F$16,$F$14)/12*C80,IF($D$20="Saldo menurun",DB($C$16,$F$16,$F$14,COUNT($B$25:B80),C80),IF($D$20="Double declining balance",DDB($C$16,$F$16,$F$14,COUNT($B$25:B80),2),IF($D$20="Jumlah angka tahun",SYD($C$16,$F$16,$F$14,COUNT($B$25:B80)),""))))),"") -> 0 | E80: =IF(OR($E$10=0,B80=" ",D80="",D80=0)," ",SUM($D$25:D80)) -> 
D81: =IFERROR(IF(OR($D$20=0,B81=" ")," ",IF($D$20="Garis lurus",SLN($C$16,$F$16,$F$14)/12*C81,IF($D$20="Saldo menurun",DB($C$16,$F$16,$F$14,COUNT($B$25:B81),C81),IF($D$20="Double declining balance",DDB($C$16,$F$16,$F$14,COUNT($B$25:B81),2),IF($D$20="Jumlah angka tahun",SYD($C$16,$F$16,$F$14,COUNT($B$25:B81)),""))))),"") -> 0 | E81: =IF(OR($E$10=0,B81=" ",D81="",D81=0)," ",SUM($D$25:D81)) -> 
D82: =IFERROR(IF(OR($D$20=0,B82=" ")," ",IF($D$20="Garis lurus",SLN($C$16,$F$16,$F$14)/12*C82,IF($D$20="Saldo menurun",DB($C$16,$F$16,$F$14,COUNT($B$25:B82),C82),IF($D$20="Double declining balance",DDB($C$16,$F$16,$F$14,COUNT($B$25:B82),2),IF($D$20="Jumlah angka tahun",SYD($C$16,$F$16,$F$14,COUNT($B$25:B82)),""))))),"") -> 0 | E82: =IF(OR($E$10=0,B82=" ",D82="",D82=0)," ",SUM($D$25:D82)) -> 
D83: =IFERROR(IF(OR($D$20=0,B83=" ")," ",IF($D$20="Garis lurus",SLN($C$16,$F$16,$F$14)/12*C83,IF($D$20="Saldo menurun",DB($C$16,$F$16,$F$14,COUNT($B$25:B83),C83),IF($D$20="Double declining balance",DDB($C$16,$F$16,$F$14,COUNT($B$25:B83),2),IF($D$20="Jumlah angka tahun",SYD($C$16,$F$16,$F$14,COUNT($B$25:B83)),""))))),"") -> 0 | E83: =IF(OR($E$10=0,B83=" ",D83="",D83=0)," ",SUM($D$25:D83)) -> 
D84: =IFERROR(IF(OR($D$20=0,B84=" ")," ",IF($D$20="Garis lurus",SLN($C$16,$F$16,$F$14)/12*C84,IF($D$20="Saldo menurun",DB($C$16,$F$16,$F$14,COUNT($B$25:B84),C84),IF($D$20="Double declining balance",DDB($C$16,$F$16,$F$14,COUNT($B$25:B84),2),IF($D$20="Jumlah angka tahun",SYD($C$16,$F$16,$F$14,COUNT($B$25:B84)),""))))),"") -> 0 | E84: =IF(OR($E$10=0,B84=" ",D84="",D84=0)," ",SUM($D$25:D84)) -> 

Sheet Referensi_Kelompok_Barang (hidden)
A1: Kelompok I (masa manfaat 4 Tahun)
A3: No | B3: Jenis Usaha | C3: Jenis Harta
A4: 1 | B4: Semua Jenis Usaha | C4: Mebel dan peralatan dari kayu atau rotan termasuk meja, bangku, kursi, lemari dan sejenisnya yang bukan bagian dari bangunan
C5: Mesin kantor seperti mesin tik, mesin hitung, duplikator, mesin fotokopi, mesin akunting/pembukuan, komputer, printer, scanner dan sejenisnya.
C6: Perlengkapan lainnya seperti amplifier, tape/cassette, video recorder, televisi dan sejenisnya.
C7: Sepeda motor, sepeda dan becak
C8: Alat perlengkapan khusus (tools) bagi industri/jasa yang bersangkutan.
C9: Dies, jigs, dan mould.
C10: Alat-alat komunikasi seperti pesawat telepon, faksimile, telepon seluler dan sejenisnya.
A11: 2 | B11: Pertanian, perkebunan, kehutanan, | C11: Alat yang digerakkan bukan dengan mesin seperti cangkul, peternakan, perikanan, garu dan lain-lain.
A12: 3 | B12: Industri makanan dan minuman | C12: Mesin ringan yang dapat dipindah-pindahkan seperti, huller, pemecah kulit, penyosoh, pengering, pallet, dan sejenisnya.
A13: 4 | B13: Transportasi dan Pergudangan | C13: Mobil taksi, bus dan truk yang digunakan sebagai angkutan umum.
A14: 5 | B14: Industri semi konduktor | C14: Falsh memory tester, writer machine, biporar test system, elimination (PE8-1), pose checker.
A15: 6 | B15: Jasa Persewaan Peralatan Tambat Air Dalam | C15: Anchor, Anchor Chains, Polyester Rope, Steel Buoys, Steel Wire Ropes, Mooring Accessoris.
A16: 7 | B16: Jasa telekomunikasi selular | C16: Base Station Controller
A18: Kelompok II (masa manfaat 8 Tahun)
A20: No | B20: Jenis Usaha | C20: Jenis Harta
A21: 1 | B21: Semua Jenis Usaha | C21: a.Mebel dan peralatan dari logam termasuk meja, bangku, kursi, lemari dan sejenisnya yang bukan merupakan bagian dari bangunan. Alat pengatur udara seperti AC, kipas angin dan sejenisnya.
C22: b.Mobil, bus, truk, speed boat dan sejenisnya.
C23: c.Container dan sejenisnya
A24: 2 | B24: Pertanian, perkebunan, kehutanan, perikanan | C24: a.Mesin pertanian/perkebunan seperti traktor dan mesin bajak, penggaruk, penanaman, penebar benih dan sejenisnya.
C25: b.Mesin yang mengolah atau menghasilkan atau memproduksi bahan atau barang pertanian, perkebunan, peternakan dan perikanan
A26: 3 | B26: Industri makanan dan minuman | C26: a.Mesin yang mengolah produk asal binatang, unggas dan perikanan, misalnya pabrik susu, pengalengan ikan.
C27: b.Mesin yang mengolah produk nabati, misalnya mesin minyak kelapa, margarin, penggilingan kopi, kembang gula, mesin pengolah biji-bijian seperti penggilingan beras, gandum, tapioka.
C28: c.Mesin yang menghasilkan/memproduksi minuman dan bahan-bahan minuman segala jenis.
C29: d.Mesin yang menghasilkan/memproduksi bahan-bahan makanan dan makanan segala jenis
A30: 4 | B30: Industri Mesin | C30: Mesin yang menghasilkan/memproduksi mesin ringan (misalnya mesin jahit, pompa air).
A31: 5 | B31: Perkayuan, Kehutanan | C31: a.Mesin dan peralatan penebangan kayu.
C32: b.Mesin yang mengolah atau menghasilkan atau memproduksi bahan atau barang kehutanan.
A33: 6 | B33: Konstruksi | C33: Peralatan yang dipergunakan seperti truk berat, dump truck, crane buldoser dan sejenisnya.
A34: 7 | B34: Transportasi dan Pergudangan | C34: a.Truk kerja untuk pengangkutan dan bongkar muat, truk peron, truk ngangkang, dan sejenisnya.
C35: b.Kapal penumpang, kapal barang, kapal khusus dibuat untuk pengangkutan barang tertentu (misalnya gandum, batu-batuan, bijih tambang dan sebagainya) termasuk kapal pendingin, kapal tangki, kapal penangkap ikan dan sejenisnya, yang mempunyai berat sampai 100 DWT.
C36: c.Kapal yang dibuat khusus untuk menghela atau mendorong kapal-kapal suar, kapal pemadam kebakaran, kapal keruk, keran terapung dan sejenisnya yang mempunyai berat sampai dengan 100 DWT.
C37: d.Perahu layar pakai atau tanpa motor yang mempunyai berat sampai dengan 250 DWT.
C38: e.Kapal balon
A39: 8 | B39: Telekomunikasi | C39: a.Perangkat pesawat telepon. b.Pesawat telegraf termasuk pesawat pengiriman dan penerimaan radio telegraf dan radio telepon.
A40: 9 | B40: Industri semi konduktor | C40: Auto frame loader, automatic logic handler, baking oven, ball shear tester, bipolar test handler (automatic), cleaning machine, coating machine, curing oven, cutting press, dambar cut machine, dicer, die bonder, die shear test, dynamic burn-in system oven, dynamic test handler, eliminator (PGE-01), full automatic handler, full automatic mark, hand maker, individual mark, inserter remover machine, laser marker (FUMA-01), logic test system, marker (mark), memory test system, molding, mounter, MPS automatic, MPS manual, O/S tester manual, pass oven, pose checker, reform machine, SMD stocker, taping machine, tiebar cut press, timming/forming machine, wire bonder, wire pull tester.
A41: 10 | B41: Jasa Persewaan Peralatan Tambat Air Dalam | C41: Spooling Machines, Metocean Data Collector
A42: 11 | B42: Jasa Telekomunikasi Seluler | C42: Mobile Switching Center, Home Location Register, Visitor Location Register, Authentication Centre, Equipment Identity Register, Intelligent Network Service Control Point, Intelligent Network Service Managemen Point, Radio Base Station, Transceiver Unit, Terminal SDH/Mini Link, Antena
A44: Kelompok III (masa manfaat 16 Tahun)
A46: No | B46: Jenis Usaha | C46: Jenis Harta
A47: 1 | B47: Pertambangan selain minyak dan gas | C47: Mesin-mesin yang dipakai dalam bidang pertambangan, termasuk mesin-mesin yang mengolah produk pelikan.
C48: b.Mobil, bus, truk, speed boat dan sejenisnya.
C49: c.Container dan sejenisnya
A50: 2 | B50: Permintalan, pertenunan dan pencelupan | C50: a. Mesin yang mengolah/menghasilkan produk-produk tekstil (misalnya kain katun, sutra, serat-serat buatan, wol dan bulu hewan lainnya, lena rami, permadani, kain-kain bulu, tule).
C51: b. Mesin untuk yang preparation, bleaching, dyeing, printing, finishing, texturing, packaging dan sejenisnya.
A52: 3 | B52: Perkayuan | C52: a. Mesin yang mengolah/menghasilkan produk-produk kayu, barang-barang dari jerami, rumput dan bahan anyaman lainnya.
C53: b. Mesin dan peralatan penggergajian kayu.
A54: 4 | B54: Industri kimia | C54: a. Mesin peralatan yang mengolah/menghasilkan produk industri kimia dan industri yang ada hubungannya dengan industri kimia (misalnya bahan kimia anorganis, persenyawaan organis dan anorganis dan logam mulia, elemen radio aktif, isotop, bahan kimia organis, produk farmasi, pupuk, obat celup, obat pewarna, cat, pernis, minyak eteris dan resinoida-resinonida wangi-wangian, obat kecantikan dan obat rias, sabun, detergent dan bahan organis pembersih lainnya, zat albumina, perekat, bahan peledak, produk pirotehnik, korek api, alloy piroforis, barang fotografi dan sinematografi.
C55: b. Mesin yang mengolah/menghasilkan produk industri lainnya (misalnya damar tiruan, bahan plastik, ester dan eter dari selulosa, karet sintetis, karet tiruan, kulit samak, jangat dan kulit mentah).
A56: 5 | B56: Industri mesin | C56: Mesin yang menghasilkan/memproduksi mesin menengah dan berat (misalnya mesin mobil, mesin kapal).
A57: 6 | B57: Transportasi dan Pergudangan | C57: a. Kapal penumpang, kapal barang, kapal khusus dibuat untuk pengangkutan barang-barang tertentu (misalnya gandum, batu-batuan, biji tambang dan sejenisnya) termasuk kapal pendingin dan kapal tangki, kapal penangkapan ikan dan sejenisnya, yang mempunyai berat di atas 100 DWT sampai dengan 1.000 DWT.
C58: b. Kapal dibuat khusus untuk mengela atau mendorong kapal, kapal suar, kapal pemadam kebakaran, kapal keruk, keran terapung dan sejenisnya, yang mempunyai berat di atas 100 DWT sampai dengan 1.000 DWT.
C59: c. Dok terapung.
C60: d. Perahu layar pakai atau tanpa motor yang mempunyai berat di atas 250 DWT.
C61: e. Pesawat terbang dan helikopter-helikopter segala jenis.
A62: 7 | B62: Telekomunikasi | C62: Perangkat radio navigasi, radar dan kendali jarak jauh.
A65: Kelompok IV (masa manfaat 20 Tahun)
A67: No | B67: Jenis Usaha | C67: Jenis Harta
A68: 1 | B68: Konstruksi | C68: Mesin berat untuk konstruksi
A69: 2 | B69: Transportasi dan Pergudangan | C69: a. Lokomotif uap dan tender atas rel.
C70: b. Lokomotif listrik atas rel, dijalankan dengan batere atau dengan tenaga listrik dari sumber luar.
C71: c. Lokomotif atas rel lainnya.
C72: d. Kereta, gerbong penumpang dan barang, termasuk kontainer khusus dibuat dan diperlengkapi untuk ditarik dengan satu alat atau beberapa alat pengangkutan.
C73: e. Kapal penumpang, kapal barang, kapal khusus dibuat untuk pengangkutan barang-barang tertentu (misalnya gandum, batu-batuan, biji tambang dan sejenisnya) termasuk kapal pendingin dan kapal tangki, kapal penangkap ikan dan sejenisnya, yang mempunyai berat di atas 1.000 DWT.
C74: f. Kapal dibuat khusus untuk menghela atau mendorong kapal, kapal suar, kapal pemadam kebakaran, kapal keruk, keran-keran terapung dan sebagainya, yang mempunyai berat di atas 1.000 DWT.
C75: g. Dok-dok terapung.

Sheet Usia_Ekonomis_Aset_Kab_Kra
A1: KODE | B1: URAIAN | C1: METODE | E1: USIA EKONOMIS
A2: 01.03.05.07.01.01 | B2: ASET TETAP DALAM RENOVASI
A3: 01.05.03.01.01.05 | B3: SOFTWARE
A4: 01.03.02.01.01.01 | B4: TRACTOR | C4: Garis | D4: Lurus | E4: 10
A5: 01.03.02.01.01.02 | B5: GRADER | C5: Garis | D5: Lurus | E5: 10
A6: 01.03.02.01.01.03 | B6: EXCAVATOR | C6: Garis | D6: Lurus | E6: 10
A7: 01.03.02.01.01.04 | B7: PILE DRIVER | C7: Garis | D7: Lurus | E7: 10
A8: 01.03.02.01.01.05 | B8: HAULER | C8: Garis | D8: Lurus | E8: 10
A9: 01.03.02.01.01.06 | B9: ASPHALT EQUIPMENT | C9: Garis | D9: Lurus | E9: 10
A10: 01.03.02.01.01.07 | B10: COMPACTING EQUIPMENT | C10: Garis | D10: Lurus | E10: 10
A11: 01.03.02.01.01.08 | B11: AGGREGATE AND CONCRETE EQUIPMENT | C11: Garis | D11: Lurus | E11: 10
A12: 01.03.02.01.01.09 | B12: LOADER | C12: Garis | D12: Lurus | E12: 10
A13: 01.03.02.01.01.10 | B13: ALAT PENGANGKAT | C13: Garis | D13: Lurus | E13: 10
A14: 01.03.02.01.01.11 | B14: MESIN PROSES | C14: Garis | D14: Lurus | E14: 10
A15: 01.03.02.01.01.12 | B15: ALAT BESAR DARAT LAINNYA | C15: Garis | D15: Lurus | E15: 10
A16: 01.03.02.01.02.01 | B16: DREDGER | C16: Garis | D16: Lurus | E16: 8
A17: 01.03.02.01.02.02 | B17: FLOATING EXCAVATOR | C17: Garis | D17: Lurus | E17: 8
A18: 01.03.02.01.02.03 | B18: AMPHIBI DREDGER | C18: Garis | D18: Lurus | E18: 8
A19: 01.03.02.01.02.04 | B19: KAPAL TARIK | C19: Garis | D19: Lurus | E19: 8
A20: 01.03.02.01.02.05 | B20: MESIN PROSES APUNG | C20: Garis | D20: Lurus | E20: 8
A21: 01.03.02.01.02.06 | B21: ALAT BESAR APUNG LAINNYA | C21: Garis | D21: Lurus | E21: 8
A22: 01.03.02.01.03.01 | B22: ALAT PENARIK | C22: Garis | D22: Lurus | E22: 8
A23: 01.03.02.01.03.02 | B23: FEEDER | C23: Garis | D23: Lurus | E23: 8
A24: 01.03.02.01.03.03 | B24: COMPRESSOR | C24: Garis | D24: Lurus | E24: 8
A25: 01.03.02.01.03.04 | B25: ELECTRIC GENERATING SET | C25: Garis | D25: Lurus | E25: 8
A26: 01.03.02.01.03.05 | B26: POMPA | C26: Garis | D26: Lurus | E26: 8
A27: 01.03.02.01.03.06 | B27: MESIN BOR | C27: Garis | D27: Lurus | E27: 8
A28: 01.03.02.01.03.07 | B28: UNIT PEMELIHARAAN LAPANGAN | C28: Garis | D28: Lurus | E28: 8
A29: 01.03.02.01.03.08 | B29: ALAT PENGOLAHAN AIR KOTOR | C29: Garis | D29: Lurus | E29: 8
A30: 01.03.02.01.03.09 | B30: PEMBANGKIT UAP AIR PANAS/STEAM GENERATOR | C30: Garis | D30: Lurus | E30: 8
A31: 01.03.02.01.03.10 | B31: AIR PORT MAINTENANCE EQUIPMENT/ALAT BANTU PENERBANGAN | C31: Garis | D31: Lurus | E31: 8
A32: 01.03.02.01.03.11 | B32: MESIN TATOO | C32: Garis | D32: Lurus | E32: 8
A33: 01.03.02.01.03.12 | B33: PERLENGKAPAN KEBAKARAN HUTAN | C33: Garis | D33: Lurus | E33: 8
A34: 01.03.02.01.03.13 | B34: PERALATAN SELAM | C34: Garis | D34: Lurus | E34: 8
A35: 01.03.02.01.03.14 | B35: PERALATAN SAR MOUNTENERING | C35: Garis | D35: Lurus | E35: 8
A36: 01.03.02.01.03.15 | B36: PERALATAN INTELEJEN | C36: Garis | D36: Lurus | E36: 8
A37: 01.03.02.01.03.16 | B37: ALAT BANTU LAINNYA | C37: Garis | D37: Lurus | E37: 8
A38: 01.03.02.02.01.01 | B38: KENDARAAN DINAS BERMOTOR PERORANGAN | C38: Garis | D38: Lurus | E38: 8
A39: 01.03.02.02.01.02 | B39: KENDARAAN BERMOTOR PENUMPANG | C39: Garis | D39: Lurus | E39: 8
A40: 01.03.02.02.01.03 | B40: KENDARAAN BERMOTOR ANGKUTAN BARANG | C40: Garis | D40: Lurus | E40: 8
A41: 01.03.02.02.01.04 | B41: KENDARAAN BERMOTOR BERODA DUA | C41: Garis | D41: Lurus | E41: 8
A42: 01.03.02.02.01.05 | B42: KENDARAAN BERMOTOR BERODA TIGA | C42: Garis | D42: Lurus | E42: 8
A43: 01.03.02.02.01.06 | B43: KENDARAAN BERMOTOR KHUSUS | C43: Garis | D43: Lurus | E43: 8
A44: 01.03.02.02.01.07 | B44: KENDARAAN TEMPUR | C44: Garis | D44: Lurus | E44: 8
A45: 01.03.02.02.01.08 | B45: ALAT ANGKUTAN KERETA REL | C45: Garis | D45: Lurus | E45: 8
A46: 01.03.02.02.01.09 | B46: ALAT ANGKUTAN DARAT BERMOTOR LAINNYA | C46: Garis | D46: Lurus | E46: 8
A47: 01.03.02.02.02.01 | B47: KENDARAAN TAK BERMOTOR ANGKUTAN BARANG | C47: Garis | D47: Lurus | E47: 2
A48: 01.03.02.02.02.02 | B48: KENDARAAN TAK BERMOTOR PENUMPANG | C48: Garis | D48: Lurus | E48: 2
A49: 01.03.02.02.02.03 | B49: ALAT ANGKUTAN KERETA REL TAK BERMOTOR | C49: Garis | D49: Lurus | E49: 2
A50: 01.03.02.02.02.04 | B50: ALAT ANGKUTAN DARAT TAK BEMOTOR LAINNYA | C50: Garis | D50: Lurus | E50: 2
A51: 01.03.02.02.03.01 | B51: ALAT ANGKUTAN APUNG BERMOTOR UNTUK BARANG | C51: Garis | D51: Lurus | E51: 10
A52: 01.03.02.02.03.02 | B52: ALAT ANGKUTAN APUNG BERMOTOR UNTUK PENUMPANG | C52: Garis | D52: Lurus | E52: 10
A53: METODE PENYUSUTAN | E53: Halaman 1 dari 15
A55: KODE | B55: URAIAN | C55: METODE | E55: USIA EKONOMIS
A56: 01.03.02.02.03.03 | B56: ALAT ANGKUTAN APUNG BERMOTOR KHUSUS | C56: Garis | D56: Lurus | E56: 10
A57: 01.03.02.02.03.04 | B57: ALAT ANGKUTAN APUNG BERMOTOR MILITER | C57: Garis | D57: Lurus | E57: 10
A58: 01.03.02.02.03.05 | B58: ALAT ANGKUTAN APUNG BERMOTOR LAINNYA | C58: Garis | D58: Lurus | E58: 10
A59: 01.03.02.02.04.01 | B59: ALAT ANGKUTAN APUNG TAK BERMOTOR UNTUK BARANG | C59: Garis | D59: Lurus | E59: 3
A60: 01.03.02.02.04.02 | B60: ALAT ANGKUTAN APUNG TAK BERMOTOR UNTUK PENUMPANG | C60: Garis | D60: Lurus | E60: 3
A61: 01.03.02.02.04.03 | B61: ALAT ANGKUTAN APUNG TAK BERMOTOR KHUSUS | C61: Garis | D61: Lurus | E61: 3
A62: 01.03.02.02.04.04 | B62: ALAT ANGKUTAN APUNG TAK BERMOTOR LAINNYA | C62: Garis | D62: Lurus | E62: 3
A63: 01.03.02.02.05.01 | B63: KAPAL TERBANG | C63: Garis | D63: Lurus | E63: 20
A64: 01.03.02.02.05.02 | B64: ALAT ANGKUTAN TAK BERMOTOR UDARA LAINNYA | C64: Garis | D64: Lurus | E64: 20
A65: 01.03.02.03.01.01 | B65: PERKAKAS KONSTRUKSI LOGAM TERPASANG PADA PONDASI | C65: Garis | D65: Lurus | E65: 10
A66: 01.03.02.03.01.02 | B66: PERKAKAS KONSTRUKSI LOGAM YANG TRANSPORTABLE | C66: Garis | D66: Lurus | E66: 10
B67: (BERPINDAH)
A68: 01.03.02.03.01.03 | B68: PERKAKAS BENGKEL LISTRIK | C68: Garis | D68: Lurus | E68: 10
A69: 01.03.02.03.01.04 | B69: PERKAKAS BENGKEL SERVICE | C69: Garis | D69: Lurus | E69: 10
A70: 01.03.02.03.01.05 | B70: PERKAKAS PENGANGKAT BERMESIN | C70: Garis | D70: Lurus | E70: 10
A71: 01.03.02.03.01.06 | B71: PERKAKAS BENGKEL KAYU | C71: Garis | D71: Lurus | E71: 10
A72: 01.03.02.03.01.07 | B72: PERKAKAS BENGKEL KHUSUS | C72: Garis | D72: Lurus | E72: 10
A73: 01.03.02.03.01.08 | B73: PERALATAN LAS | C73: Garis | D73: Lurus | E73: 10
A74: 01.03.02.03.01.09 | B74: PERKAKAS PABRIK ES | C74: Garis | D74: Lurus | E74: 10
A75: 01.03.02.03.01.10 | B75: ALAT BENGKEL BERMESIN LAINNYA | C75: Garis | D75: Lurus | E75: 10
A76: 01.03.02.03.02.01 | B76: PERKAKAS BENGKEL KONSTRUKSI LOGAM | C76: Garis | D76: Lurus | E76: 5
A77: 01.03.02.03.02.02 | B77: PERKAKAS BENGKEL LISTRIK | C77: Garis | D77: Lurus | E77: 5
A78: 01.03.02.03.02.03 | B78: PERKAKAS BENGKEL SERVICE | C78: Garis | D78: Lurus | E78: 5
A79: 01.03.02.03.02.03 | B79: PERKAKAS BENGKEL SERVICE | C79: Garis | D79: Lurus | E79: 5
A80: 01.03.02.03.02.04 | B80: PERKAKAS PENGANGKAT | C80: Garis | D80: Lurus | E80: 5
A81: 01.03.02.03.02.05 | B81: PERKAKAS STANDARD (STANDARD TOOLS) | C81: Garis | D81: Lurus | E81: 5
A82: 01.03.02.03.02.06 | B82: PERKAKAS KHUSUS (SPECIAL TOOLS) | C82: Garis | D82: Lurus | E82: 5
A83: 01.03.02.03.02.07 | B83: PERKAKAS BENGKEL KERJA | C83: Garis | D83: Lurus | E83: 5
A84: 01.03.02.03.02.08 | B84: PERALATAN TUKANG BESI | C84: Garis | D84: Lurus | E84: 5
A85: 01.03.02.03.02.09 | B85: PERALATAN TUKANG KAYU | C85: Garis | D85: Lurus | E85: 5
A86: 01.03.02.03.02.10 | B86: PERALATAN TUKANG KAYU | C86: Garis | D86: Lurus | E86: 5
A87: 01.03.02.03.02.11 | B87: PERALATAN UKUR, GIP DAN FEETING | C87: Garis | D87: Lurus | E87: 5
A88: 01.03.02.03.02.12 | B88: PERALATAN BENGKEL KHUSUS PELADAM | C88: Garis | D88: Lurus | E88: 5
A89: 01.03.02.03.02.13 | B89: ALAT BENGKEL TAK BERMESIN LAINNYA | C89: Garis | D89: Lurus | E89: 5
A90: 01.03.02.03.03.01 | B90: ALAT UKUR UNIVERSAL | C90: Garis | D90: Lurus | E90: 5
A91: 01.03.02.03.03.02 | B91: ALAT UKUR/TEST INTELEGENSIA | C91: Garis | D91: Lurus | E91: 5
A92: 01.03.02.03.03.03 | B92: ALAT UKUR/TEST ALAT KEPRIBADIAN | C92: Garis | D92: Lurus | E92: 5
A93: 01.03.02.03.03.04 | B93: ALAT UKUR/TEST KLINIS LAIN | C93: Garis | D93: Lurus | E93: 5
A94: 01.03.02.03.03.05 | B94: ALAT KALIBRASI | C94: Garis | D94: Lurus | E94: 5
A95: 01.03.02.03.03.06 | B95: OSCILLOSCOPE | C95: Garis | D95: Lurus | E95: 5
A96: 01.03.02.03.03.07 | B96: UNIVERSAL TESTER | C96: Garis | D96: Lurus | E96: 5
A97: 01.03.02.03.03.08 | B97: ALAT UKUR/PEMBANDING | C97: Garis | D97: Lurus | E97: 5
A98: 01.03.02.03.03.09 | B98: ALAT UKUR LAIN-LAIN | C98: Garis | D98: Lurus | E98: 5
A99: 01.03.02.03.03.10 | B99: ALAT TIMBANGAN/BIARA | C99: Garis | D99: Lurus | E99: 5
A100: 01.03.02.03.03.11 | B100: ANAK TIMBANGAN/BIARA | C100: Garis | D100: Lurus | E100: 5
A101: 01.03.02.03.03.12 | B101: TAKARAN KERING | C101: Garis | D101: Lurus | E101: 5
A102: 01.03.02.03.03.13 | B102: TAKARAN BAHAN BANGUNAN | C102: Garis | D102: Lurus | E102: 5
A103: 01.03.02.03.03.14 | B103: TAKARAN LAINNYA | C103: Garis | D103: Lurus | E103: 5
A104: 01.03.02.03.03.14 | B104: TAKARAN LAINNYA | C104: Garis | D104: Lurus | E104: 5
A105: 01.03.02.03.03.15 | B105: ALAT PENGUJI KENDARAAN BERMOTOR | C105: Garis | D105: Lurus | E105: 5
A106: 01.03.02.03.03.16 | B106: SPECIFIC SET | C106: Garis | D106: Lurus | E106: 5
A107: 01.03.02.03.03.17 | B107: ALAT PENGUKUR KEADAAN ALAM | C107: Garis | D107: Lurus | E107: 5
A108: METODE PENYUSUTAN | E108: Halaman 2 dari 15
A110: KODE | B110: URAIAN | C110: METODE | E110: USIA EKONOMIS
A111: 01.03.02.06.02.07 | B111: ALAT-ALAT SANDI | C111: Garis | D111: Lurus | E111: 5
A112: 01.03.02.06.02.08 | B112: ALAT KOMUNIKASI KHUSUS | C112: Garis | D112: Lurus | E112: 5
A113: 01.03.02.06.02.09 | B113: ALAT KOMUNIKASI DIGITAL DAN KONVENSIONAL | C113: Garis | D113: Lurus | E113: 5
A114: 01.03.02.06.02.10 | B114: ALAT KOMUNIKASI SATELIT | C114: Garis | D114: Lurus | E114: 5
A115: 01.03.02.06.02.11 | B115: ALAT KOMUNIKASI LAINNYA | C115: Garis | D115: Lurus | E115: 5
A116: 01.03.02.06.03.01 | B116: PERALATAN PEMANCAR MF/MW | C116: Garis | D116: Lurus | E116: 10
A117: 01.03.02.06.03.02 | B117: PERALATAN PEMANCAR HF/SW | C117: Garis | D117: Lurus | E117: 10
A118: 01.03.02.06.03.03 | B118: PERALATAN PEMANCAR VHF/FM | C118: Garis | D118: Lurus | E118: 10
A119: 01.03.02.06.03.04 | B119: PERALATAN PEMANCAR UHF | C119: Garis | D119: Lurus | E119: 10
A120: 01.03.02.06.03.05 | B120: PERALATAN PEMANCAR SHF | C120: Garis | D120: Lurus | E120: 10
A121: 01.03.02.06.03.06 | B121: PERALATAN ANTENA MF/MW | C121: Garis | D121: Lurus | E121: 10
A122: 01.03.02.06.03.07 | B122: PERALATAN ANTENA HF/SW | C122: Garis | D122: Lurus | E122: 10
A123: 01.03.02.06.03.08 | B123: PERALATAN ANTENA VHF/FM | C123: Garis | D123: Lurus | E123: 10
A124: 01.03.02.06.03.09 | B124: PERALATAN ANTENA UHF | C124: Garis | D124: Lurus | E124: 10
A125: 01.03.02.06.03.10 | B125: PEERALATAN ANTENA SHF/PARABOLA | C125: Garis | D125: Lurus | E125: 10
A126: 01.03.02.06.03.11 | B126: PERALATAN TRANSLATOR VHF/VHF | C126: Garis | D126: Lurus | E126: 10
A127: 01.03.02.06.03.12 | B127: PERALATAN TRANSLATOR UHF/UHF | C127: Garis | D127: Lurus | E127: 10
A128: 01.03.02.06.03.13 | B128: PERALATAN TRANSLATOR VHF/UHF | C128: Garis | D128: Lurus | E128: 10
A129: 01.03.02.06.03.14 | B129: PERALATAN TRANSLATOR UHF/VHF | C129: Garis | D129: Lurus | E129: 10
A130: 01.03.02.06.03.15 | B130: PERALATAN MICROWAVE F P U | C130: Garis | D130: Lurus | E130: 10
A131: 01.03.02.06.03.16 | B131: PERALATAN MICROWAVE TERESTRIAL | C131: Garis | D131: Lurus | E131: 10
A132: 01.03.02.06.03.17 | B132: PERALATAN MICROWAVE TVRO | C132: Garis | D132: Lurus | E132: 10
A133: 01.03.02.06.03.18 | B133: PERALATAN DUMMY LOAD | C133: Garis | D133: Lurus | E133: 10
A134: 01.03.02.06.03.19 | B134: SWITCHER ANTENA | C134: Garis | D134: Lurus | E134: 10
A135: 01.03.02.06.03.20 | B135: SWITCHER/MENARA ANTENA | C135: Garis | D135: Lurus | E135: 10
A136: 01.03.02.06.03.21 | B136: FEEDER | C136: Garis | D136: Lurus | E136: 10
A137: 01.03.02.06.03.22 | B137: HUMIDITY CONTROL | C137: Garis | D137: Lurus | E137: 10
A138: 01.03.02.06.03.23 | B138: PROGRAM INPUT EQUIPMENT | C138: Garis | D138: Lurus | E138: 10
A139: 01.03.02.06.03.24 | B139: PERALATAN ANTENA PENERIMA VHF | C139: Garis | D139: Lurus | E139: 10
A140: 01.03.02.06.03.25 | B140: PERALATAN PEMANCAR LF | C140: Garis | D140: Lurus | E140: 10
A141: 01.03.02.06.03.26 | B141: UNIT PEMANCAR MF+HF | C141: Garis | D141: Lurus | E141: 10
A142: 01.03.02.06.03.27 | B142: PERALATAN ANTENA PEMANCAR MF+HF | C142: Garis | D142: Lurus | E142: 10
A143: 01.03.02.06.03.28 | B143: PERALATAN PENERIMA | C143: Garis | D143: Lurus | E143: 10
A144: 01.03.02.06.03.29 | B144: PERALATAN PEMANCAR DAN PENERIMA LF | C144: Garis | D144: Lurus | E144: 10
A145: 01.03.02.06.03.30 | B145: PERALATAN PEMANCAR DAN PENERIMA MF | C145: Garis | D145: Lurus | E145: 10
A146: 01.03.02.06.03.31 | B146: PERALATAN PEMANCAR DAN PENERIMA HF | C146: Garis | D146: Lurus | E146: 10
A147: 01.03.02.06.03.32 | B147: PERALATAN PEMANCAR DAN PENERIMA MF+HF | C147: Garis | D147: Lurus | E147: 10
A148: 01.03.02.06.03.33 | B148: PERALATAN PEMANCAR DAN PENERIMA VHF | C148: Garis | D148: Lurus | E148: 10
A149: 01.03.02.06.03.34 | B149: PERALATAN PEMANCAR DAN PENERIMA UHF | C149: Garis | D149: Lurus | E149: 10
A150: 01.03.02.06.03.35 | B150: PERALATAN PEMANCAR DAN PENERIMA SHF | C150: Garis | D150: Lurus | E150: 10
A151: 01.03.02.06.03.36 | B151: PERALATAN ANTENA PEMANCAR DAN PENERIMA LF | C151: Garis | D151: Lurus | E151: 10
A152: 01.03.02.06.03.37 | B152: PERALATAN ANTENA PEMANCAR DAN PENERIMA MF | C152: Garis | D152: Lurus | E152: 10
A153: 01.03.02.06.03.38 | B153: PERALATAN ANTENA PEMANCAR DAN PENERIMA HF | C153: Garis | D153: Lurus | E153: 10
A154: 01.03.02.06.03.39 | B154: PERALATAN ANTENA PEMANCAR DAN PENERIMA MF+HF | C154: Garis | D154: Lurus | E154: 10
A155: 01.03.02.06.03.40 | B155: PERALATAN ANTENA PEMANCAR DAN PENERIMA VHF | C155: Garis | D155: Lurus | E155: 10
A156: 01.03.02.06.03.41 | B156: PERALATAN ANTENA PEMANCAR DAN PENERIMA UHF | C156: Garis | D156: Lurus | E156: 10
A157: 01.03.02.06.03.42 | B157: PERALATAN ANTENA PEMANCAR DAN PENERIMASHF | C157: Garis | D157: Lurus | E157: 10
A158: 01.03.02.06.03.43 | B158: PERALATAN PENERIMA CUACA CITRA SATELITE RESOLUSI RENDAH | C158: Garis | D158: Lurus | E158: 10
A159: 01.03.02.06.03.44 | B159: PERALATAN PENERIMA CUACA CITRA SATELITE RESOLUSI TINGGI | C159: Garis | D159: Lurus | E159: 10
A160: 01.03.02.06.03.45 | B160: PERALATAN PENERIMA DAN PENGIRIM GAMBAR KE PERMUKAAN | C160: Garis | D160: Lurus | E160: 10
A161: 01.03.02.06.03.46 | B161: PERALATAN PERLENGKAPAN RADIO | C161: Garis | D161: Lurus | E161: 10
A162: METODE PENYUSUTAN | E162: Halaman 4 dari 15
A164: KODE | B164: URAIAN | C164: METODE | E164: USIA EKONOMIS
A165: 01.03.02.06.03.47 | B165: SUMBER TENAGA | C165: Garis | D165: Lurus | E165: 10
A166: 01.03.02.06.03.48 | B166: PERALATAN PEMANCAR LAINNYA | C166: Garis | D166: Lurus | E166: 10
A167: 01.03.02.06.04.01 | B167: PERALATAN KOMUNIKASI NAVIGASI INSTRUMEN LANDING SYSTEM | C167: Garis | D167: Lurus | E167: 15
A168: 01.03.02.06.04.02 | B168: VERY HIGH FREQUENCE OMNI RANGE (VOR) | C168: Garis | D168: Lurus | E168: 15
A169: 01.03.02.06.04.03 | B169: DISTANCE MEASURING EQUIPMENT (DME) | C169: Garis | D169: Lurus | E169: 15
A170: 01.03.02.06.04.04 | B170: RADAR | C170: Garis | D170: Lurus | E170: 15
A171: 01.03.02.06.04.05 | B171: ALAT PANGATUR TELEKOMUNIKASI | C171: Garis | D171: Lurus | E171: 15
A172: 01.03.02.06.04.06 | B172: PERALATAN KOMUNIKASI UNTUK DOKUMENTASI | C172: Garis | D172: Lurus | E172: 15
A173: 01.03.02.06.04.07 | B173: PERALATAN KOMUNIKASI NAVIGASI LAINNYA | C173: Garis | D173: Lurus | E173: 15
A174: 01.03.02.07.01.01 | B174: ALAT KEDOKTERAN UMUM | C174: Garis | D174: Lurus | E174: 5
A175: 01.03.02.07.01.02 | B175: ALAT KEDOKTERAN GIGI | C175: Garis | D175: Lurus | E175: 5
A176: 01.03.02.07.01.03 | B176: ALAT KEDOKTERAN KELUARGA BERENCANA | C176: Garis | D176: Lurus | E176: 5
A177: 01.03.02.07.01.04 | B177: ALAT KEDOKTERAN BEDAH | C177: Garis | D177: Lurus | E177: 5
A178: 01.03.02.07.01.05 | B178: ALAT KESEHATAN KEBIDANAN DAN PENYAKIT KANDUNGAN | C178: Garis | D178: Lurus | E178: 5
A179: 01.03.02.07.01.06 | B179: ALAT KEDOKTERAN THT | C179: Garis | D179: Lurus | E179: 5
A180: 01.03.02.07.01.06 | B180: ALAT KEDOKTERAN THT | C180: Garis | D180: Lurus | E180: 5
A181: 01.03.02.07.01.07 | B181: ALAT KEDOKTERAN MATA | C181: Garis | D181: Lurus | E181: 5
A182: 01.03.02.07.01.08 | B182: ALAT KEDOKTERAN BAGIAN PENYAKIT DALAM | C182: Garis | D182: Lurus | E182: 5
A183: 01.03.02.07.01.09 | B183: ALAT KEDOKTERAN KAMAR JENASAH/MORTUARY | C183: Garis | D183: Lurus | E183: 5
A184: 01.03.02.07.01.10 | B184: ALAT KEDOKTERAN ANAK | C184: Garis | D184: Lurus | E184: 5
A185: 01.03.02.07.01.11 | B185: ALAT KEDOKTERAN POLIKLINIK | C185: Garis | D185: Lurus | E185: 5
A186: 01.03.02.07.01.12 | B186: ALAT KESEHATAN REHABILITASI MEDIS | C186: Garis | D186: Lurus | E186: 5
A187: 01.03.02.07.01.12 | B187: ALAT KESEHATAN REHABILITASI MEDIS | C187: Garis | D187: Lurus | E187: 5
A188: 01.03.02.07.01.13 | B188: ALAT KEDOKTERAN NEUROLOGI (SYARAF) | C188: Garis | D188: Lurus | E188: 5
A189: 01.03.02.07.01.14 | B189: ALAT KEDOKTERAN JANTUNG | C189: Garis | D189: Lurus | E189: 5
A190: 01.03.02.07.01.15 | B190: ALAT KEDOKTERAN RADIODIAGNOSTIC | C190: Garis | D190: Lurus | E190: 5
A191: 01.03.02.07.01.16 | B191: ALAT KEDOKTERAN PATALOGI ANATOMY | C191: Garis | D191: Lurus | E191: 5
A192: 01.03.02.07.01.17 | B192: ALAT KEDOKTERAN TRANSFUSI DARAH | C192: Garis | D192: Lurus | E192: 5
A193: 01.03.02.07.01.18 | B193: ALAT KEDOKTERAN RADIOTERAPY | C193: Garis | D193: Lurus | E193: 5
A194: 01.03.02.07.01.19 | B194: ALAT KEDOKTERAN NUKLIR | C194: Garis | D194: Lurus | E194: 5
A195: 01.03.02.07.01.20 | B195: ALAT KEDOKTERAN KULIT DAN KELAMIN | C195: Garis | D195: Lurus | E195: 5
A196: 01.03.02.07.01.21 | B196: ALAT KEDOKTERAN GAWAT DARURAT | C196: Garis | D196: Lurus | E196: 5
A197: 01.03.02.07.01.21 | B197: ALAT KEDOKTERAN GAWAT DARURAT | C197: Garis | D197: Lurus | E197: 5
A198: 01.03.02.07.01.22 | B198: ALAT KEDOKTERAN JIWA | C198: Garis | D198: Lurus | E198: 5
A199: 01.03.02.07.01.23 | B199: ALAT KEDOKTERAN BEDAH ORTHOPEDI | C199: Garis | D199: Lurus | E199: 5
A200: 01.03.02.07.01.24 | B200: ALAT KEDOKTERAN I C U | C200: Garis | D200: Lurus | E200: 5
A201: 01.03.02.07.01.25 | B201: ALAT KEDOKTERAN I C C U | C201: Garis | D201: Lurus | E201: 5
A202: 01.03.02.07.01.26 | B202: ALAT KEDOKTERAN BEDAH JANTUNG | C202: Garis | D202: Lurus | E202: 5
A203: 01.03.02.07.01.27 | B203: ALAT KEDOKTERAN TRADITIONAL MEDICINE | C203: Garis | D203: Lurus | E203: 5
... 536 more rows

Sheet Sheet1
